Workbook

Sheet Notes
A1: SveStochRSI.xlsm; Traders Tip spreadsheet created for the February 2019 Issue
A2: Coded beginning 2018-December-01 by Ronald McAllister (rpmac_xltt@sprynet.com)
A4: This Workbook demonstrates an EXCEL version of the ideas presented
A5: by Sylvain Vervoort in an article titled "The V-Trade, Part 6"
A6: which originally appeared in the August 2018 issue of
A7: "Technical Analysis of Stocks and Commodities" magazine.
A9: CalculationsAndCharts construction Notes:
A11: To save a bit of space in the chart area I have used an overlay chart to plot the corresponding SVEStochRSI values so that the
A12: indicator appears in the bottom half of the Price and Renko charts.
A14: Once again we have a use for the Modified Renko Brick builder routine last published in the November 2014 traders tip spreadsheet.
A16: For this traders tip I an showing a Price candle chart and corresponding Renko Brick chart one above the other to help emphasize the "timeless" nature of the Renko charting technique.
A18: I am dynamically adjusting the number of bars on the Renko chart to arrive at similar timestamps for the left-most and right-most bars on the two charts.
A19: As a result, the renko chart will almost never have the same number of bars displayed.
A20: This "timeless" aspect of the Renko chart also means that the peaks and valleys on the two charts are seldom vertically aligned.
A22: You can use the cursor to explore this effect. For this traders tip, the cursor slider directly controls the cursor on the price chart.
A23: Programatically I am adjusting the Renko cursor to highlight a bar that most closely matches the timestamp highlighted by the cursor on the price chart.
A24: You can place the price cursor on a peak or valley and see the nearest brick on the Renko chart.
A27: General Construction Notes
A29: This spreadsheet incorporates a major change to my Yahoo Finance historical data retrieval approach.
A30: Microsoft has indicated that the EDGE Browser will be replacing Internet Explorer going forward.
A31: Some newer machines are being delivered with Win 10 and EDGE and no Internet Explorer.
A32: This presents a looming problem as Win 7 and Win 8 begin to age out.
A33: EXCEL Querytables, as vehicles for web data retrieval, rely on parts of the Internet Explorer for automated Cookie processing.
A34: The current gate keeper protocols for access to the Yahoo Finance historical pricing data requires that both
A35: a valid Yahoo Finance cookie and a matching "Crumb" value be sent to Yahoo Finance with each historical data request.
A36: With EXCEL Query Tables the cookie part is automatic. At least as long as the necessary bits of IE remain available and functioning.
A37: However, the Crumb part is imbedded in the raw HTML returned for the Yahoo stock summary page, the Yahoo History page, and for certain other Yahoo Finance Entry level Pages.
A38: The problem has been that EXCEL provides no native capability to get at that raw HTML text.
A39: Enter MSXML.
A40: MSXML also shares the automatic Internet Explorer Cookie handlers. But if you want to ask programmatically, MSXML will show you inbound cookies destined for the IE cache.
A41: MSXML provides access to the raw HTML text and my VBA code extracts the necessary Crumb value from that text.
A42: Up until now I simply appended the Crumb value retrieved via MSXML to my Querytable history data request URLs and since cookies for Querytables are automatic, things worked just fine.
A44: Recently several folks have had the Querytable data retrievals stop working on their machines.
A45: The actual error text was Yahoo declaring an Invalid cookie but I have recently determined by trial and error that the crumb was the problem. (see below)
A46: Researching these failures led me to discover the coming IE End of life and the issues this may raise for Querytables.
A47: * * * *
A48: With this spreadsheet I am using WinHttpRequest as my VBA internet access vehicle.
A49: WinHttpRequest is analogous to MSXML with the exception that WinHttpRequest by default maintains its own in-memory cookie cache and does not share
A50: the in memory cache with any other windows processes. The downside is that Querytables can not see that cache. So I have replaced each of the Querytable calls with
A51: analogous WinHttpRequest calls and then must parse the returned pricing CSV structures in VBA where the Querytable mechanism did some of that parsing for me.
A52: Data retrieval elapsed times from Request to "charts ready" seem to be comparable to the Querytable process.
A54: Because the WinHttpRequest cookie cache exists only in memory, it does not stick around after I have completed data retrieval for a symbol.
A55: The next time you request data for a symbol, a new WinHttpRequest environment is created with an empty cache and a new cookie and new crumb get retrieved from Yahoo Finance.
A57: While I was testing my new code I ran into the "Invalid Cookie" error others have reported as an error highlighting a ".refresh" command in a Querytable call.
A58: Looking closer at the then current crumb value I realized that there was an Escape Sequence embedded in the Crumb text.
A59: As it turned out, this escape sequence, \u002F, is the encoding for a forward slash "/".
A60: I replaced the escape sequence in the crumb text with the forward slash and voila, using this corrected crumb text, the error went away!
A61: My crumb text went from "asdf898r\u002Fjv.s" to "asdf898r/jv.s" and my "Invalid Cookie" error went away.
A63: Escape sequences and the reasons they exist is too large a topic for here. Google it if you are curious.
A65: Sufficient to say that I think that this (randomly embedded escape sequences) may be what is killing things for the readers
A66: who have reported that the recent spreadsheets have all suddenly stopped working after behaving fine for months.
A67: The Yahoo finance cookie existing in the IE cache on their machine expired. Yahoo sent a new cookie.
A68: The newly generated matching crumb text unfortunately contains the forward slash or some other escaped character.
A70: Yahoo Finance cookies are good for a year. So once the problem hits, all of the Trader tips spreadsheets on that machine will report the same
A71: failure for a year until the cookie in cache expires and is replaced. Or the user removes the cookie from the IE cache.
A72: Then they must be lucky enough that the new Crumb does not also have embedded escape sequences
A74: HTML and or XML protocols use the forward slash as a delimiter so unless it appears in a proper delimiter position, any forward slash must be escape encoded
A75: to avoid problems when the recipient HTML decoder is working with the raw text.
A77: In my testing to date I have generated many successful crumbs and many failures. So far, I have only encountered the \u002F escape sequence in the failures.
A79: Escaped Characters Bottom Line: VBA code in this spreadsheet automatically looks for \u002F in a crumb text and will replace it with "/".
A80: Other escaped characters may someday turn up in the crumb text. I am taking a wait and see approach for now.
A82: How to fix this specific (\u002F) escape sequence exposure in recent spreadsheets:
A83: Open one of the problem spreadsheets
A84: Open the VBA editor ALT-F11 will do it
A85: Open the VBA editor "FIND" dialog. Ctrl-F will do it
A86: In the "Find What" box type "Function ExtractCrumbString"
A87: Click on the "Search In Current Project" radio button
A88: Click "Find Next"
A89: Scroll down to the "End Function" line. Less than a page.
A90: The immediately preceding line will begin with
A91: ExtractCrumbString = Mid(SourceText,
A92: Insert the following text between the line that begins ExtractCrumbString = Mid(SourceText,
A93: and the "End Function" line
A94: ExtractCrumbString = Replace(ExtractCrumbString, "\u002F", "/", 1, -1, vbTextCompare)
B95: Save your workbook and test as you see fit.
A97: Development Notes:
C98: This workbook contains and uses VBA macros and may use VBA Class structures.
C99: Input Data
C100: The data in this workbook is sorted date descending (most recent date at the top). All formulas and
C101: VBA routines are built accordingly.
B105: My sincere apologies to our Macintosh based readers: Neither MSXML nor WinHttpRequest are supported in your environment. So as it stands this version of the spreadsheet will not work for you.
B106: See "Why this approach does not work for Macintosh" below.
B107: I am investigating cURL as a non-Querytable based approach for the Macintosh environment.
A109: The new Yahoo Finance history download interface has changed rather radically. The biggest hurdle being a pseudo-security requirement of adding a
B110: crumb character string to any URL requesting any type of history download. That crumb must match up (by way of some sort of hash algorithm) with
B111: the Yahoo Finance cookie that must also be sent with any request to the new Yahoo History down load interface.
B113: A crumb value is returned, buried in the HTML for any of what I call the "entry level" Yahoo Finance web pages (no crumb security requirement for entry level pages).
B114: A crumb may come with other Yahoo Finance pages. A crumb may even accompany some of the secured pages as well. I have not checked.
B116: Entry level pages are the top level pages of the various Yahoo Finance dialogs and include: Quote Lookup, Stock Summary Quote, and any of the pages
B117: with links in the horizontal row with the "Summary" link on the quote summary page such as Options, Historical Data, and the rest.
B119: To date I have found no way to get at this crumb value using any native EXCEL capabilities.
B121: So this crumb requirement effectively shuts out any solution that attempts to exclusively use built-in facilities of EXCEL, which is to say a purely Querytables solution.
B123: The approach built for this Traders Tip spreadsheet uses a combination of MSXML and EXCEL Querytable calls to Load the InputPriceData worksheet.
B125: First I call MSXML to get the HTML text for the Yahoo Summary Quote page using the requested symbol. From this HTML text I extract the full company name,
B126: the market it trades, the market status and time stamp, and finally the associated crumb string. There is a bunch of other useful bits buried in this HTML
B127: text that do not necessarily appear on the web page your browser presents. Perhaps some day I will go after and build a worksheet with these other bits.
B129: Next I add the freshly extracted crumb string to the URLs I use in three separate Querytable calls to retrieve Price history, Split history, and Dividend history respectively.
B131: From there VBA code proceeds as in the past to fill in the cell formulas and formatting that make the "prettied up" InputPriceData sheet.
A133: Why this approach works for Windows:
B134: First, MSXML shares the permanent Internet Explorer web cache where cookies are maintained. Both IE and MSXML automatically
B135: update this cache when a "set cookie" header accompanies a web response. And they both automatically search this shared cache for
B136: cookies and add any "appropriate" cookies to the headers of any web requests they send out.
B137: This cookie handling automation means that even if the response to our MSXML call for the Summary web page includes a new version of
B138: the Yahoo Finance cookie, the imbedded Crumb value will always match the cookie newly installed in the cache!
B140: Second, in the Windows environment the EXCEL Querytable mechanism leans heavily on bits from Internet Explorer. This means that cookie
B141: handling is also automated from the shared cache for Querytable calls. We can count on any appropriate cookies being added to any Querytable call.
B142: We only need to do our part by adding the corresponding Crumb value to complete the security for the Querytable to access Yahoo History downloads.
A144: Why this approach does not work for Macintosh:
B145: For what it is worth, the Macintosh version of the MS Office suite of products do in fact maintain a special, shared amongst themselves only, cookie cache.
B146: They automate cookie handling into and from this cache JUST for the Office products and any Querytable activity they might originate.
B148: This cache is not tied to, nor shared with, any browser that might be installed on the MAC. And I have not found anything with HTTP capabilities similar to
B149: MSXML that can work with that Office product cookie cache.
B151: When working in the MAC EXCEL environment, without that MSXML like capability against the office shared cache, l have no mechanism
B152: to obtain a crumb value that would be a valid match to the Yahoo Finance cookie that will be automatically attached to a Querytable call.
B153: This missing facility pretty much eliminates the use of Mac environment Querytables to access the new Yahoo Finance history download interface.
A155: One very low probability potential "Gottcha" for any Querytables approach.
B156: Yahoo Finance cookies typically have an assigned expiration that is a year out (to the second) from the time they are issued.
B157: Further, these cookies are unique. Yours will not match mine.
B159: If for testing purposes, instead of MSXML, you use a fresh instance of Winhttp (Fresh instance = empty cache = no cookie to automatically send)
B160: every time you call an entry level page, the Yahoo server says "What? Entry level page? With no inbound cookie? Get them a cookie!!"
B161: and will send you a new, unique cookie and will imbed the matching crumb value in the response HTML text for each of these "no cookie attached" calls.
B163: The Gottcha: Lets say that the Yahoo Finance cookie presently in the IE cache has an expiration date and time that just happens
B164: to fall between our MSXML call to the summary page to fetch our crumb and our first (or second, or third) Querytable call.
B165: The Querytable call after the cookie expiration may fail with a cookie and crumb validation error.
B167: Querytable error reporting is atrocious. So we will not get any sort of helpful message here. Just a very generalized message like "failed to connect".
B169: The workaround is to simply go to the InputPriceData tab and click the download button.
B170: This second time through the retrieval process should not fail on a mismatch.
B171: After all, you now have a year before the new cookie that just got put into the cache expires!
A173: Calculation and Chart Worksheet Usage Comments:
C174: In General, Items in Bolded BLUE are items you may freely change to play what-if games.
C175: Be sure to have a backup copy of the spreadsheet before you alter anything else.
A177: Features carried forward from the June 2016 version of my T-Tips Template
A178: Added a pair of buttons near cell F12 that will allow the user to step the charting window forward or backward one bar for each click.
A179: I find this to be a good way to test my understanding of the author's ideas as I step through the evolution of the price behavior and the indicators.
B181: First: In the "Help! I would like to plot data" area.
B182: Added button to resolve #NA problems by locating the bar in the input data with a slightly more recent date than what the user actually requested.
B183: I find this particularly useful when I have a general idea of where I want to be date wise. Now I can pick a set of dates "out of the air".
B184: If either (or both) of my date specifications fall between dates that are available in the price history,
B185: this button will resolve them to the dates of the nearest, slightly more recent input bars.
B186: I can then refine my data interval search as necessary from there.
B187: Really great when working with Weekly or Monthly studies!
C188: 2016Jun11 - added logic to the "I would like to chart.." button to detect #N/A values and terminate
C189: gracefully with a message instead of blowing up in the charting logic.
B191: Second: In the "Price Chart Windowing Controls" area. (A11 and A12)
B192: When retrieving data for a new symbol or when changing from daily to weekly or monthly data, there was the possibility that the
B193: residual settings in A11 and A12 would fall outside of the number bars available on the input data tab after the new data retrieval.
B194: In certain combinations, this could create a serious error in the chart sizing logic and crash the spreadsheet.
B195: I have taken this opportunity to update the validity checking logic used in the chart sizing macros
B196: to adjust these values as necessary so that they fall within the boundaries of the newly retrieved input data.
A197: Features carried forward from the October 2015 Traders Tips Template
B198: Improved automation: changes to any of the following will automatically initiate calculations appropriate to reflect a change.
C199: Changing either of cells A11 (pan) or A12 (zoom) will automatically initiate the same chart sizing macros that the manual
C200: "Set Chart" button uses.

Sheet InputPriceData
A1: Casey's General Stores, Inc. (CASY) -NasdaqGS (Daily)
IJ2: 241.79
A3: Request Online Yahoo History for: | F3: Market State == > | G3: At close: | H3: 16:00:00 | I3: EST
A4: Symbol | B4: CASY | D4: Valid | I4: =OFFSET(I4,-2,0,1,1) -> 0
A5: From | B5: 1950-01-01 | D5: Data | AF5: Trailing 12 Div return (Cur Close)
A6: To | B6: =NOW() -> 2018-12-10T20:29:03.320 | D6: Types | E6: =VLOOKUP(B7,D7:E10,2,FALSE) -> d
A7: Data Type | B7: Daily | D7: Daily | E7: d
B8: U5nJVNydxv0 | D8: Weekly | E8: w
A9: Available Data | D9: Monthly | E9: m
A10: Bar Count: | B10: 8846 | AF10: =OFFSET(AC15,1,0,1,1)/OFFSET(N15,1,0,1,1) -> 0.008678500986
A11: From: | B11: =IF(B10<=0,"",OFFSET(B15,B10,IF(HistReqDataType="v",1,0),1,1)) -> 1983-10-20 | W11: Trailing 12 Month Dividend Returns
A12: To: | B12: =IF(B10<=0,"",IF(HistReqDataType="v",OFFSET(B15,2,1,1,1),OFFSET(B15,1,0,1,1))) -> 2018-11-19 | W12: Raw Close price on Dividend date | X12: Div Year and Month | Y12: Looking for year ago Div Year and Month | Z12: Year ago Div Date we found | AA12: row offset to year ago div Date | AB12: Same month flag | AC12: Trailing 12 Div Total | AD12: Trailing 12 Div return
Q13: Split History | S13: 4 | T13: Running | U13: Dividend History
B14: Raw Data Values | H14: Adjusted | I14: Price Adjust | J14: Vol Adjust | K14: Adjusted Values | P14: Last | Q14: Effective | R14: Shares | T14: Vol Adjust | V14: 118
A15: RelRow | B15: Date | C15: Open | D15: High | E15: Low | F15: Close | G15: Volume | H15: Close | I15: Factor | J15: Factor | K15: Open | L15: High | M15: Low | N15: Close | O15: Volume | P15: Trade | Q15: 43424 | R15: New | S15: Old | T15: 1 | U15: Date | V15: $ / Share
A16: 1 | B16: 2018-11-19 | C16: 128.559998 | D16: 129.509995 | E16: 126.440002 | F16: 126.75 | G16: 209700 | H16: 126.75 | I16: =IF(F16=0,1,H16/F16) -> 1 | J16: =INDEX(OFFSET($T$15,0,0,$S$13+1,1),MATCH(B16,OFFSET($Q$15,0,0,$S$13+1,1),-1)) -> 1 | K16: =ROUND($I16*C16,2) -> 128.56 | L16: =ROUND($I16*D16,2) -> 129.51 | M16: 126.44 | N16: 126.75 | O16: =G16*J16 -> 209700 | Q16: 1998-02-17 | R16: 2 | S16: 1 | T16: 2 | U16: 2018-10-31 | V16: 0.29 | W16: =(INDEX(OFFSET($F$15,1,0,$B$10,1),MATCH(U16,OFFSET($B$15,1,0,$B$10,1),-1))) -> 126.110001 | X16: =YEAR(U16)&RIGHT("0"&MONTH(U16),2) -> 201810 | Y16: =YEAR(U16)-1&RIGHT("0"&MONTH(U16),2) -> 201710 | Z16: =OFFSET(U15,AA16,0,1,1) -> 2017-10-31 | AA16: =MATCH(Y16,OFFSET($X$15,A16,0,$V$14+1-A16,1),-1) -> 5 | AB16: =IF(OR(AND(YEAR(U16)=YEAR(Z16),MONTH(U16)=MONTH(Z16)),MONTH(U16)=MONTH(Z16)),1,0) -> 1 | AC16: =(V16+IF(AA16-AB16=0,0,IFERROR(SUM(OFFSET(V16,1,0,AA16-AB16-1,1)),0))) -> 1.1 | AD16: =AC16/(INDEX(OFFSET($F$15,1,0,$B$10,1),MATCH(U16,OFFSET($B$15,1,0,$B$10,1),-1))) -> 0.008722543742
A17: 2 | B17: 2018-11-16 | C17: 126.940002 | D17: 129.419998 | E17: 126.089996 | F17: 128.440002 | G17: 362100 | H17: 128.440002 | I17: =IF(F17=0,1,H17/F17) -> 1 | J17: =INDEX(OFFSET($T$15,0,0,$S$13+1,1),MATCH(B17,OFFSET($Q$15,0,0,$S$13+1,1),-1)) -> 1 | K17: =ROUND($I17*C17,2) -> 126.94 | L17: =ROUND($I17*D17,2) -> 129.42 | M17: =ROUND($I17*E17,2) -> 126.09 | N17: =ROUND($I17*F17,2) -> 128.44 | O17: =G17*J17 -> 362100 | Q17: 1994-02-16 | R17: 2 | S17: 1 | T17: 4 | U17: 2018-07-31 | V17: 0.29 | W17: =(INDEX(OFFSET($F$15,1,0,$B$10,1),MATCH(U17,OFFSET($B$15,1,0,$B$10,1),-1))) -> 109.379997 | X17: =YEAR(U17)&RIGHT("0"&MONTH(U17),2) -> 201807 | Y17: =YEAR(U17)-1&RIGHT("0"&MONTH(U17),2) -> 201707 | Z17: =OFFSET(U16,AA17,0,1,1) -> 2017-07-28 | AA17: =MATCH(Y17,OFFSET($X$15,A17,0,$V$14+1-A17,1),-1) -> 6 | AB17: =IF(OR(AND(YEAR(U17)=YEAR(Z17),MONTH(U17)=MONTH(Z17)),MONTH(U17)=MONTH(Z17)),1,0) -> 1 | AC17: =(V17+IF(AA17-AB17=0,0,IFERROR(SUM(OFFSET(V17,1,0,AA17-AB17-1,1)),0))) -> 1.33 | AD17: =AC17/(INDEX(OFFSET($F$15,1,0,$B$10,1),MATCH(U17,OFFSET($B$15,1,0,$B$10,1),-1))) -> 0.01215944447
A18: 3 | B18: 2018-11-15 | C18: 126.529999 | D18: 127.57 | E18: 124.709999 | F18: 127.550003 | G18: 296800 | H18: 127.550003 | I18: 1 | J18: 1 | K18: 126.53 | L18: 127.57 | M18: 124.71 | N18: 127.55 | O18: 296800 | Q18: 1986-08-05 | R18: 2 | S18: 1 | T18: 8 | U18: 2018-04-30 | V18: 0.26 | W18: 96.599998 | X18: 201804 | Y18: 201704 | Z18: 2017-04-27 | AA18: 6 | AB18: 1 | AC18: 1.3 | AD18: 0.01345755721
A19: 4 | B19: 2018-11-14 | C19: 128.669998 | D19: 129.509995 | E19: 126.220001 | F19: 126.419998 | G19: 252300 | H19: 126.419998 | I19: 1 | J19: 1 | K19: 128.67 | L19: 129.51 | M19: 126.22 | N19: 126.42 | O19: 252300 | Q19: 1985-06-25 | R19: 3 | S19: 2 | T19: 12 | U19: 2018-01-31 | V19: 0.26 | W19: 121.110001 | X19: 201801 | Y19: 201701 | Z19: 2017-01-30 | AA19: 6 | AB19: 1 | AC19: 1.28 | AD19: 0.01056890421
A20: 5 | B20: 2018-11-13 | C20: 130.149994 | D20: 130.149994 | E20: 127.809998 | F20: 127.879997 | G20: 232000 | H20: 127.879997 | I20: 1 | J20: 1 | K20: 130.15 | L20: 130.15 | M20: 127.81 | N20: 127.88 | O20: 232000 | U20: 2017-10-31 | V20: 0.26 | W20: 114.57 | X20: 201710 | Y20: 201610 | Z20: 2016-10-28 | AA20: 6 | AB20: 1 | AC20: 1.26 | AD20: 0.01099764336
A21: 6 | B21: 2018-11-12 | C21: 130.039993 | D21: 131.289993 | E21: 128.729996 | F21: 129.800003 | G21: 227400 | H21: 129.800003 | I21: 1 | J21: 1 | K21: 130.04 | L21: 131.29 | M21: 128.73 | N21: 129.8 | O21: 227400 | U21: 2017-08-30 | V21: 0.26 | W21: 104.93 | X21: 201708 | Y21: 201608 | Z21: 2016-10-28 | AA21: 5 | AB21: 0 | AC21: 1.24 | AD21: 0.01181740208
A22: 7 | B22: 2018-11-09 | C22: 130.520004 | D22: 131.309998 | E22: 129.059998 | F22: 130.539993 | G22: 189900 | H22: 130.539993 | I22: 1 | J22: 1 | K22: 130.52 | L22: 131.31 | M22: 129.06 | N22: 130.54 | O22: 189900 | U22: 2017-07-28 | V22: 0.26 | W22: 105.900002 | X22: 201707 | Y22: 201607 | Z22: 2016-07-28 | AA22: 5 | AB22: 1 | AC22: 0.98 | AD22: 0.009254013045
A23: 8 | B23: 2018-11-08 | C23: 132.210007 | D23: 133.070007 | E23: 130.100006 | F23: 130.979996 | G23: 146800 | H23: 130.979996 | I23: 1 | J23: 1 | K23: 132.21 | L23: 133.07 | M23: 130.1 | N23: 130.98 | O23: 146800 | U23: 2017-04-27 | V23: 0.24 | W23: 113.139999 | X23: 201704 | Y23: 201604 | Z23: 2016-04-28 | AA23: 5 | AB23: 1 | AC23: 0.96 | AD23: 0.008485062829
A24: 9 | B24: 2018-11-07 | C24: 129.020004 | D24: 132.649994 | E24: 129.020004 | F24: 132.320007 | G24: 255300 | H24: 132.320007 | I24: 1 | J24: 1 | K24: 129.02 | L24: 132.65 | M24: 129.02 | N24: 132.32 | O24: 255300 | U24: 2017-01-30 | V24: 0.24 | W24: 113.379997 | X24: 201701 | Y24: 201601 | Z24: 2016-01-28 | AA24: 5 | AB24: 1 | AC24: 0.94 | AD24: 0.008290704047
A25: 10 | B25: 2018-11-06 | C25: 128.380005 | D25: 129.770004 | E25: 127 | F25: 129.130005 | G25: 214200 | H25: 129.130005 | I25: 1 | J25: 1 | K25: 128.38 | L25: 129.77 | M25: 127 | N25: 129.13 | O25: 214200 | U25: 2016-10-28 | V25: 0.24 | W25: 115.160004 | X25: 201610 | Y25: 201510 | Z25: 2015-10-29 | AA25: 5 | AB25: 1 | AC25: 0.92 | AD25: 0.007988884752
A26: 11 | B26: 2018-11-05 | C26: 127.870003 | D26: 128.639999 | E26: 127.029999 | F26: 128.309998 | G26: 230000 | H26: 128.309998 | I26: 1 | J26: 1 | K26: 127.87 | L26: 128.64 | M26: 127.03 | N26: 128.31 | O26: 230000 | U26: 2016-07-28 | V26: 0.24 | W26: 131.970001 | X26: 201607 | Y26: 201507 | Z26: 2015-07-30 | AA26: 5 | AB26: 1 | AC26: 0.9 | AD26: 0.006819731706
A27: 12 | B27: 2018-11-02 | C27: 126.879997 | D27: 128.479996 | E27: 126.559998 | F27: 127.879997 | G27: 189500 | H27: 127.879997 | I27: 1 | J27: 1 | K27: 126.88 | L27: 128.48 | M27: 126.56 | N27: 127.88 | O27: 189500 | U27: 2016-04-28 | V27: 0.22 | W27: 111.540001 | X27: 201604 | Y27: 201504 | Z27: 2015-04-29 | AA27: 5 | AB27: 1 | AC27: 0.88 | AD27: 0.00788954628
A28: 13 | B28: 2018-11-01 | C28: 126.199997 | D28: 127.480003 | E28: 124.769997 | F28: 126.580002 | G28: 213700 | H28: 126.580002 | I28: 1 | J28: 1 | K28: 126.2 | L28: 127.48 | M28: 124.77 | N28: 126.58 | O28: 213700 | U28: 2016-01-28 | V28: 0.22 | W28: 116.830002 | X28: 201601 | Y28: 201501 | Z28: 2015-01-29 | AA28: 5 | AB28: 1 | AC28: 0.86 | AD28: 0.007361122873
A29: 14 | B29: 2018-10-31 | C29: 126.660004 | D29: 127.309998 | E29: 124.730003 | F29: 126.110001 | G29: 231200 | H29: 126.110001 | I29: 1 | J29: 1 | K29: 126.66 | L29: 127.31 | M29: 124.73 | N29: 126.11 | O29: 231200 | U29: 2015-10-29 | V29: 0.22 | W29: 106.589996 | X29: 201510 | Y29: 201410 | Z29: 2014-10-30 | AA29: 5 | AB29: 1 | AC29: 0.84 | AD29: 0.007880664523
A30: 15 | B30: 2018-10-30 | C30: 124.160004 | D30: 127.879997 | E30: 122.809998 | F30: 126.5 | G30: 273800 | H30: 126.209999 | I30: 0.997707502 | J30: 1 | K30: 123.88 | L30: 127.59 | M30: 122.53 | N30: 126.21 | O30: 273800 | U30: 2015-07-30 | V30: 0.22 | W30: 100.419998 | X30: 201507 | Y30: 201407 | Z30: 2014-07-30 | AA30: 5 | AB30: 1 | AC30: 0.82 | AD30: 0.008165704206
A31: 16 | B31: 2018-10-29 | C31: 122.660004 | D31: 125.459999 | E31: 120 | F31: 123.980003 | G31: 246400 | H31: 123.695778 | I31: 0.9977074932 | J31: 1 | K31: 122.38 | L31: 125.17 | M31: 119.72 | N31: 123.7 | O31: 246400 | U31: 2015-04-29 | V31: 0.2 | W31: 82.019997 | X31: 201504 | Y31: 201404 | Z31: 2014-04-29 | AA31: 5 | AB31: 1 | AC31: 0.8 | AD31: 0.009753718962
A32: 17 | B32: 2018-10-26 | C32: 123.510002 | D32: 124.040001 | E32: 120.639999 | F32: 122.019997 | G32: 392800 | H32: 121.740265 | I32: 0.9977074905 | J32: 1 | K32: 123.23 | L32: 123.76 | M32: 120.36 | N32: 121.74 | O32: 392800 | U32: 2015-01-29 | V32: 0.2 | W32: 93.610001 | X32: 201501 | Y32: 201401 | Z32: 2014-01-30 | AA32: 5 | AB32: 1 | AC32: 0.78 | AD32: 0.008332443026
A33: 18 | B33: 2018-10-25 | C33: 125.18 | D33: 126.089996 | E33: 124.150002 | F33: 124.470001 | G33: 206600 | H33: 124.184654 | I33: 0.9977075038 | J33: 1 | K33: 124.89 | L33: 125.8 | M33: 123.87 | N33: 124.18 | O33: 206600 | U33: 2014-10-30 | V33: 0.2 | W33: 81.059998 | X33: 201410 | Y33: 201310 | Z33: 2013-10-30 | AA33: 5 | AB33: 1 | AC33: 0.76 | AD33: 0.009375771265
A34: 19 | B34: 2018-10-24 | C34: 125.839996 | D34: 127.830002 | E34: 124.870003 | F34: 124.989998 | G34: 394200 | H34: 124.703453 | I34: 0.9977074566 | J34: 1 | K34: 125.55 | L34: 127.54 | M34: 124.58 | N34: 124.7 | O34: 394200 | U34: 2014-07-30 | V34: 0.2 | W34: 66.779999 | X34: 201407 | Y34: 201307 | Z34: 2013-07-30 | AA34: 5 | AB34: 1 | AC34: 0.74 | AD34: 0.01108116219
A35: 20 | B35: 2018-10-23 | C35: 124.730003 | D35: 126.809998 | E35: 122.339996 | F35: 126.059998 | G35: 258500 | H35: 125.771004 | I35: 0.9977074885 | J35: 1 | K35: 124.44 | L35: 126.52 | M35: 122.06 | N35: 125.77 | O35: 258500 | U35: 2014-04-29 | V35: 0.18 | W35: 67.809998 | X35: 201404 | Y35: 201304 | Z35: 2013-04-29 | AA35: 5 | AB35: 1 | AC35: 0.72 | AD35: 0.01061790328
A36: 21 | B36: 2018-10-22 | C36: 126.419998 | D36: 127.129997 | E36: 124.93 | F36: 125.650002 | G36: 267400 | H36: 125.361946 | I36: 0.9977074732 | J36: 1 | K36: 126.13 | L36: 126.84 | M36: 124.64 | N36: 125.36 | O36: 267400 | U36: 2014-01-30 | V36: 0.18 | W36: 68.870003 | X36: 201401 | Y36: 201301 | Z36: 2013-01-30 | AA36: 5 | AB36: 1 | AC36: 0.705 | AD36: 0.01023667735
A37: 22 | B37: 2018-10-19 | C37: 128.059998 | D37: 128.490005 | E37: 126.190002 | F37: 126.709999 | G37: 235100 | H37: 126.419518 | I37: 0.9977075132 | J37: 1 | K37: 127.77 | L37: 128.2 | M37: 125.9 | N37: 126.42 | O37: 235100 | U37: 2013-10-30 | V37: 0.18 | W37: 73.139999 | X37: 201310 | Y37: 201210 | Z37: 2012-10-31 | AA37: 5 | AB37: 1 | AC37: 0.69 | AD37: 0.009433962393
A38: 23 | B38: 2018-10-18 | C38: 129.779999 | D38: 130.289993 | E38: 127.610001 | F38: 127.879997 | G38: 378500 | H38: 127.58683 | I38: 0.9977074835 | J38: 1 | K38: 129.48 | L38: 129.99 | M38: 127.32 | N38: 127.59 | O38: 378500 | U38: 2013-07-30 | V38: 0.18 | W38: 66.209999 | X38: 201307 | Y38: 201207 | Z38: 2012-07-30 | AA38: 5 | AB38: 1 | AC38: 0.675 | AD38: 0.01019483477
A39: 24 | B39: 2018-10-17 | C39: 127.57 | D39: 129.520004 | E39: 126.400002 | F39: 129.089996 | G39: 413000 | H39: 128.794052 | I39: 0.9977074598 | J39: 1 | K39: 127.28 | L39: 129.22 | M39: 126.11 | N39: 128.79 | O39: 413000 | U39: 2013-04-29 | V39: 0.165 | W39: 58.080002 | X39: 201304 | Y39: 201204 | Z39: 2012-04-27 | AA39: 5 | AB39: 1 | AC39: 0.66 | AD39: 0.01136363597
A40: 25 | B40: 2018-10-16 | C40: 125.669998 | D40: 127.5 | E40: 125.150002 | F40: 127.419998 | G40: 248600 | H40: 127.127884 | I40: 0.9977074713 | J40: 1 | K40: 125.38 | L40: 127.21 | M40: 124.86 | N40: 127.13 | O40: 248600 | U40: 2013-01-30 | V40: 0.165 | W40: 54.43 | X40: 201301 | Y40: 201201 | Z40: 2012-01-30 | AA40: 5 | AB40: 1 | AC40: 0.645 | AD40: 0.01185008267
A41: 26 | B41: 2018-10-15 | C41: 123.75 | D41: 126.150002 | E41: 123.459999 | F41: 125.360001 | G41: 276300 | H41: 125.072609 | I41: 0.9977074665 | J41: 1 | K41: 123.47 | L41: 125.86 | M41: 123.18 | N41: 125.07 | O41: 276300 | U41: 2012-10-31 | V41: 0.165 | W41: 51.549999 | X41: 201210 | Y41: 201110 | Z41: 2011-10-28 | AA41: 5 | AB41: 1 | AC41: 0.63 | AD41: 0.01222114476
A42: 27 | B42: 2018-10-12 | C42: 125.540001 | D42: 126.529999 | E42: 121.660004 | F42: 123.709999 | G42: 527800 | H42: 123.426392 | I42: 0.9977074852 | J42: 1 | K42: 125.25 | L42: 126.24 | M42: 121.38 | N42: 123.43 | O42: 527800 | U42: 2012-07-30 | V42: 0.165 | W42: 59.650002 | X42: 201207 | Y42: 201107 | Z42: 2011-07-28 | AA42: 5 | AB42: 1 | AC42: 0.615 | AD42: 0.01031014215
A43: 28 | B43: 2018-10-11 | C43: 122.410004 | D43: 127.110001 | E43: 122.330002 | F43: 125.029999 | G43: 802900 | H43: 124.743362 | I43: 0.9977074542 | J43: 1 | K43: 122.13 | L43: 126.82 | M43: 122.05 | N43: 124.74 | O43: 802900 | U43: 2012-04-27 | V43: 0.15 | W43: 57.330002 | X43: 201204 | Y43: 201104 | Z43: 2011-04-28 | AA43: 5 | AB43: 1 | AC43: 0.6 | AD43: 0.01046572439
A44: 29 | B44: 2018-10-10 | C44: 123.989998 | D44: 124.57 | E44: 122.540001 | F44: 122.730003 | G44: 272200 | H44: 122.448647 | I44: 0.9977075206 | J44: 1 | K44: 123.71 | L44: 124.28 | M44: 122.26 | N44: 122.45 | O44: 272200 | U44: 2012-01-30 | V44: 0.15 | W44: 51.119999 | X44: 201201 | Y44: 201101 | Z44: 2011-01-28 | AA44: 5 | AB44: 1 | AC44: 0.585 | AD44: 0.0114436622
A45: 30 | B45: 2018-10-09 | C45: 123.82 | D45: 124.720001 | E45: 122.779999 | F45: 124.209999 | G45: 280800 | H45: 123.925247 | I45: 0.9977074954 | J45: 1 | K45: 123.54 | L45: 124.43 | M45: 122.5 | N45: 123.93 | O45: 280800 | U45: 2011-10-28 | V45: 0.15 | W45: 49.490002 | X45: 201110 | Y45: 201010 | Z45: 2010-10-28 | AA45: 5 | AB45: 1 | AC45: 0.57 | AD45: 0.01151747781
A46: 31 | B46: 2018-10-08 | C46: 123.32 | D46: 124.190002 | E46: 122.050003 | F46: 123.580002 | G46: 304300 | H46: 123.296692 | I46: 0.997707477 | J46: 1 | K46: 123.04 | L46: 123.91 | M46: 121.77 | N46: 123.3 | O46: 304300 | U46: 2011-07-28 | V46: 0.15 | W46: 44.759998 | X46: 201107 | Y46: 201007 | Z46: 2010-07-29 | AA46: 5 | AB46: 1 | AC46: 0.555 | AD46: 0.01239946436
A47: 32 | B47: 2018-10-05 | C47: 124.139999 | D47: 125.610001 | E47: 122.580002 | F47: 123.400002 | G47: 300400 | H47: 123.117104 | I47: 0.9977074717 | J47: 1 | K47: 123.86 | L47: 125.32 | M47: 122.3 | N47: 123.12 | O47: 300400 | U47: 2011-04-28 | V47: 0.135 | W47: 39.139999 | X47: 201104 | Y47: 201004 | Z47: 2010-04-29 | AA47: 5 | AB47: 1 | AC47: 0.505 | AD47: 0.01290240196
A48: 33 | B48: 2018-10-04 | C48: 126.139999 | D48: 126.540001 | E48: 123.959999 | F48: 124.32 | G48: 499600 | H48: 124.034996 | I48: 0.9977074968 | J48: 1 | K48: 125.85 | L48: 126.25 | M48: 123.68 | N48: 124.03 | O48: 499600 | U48: 2011-01-28 | V48: 0.135 | W48: 42.759998 | X48: 201101 | Y48: 201001 | Z48: 2010-01-28 | AA48: 5 | AB48: 1 | AC48: 0.455 | AD48: 0.01064078628
A49: 34 | B49: 2018-10-03 | C49: 127.199997 | D49: 127.940002 | E49: 126.120003 | F49: 126.209999 | G49: 279900 | H49: 125.920662 | I49: 0.9977074954 | J49: 1 | K49: 126.91 | L49: 127.65 | M49: 125.83 | N49: 125.92 | O49: 279900 | U49: 2010-10-28 | V49: 0.135 | W49: 41.049999 | X49: 201010 | Y49: 200910 | Z49: 2009-10-29 | AA49: 5 | AB49: 1 | AC49: 0.405 | AD49: 0.009866017293
A50: 35 | B50: 2018-10-02 | C50: 127.07 | D50: 128.149994 | E50: 126.57 | F50: 127.139999 | G50: 408000 | H50: 126.848526 | I50: 0.9977074642 | J50: 1 | K50: 126.78 | L50: 127.86 | M50: 126.28 | N50: 126.85 | O50: 408000 | U50: 2010-07-29 | V50: 0.1 | W50: 38.040001 | X50: 201007 | Y50: 200907 | Z50: 2009-07-30 | AA50: 5 | AB50: 1 | AC50: 0.355 | AD50: 0.009332281563
A51: 36 | B51: 2018-10-01 | C51: 129.119995 | D51: 129.710007 | E51: 127.360001 | F51: 127.57 | G51: 341200 | H51: 127.277542 | I51: 0.9977074704 | J51: 1 | K51: 128.82 | L51: 129.41 | M51: 127.07 | N51: 127.28 | O51: 341200 | U51: 2010-04-29 | V51: 0.085 | W51: 38.990002 | X51: 201004 | Y51: 200904 | Z51: 2009-04-29 | AA51: 5 | AB51: 1 | AC51: 0.34 | AD51: 0.008720184215
A52: 37 | B52: 2018-09-28 | C52: 129.929993 | D52: 130.740005 | E52: 128.970001 | F52: 129.110001 | G52: 277600 | H52: 128.814011 | I52: 0.9977074588 | J52: 1 | K52: 129.63 | L52: 130.44 | M52: 128.67 | N52: 128.81 | O52: 277600 | U52: 2010-01-28 | V52: 0.085 | W52: 30.870001 | X52: 201001 | Y52: 200901 | Z52: 2009-01-29 | AA52: 5 | AB52: 1 | AC52: 0.33 | AD52: 0.01068998994
A53: 38 | B53: 2018-09-27 | C53: 129.630005 | D53: 130.339996 | E53: 129.199997 | F53: 129.740005 | G53: 220100 | H53: 129.442581 | I53: 0.9977075382 | J53: 1 | K53: 129.33 | L53: 130.04 | M53: 128.9 | N53: 129.44 | O53: 220100 | U53: 2009-10-29 | V53: 0.085 | W53: 32.009998 | X53: 200910 | Y53: 200810 | Z53: 2008-10-30 | AA53: 5 | AB53: 1 | AC53: 0.32 | AD53: 0.009996876601
A54: 39 | B54: 2018-09-26 | C54: 129.710007 | D54: 130.490005 | E54: 128.270004 | F54: 129.639999 | G54: 274600 | H54: 129.342804 | I54: 0.9977075362 | J54: 1 | K54: 129.41 | L54: 130.19 | M54: 127.98 | N54: 129.34 | O54: 274600 | U54: 2009-07-30 | V54: 0.085 | W54: 27.58 | X54: 200907 | Y54: 200807 | Z54: 2008-07-30 | AA54: 5 | AB54: 1 | AC54: 0.31 | AD54: 0.01124002901
A55: 40 | B55: 2018-09-25 | C55: 129.270004 | D55: 130.199997 | E55: 128.699997 | F55: 129.25 | G55: 637000 | H55: 128.95369 | I55: 0.9977074662 | J55: 1 | K55: 128.97 | L55: 129.9 | M55: 128.4 | N55: 128.95 | O55: 637000 | U55: 2009-04-29 | V55: 0.075 | W55: 27.43 | X55: 200904 | Y55: 200804 | Z55: 2008-04-29 | AA55: 5 | AB55: 1 | AC55: 0.3 | AD55: 0.01093693037
A56: 41 | B56: 2018-09-24 | C56: 128.5 | D56: 129.080002 | E56: 127.599998 | F56: 128.350006 | G56: 399600 | H56: 128.055756 | I56: 0.9977074407 | J56: 1 | K56: 128.21 | L56: 128.78 | M56: 127.31 | N56: 128.06 | O56: 399600 | U56: 2009-01-29 | V56: 0.075 | W56: 22.07 | X56: 200901 | Y56: 200801 | Z56: 2008-01-30 | AA56: 5 | AB56: 1 | AC56: 0.29 | AD56: 0.01314000906
A57: 42 | B57: 2018-09-21 | C57: 128.350006 | D57: 129.199997 | E57: 127.599998 | F57: 128.880005 | G57: 700100 | H57: 128.584549 | I57: 0.997707511 | J57: 1 | K57: 128.06 | L57: 128.9 | M57: 127.31 | N57: 128.58 | O57: 700100 | U57: 2008-10-30 | V57: 0.075 | W57: 30.26 | X57: 200810 | Y57: 200710 | Z57: 2007-10-30 | AA57: 5 | AB57: 1 | AC57: 0.28 | AD57: 0.009253139458
A58: 43 | B58: 2018-09-20 | C58: 127.639999 | D58: 129.360001 | E58: 127.449997 | F58: 128.270004 | G58: 413100 | H58: 127.975945 | I58: 0.9977074999 | J58: 1 | K58: 127.35 | L58: 129.06 | M58: 127.16 | N58: 127.98 | O58: 413100 | U58: 2008-07-30 | V58: 0.075 | W58: 24.85 | X58: 200807 | Y58: 200707 | Z58: 2007-07-30 | AA58: 5 | AB58: 1 | AC58: 0.27 | AD58: 0.01086519115
A59: 44 | B59: 2018-09-19 | C59: 127.669998 | D59: 128.240005 | E59: 126.959999 | F59: 127.169998 | G59: 441700 | H59: 126.878456 | I59: 0.9977074624 | J59: 1 | K59: 127.38 | L59: 127.95 | M59: 126.67 | N59: 126.88 | O59: 441700 | U59: 2008-04-29 | V59: 0.065 | W59: 22.26 | X59: 200804 | Y59: 200704 | Z59: 2007-04-27 | AA59: 5 | AB59: 1 | AC59: 0.26 | AD59: 0.01168014376
A60: 45 | B60: 2018-09-18 | C60: 127.650002 | D60: 128.830002 | E60: 126.690002 | F60: 127.760002 | G60: 587500 | H60: 127.46711 | I60: 0.9977074828 | J60: 1 | K60: 127.36 | L60: 128.53 | M60: 126.4 | N60: 127.47 | O60: 587500 | U60: 2008-01-30 | V60: 0.065 | W60: 24.99 | X60: 200801 | Y60: 200701 | Z60: 2007-01-30 | AA60: 5 | AB60: 1 | AC60: 0.245 | AD60: 0.009803921569
A61: 46 | B61: 2018-09-17 | C61: 126.43 | D61: 126.43 | E61: 124.629997 | F61: 125.279999 | G61: 440500 | H61: 124.99279 | I61: 0.9977074633 | J61: 1 | K61: 126.14 | L61: 126.14 | M61: 124.34 | N61: 124.99 | O61: 440500 | U61: 2007-10-30 | V61: 0.065 | W61: 28.07 | X61: 200710 | Y61: 200610 | Z61: 2006-10-30 | AA61: 5 | AB61: 1 | AC61: 0.23 | AD61: 0.008193801211
A62: 47 | B62: 2018-09-14 | C62: 127.989998 | D62: 129 | E62: 125.489998 | F62: 126.110001 | G62: 494500 | H62: 125.820892 | I62: 0.9977074855 | J62: 1 | K62: 127.7 | L62: 128.7 | M62: 125.2 | N62: 125.82 | O62: 494500 | U62: 2007-07-30 | V62: 0.065 | W62: 24 | X62: 200707 | Y62: 200607 | Z62: 2006-07-28 | AA62: 5 | AB62: 1 | AC62: 0.215 | AD62: 0.008958333333
A63: 48 | B63: 2018-09-13 | C63: 128.240005 | D63: 128.850006 | E63: 126.57 | F63: 127.779999 | G63: 370300 | H63: 127.487061 | I63: 0.9977074816 | J63: 1 | K63: 127.95 | L63: 128.55 | M63: 126.28 | N63: 127.49 | O63: 370300 | U63: 2007-04-27 | V63: 0.05 | W63: 25.99 | X63: 200704 | Y63: 200604 | Z63: 2006-04-27 | AA63: 5 | AB63: 1 | AC63: 0.2 | AD63: 0.007695267411
A64: 49 | B64: 2018-09-12 | C64: 126.260002 | D64: 128.830002 | E64: 125.400002 | F64: 128.240005 | G64: 660200 | H64: 127.946014 | I64: 0.9977074939 | J64: 1 | K64: 125.97 | L64: 128.53 | M64: 125.11 | N64: 127.95 | O64: 660200 | U64: 2007-01-30 | V64: 0.05 | W64: 25.49 | X64: 200701 | Y64: 200601 | Z64: 2006-01-30 | AA64: 5 | AB64: 1 | AC64: 0.195 | AD64: 0.007650058847
A65: 50 | B65: 2018-09-11 | C65: 120 | D65: 130.5 | E65: 119.510002 | F65: 124.779999 | G65: 2042100 | H65: 124.493942 | I65: 0.9977075092 | J65: 1 | K65: 119.72 | L65: 130.2 | M65: 119.24 | N65: 124.49 | O65: 2042100 | U65: 2006-10-30 | V65: 0.05 | W65: 24.25 | X65: 200610 | Y65: 200510 | Z65: 2005-10-28 | AA65: 5 | AB65: 1 | AC65: 0.19 | AD65: 0.007835051546
A66: 51 | B66: 2018-09-10 | C66: 115.339996 | D66: 117.32 | E66: 115.199997 | F66: 116.790001 | G66: 492400 | H66: 116.522255 | I66: 0.9977074578 | J66: 1 | K66: 115.08 | L66: 117.05 | M66: 114.94 | N66: 116.52 | O66: 492400 | U66: 2006-07-28 | V66: 0.05 | W66: 22.74 | X66: 200607 | Y66: 200507 | Z66: 2005-07-28 | AA66: 5 | AB66: 1 | AC66: 0.185 | AD66: 0.008135444151
A67: 52 | B67: 2018-09-07 | C67: 115.449997 | D67: 116.779999 | E67: 114.68 | F67: 114.989998 | G67: 435200 | H67: 114.726379 | I67: 0.9977074615 | J67: 1 | K67: 115.19 | L67: 116.51 | M67: 114.42 | N67: 114.73 | O67: 435200 | U67: 2006-04-27 | V67: 0.045 | W67: 20.639999 | X67: 200604 | Y67: 200504 | Z67: 2005-04-28 | AA67: 5 | AB67: 1 | AC67: 0.18 | AD67: 0.008720930655
A68: 53 | B68: 2018-09-06 | C68: 115.279999 | D68: 117 | E68: 114.589996 | F68: 115.739998 | G68: 341300 | H68: 115.474663 | I68: 0.9977074909 | J68: 1 | K68: 115.02 | L68: 116.73 | M68: 114.33 | N68: 115.47 | O68: 341300 | U68: 2006-01-30 | V68: 0.045 | W68: 25.110001 | X68: 200601 | Y68: 200501 | Z68: 2005-01-28 | AA68: 5 | AB68: 1 | AC68: 0.175 | AD68: 0.006969334649
A69: 54 | B69: 2018-09-05 | C69: 115.370003 | D69: 115.610001 | E69: 114.239998 | F69: 115.279999 | G69: 291100 | H69: 115.015717 | I69: 0.9977074774 | J69: 1 | K69: 115.11 | L69: 115.34 | M69: 113.98 | N69: 115.02 | O69: 291100 | U69: 2005-10-28 | V69: 0.045 | W69: 21.059999 | X69: 200510 | Y69: 200410 | Z69: 2004-10-28 | AA69: 5 | AB69: 1 | AC69: 0.17 | AD69: 0.008072175122
A70: 55 | B70: 2018-09-04 | C70: 114.18 | D70: 115.949997 | E70: 113.370003 | F70: 115.220001 | G70: 261300 | H70: 114.955856 | I70: 0.9977074727 | J70: 1 | K70: 113.92 | L70: 115.68 | M70: 113.11 | N70: 114.96 | O70: 261300 | U70: 2005-07-28 | V70: 0.045 | W70: 21.75 | X70: 200507 | Y70: 200407 | Z70: 2004-07-29 | AA70: 5 | AB70: 1 | AC70: 0.165 | AD70: 0.007586206897
A71: 56 | B71: 2018-08-31 | C71: 112.529999 | D71: 114.43 | E71: 112.410004 | F71: 114.169998 | G71: 297100 | H71: 113.908264 | I71: 0.9977075063 | J71: 1 | K71: 112.27 | L71: 114.17 | M71: 112.15 | N71: 113.91 | O71: 297100 | U71: 2005-04-28 | V71: 0.04 | W71: 16.85 | X71: 200504 | Y71: 200404 | Z71: 2004-04-29 | AA71: 5 | AB71: 1 | AC71: 0.16 | AD71: 0.009495548961
A72: 57 | B72: 2018-08-30 | C72: 113.760002 | D72: 114.730003 | E72: 112.160004 | F72: 112.989998 | G72: 256200 | H72: 112.730965 | I72: 0.9977074696 | J72: 1 | K72: 113.5 | L72: 114.47 | M72: 111.9 | N72: 112.73 | O72: 256200 | U72: 2005-01-28 | V72: 0.04 | W72: 17.190001 | X72: 200501 | Y72: 200401 | Z72: 2004-01-29 | AA72: 5 | AB72: 1 | AC72: 0.155 | AD72: 0.009016869749
A73: 58 | B73: 2018-08-29 | C73: 114.470001 | D73: 114.610001 | E73: 113.650002 | F73: 114.110001 | G73: 347800 | H73: 113.848404 | I73: 0.9977075016 | J73: 1 | K73: 114.21 | L73: 114.35 | M73: 113.39 | N73: 113.85 | O73: 347800 | U73: 2004-10-28 | V73: 0.04 | W73: 18.08 | X73: 200410 | Y73: 200310 | Z73: 2003-10-30 | AA73: 5 | AB73: 1 | AC73: 0.15 | AD73: 0.008296460177
A74: 59 | B74: 2018-08-28 | C74: 114.029999 | D74: 115.110001 | E74: 113.650002 | F74: 114.339996 | G74: 356800 | H74: 114.077873 | I74: 0.9977075126 | J74: 1 | K74: 113.77 | L74: 114.85 | M74: 113.39 | N74: 114.08 | O74: 356800 | U74: 2004-07-29 | V74: 0.04 | W74: 16.469999 | X74: 200407 | Y74: 200307 | Z74: 2003-07-30 | AA74: 5 | AB74: 1 | AC74: 0.145 | AD74: 0.008803886388
A75: 60 | B75: 2018-08-27 | C75: 115.580002 | D75: 115.830002 | E75: 113.639999 | F75: 114.110001 | G75: 361500 | H75: 113.848404 | I75: 0.9977075016 | J75: 1 | K75: 115.32 | L75: 115.56 | M75: 113.38 | N75: 113.85 | O75: 361500 | U75: 2004-04-29 | V75: 0.035 | W75: 16.58 | X75: 200404 | Y75: 200304 | Z75: 2003-04-29 | AA75: 5 | AB75: 1 | AC75: 0.14 | AD75: 0.008443908323
A76: 61 | B76: 2018-08-24 | C76: 116.529999 | D76: 116.529999 | E76: 114.93 | F76: 115.400002 | G76: 290000 | H76: 115.135445 | I76: 0.9977074784 | J76: 1 | K76: 116.26 | L76: 116.26 | M76: 114.67 | N76: 115.14 | O76: 290000 | U76: 2004-01-29 | V76: 0.035 | W76: 16.91 | X76: 200401 | Y76: 200301 | Z76: 2003-01-30 | AA76: 5 | AB76: 1 | AC76: 0.13 | AD76: 0.007687758723
A77: 62 | B77: 2018-08-23 | C77: 117.330002 | D77: 117.589996 | E77: 115.599998 | F77: 116.550003 | G77: 324500 | H77: 116.282814 | I77: 0.9977075161 | J77: 1 | K77: 117.06 | L77: 117.32 | M77: 115.33 | N77: 116.28 | O77: 324500 | U77: 2003-10-30 | V77: 0.035 | W77: 15.24 | X77: 200310 | Y77: 200210 | Z77: 2002-10-30 | AA77: 5 | AB77: 1 | AC77: 0.12 | AD77: 0.007874015748
A78: 63 | B78: 2018-08-22 | C78: 116.669998 | D78: 117.639999 | E78: 115.580002 | F78: 117.160004 | G78: 259900 | H78: 116.891411 | I78: 0.9977074685 | J78: 1 | K78: 116.4 | L78: 117.37 | M78: 115.32 | N78: 116.89 | O78: 259900 | U78: 2003-07-30 | V78: 0.035 | W78: 15.28 | X78: 200307 | Y78: 200207 | Z78: 2002-07-30 | AA78: 5 | AB78: 1 | AC78: 0.11 | AD78: 0.00719895288
A79: 64 | B79: 2018-08-21 | C79: 114.959999 | D79: 117.019997 | E79: 114.959999 | F79: 116.919998 | G79: 316900 | H79: 116.651955 | I79: 0.9977074666 | J79: 1 | K79: 114.7 | L79: 116.75 | M79: 114.7 | N79: 116.65 | O79: 316900 | U79: 2003-04-29 | V79: 0.025 | W79: 12.96 | X79: 200304 | Y79: 200204 | Z79: 2002-04-29 | AA79: 5 | AB79: 1 | AC79: 0.1 | AD79: 0.007716049383
A80: 65 | B80: 2018-08-20 | C80: 114.959999 | D80: 116.129997 | E80: 114.629997 | F80: 114.75 | G80: 238200 | H80: 114.486931 | I80: 0.9977074597 | J80: 1 | K80: 114.7 | L80: 115.86 | M80: 114.37 | N80: 114.49 | O80: 238200 | U80: 2003-01-30 | V80: 0.025 | W80: 11.4 | X80: 200301 | Y80: 200201 | Z80: 2002-01-30 | AA80: 5 | AB80: 1 | AC80: 0.1 | AD80: 0.008771929825
A81: 66 | B81: 2018-08-17 | C81: 113.529999 | D81: 114.870003 | E81: 113.209999 | F81: 114.639999 | G81: 199100 | H81: 114.377182 | I81: =IF(F81=0,1,H81/F81) -> 0.9977074581 | J81: =INDEX(OFFSET($T$15,0,0,$S$13+1,1),MATCH(B81,OFFSET($Q$15,0,0,$S$13+1,1),-1)) -> 1 | K81: =ROUND($I81*C81,2) -> 113.27 | L81: =ROUND($I81*D81,2) -> 114.61 | M81: =ROUND($I81*E81,2) -> 112.95 | N81: =ROUND($I81*F81,2) -> 114.38 | O81: =G81*J81 -> 199100 | U81: 2002-10-30 | V81: 0.025 | W81: =(INDEX(OFFSET($F$15,1,0,$B$10,1),MATCH(U81,OFFSET($B$15,1,0,$B$10,1),-1))) -> 11.65 | X81: =YEAR(U81)&RIGHT("0"&MONTH(U81),2) -> 200210 | Y81: =YEAR(U81)-1&RIGHT("0"&MONTH(U81),2) -> 200110 | Z81: =OFFSET(U80,AA81,0,1,1) -> 2001-10-30 | AA81: =MATCH(Y81,OFFSET($X$15,A81,0,$V$14+1-A81,1),-1) -> 5 | AB81: =IF(OR(AND(YEAR(U81)=YEAR(Z81),MONTH(U81)=MONTH(Z81)),MONTH(U81)=MONTH(Z81)),1,0) -> 1 | AC81: =(V81+IF(AA81-AB81=0,0,IFERROR(SUM(OFFSET(V81,1,0,AA81-AB81-1,1)),0))) -> 0.1 | AD81: =AC81/(INDEX(OFFSET($F$15,1,0,$B$10,1),MATCH(U81,OFFSET($B$15,1,0,$B$10,1),-1))) -> 0.008583690987
A82: 67 | B82: 2018-08-16 | C82: 113.57 | D82: 114.470001 | E82: 113.099998 | F82: 113.540001 | G82: 238900 | H82: 113.279709 | I82: 0.9977074864 | J82: 1 | K82: 113.31 | L82: 114.21 | M82: 112.84 | N82: 113.28 | O82: 238900 | U82: 2002-07-30 | V82: 0.025 | W82: 11.75 | X82: 200207 | Y82: 200107 | Z82: 2001-07-30 | AA82: 5 | AB82: 1 | AC82: 0.095 | AD82: 0.008085106383
A83: 68 | B83: 2018-08-15 | C83: 112.540001 | D83: 113.629997 | E83: 112.230003 | F83: 112.660004 | G83: 204200 | H83: 112.401726 | I83: 0.9977074561 | J83: 1 | K83: 112.28 | L83: 113.37 | M83: 111.97 | N83: 112.4 | O83: 204200 | U83: 2002-04-29 | V83: 0.025 | W83: 12.67 | X83: 200204 | Y83: 200104 | Z83: 2001-04-27 | AA83: 5 | AB83: 1 | AC83: 0.09 | AD83: 0.007103393844
A84: 69 | B84: 2018-08-14 | C84: 111.25 | D84: 113.080002 | E84: 111.190002 | F84: 112.900002 | G84: 270700 | H84: 112.641174 | I84: 0.997707458 | J84: 1 | K84: 110.99 | L84: 112.82 | M84: 110.94 | N84: 112.64 | O84: 270700 | U84: 2002-01-30 | V84: 0.025 | W84: 14.89 | X84: 200201 | Y84: 200101 | Z84: 2001-01-30 | AA84: 5 | AB84: 1 | AC84: 0.085 | AD84: 0.005708529214
A85: 70 | B85: 2018-08-13 | C85: 111.190002 | D85: 111.419998 | E85: 110.43 | F85: 111 | G85: 212700 | H85: 110.745529 | I85: 0.9977074685 | J85: 1 | K85: 110.94 | L85: 111.16 | M85: 110.18 | N85: 110.75 | O85: 212700 | U85: 2001-10-30 | V85: 0.02 | W85: 12.5 | X85: 200110 | Y85: 200010 | Z85: 2000-10-30 | AA85: 5 | AB85: 1 | AC85: 0.08 | AD85: 0.0064
A86: 71 | B86: 2018-08-10 | C86: 112.110001 | D86: 112.849998 | E86: 110.589996 | F86: 110.839996 | G86: 188700 | H86: 110.585892 | I86: 0.9977074701 | J86: 1 | K86: 111.85 | L86: 112.59 | M86: 110.34 | N86: 110.59 | O86: 188700 | U86: 2001-07-30 | V86: 0.02 | W86: 13.66 | X86: 200107 | Y86: 200007 | Z86: 2000-07-28 | AA86: 5 | AB86: 1 | AC86: 0.08 | AD86: 0.005856515373
A87: 72 | B87: 2018-08-09 | C87: 113.089996 | D87: 113.620003 | E87: 111.959999 | F87: 112.580002 | G87: 243800 | H87: 112.321907 | I87: 0.9977074525 | J87: 1 | K87: 112.83 | L87: 113.36 | M87: 111.7 | N87: 112.32 | O87: 243800 | U87: 2001-04-27 | V87: 0.02 | W87: 11.94 | X87: 200104 | Y87: 200004 | Z87: 2000-04-27 | AA87: 5 | AB87: 1 | AC87: 0.08 | AD87: 0.006700167504
A88: 73 | B88: 2018-08-08 | C88: 112.32 | D88: 113.150002 | E88: 112.239998 | F88: 112.970001 | G88: 175500 | H88: 112.711014 | I88: 0.997707471 | J88: 1 | K88: 112.06 | L88: 112.89 | M88: 111.98 | N88: 112.71 | O88: 175500 | U88: 2001-01-30 | V88: 0.02 | W88: 12.0625 | X88: 200101 | Y88: 200001 | Z88: 2000-01-28 | AA88: 5 | AB88: 1 | AC88: 0.075 | AD88: 0.00621761658
A89: 74 | B89: 2018-08-07 | C89: 111.25 | D89: 113.389999 | E89: 111.25 | F89: 112.050003 | G89: 219700 | H89: 111.793129 | I89: 0.9977075056 | J89: 1 | K89: 110.99 | L89: 113.13 | M89: 110.99 | N89: 111.79 | O89: 219700 | U89: 2000-10-30 | V89: 0.02 | W89: 12.0625 | X89: 200010 | Y89: 199910 | Z89: 1999-10-28 | AA89: 5 | AB89: 1 | AC89: 0.07 | AD89: 0.005803108808
A90: 75 | B90: 2018-08-06 | C90: 110.879997 | D90: 111.440002 | E90: 110.050003 | F90: 111.239998 | G90: 204800 | H90: 110.984978 | I90: 0.9977074793 | J90: 1 | K90: 110.63 | L90: 111.18 | M90: 109.8 | N90: 110.98 | O90: 204800 | U90: 2000-07-28 | V90: 0.02 | W90: 11.625 | X90: 200007 | Y90: 199907 | Z90: 1999-07-29 | AA90: 5 | AB90: 1 | AC90: 0.065 | AD90: 0.005591397849
A91: 76 | B91: 2018-08-03 | C91: 110.370003 | D91: 111.400002 | E91: 110.260002 | F91: 110.690002 | G91: 238400 | H91: 110.436241 | I91: 0.9977074623 | J91: 1 | K91: 110.12 | L91: 111.14 | M91: 110.01 | N91: 110.44 | O91: 238400 | U91: 2000-04-27 | V91: 0.015 | W91: 11.375 | X91: 200004 | Y91: 199904 | Z91: 1999-04-29 | AA91: 5 | AB91: 1 | AC91: 0.06 | AD91: 0.005274725275
A92: 77 | B92: 2018-08-02 | C92: 108.5 | D92: 110.690002 | E92: 108.5 | F92: 110.410004 | G92: 263400 | H92: 110.156891 | I92: 0.9977075175 | J92: 1 | K92: 108.25 | L92: 110.44 | M92: 108.25 | N92: 110.16 | O92: 263400 | U92: 2000-01-28 | V92: 0.015 | W92: 10.125 | X92: 200001 | Y92: 199901 | Z92: 1999-01-28 | AA92: 5 | AB92: 1 | AC92: 0.06 | AD92: 0.005925925926
A93: 78 | B93: 2018-08-01 | C93: 108.849998 | D93: 109.379997 | E93: 107.790001 | F93: 108.300003 | G93: 159100 | H93: 108.051727 | I93: 0.9977075162 | J93: 1 | K93: 108.6 | L93: 109.13 | M93: 107.54 | N93: 108.05 | O93: 159100 | U93: 1999-10-28 | V93: 0.015 | W93: 12.875 | X93: 199910 | Y93: 199810 | Z93: 1998-10-29 | AA93: 5 | AB93: 1 | AC93: 0.06 | AD93: 0.004660194175
A94: 79 | B94: 2018-07-31 | C94: 109.949997 | D94: 109.980003 | E94: 109.080002 | F94: 109.379997 | G94: 319200 | H94: 109.129242 | I94: 0.9977074876 | J94: 1 | K94: 109.7 | L94: 109.73 | M94: 108.83 | N94: 109.13 | O94: 319200 | U94: 1999-07-29 | V94: 0.015 | W94: 15.0312 | X94: 199907 | Y94: 199807 | Z94: 1998-07-30 | AA94: 5 | AB94: 1 | AC94: 0.06 | AD94: 0.00399169727
A95: 80 | B95: 2018-07-30 | C95: 108.629997 | D95: 110.43 | E95: 108.629997 | F95: 109.970001 | G95: 273500 | H95: 109.428558 | I95: 0.9950764482 | J95: 1 | K95: 108.1 | L95: 109.89 | M95: 108.1 | N95: 109.43 | O95: 273500 | U95: 1999-04-29 | V95: 0.015 | W95: 13.5312 | X95: 199904 | Y95: 199804 | Z95: 1998-04-29 | AA95: 5 | AB95: 1 | AC95: 0.06 | AD95: 0.004434196524
A96: 81 | B96: 2018-07-27 | C96: 109.400002 | D96: 109.690002 | E96: 108.519997 | F96: 108.889999 | G96: 221300 | H96: 108.353874 | I96: 0.9950764533 | J96: 1 | K96: 108.86 | L96: 109.15 | M96: 107.99 | N96: 108.35 | O96: 221300 | U96: 1999-01-28 | V96: 0.015 | W96: 13.4375 | X96: 199901 | Y96: 199801 | Z96: 1998-01-29 | AA96: 5 | AB96: 1 | AC96: 0.06 | AD96: 0.004465116279
A97: 82 | B97: 2018-07-26 | C97: 108.099998 | D97: 110.279999 | E97: 107.800003 | F97: 109.43 | G97: 406600 | H97: 108.891212 | I97: 0.9950764141 | J97: 1 | K97: 107.57 | L97: 109.74 | M97: 107.27 | N97: 108.89 | O97: 406600 | U97: 1998-10-29 | V97: 0.015 | W97: 13.25 | X97: 199810 | Y97: 199710 | Z97: 1997-10-30 | AA97: 5 | AB97: 1 | AC97: 0.075 | AD97: 0.005660377358
A98: 83 | B98: 2018-07-25 | C98: 107.660004 | D98: 108.169998 | E98: 106.75 | F98: 107.919998 | G98: 258600 | H98: 107.388649 | I98: 0.9950764547 | J98: 1 | K98: 107.13 | L98: 107.64 | M98: 106.22 | N98: 107.39 | O98: 258600 | U98: 1998-07-30 | V98: 0.015 | W98: 15.5 | X98: 199807 | Y98: 199707 | Z98: 1997-07-30 | AA98: 5 | AB98: 1 | AC98: 0.09 | AD98: 0.005806451613
A99: 84 | B99: 2018-07-24 | C99: 109.339996 | D99: 109.360001 | E99: 107.529999 | F99: 108.5 | G99: 229700 | H99: 107.96579 | I99: 0.9950764055 | J99: 1 | K99: 108.8 | L99: 108.82 | M99: 107 | N99: 107.97 | O99: 229700 | U99: 1998-04-29 | V99: 0.015 | W99: 15.375 | X99: 199804 | Y99: 199704 | Z99: 1997-04-29 | AA99: 5 | AB99: 1 | AC99: 0.105 | AD99: 0.006829268293
A100: 85 | B100: 2018-07-23 | C100: 109.650002 | D100: 110.650002 | E100: 109.059998 | F100: 109.330002 | G100: 249300 | H100: 108.79171 | I100: 0.9950764475 | J100: 1 | K100: 109.11 | L100: 110.11 | M100: 108.52 | N100: 108.79 | O100: 249300 | U100: 1998-01-29 | V100: 0.03 | W100: 14.3125 | X100: 199801 | Y100: 199701 | Z100: 1997-01-30 | AA100: 5 | AB100: 1 | AC100: 0.115 | AD100: 0.008034934498
A101: 86 | B101: 2018-07-20 | C101: 108.889999 | D101: 109.870003 | E101: 108.800003 | F101: 109.669998 | G101: 162900 | H101: 109.130035 | I101: 0.9950764748 | J101: 1 | K101: 108.35 | L101: 109.33 | M101: 108.26 | N101: 109.13 | O101: 162900 | U101: 1997-10-30 | V101: 0.03 | W101: 11.875 | X101: 199710 | Y101: 199610 | Z101: 1996-10-30 | AA101: 5 | AB101: 1 | AC101: 0.11 | AD101: 0.009263157895
A102: 87 | B102: 2018-07-19 | C102: 108.150002 | D102: 109.620003 | E102: 108.059998 | F102: 109.160004 | G102: 276400 | H102: 108.622551 | I102: 0.9950764659 | J102: 1 | K102: 107.62 | L102: 109.08 | M102: 107.53 | N102: 108.62 | O102: 276400 | U102: 1997-07-30 | V102: 0.03 | W102: 11.3125 | X102: 199707 | Y102: 199607 | Z102: 1996-07-30 | AA102: 6 | AB102: 1 | AC102: 0.13 | AD102: 0.01149171271
A103: 88 | B103: 2018-07-18 | C103: 111.349998 | D103: 111.400002 | E103: 108.629997 | F103: 108.639999 | G103: 375600 | H103: 108.105103 | I103: 0.9950764359 | J103: 1 | K103: 110.8 | L103: 110.85 | M103: 108.1 | N103: 108.11 | O103: 375600 | U103: 1997-04-29 | V103: 0.025 | W103: 9.5625 | X103: 199704 | Y103: 199604 | Z103: 1996-04-30 | AA103: 7 | AB103: 1 | AC103: 0.15 | AD103: 0.01568627451
A104: 89 | B104: 2018-07-17 | C104: 109.739998 | D104: 112.209999 | E104: 109.480003 | F104: 111.080002 | G104: 386700 | H104: 110.533089 | I104: 0.9950764045 | J104: 1 | K104: 109.2 | L104: 111.66 | M104: 108.94 | N104: 110.53 | O104: 386700 | U104: 1997-01-30 | V104: 0.025 | W104: 8.8125 | X104: 199701 | Y104: 199601 | Z104: 1996-01-30 | AA104: 8 | AB104: 1 | AC104: 0.175 | AD104: 0.01985815603
A105: 90 | B105: 2018-07-16 | C105: 109.309998 | D105: 109.720001 | E105: 107.809998 | F105: 109.669998 | G105: 238500 | H105: 109.130035 | I105: 0.9950764748 | J105: 1 | K105: 108.77 | L105: 109.18 | M105: 107.28 | N105: 109.13 | O105: 238500 | U105: 1996-10-30 | V105: 0.025 | W105: 8.8125 | X105: 199610 | Y105: 199510 | Z105: 1995-10-30 | AA105: 8 | AB105: 1 | AC105: 0.175 | AD105: 0.01985815603
A106: 91 | B106: 2018-07-13 | C106: 108.260002 | D106: 109.959999 | E106: 108.260002 | F106: 109.169998 | G106: 300900 | H106: 108.632492 | I106: 0.9950764312 | J106: 1 | K106: 107.73 | L106: 109.42 | M106: 107.73 | N106: 108.63 | O106: 300900 | U106: 1996-10-29 | V106: 0.025 | W106: 8.96875 | X106: 199610 | Y106: 199510 | Z106: 1995-10-30 | AA106: 7 | AB106: 1 | AC106: 0.15 | AD106: 0.01672473868
A107: 92 | B107: 2018-07-12 | C107: 108 | D107: 109.129997 | E107: 107.769997 | F107: 108.93 | G107: 241000 | H107: 108.393677 | I107: 0.9950764436 | J107: 1 | K107: 107.47 | L107: 108.59 | M107: 107.24 | N107: 108.39 | O107: 241000 | U107: 1996-07-30 | V107: 0.025 | W107: 8.5625 | X107: 199607 | Y107: 199507 | Z107: 1995-07-28 | AA107: 7 | AB107: 1 | AC107: 0.15 | AD107: 0.01751824818
A108: 93 | B108: 2018-07-11 | C108: 107.68 | D108: 108.370003 | E108: 106.650002 | F108: 107.82 | G108: 309800 | H108: 107.289146 | I108: 0.9950764793 | J108: 1 | K108: 107.15 | L108: 107.84 | M108: 106.12 | N108: 107.29 | O108: 309800 | U108: 1996-07-29 | V108: 0.025 | W108: 8.5625 | X108: 199607 | Y108: 199507 | Z108: 1995-07-28 | AA108: 6 | AB108: 1 | AC108: 0.125 | AD108: 0.01459854015
A109: 94 | B109: 2018-07-10 | C109: 108.379997 | D109: 108.550003 | E109: 107.059998 | F109: 107.730003 | G109: 205000 | H109: 107.199593 | I109: 0.9950764877 | J109: 1 | K109: 107.85 | L109: 108.02 | M109: 106.53 | N109: 107.2 | O109: 205000 | U109: 1996-04-30 | V109: 0.025 | W109: 10.78125 | X109: 199604 | Y109: 199504 | Z109: 1995-04-25 | AA109: 6 | AB109: 1 | AC109: 0.125 | AD109: 0.0115942029
A110: 95 | B110: 2018-07-09 | C110: 107.080002 | D110: 108.470001 | E110: 107.080002 | F110: 108.029999 | G110: 282700 | H110: 107.498108 | I110: 0.9950764509 | J110: 1 | K110: 106.55 | L110: 107.94 | M110: 106.55 | N110: 107.5 | O110: 282700 | U110: 1996-04-29 | V110: 0.025 | W110: 10.6875 | X110: 199604 | Y110: 199504 | Z110: 1995-04-25 | AA110: 5 | AB110: 1 | AC110: 0.1 | AD110: 0.009356725146
A111: 96 | B111: 2018-07-06 | C111: 105.470001 | D111: 107.550003 | E111: 105.470001 | F111: 106.889999 | G111: 357000 | H111: 106.363716 | I111: 0.9950764056 | J111: 1 | K111: 104.95 | L111: 107.02 | M111: 104.95 | N111: 106.36 | O111: 357000 | U111: 1996-01-30 | V111: 0.025 | W111: 11.5 | X111: 199601 | Y111: 199501 | Z111: 1995-01-26 | AA111: 5 | AB111: 1 | AC111: 0.095 | AD111: 0.008260869565
A112: 97 | B112: 2018-07-05 | C112: 103.290001 | D112: 105.279999 | E112: 102.959999 | F112: 105.220001 | G112: 286100 | H112: 104.701942 | I112: 0.9950764209 | J112: 1 | K112: 102.78 | L112: 104.76 | M112: 102.45 | N112: 104.7 | O112: 286100 | U112: 1995-10-30 | V112: 0.025 | W112: 11.5 | X112: 199510 | Y112: 199410 | Z112: 1994-10-26 | AA112: 5 | AB112: 1 | AC112: 0.09 | AD112: 0.007826086957
A113: 98 | B113: 2018-07-03 | C113: 103.629997 | D113: 104.900002 | E113: 102.68 | F113: 102.849998 | G113: 192000 | H113: 102.343613 | I113: 0.9950764705 | J113: 1 | K113: 103.12 | L113: 104.38 | M113: 102.17 | N113: 102.34 | O113: 192000 | U113: 1995-07-28 | V113: 0.025 | W113: 10.0625 | X113: 199507 | Y113: 199407 | Z113: 1994-07-26 | AA113: 5 | AB113: 1 | AC113: 0.085 | AD113: 0.008447204969
A114: 99 | B114: 2018-07-02 | C114: 104.580002 | D114: 104.699997 | E114: 102.470001 | F114: 103.540001 | G114: 431100 | H114: 103.03022 | I114: 0.9950764826 | J114: 1 | K114: 104.07 | L114: 104.18 | M114: 101.97 | N114: 103.03 | O114: 431100 | U114: 1995-04-25 | V114: 0.02 | W114: 8.75 | X114: 199504 | Y114: 199404 | Z114: 1994-04-26 | AA114: 5 | AB114: 1 | AC114: 0.08 | AD114: 0.009142857143
A115: 100 | B115: 2018-06-29 | C115: 105.959999 | D115: 106.139999 | E115: 104.489998 | F115: 105.080002 | G115: 541100 | H115: 104.562637 | I115: 0.9950764656 | J115: 1 | K115: 105.44 | L115: 105.62 | M115: 103.98 | N115: 104.56 | O115: 541100 | U115: 1995-01-26 | V115: 0.02 | W115: 7.4375 | X115: 199501 | Y115: 199401 | Z115: 1994-01-26 | AA115: 5 | AB115: 1 | AC115: 0.08 | AD115: 0.01075630252
A116: 101 | B116: 2018-06-28 | C116: 106.150002 | D116: 107.230003 | E116: 104.629997 | F116: 106.169998 | G116: 911400 | H116: 105.64727 | I116: 0.9950764999 | J116: 1 | K116: 105.63 | L116: 106.7 | M116: 104.11 | N116: 105.65 | O116: 911400 | U116: 1994-10-26 | V116: 0.02 | W116: 6.9375 | X116: 199410 | Y116: 199310 | Z116: 1993-10-26 | AA116: 5 | AB116: 1 | AC116: 0.0976 | AD116: 0.01406846847
A117: 102 | B117: 2018-06-27 | C117: 106.760002 | D117: 108.459999 | E117: 105.010002 | F117: 106.510002 | G117: 622700 | H117: 105.985588 | I117: 0.9950763873 | J117: 1 | K117: 106.23 | L117: 107.93 | M117: 104.49 | N117: 105.99 | O117: 622700 | U117: 1994-07-26 | V117: 0.02 | W117: 6.125 | X117: 199407 | Y117: 199307 | Z117: 1993-07-27 | AA117: 5 | AB117: 1 | AC117: 0.1152 | AD117: 0.01880816327
A118: 103 | B118: 2018-06-26 | C118: 108.599998 | D118: 108.910004 | E118: 106.949997 | F118: 107.209999 | G118: 490000 | H118: 106.682144 | I118: 0.9950764387 | J118: 1 | K118: 108.07 | L118: 108.37 | M118: 106.42 | N118: 106.68 | O118: 490000 | U118: 1994-04-26 | V118: 0.02 | W118: 6.1875 | X118: 199404 | Y118: 199304 | Z118: 1993-04-27 | AA118: 5 | AB118: 1 | AC118: 0.1328 | AD118: 0.02146262626
A119: 104 | B119: 2018-06-25 | C119: 106.849998 | D119: 108.790001 | E119: 106.269997 | F119: 108.339996 | G119: 609800 | H119: 107.80658 | I119: 0.9950764628 | J119: 1 | K119: 106.32 | L119: 108.25 | M119: 105.75 | N119: 107.81 | O119: 609800 | U119: 1994-01-26 | V119: 0.0376 | W119: 6.3125 | X119: 199401 | Y119: 199301 | Z119: 1993-01-26 | AA119: 5 | AB119: 1 | AC119: 0.1428 | AD119: 0.02262178218
A120: 105 | B120: 2018-06-22 | C120: 107.5 | D120: 108.120003 | E120: 105.699997 | F120: 106.839996 | G120: 1017900 | H120: 106.313965 | I120: 0.9950764599 | J120: 1 | K120: 106.97 | L120: 107.59 | M120: 105.18 | N120: 106.31 | O120: 1017900 | U120: 1993-10-26 | V120: 0.0376 | W120: 5.40625 | X120: 199310 | Y120: 199210 | Z120: 1992-10-27 | AA120: 5 | AB120: 1 | AC120: 0.1352 | AD120: 0.02500809249
A121: 106 | B121: 2018-06-21 | C121: 103.720001 | D121: 107.040001 | E121: 103.720001 | F121: 106.669998 | G121: 809200 | H121: 106.144798 | I121: 0.9950764038 | J121: 1 | K121: 103.21 | L121: 106.51 | M121: 103.21 | N121: 106.14 | O121: 809200 | U121: 1993-07-27 | V121: 0.0376 | W121: 4.875 | X121: 199307 | Y121: 199207 | Z121: 1992-07-28 | AA121: 5 | AB121: 1 | AC121: 0.1276 | AD121: 0.02617435897
A122: 107 | B122: 2018-06-20 | C122: 101.040001 | D122: 103.82 | E122: 99.849998 | F122: 103.730003 | G122: 609700 | H122: 103.219284 | I122: 0.9950764583 | J122: 1 | K122: 100.54 | L122: 103.31 | M122: 99.36 | N122: 103.22 | O122: 609700 | U122: 1993-04-27 | V122: 0.03 | W122: 4 | X122: 199304 | Y122: 199204 | Z122: 1992-04-27 | AA122: 5 | AB122: 1 | AC122: 0.12 | AD122: 0.03
A123: 108 | B123: 2018-06-19 | C123: 100.150002 | D123: 101.019997 | E123: 99.339996 | F123: 100.559998 | G123: 477500 | H123: 100.06488 | I123: 0.9950763921 | J123: 1 | K123: 99.66 | L123: 100.52 | M123: 98.85 | N123: 100.06 | O123: 477500 | U123: 1993-01-26 | V123: 0.03 | W123: 4.21875 | X123: 199301 | Y123: 199201 | Z123: 1992-01-28 | AA123: 5 | AB123: 1 | AC123: 0.12 | AD123: 0.02844444444
A124: 109 | B124: 2018-06-18 | C124: 100.489998 | D124: 102.519997 | E124: 99.720001 | F124: 100.610001 | G124: 641200 | H124: 100.114639 | I124: 0.9950764139 | J124: 1 | K124: 100 | L124: 102.02 | M124: 99.23 | N124: 100.11 | O124: 641200 | U124: 1992-10-27 | V124: 0.03 | W124: 4.1875 | X124: 199210 | Y124: 199110 | Z124: 1991-10-28 | AA124: 5 | AB124: 1 | AC124: 0.12 | AD124: 0.02865671642
A125: 110 | B125: 2018-06-15 | C125: 99.169998 | D125: 101.019997 | E125: 99.059998 | F125: 100.830002 | G125: 601900 | H125: 100.333557 | I125: 0.9950764158 | J125: 1 | K125: 98.68 | L125: 100.52 | M125: 98.57 | N125: 100.33 | O125: 601900 | U125: 1992-07-28 | V125: 0.03 | W125: 3.65625 | X125: 199207 | Y125: 199107 | Z125: 1991-07-26 | AA125: 5 | AB125: 1 | AC125: 0.12 | AD125: 0.03282051282
A126: 111 | B126: 2018-06-14 | C126: 99.169998 | D126: 100.269997 | E126: 98.849998 | F126: 99.110001 | G126: 439400 | H126: 98.622025 | I126: 0.9950764202 | J126: 1 | K126: 98.68 | L126: 99.78 | M126: 98.36 | N126: 98.62 | O126: 439400 | U126: 1992-04-27 | V126: 0.03 | W126: 3.90625 | X126: 199204 | Y126: 199104 | Z126: 1991-04-25 | AA126: 5 | AB126: 1 | AC126: 0.12 | AD126: 0.03072
A127: 112 | B127: 2018-06-13 | C127: 96.529999 | D127: 100.589996 | E127: 95.269997 | F127: 99.18 | G127: 994400 | H127: 98.691681 | I127: 0.9950764368 | J127: 1 | K127: 96.05 | L127: 100.09 | M127: 94.8 | N127: 98.69 | O127: 994400 | U127: 1992-01-28 | V127: 0.03 | W127: 3.90625 | X127: 199201 | Y127: 199101 | Z127: 1991-01-28 | AA127: 5 | AB127: 1 | AC127: 0.1152 | AD127: 0.0294912
A128: 113 | B128: 2018-06-12 | C128: 94.300003 | D128: 97.25 | E128: 90.419998 | F128: 96.669998 | G128: 2283800 | H128: 96.194038 | I128: 0.9950764455 | J128: 1 | K128: 93.84 | L128: 96.77 | M128: 89.97 | N128: 96.19 | O128: 2283800 | U128: 1991-10-28 | V128: 0.03 | W128: 4 | X128: 199110 | Y128: 199010 | Z128: 1990-10-26 | AA128: 5 | AB128: 1 | AC128: 0.1104 | AD128: 0.0276
A129: 114 | B129: 2018-06-11 | C129: 96.690002 | D129: 97.620003 | E129: 95.529999 | F129: 96.370003 | G129: 639700 | H129: 95.895515 | I129: 0.9950763932 | J129: 1 | K129: 96.21 | L129: 97.14 | M129: 95.06 | N129: 95.9 | O129: 639700 | U129: 1991-07-26 | V129: 0.03 | W129: 2.40625 | X129: 199107 | Y129: 199007 | Z129: 1990-07-26 | AA129: 5 | AB129: 1 | AC129: 0.1056 | AD129: 0.04388571429
A130: 115 | B130: 2018-06-08 | C130: 96.739998 | D130: 97.650002 | E130: 96.059998 | F130: 96.610001 | G130: 502700 | H130: 96.134331 | I130: 0.9950763897 | J130: 1 | K130: 96.26 | L130: 97.17 | M130: 95.59 | N130: 96.13 | O130: 502700 | U130: 1991-04-25 | V130: 0.0252 | W130: 2.25 | X130: 199104 | Y130: 199004 | Z130: 1990-07-26 | AA130: 4 | AB130: 0 | AC130: 0.1008 | AD130: 0.0448
A131: 116 | B131: 2018-06-07 | C131: 98.709999 | D131: 98.800003 | E131: 96.529999 | F131: 96.809998 | G131: 350200 | H131: 96.333344 | I131: 0.995076397 | J131: 1 | K131: 98.22 | L131: 98.31 | M131: 96.05 | N131: 96.33 | O131: 350200 | U131: 1991-01-28 | V131: 0.0252 | W131: 1.90625 | X131: 199101 | Y131: 199001 | Z131: 1990-07-26 | AA131: 3 | AB131: 0 | AC131: 0.0756 | AD131: 0.03965901639
A132: 117 | B132: 2018-06-06 | C132: 98.190002 | D132: 98.860001 | E132: 97.589996 | F132: 98.699997 | G132: 391000 | H132: 98.214043 | I132: 0.9950764538 | J132: 1 | K132: 97.71 | L132: 98.37 | M132: 97.11 | N132: 98.21 | O132: 391000 | U132: 1990-10-26 | V132: 0.0252 | W132: 1.40625 | X132: 199010 | Y132: 198910 | Z132: 1990-07-26 | AA132: 2 | AB132: 0 | AC132: 0.0504 | AD132: 0.03584
A133: 118 | B133: 2018-06-05 | C133: 96.050003 | D133: 98.150002 | E133: 95.669998 | F133: 97.75 | G133: 728300 | H133: 97.268723 | I133: 0.9950764501 | J133: 1 | K133: 95.58 | L133: 97.67 | M133: 95.2 | N133: 97.27 | O133: 728300 | U133: 1990-07-26 | V133: 0.0252 | W133: 2 | X133: 199007 | Y133: 198907 | Z133: 1990-07-26 | AA133: 1 | AB133: 1 | AC133: 0.0252 | AD133: 0.0126
A134: 119 | B134: 2018-06-04 | C134: 97.199997 | D134: 98.970001 | E134: 95.879997 | F134: 96.169998 | G134: 528700 | H134: 95.696495 | I134: 0.9950763959 | J134: 1 | K134: 96.72 | L134: 98.48 | M134: 95.41 | N134: 95.7 | O134: 528700
A135: 120 | B135: 2018-06-01 | C135: 97.400002 | D135: 97.660004 | E135: 96.519997 | F135: 96.699997 | G135: 514400 | H135: 96.223885 | I135: 0.9950764011 | J135: 1 | K135: 96.92 | L135: 97.18 | M135: 96.04 | N135: 96.22 | O135: 514400
A136: 121 | B136: 2018-05-31 | C136: 98.610001 | D136: 99 | E136: 96.330002 | F136: 96.800003 | G136: 578300 | H136: 96.323402 | I136: 0.9950764361 | J136: 1 | K136: 98.12 | L136: 98.51 | M136: 95.86 | N136: 96.32 | O136: 578300
A137: 122 | B137: 2018-05-30 | C137: 97.129997 | D137: 99.190002 | E137: 96.690002 | F137: 98.839996 | G137: 540000 | H137: 98.353348 | I137: 0.9950764061 | J137: 1 | K137: 96.65 | L137: 98.7 | M137: 96.21 | N137: 98.35 | O137: 540000
A138: 123 | B138: 2018-05-29 | C138: 95.769997 | D138: 97.419998 | E138: 95.459999 | F138: 96.75 | G138: 609200 | H138: 96.273643 | I138: 0.9950764134 | J138: 1 | K138: 95.3 | L138: 96.94 | M138: 94.99 | N138: 96.27 | O138: 609200
A139: 124 | B139: 2018-05-25 | C139: 96.690002 | D139: 97.449997 | E139: 95.900002 | F139: 96.25 | G139: 473600 | H139: 95.776108 | I139: 0.9950764468 | J139: 1 | K139: 96.21 | L139: 96.97 | M139: 95.43 | N139: 95.78 | O139: 473600
A140: 125 | B140: 2018-05-24 | C140: 99.849998 | D140: 100.019997 | E140: 95.800003 | F140: 96.720001 | G140: 1095100 | H140: 96.243797 | I140: 0.9950764682 | J140: 1 | K140: 99.36 | L140: 99.53 | M140: 95.33 | N140: 96.24 | O140: 1095100
A141: 126 | B141: 2018-05-23 | C141: 96.309998 | D141: 104.230003 | E141: 95.18 | F141: 99.849998 | G141: 3661400 | H141: 99.358383 | I141: 0.9950764646 | J141: 1 | K141: 95.84 | L141: 103.72 | M141: 94.71 | N141: 99.36 | O141: 3661400
A142: 127 | B142: 2018-05-22 | C142: 100.089996 | D142: 100.089996 | E142: 96.269997 | F142: 96.779999 | G142: 710700 | H142: 96.303497 | I142: 0.9950764414 | J142: 1 | K142: 99.6 | L142: 99.6 | M142: 95.8 | N142: 96.3 | O142: 710700
A143: 128 | B143: 2018-05-21 | C143: 100.760002 | D143: 101.220001 | E143: 100.059998 | F143: 100.300003 | G143: 398900 | H143: 99.806168 | I143: 0.9950764209 | J143: 1 | K143: 100.26 | L143: 100.72 | M143: 99.57 | N143: 99.81 | O143: 398900
A144: 129 | B144: 2018-05-18 | C144: 101.379997 | D144: 101.839996 | E144: 100.279999 | F144: 100.589996 | G144: 494700 | H144: 100.094734 | I144: 0.9950764289 | J144: 1 | K144: 100.88 | L144: 101.34 | M144: 99.79 | N144: 100.09 | O144: 494700
A145: 130 | B145: 2018-05-17 | C145: 101.75 | D145: 102.419998 | E145: 101.080002 | F145: 101.230003 | G145: 417100 | H145: 100.73159 | I145: =IF(F145=0,1,H145/F145) -> 0.9950764301 | J145: =INDEX(OFFSET($T$15,0,0,$S$13+1,1),MATCH(B145,OFFSET($Q$15,0,0,$S$13+1,1),-1)) -> 1 | K145: =ROUND($I145*C145,2) -> 101.25 | L145: =ROUND($I145*D145,2) -> 101.92 | M145: =ROUND($I145*E145,2) -> 100.58 | N145: =ROUND($I145*F145,2) -> 100.73 | O145: =G145*J145 -> 417100
A146: 131 | B146: 2018-05-16 | C146: 100.620003 | D146: 102.019997 | E146: 100.489998 | F146: 101.510002 | G146: 375300 | H146: 101.010216 | I146: 0.9950764852 | J146: 1 | K146: 100.12 | L146: 101.52 | M146: 100 | N146: 101.01 | O146: 375300
A147: 132 | B147: 2018-05-15 | C147: 100.169998 | D147: 100.970001 | E147: 99.730003 | F147: 100.360001 | G147: 273300 | H147: 99.865868 | I147: 0.995076395 | J147: 1 | K147: 99.68 | L147: 100.47 | M147: 99.24 | N147: 99.87 | O147: 273300
A148: 133 | B148: 2018-05-14 | C148: 99.5 | D148: 100.650002 | E148: 99.129997 | F148: 100.209999 | G148: 505100 | H148: 99.716606 | I148: 0.9950764095 | J148: 1 | K148: 99.01 | L148: 100.15 | M148: 98.64 | N148: 99.72 | O148: 505100
A149: 134 | B149: 2018-05-11 | C149: 99.080002 | D149: 100.300003 | E149: 99.040001 | F149: 99.739998 | G149: 288700 | H149: 99.248924 | I149: 0.9950764587 | J149: 1 | K149: 98.59 | L149: 99.81 | M149: 98.55 | N149: 99.25 | O149: 288700
A150: 135 | B150: 2018-05-10 | C150: 99.870003 | D150: 99.870003 | E150: 99.019997 | F150: 99.330002 | G150: 208200 | H150: 98.840942 | I150: 0.9950764121 | J150: 1 | K150: 99.38 | L150: 99.38 | M150: 98.53 | N150: 98.84 | O150: 208200
A151: 136 | B151: 2018-05-09 | C151: 98.82 | D151: 100.300003 | E151: 98.410004 | F151: 99.440002 | G151: 346400 | H151: 98.950409 | I151: 0.9950764985 | J151: 1 | K151: 98.33 | L151: 99.81 | M151: 97.93 | N151: 98.95 | O151: 346400
A152: 137 | B152: 2018-05-08 | C152: 101 | D152: 101.739998 | E152: 98.660004 | F152: 98.690002 | G152: 631600 | H152: 98.204094 | I152: 0.9950764212 | J152: 1 | K152: 100.5 | L152: 101.24 | M152: 98.17 | N152: 98.2 | O152: 631600
A153: 138 | B153: 2018-05-07 | C153: 99.809998 | D153: 101.519997 | E153: 99.559998 | F153: 100.959999 | G153: 475800 | H153: 100.462914 | I153: 0.9950764164 | J153: 1 | K153: 99.32 | L153: 101.02 | M153: 99.07 | N153: 100.46 | O153: 475800
A154: 139 | B154: 2018-05-04 | C154: 98.959999 | D154: 100.5 | E154: 98.769997 | F154: 99.540001 | G154: 406300 | H154: 99.049911 | I154: 0.9950764517 | J154: 1 | K154: 98.47 | L154: 100.01 | M154: 98.28 | N154: 99.05 | O154: 406300
A155: 140 | B155: 2018-05-03 | C155: 98.779999 | D155: 99.589996 | E155: 98.07 | F155: 98.800003 | G155: 482600 | H155: 98.313553 | I155: 0.9950764172 | J155: 1 | K155: 98.29 | L155: 99.1 | M155: 97.59 | N155: 98.31 | O155: 482600
A156: 141 | B156: 2018-05-02 | C156: 97.889999 | D156: 99.839996 | E156: 96.43 | F156: 99 | G156: 790700 | H156: 98.512566 | I156: 0.9950764242 | J156: 1 | K156: 97.41 | L156: 99.35 | M156: 95.96 | N156: 98.51 | O156: 790700
A157: 142 | B157: 2018-05-01 | C157: 96.540001 | D157: 98.739998 | E157: 95.620003 | F157: 98.330002 | G157: 556200 | H157: 97.845863 | I157: 0.9950763857 | J157: 1 | K157: 96.06 | L157: 98.25 | M157: 95.15 | N157: 97.85 | O157: 556200
A158: 143 | B158: 2018-04-30 | C158: 96.599998 | D158: 97.699997 | E158: 96.580002 | F158: 96.599998 | G158: 648400 | H158: 96.124382 | I158: 0.9950764388 | J158: 1 | K158: 96.12 | L158: 97.22 | M158: 96.1 | N158: 96.12 | O158: 648400
A159: 144 | B159: 2018-04-27 | C159: 97.169998 | D159: 97.800003 | E159: 95.93 | F159: 96.57 | G159: 512500 | H159: 95.835808 | I159: 0.9923973077 | J159: 1 | K159: 96.43 | L159: 97.06 | M159: 95.2 | N159: 95.84 | O159: 512500
A160: 145 | B160: 2018-04-26 | C160: 97.779999 | D160: 98.209999 | E160: 97.080002 | F160: 97.169998 | G160: 392500 | H160: 96.431252 | I160: 0.9923973859 | J160: 1 | K160: 97.04 | L160: 97.46 | M160: 96.34 | N160: 96.43 | O160: 392500
A161: 146 | B161: 2018-04-25 | C161: 96.589996 | D161: 98.389999 | E161: 96.18 | F161: 97.790001 | G161: 366100 | H161: 97.046539 | I161: 0.9923973618 | J161: 1 | K161: 95.86 | L161: 97.64 | M161: 95.45 | N161: 97.05 | O161: 366100
A162: 147 | B162: 2018-04-24 | C162: 98.790001 | D162: 99.220001 | E162: 96.809998 | F162: 96.970001 | G162: 489600 | H162: 96.232773 | I162: 0.9923973601 | J162: 1 | K162: 98.04 | L162: 98.47 | M162: 96.07 | N162: 96.23 | O162: 489600
A163: 148 | B163: 2018-04-23 | C163: 100.139999 | D163: 101.43 | E163: 98.019997 | F163: 98.18 | G163: 516500 | H163: 97.433571 | I163: 0.9923973416 | J163: 1 | K163: 99.38 | L163: 100.66 | M163: 97.27 | N163: 97.43 | O163: 516500
A164: 149 | B164: 2018-04-20 | C164: 101.879997 | D164: 102.860001 | E164: 100.220001 | F164: 100.769997 | G164: 317400 | H164: 100.003876 | I164: 0.9923973303 | J164: 1 | K164: 101.11 | L164: 102.08 | M164: 99.46 | N164: 100 | O164: 317400
A165: 150 | B165: 2018-04-19 | C165: 101.870003 | D165: 102.190002 | E165: 101.099998 | F165: 101.459999 | G165: 356800 | H165: 100.688637 | I165: 0.9923973782 | J165: 1 | K165: 101.1 | L165: 101.41 | M165: 100.33 | N165: 100.69 | O165: 356800
A166: 151 | B166: 2018-04-18 | C166: 101.75 | D166: 103.5 | E166: 101.470001 | F166: 101.849998 | G166: 382900 | H166: 101.075668 | I166: 0.9923973489 | J166: 1 | K166: 100.98 | L166: 102.71 | M166: 100.7 | N166: 101.08 | O166: 382900
A167: 152 | B167: 2018-04-17 | C167: 102.440002 | D167: 103.43 | E167: 101.599998 | F167: 101.860001 | G167: 436100 | H167: 101.085602 | I167: 0.9923974181 | J167: 1 | K167: 101.66 | L167: 102.64 | M167: 100.83 | N167: 101.09 | O167: 436100
A168: 153 | B168: 2018-04-16 | C168: 101.879997 | D168: 103 | E168: 100.139999 | F168: 101.860001 | G168: 369000 | H168: 101.085602 | I168: 0.9923974181 | J168: 1 | K168: 101.11 | L168: 102.22 | M168: 99.38 | N168: 101.09 | O168: 369000
A169: 154 | B169: 2018-04-13 | C169: 106.57 | D169: 106.800003 | E169: 100.419998 | F169: 101.57 | G169: 894700 | H169: 100.797798 | I169: 0.9923973417 | J169: 1 | K169: 105.76 | L169: 105.99 | M169: 99.66 | N169: 100.8 | O169: 894700
A170: 155 | B170: 2018-04-12 | C170: 108.050003 | D170: 108.519997 | E170: 106.919998 | F170: 107.040001 | G170: 350000 | H170: 106.226212 | I170: 0.9923973375 | J170: 1 | K170: 107.23 | L170: 107.69 | M170: 106.11 | N170: 106.23 | O170: 350000
A171: 156 | B171: 2018-04-11 | C171: 107.029999 | D171: 108.379997 | E171: 106.339996 | F171: 107.419998 | G171: 364900 | H171: 106.603317 | I171: 0.9923973095 | J171: 1 | K171: 106.22 | L171: 107.56 | M171: 105.53 | N171: 106.6 | O171: 364900
A172: 157 | B172: 2018-04-10 | C172: 108 | D172: 108.099998 | E172: 106.800003 | F172: 107.519997 | G172: 365300 | H172: 106.70256 | I172: 0.9923973491 | J172: 1 | K172: 107.18 | L172: 107.28 | M172: 105.99 | N172: 106.7 | O172: 365300
A173: 158 | B173: 2018-04-09 | C173: 107.349998 | D173: 108.739998 | E173: 106.459999 | F173: 107.419998 | G173: 278200 | H173: 106.603317 | I173: 0.9923973095 | J173: 1 | K173: 106.53 | L173: 107.91 | M173: 105.65 | N173: 106.6 | O173: 278200
A174: 159 | B174: 2018-04-06 | C174: 107.139999 | D174: 109.099998 | E174: 106.389999 | F174: 107.18 | G174: 333200 | H174: 106.36515 | I174: 0.9923973689 | J174: 1 | K174: 106.33 | L174: 108.27 | M174: 105.58 | N174: 106.37 | O174: 333200
A175: 160 | B175: 2018-04-05 | C175: 109.25 | D175: 109.25 | E175: 107.040001 | F175: 107.639999 | G175: 384700 | H175: 106.821655 | I175: 0.9923973987 | J175: 1 | K175: 108.42 | L175: 108.42 | M175: 106.23 | N175: 106.82 | O175: 384700
A176: 161 | B176: 2018-04-04 | C176: 107.889999 | D176: 110.169998 | E176: 107.379997 | F176: 109.580002 | G176: 441700 | H176: 108.746902 | I176: 0.9923973354 | J176: 1 | K176: 107.07 | L176: 109.33 | M176: 106.56 | N176: 108.75 | O176: 441700
A177: 162 | B177: 2018-04-03 | C177: 109.830002 | D177: 110.830002 | E177: 107.669998 | F177: 109.139999 | G177: 462900 | H177: 108.310249 | I177: 0.9923973794 | J177: 1 | K177: 109 | L177: 109.99 | M177: 106.85 | N177: 108.31 | O177: 462900
A178: 163 | B178: 2018-04-02 | C178: 109.769997 | D178: 110.389999 | E178: 108.239998 | F178: 109.199997 | G178: 418100 | H178: 108.369789 | I178: 0.9923973624 | J178: 1 | K178: 108.94 | L178: 109.55 | M178: 107.42 | N178: 108.37 | O178: 418100
A179: 164 | B179: 2018-03-29 | C179: 108 | D179: 110.199997 | E179: 107.93 | F179: 109.769997 | G179: 364200 | H179: 108.935455 | I179: 0.9923973579 | J179: 1 | K179: 107.18 | L179: 109.36 | M179: 107.11 | N179: 108.94 | O179: 364200
A180: 165 | B180: 2018-03-28 | C180: 107.470001 | D180: 108.199997 | E180: 106.519997 | F180: 107.449997 | G180: 316600 | H180: 106.633095 | I180: 0.9923973753 | J180: 1 | K180: 106.65 | L180: 107.38 | M180: 105.71 | N180: 106.63 | O180: 316600
A181: 166 | B181: 2018-03-27 | C181: 107.970001 | D181: 111.150002 | E181: 106.650002 | F181: 107.18 | G181: 315700 | H181: 106.36515 | I181: 0.9923973689 | J181: 1 | K181: 107.15 | L181: 110.3 | M181: 105.84 | N181: 106.37 | O181: 315700
A182: 167 | B182: 2018-03-26 | C182: 108.089996 | D182: 108.110001 | E182: 106.57 | F182: 107.900002 | G182: 522600 | H182: 107.079674 | I182: 0.992397331 | J182: 1 | K182: 107.27 | L182: 107.29 | M182: 105.76 | N182: 107.08 | O182: 522600
A183: 168 | B183: 2018-03-23 | C183: 109.629997 | D183: 110.709999 | E183: 107.050003 | F183: 107.269997 | G183: 482500 | H183: 106.45446 | I183: 0.9923973429 | J183: 1 | K183: 108.8 | L183: 109.87 | M183: 106.24 | N183: 106.45 | O183: 482500
A184: 169 | B184: 2018-03-22 | C184: 110.519997 | D184: 112.040001 | E184: 109.419998 | F184: 109.510002 | G184: 263100 | H184: 108.677437 | I184: 0.9923973611 | J184: 1 | K184: 109.68 | L184: 111.19 | M184: 108.59 | N184: 108.68 | O184: 263100
A185: 170 | B185: 2018-03-21 | C185: 110.760002 | D185: 112.5 | E185: 110.110001 | F185: 111.080002 | G185: 513300 | H185: 110.235504 | I185: 0.9923973894 | J185: 1 | K185: 109.92 | L185: 111.64 | M185: 109.27 | N185: 110.24 | O185: 513300
A186: 171 | B186: 2018-03-20 | C186: 112.370003 | D186: 112.980003 | E186: 110.089996 | F186: 110.449997 | G186: 337900 | H186: 109.610291 | I186: 0.9923974104 | J186: 1 | K186: 111.52 | L186: 112.12 | M186: 109.25 | N186: 109.61 | O186: 337900
A187: 172 | B187: 2018-03-19 | C187: 110.970001 | D187: 113.550003 | E187: 110.860001 | F187: 112.589996 | G187: 402400 | H187: 111.734009 | I187: 0.9923973085 | J187: 1 | K187: 110.13 | L187: 112.69 | M187: 110.02 | N187: 111.73 | O187: 402400
A188: 173 | B188: 2018-03-16 | C188: 110.900002 | D188: 112.160004 | E188: 110.519997 | F188: 111.139999 | G188: 847500 | H188: 110.295044 | I188: 0.9923973816 | J188: 1 | K188: 110.06 | L188: 111.31 | M188: 109.68 | N188: 110.3 | O188: 847500
A189: 174 | B189: 2018-03-15 | C189: 111.790001 | D189: 112.019997 | E189: 110.550003 | F189: 110.699997 | G189: 373300 | H189: 109.858383 | I189: 0.992397344 | J189: 1 | K189: 110.94 | L189: 111.17 | M189: 109.71 | N189: 109.86 | O189: 373300
A190: 175 | B190: 2018-03-14 | C190: 112 | D190: 112.160004 | E190: 110.800003 | F190: 111.57 | G190: 454000 | H190: 110.721771 | I190: 0.992397338 | J190: 1 | K190: 111.15 | L190: 111.31 | M190: 109.96 | N190: 110.72 | O190: 454000
A191: 176 | B191: 2018-03-13 | C191: 111.830002 | D191: 111.830002 | E191: 110.529999 | F191: 111.389999 | G191: 476800 | H191: 110.543144 | I191: 0.9923973875 | J191: 1 | K191: 110.98 | L191: 110.98 | M191: 109.69 | N191: 110.54 | O191: 476800
A192: 177 | B192: 2018-03-12 | C192: 111.260002 | D192: 112.389999 | E192: 110.389999 | F192: 111.809998 | G192: 303800 | H192: 110.959946 | I192: 0.9923973525 | J192: 1 | K192: 110.41 | L192: 111.54 | M192: 109.55 | N192: 110.96 | O192: 303800
A193: 178 | B193: 2018-03-09 | C193: 109.330002 | D193: 111.970001 | E193: 108 | F193: 110.800003 | G193: 531400 | H193: 109.957626 | I193: 0.9923973197 | J193: 1 | K193: 108.5 | L193: 111.12 | M193: 107.18 | N193: 109.96 | O193: 531400
A194: 179 | B194: 2018-03-08 | C194: 111.309998 | D194: 111.699997 | E194: 108.379997 | F194: 109.080002 | G194: 658100 | H194: 108.250702 | I194: 0.9923973232 | J194: 1 | K194: 110.46 | L194: 110.85 | M194: 107.56 | N194: 108.25 | O194: 658100
A195: 180 | B195: 2018-03-07 | C195: 108.68 | D195: 114.599998 | E195: 105.449997 | F195: 112.580002 | G195: 1257300 | H195: 111.724098 | I195: 0.9923973709 | J195: 1 | K195: 107.85 | L195: 113.73 | M195: 104.65 | N195: 111.72 | O195: 1257300
A196: 181 | B196: 2018-03-06 | C196: 111.470001 | D196: 112.349998 | E196: 110.269997 | F196: 111.160004 | G196: 779400 | H196: 110.314896 | I196: 0.9923973734 | J196: 1 | K196: 110.62 | L196: 111.5 | M196: 109.43 | N196: 110.31 | O196: 779400
A197: 182 | B197: 2018-03-05 | C197: 111.220001 | D197: 112.82 | E197: 110.260002 | F197: 111.550003 | G197: 452400 | H197: 110.701927 | I197: 0.9923973467 | J197: 1 | K197: 110.37 | L197: 111.96 | M197: 109.42 | N197: 110.7 | O197: 452400
A198: 183 | B198: 2018-03-02 | C198: 111.639999 | D198: 112.25 | E198: 109.440002 | F198: 111.900002 | G198: 451300 | H198: 111.049271 | I198: 0.9923973996 | J198: 1 | K198: 110.79 | L198: 111.4 | M198: 108.61 | N198: 111.05 | O198: 451300
A199: 184 | B199: 2018-03-01 | C199: 112.309998 | D199: 114.470001 | E199: 111.690002 | F199: 112.459999 | G199: 357400 | H199: 111.605011 | I199: 0.9923974035 | J199: 1 | K199: 111.46 | L199: 113.6 | M199: 110.84 | N199: 111.61 | O199: 357400
A200: 185 | B200: 2018-02-28 | C200: 114.010002 | D200: 114.150002 | E200: 112.300003 | F200: 112.309998 | G200: 241200 | H200: 111.456146 | I200: 0.9923973643 | J200: 1 | K200: 113.14 | L200: 113.28 | M200: 111.45 | N200: 111.46 | O200: 241200
... 4300 more rows

Sheet CalculationsAndCharts
A1: SveVolatilityBand Indicator
A2: =InputPriceData!A1 -> Casey's General Stores, Inc. (CASY) -NasdaqGS (Daily) | H2: =A2 & " Renko(" & A16 & ")" -> Casey's General Stores, Inc. (CASY) -NasdaqGS (Daily) Renko(230) | V2: Align Renko Chart to Price Plot
V3: Bar # | W3: Date Range
A4: User Charting Controls | E4: Click to Shift Chart One Bar: | V4: =MATCH($C$13-1,OFFSET($X$32,1,0,$A$8,1),-1)-1 -> 57 | W4: =OFFSET($X$32,$V4,0,1,1) -> 2017-10-06
A5: Data Control | V5: 1 | W5: =OFFSET($X$32,$V5,0,1,1) -> 2018-11-19
A6: =InputPriceData!$B$10 -> 8846 | B6: Available Input Data Rows | E6: Earliest: | F6: =OFFSET(InputPriceData!B15,CalculationsAndCharts!A6,0,1,1) -> 1983-10-20
B7: Use Close Adjusted: | C7: TRUE | E7: Latest: | F7: =OFFSET(InputPriceData!B15,1,0,1,1) -> 2018-11-19
A8: =MIN(A6-A11,LOOKUP(2,1/(B:B<>0),ROW(A:A))-32) -> 2000 | B8: Logically Available for Calc / Plot | E8: $ Change: | F8: =G33-G34 -> -1.69
B9: Calc Formula Rows: | C9: =MIN(A6-A11,LOOKUP(2,1/(A:A<>0),ROW(A:A))-32) -> 2000
F10: Y-axis Range
A11: 0 | B11: Input Data Offset (Pan) | E11: Max High+ | F11: =CEILING(MAX(MAX(OFFSET($E$33,0,0,$A$12,1)))+2*F14,0.1) -> 137.6
A12: 300 | B12: Data Points to Plot (Zoom) | E12: Min Low- | F12: =FLOOR(MIN(MIN(OFFSET($F$33,0,0,$A$12,1)))-2*F14,0.1) -> 85.4
B13: First: | C13: =OFFSET(B32,A12,0,1,1) -> 2017-09-13 | E13: White space %: | F13: 0.05
B14: ="Last: " & IF(OFFSET(InputPriceData!P15,1+A11,0,1,1)="","",TEXT(OFFSET(InputPriceData!P15,1+A11,0,1,1),"H:MM AM/PM")) -> Last: | C14: =B33 -> 2018-11-19 | E14: Allowance: | F14: =FLOOR((CEILING(MAX(MAX(OFFSET($E$33,0,0,$A$12,1))),1)-FLOOR(MIN(MIN(OFFSET($F$33,0,0,$A$12,1))),1))*F13,0.01) -> 2.25
A15: User Controls
A16: 230 | B16: RenkoTickSize | C16: rangeValue: | D16: =A16*0.01 -> 2.3
D18: Alpha | E18: 1-Alpha
A19: 21 | B19: RSI Period | D19: =2/($A$19+1) -> 0.09090909091 | E19: =1 - $D$19 -> 0.9090909091
A21: 5 | B21: Stoch Look back Period
A22: 8 | B22: Stoch Summing Average Period
D24: Indicator levels: | E24: 20 | F24: 80
A25: Help! I would like to plot data
A26: From | B26: 2016-01-25 | C26: =OFFSET(InputPriceData!$A$15,MATCH(B26,OFFSET(InputPriceData!B15,1,0,InputPriceData!$B$10,1),0),0,1,1)-C27 -> 618 | E26: 44 | AW26: Nearest
A27: To | B27: 2018-07-06 | C27: =OFFSET(InputPriceData!$A$15,MATCH(B27,OFFSET(InputPriceData!$B$15,1,0,InputPriceData!$B$10,1),0),0,1,1)-1 -> 95 | E27: =$A$12-$E$26+1 -> 257 | AW27: Bucket
H28: @ Price Cursor => | I28: =OFFSET(A32,$E$27,0,1,1)&"(RR)" -> 257(RR) | J28: =OFFSET($B$32,E27,0,1,1) -> 2017-11-13 | K28: =TEXT(OFFSET($D$32,$E$27,0,1,1),"#,##0.00")&"(o)" -> 114.08(o) | L28: =TEXT(OFFSET($E$32,$E$27,0,1,1),"#,##0.00")&"(h)" -> 115.19(h) | M28: =TEXT(OFFSET($F$32,$E$27,0,1,1),"#,##0.00")&"(l)" -> 113.94(l) | N28: =TEXT(OFFSET($G$32,$E$27,0,1,1),"#,##0.00")&"(c)" -> 114.50(c) | O28: =IF(OFFSET($C$32,$E$27,0,1,1)>9999999,TEXT(OFFSET($C$32,$E$27,0,1,1)/1000000,"#,##0.00")&"M",TEXT(OFFSET($C$32,$E$27,0,1,1),"#,##0"))&"(v)" -> 335,900(v) | AW28: =MATCH($J$28,OFFSET($X$32,1,0,$A$8,1),-1) -> 54
E29: Cursor ==> | AU29: Chart Cursor work area
H30: @ Renko Cursor => | I30: =OFFSET(W32,$AW$33,0,1,1)&"(RR)" -> 53(RR) | J30: =OFFSET($X$32,$AW$33,0,1,1) -> 2017-11-29 | K30: =TEXT(OFFSET($Z$32,$AW$33,0,1,1),"#,##0.00")&"(o)" -> 116.56(o) | L30: =TEXT(OFFSET($AA$32,$AW$33,0,1,1),"#,##0.00")&"(h)" -> 118.86(h) | M30: =TEXT(OFFSET($AB$32,$AW$33,0,1,1),"#,##0.00")&"(l)" -> 116.56(l) | N30: =TEXT(OFFSET($AC$32,$AW$33,0,1,1),"#,##0.00")&"(c)" -> 118.86(c) | O30: =IF(OFFSET($Y$32,$AW$33,0,1,1)>9999999,TEXT(OFFSET($Y$32,$AW$33,0,1,1)/1000000,"#,##0.00")&"M",TEXT(OFFSET($Y$32,$AW$33,0,1,1),"#,##0"))&"(v)" -> 2,249,400(v)
A31: Rel Row | H31: Price RSI Calcs | N31: Price SVEStochRSI calculations | R31: RSILow | S31: RSIHiLow | W31: =MAX(OFFSET($W$32,1,0,$A$8,1)) -> 195 | X31: ="Modified Renko Bars (" & $A$16 & ", 0.01)" -> Modified Renko Bars (230, 0.01) | AA31: =MAX(OFFSET(AA32,1,0,$W$31,1)) -> 132.55 | AB31: =MIN(OFFSET(AB32,1,0,$W$31,1)) -> 33.05 | AD31: Ticks in bar | AE31: Total Ticks | AF31: Renko RSI Calcs | AL31: Renko SVEStochRSI calculations | AP31: RSILow | AQ31: RSIHiLow | BA31: Indicator Levels
B32: Date | C32: Volume | D32: Open | E32: High | F32: Low | G32: Close | H32: Delta | I32: UP | J32: Down | K32: CU | L32: CD | M32: ="RSI("&$A$19&")" -> RSI(21) | N32: ="HiRSI("&$A$21&")" -> HiRSI(5) | O32: ="LowRSI("&$A$21&")" -> LowRSI(5) | P32: RSI -LowRSI | Q32: HiRSI-LowRSI | R32: ="SMA("&$A$22&")" -> SMA(8) | S32: ="SMA("&$A$22&")" -> SMA(8) | T32: ="SVEStochRSI("&$A$19&", "&$A$21&", "&$A$22&")" -> SVEStochRSI(21, 5, 8) | W32: Row | X32: Date/time | Y32: Volume | Z32: R Open | AA32: R High | AB32: R Low | AC32: R Close | AE32: =SUM(OFFSET($AD$32,1,0,$W$31,1)) -> 2000 | AF32: Delta | AG32: UP | AH32: Down | AI32: CU | AJ32: CD | AK32: ="RSI("&$A$19&")" -> RSI(21) | AL32: ="HiRSI("&$A$21&")" -> HiRSI(5) | AM32: ="LowRSI("&$A$21&")" -> LowRSI(5) | AN32: RSI -LowRSI | AO32: HiRSI-LowRSI | AP32: ="SMA("&$A$22&")" -> SMA(8) | AQ32: ="SMA("&$A$22&")" -> SMA(8) | AR32: ="SVEStochRSI("&$A$19&", "&$A$21&", "&$A$22&")" -> SVEStochRSI(21, 5, 8) | AW32: Renko Cursor | AY32: Price Chart Cursor | BA32: =$E$24 -> 20 | BB32: =$F$24 -> 80
A33: 1 | B33: =OFFSET(InputPriceData!B$15,CalculationsAndCharts!$A33+$A$11,0,1,1) -> 2018-11-19 | C33: =OFFSET(InputPriceData!G$15,CalculationsAndCharts!$A33+$A$11,IF($C$7,8,0),1,1) -> 209700 | D33: =OFFSET(InputPriceData!C$15,CalculationsAndCharts!$A33+$A$11,IF($C$7,8,0),1,1) -> 128.56 | E33: =OFFSET(InputPriceData!D$15,CalculationsAndCharts!$A33+$A$11,IF($C$7,8,0),1,1) -> 129.51 | F33: =OFFSET(InputPriceData!E$15,CalculationsAndCharts!$A33+$A$11,IF($C$7,8,0),1,1) -> 126.44 | G33: =OFFSET(InputPriceData!F$15,CalculationsAndCharts!$A33+$A$11,IF($C$7,8,0),1,1) -> 126.75 | H33: =IF($A33<$A$8,G33-$G34,IF($A33=$A$8,0,NA())) -> -1.69 | I33: =IF($A33<$A$8,IF(H33>0,H33,0),IF($A33=$A$8,0,NA())) -> 0 | J33: =IF($A33 <$A$8,IF(H33<0,-H33,0),IF($A33=$A$8,0,NA())) -> 1.69 | K33: =IF($A33<$A$8-$A$19,$I33*$D$19+$K34*$E$19,IF($A33<=$A$8,AVERAGE(OFFSET($I33,0,0,$A$8-$A33+1,1)),NA())) -> 0.5986715311 | L33: =IF($A33<$A$8-$A$19,$J33*$D$19+$L34*$E$19,IF($A33<=$A$8,AVERAGE(OFFSET($J33,0,0,$A$8-$A33+1,1)),NA())) -> 0.6709516285 | M33: =IF($A33<$A$8,IFERROR(100-100/(1+($K33/$L33)),0),IF($A33=$A$8,0,NA())) -> 47.15348224 | N33: =MAX(OFFSET(M33,0,0,$A$21,1)) -> 53.64503713 | O33: =MIN(OFFSET(M33,0,0,$A$21,1)) -> 45.97424297 | P33: =M33-O33 -> 1.179239273 | Q33: =N33-O33 -> 7.670794164 | R33: =AVERAGE(OFFSET(P33,0,0,$A$22,1)) -> 2.522786971 | S33: =AVERAGE(OFFSET(Q33,0,0,$A$22,1)) -> 14.15137065 | T33: =R33/(0.1+S33)*100 -> 17.70206553 | W33: =SVERenkoBars(OFFSET($B$32,1,0,$A$8,1),OFFSET($C$32,1,0,$A$8,1),OFFSET($D$32,1,0,$A$8,1),OFFSET($E$32,1,0,$A$8,1),OFFSET($F$32,1,0,$A$8,1),OFFSET($G$32,1,0,$A$8,1), $D$16) -> 1 | X33: 2018-11-19 | Y33: 2172300 | Z33: 130.36 | AA33: 132.32 | AB33: 126.42 | AC33: 132.32 | AD33: 8 | AF33: =IF($A33<$A$8,AC33-$AC34,IF($A33=$A$8,0,NA())) -> 1.96 | AG33: =IF($A33<$A$8,IF(AF33>0,AF33,0),IF($A33=$A$8,0,NA())) -> 1.96 | AH33: =IF($A33 <$A$8,IF(AF33<0,-AF33,0),IF($A33=$A$8,0,NA())) -> 0 | AI33: =IF($A33<$A$8-$A$19,$AG33*$D$19+$AI34*$E$19,IF($A33<=$A$8,AVERAGE(OFFSET($AG33,0,0,$A$8-$A33+1,1)),NA())) -> 2.137771872 | AJ33: =IF($A33<$A$8-$A$19,$AH33*$D$19+$AJ34*$E$19,IF($A33<=$A$8,AVERAGE(OFFSET($AH33,0,0,$A$8-$A33+1,1)),NA())) -> 0.9326544645 | AK33: =IF($A33<$A$8,IFERROR(100-100/(1+($AI33/$AJ33)),0),IF($A33=$A$8,0,NA())) -> 69.62459404 | AL33: =MAX(OFFSET(AK33,0,0,$A$21,1)) -> 69.71812111 | AM33: =MIN(OFFSET(AK33,0,0,$A$21,1)) -> 60.42300531 | AN33: =AK33-AM33 -> 9.201588724 | AO33: =AL33-AM33 -> 9.295115799 | AP33: =AVERAGE(OFFSET(AN33,0,0,$A$22,1)) -> 5.661215371 | AQ33: =AVERAGE(OFFSET(AO33,0,0,$A$22,1)) -> 11.38232886 | AR33: =AP33/(0.1+AQ33)*100 -> 49.30372088 | AW33: =IF(AW28=1,1,AW28-1) -> 53 | AX33: 93.3075 | AY33: =E27 -> 257 | AZ33: 87.72075 | BA33: =$E$24 -> 20 | BB33: =$F$24 -> 80
A34: 2 | B34: =OFFSET(InputPriceData!B$15,CalculationsAndCharts!$A34+$A$11,0,1,1) -> 2018-11-16 | C34: =OFFSET(InputPriceData!G$15,CalculationsAndCharts!$A34+$A$11,IF($C$7,8,0),1,1) -> 362100 | D34: =OFFSET(InputPriceData!C$15,CalculationsAndCharts!$A34+$A$11,IF($C$7,8,0),1,1) -> 126.94 | E34: =OFFSET(InputPriceData!D$15,CalculationsAndCharts!$A34+$A$11,IF($C$7,8,0),1,1) -> 129.42 | F34: =OFFSET(InputPriceData!E$15,CalculationsAndCharts!$A34+$A$11,IF($C$7,8,0),1,1) -> 126.09 | G34: =OFFSET(InputPriceData!F$15,CalculationsAndCharts!$A34+$A$11,IF($C$7,8,0),1,1) -> 128.44 | H34: =IF($A34<$A$8,G34-$G35,IF($A34=$A$8,0,NA())) -> 0.89 | I34: =IF($A34<$A$8,IF(H34>0,H34,0),IF($A34=$A$8,0,NA())) -> 0.89 | J34: =IF($A34 <$A$8,IF(H34<0,-H34,0),IF($A34=$A$8,0,NA())) -> 0 | K34: =IF($A34<$A$8-$A$19,$I34*$D$19+$K35*$E$19,IF($A34<=$A$8,AVERAGE(OFFSET($I34,0,0,$A$8-$A34+1,1)),NA())) -> 0.6585386843 | L34: =IF($A34<$A$8-$A$19,$J34*$D$19+$L35*$E$19,IF($A34<=$A$8,AVERAGE(OFFSET($J34,0,0,$A$8-$A34+1,1)),NA())) -> 0.5690467914 | M34: =IF($A34<$A$8,IFERROR(100-100/(1+($K34/$L34)),0),IF($A34=$A$8,0,NA())) -> 53.64503713 | N34: =MAX(OFFSET(M34,0,0,$A$21,1)) -> 59.60203664 | O34: =MIN(OFFSET(M34,0,0,$A$21,1)) -> 45.97424297 | P34: =M34-O34 -> 7.670794164 | Q34: =N34-O34 -> 13.62779367 | R34: =AVERAGE(OFFSET(P34,0,0,$A$22,1)) -> 4.391483038 | S34: =AVERAGE(OFFSET(Q34,0,0,$A$22,1)) -> 15.20862236 | T34: =R34/(0.1+S34)*100 -> 28.68633725 | W34: 2 | X34: 2018-11-07 | Y34: 444200 | Z34: 128.06 | AA34: 130.36 | AB34: 128.06 | AC34: 130.36 | AD34: 2 | AF34: 2.3 | AG34: 2.3 | AH34: 0 | AI34: 2.155549059 | AJ34: 1.025919911 | AK34: 67.75326365 | AL34: =MAX(OFFSET(AK34,0,0,$A$21,1)) -> 69.71812111 | AM34: =MIN(OFFSET(AK34,0,0,$A$21,1)) -> 60.42300531 | AN34: =AK34-AM34 -> 7.330258334 | AO34: =AL34-AM34 -> 9.295115799 | AP34: =AVERAGE(OFFSET(AN34,0,0,$A$22,1)) -> 5.79850157 | AQ34: =AVERAGE(OFFSET(AO34,0,0,$A$22,1)) -> 11.50792417 | AR34: =AP34/(0.1+AQ34)*100 -> 49.95295872 | AW34: =AW33 -> 53 | AX34: 135.628 | AY34: =E27 -> 257 | AZ34: 136.39675 | BA34: =$E$24 -> 20 | BB34: =$F$24 -> 80
A35: 3 | B35: =OFFSET(InputPriceData!B$15,CalculationsAndCharts!$A35+$A$11,0,1,1) -> 2018-11-15 | C35: =OFFSET(InputPriceData!G$15,CalculationsAndCharts!$A35+$A$11,IF($C$7,8,0),1,1) -> 296800 | D35: =OFFSET(InputPriceData!C$15,CalculationsAndCharts!$A35+$A$11,IF($C$7,8,0),1,1) -> 126.53 | E35: =OFFSET(InputPriceData!D$15,CalculationsAndCharts!$A35+$A$11,IF($C$7,8,0),1,1) -> 127.57 | F35: =OFFSET(InputPriceData!E$15,CalculationsAndCharts!$A35+$A$11,IF($C$7,8,0),1,1) -> 124.71 | G35: =OFFSET(InputPriceData!F$15,CalculationsAndCharts!$A35+$A$11,IF($C$7,8,0),1,1) -> 127.55 | H35: 1.13 | I35: 1.13 | J35: 0 | K35: 0.6353925527 | L35: 0.6259514705 | M35: 50.37424691 | N35: 63.17486378 | O35: 45.97424297 | P35: 4.400003944 | Q35: 17.20062081 | R35: 4.65415294 | S35: 14.72666732 | T35: 31.39041862 | W35: 3 | X35: 2018-11-05 | Y35: 1547400 | Z35: 123.46 | AA35: 128.06 | AB35: 121.74 | AC35: 128.06 | AD35: 6 | AF35: 4.6 | AG35: 4.6 | AH35: 0 | AI35: 2.141103965 | AJ35: 1.128511902 | AK35: 65.4848781 | AL35: 76.03280413 | AM35: 60.42300531 | AN35: 5.061872791 | AO35: 15.60979882 | AP35: 6.247521756 | AQ35: 11.71133718 | AR35: 52.89427999 | BA35: =$E$24 -> 20 | BB35: =$F$24 -> 80
A36: 4 | B36: =OFFSET(InputPriceData!B$15,CalculationsAndCharts!$A36+$A$11,0,1,1) -> 2018-11-14 | C36: =OFFSET(InputPriceData!G$15,CalculationsAndCharts!$A36+$A$11,IF($C$7,8,0),1,1) -> 252300 | D36: =OFFSET(InputPriceData!C$15,CalculationsAndCharts!$A36+$A$11,IF($C$7,8,0),1,1) -> 128.67 | E36: =OFFSET(InputPriceData!D$15,CalculationsAndCharts!$A36+$A$11,IF($C$7,8,0),1,1) -> 129.51 | F36: =OFFSET(InputPriceData!E$15,CalculationsAndCharts!$A36+$A$11,IF($C$7,8,0),1,1) -> 126.22 | G36: =OFFSET(InputPriceData!F$15,CalculationsAndCharts!$A36+$A$11,IF($C$7,8,0),1,1) -> 126.42 | H36: -1.46 | I36: 0 | J36: 1.46 | K36: 0.585931808 | L36: 0.6885466176 | M36: 45.97424297 | N36: 65.29044047 | O36: 45.97424297 | P36: 0 | Q36: 19.3161975 | R36: 5.005864026 | S36: 13.4783013 | T36: 36.86664418 | W36: 4 | X36: 2018-10-26 | Y36: 2153300 | Z36: 128.06 | AA36: 128.79 | AB36: 123.46 | AC36: 123.46 | AD36: 7 | AF36: -4.6 | AG36: 0 | AH36: 4.6 | AI36: 1.895214362 | AJ36: 1.241363092 | AK36: 60.42300531 | AL36: 76.03280413 | AM36: 60.42300531 | AN36: 0 | AO36: 15.60979882 | AP36: 7.058439527 | AQ36: 11.20376419 | AR36: 62.44326585 | BA36: 20 | BB36: 80
A37: 5 | B37: =OFFSET(InputPriceData!B$15,CalculationsAndCharts!$A37+$A$11,0,1,1) -> 2018-11-13 | C37: =OFFSET(InputPriceData!G$15,CalculationsAndCharts!$A37+$A$11,IF($C$7,8,0),1,1) -> 232000 | D37: =OFFSET(InputPriceData!C$15,CalculationsAndCharts!$A37+$A$11,IF($C$7,8,0),1,1) -> 130.15 | E37: =OFFSET(InputPriceData!D$15,CalculationsAndCharts!$A37+$A$11,IF($C$7,8,0),1,1) -> 130.15 | F37: =OFFSET(InputPriceData!E$15,CalculationsAndCharts!$A37+$A$11,IF($C$7,8,0),1,1) -> 127.81 | G37: =OFFSET(InputPriceData!F$15,CalculationsAndCharts!$A37+$A$11,IF($C$7,8,0),1,1) -> 127.88 | H37: -1.92 | I37: 0 | J37: 1.92 | K37: 0.6445249888 | L37: 0.6114012794 | M37: 51.31869642 | N37: 71.9623345 | O37: 51.31869642 | P37: 0 | Q37: 20.64363808 | R37: 6.783193595 | S37: 12.84110618 | T37: 52.41587156 | W37: 5 | X37: 2018-10-17 | Y37: 3013300 | Z37: 123.46 | AA37: 128.06 | AB37: 122.45 | AC37: 128.06 | AD37: 8 | AF37: 4.6 | AG37: 4.6 | AH37: 0 | AI37: 2.084735798 | AJ37: 0.9054994015 | AK37: 69.71812111 | AL37: 76.03280413 | AM37: 64.79468863 | AN37: 4.923432486 | AO37: 11.2381155 | AP37: 8.580289778 | AQ37: 10.77438959 | AR37: 78.90364516 | BA37: 20 | BB37: 80
A38: 6 | B38: =OFFSET(InputPriceData!B$15,CalculationsAndCharts!$A38+$A$11,0,1,1) -> 2018-11-12 | C38: =OFFSET(InputPriceData!G$15,CalculationsAndCharts!$A38+$A$11,IF($C$7,8,0),1,1) -> 227400 | D38: =OFFSET(InputPriceData!C$15,CalculationsAndCharts!$A38+$A$11,IF($C$7,8,0),1,1) -> 130.04 | E38: =OFFSET(InputPriceData!D$15,CalculationsAndCharts!$A38+$A$11,IF($C$7,8,0),1,1) -> 131.29 | F38: =OFFSET(InputPriceData!E$15,CalculationsAndCharts!$A38+$A$11,IF($C$7,8,0),1,1) -> 128.73 | G38: =OFFSET(InputPriceData!F$15,CalculationsAndCharts!$A38+$A$11,IF($C$7,8,0),1,1) -> 129.8 | H38: -0.74 | I38: 0 | J38: 0.74 | K38: 0.7089774876 | L38: 0.4805414073 | M38: 59.60203664 | N38: 71.9623345 | O38: 59.60203664 | P38: 0 | Q38: 12.36029786 | R38: 9.099900672 | S38: 12.5773585 | T38: 71.78073155 | W38: 6 | X38: 2018-10-05 | Y38: 4037700 | Z38: 128.06 | AA38: 129.44 | AB38: 123.46 | AC38: 123.46 | AD38: 10 | AF38: -4.6 | AG38: 0 | AH38: 4.6 | AI38: 1.833209378 | AJ38: 0.9960493417 | AK38: 64.79468863 | AL38: 76.03280413 | AM38: 64.79468863 | AN38: 0 | AO38: 11.2381155 | AP38: 10.05841151 | AQ38: 11.46317594 | AR38: 86.98658184 | BA38: 20 | BB38: 80
A39: 7 | B39: =OFFSET(InputPriceData!B$15,CalculationsAndCharts!$A39+$A$11,0,1,1) -> 2018-11-09 | C39: =OFFSET(InputPriceData!G$15,CalculationsAndCharts!$A39+$A$11,IF($C$7,8,0),1,1) -> 189900 | D39: =OFFSET(InputPriceData!C$15,CalculationsAndCharts!$A39+$A$11,IF($C$7,8,0),1,1) -> 130.52 | E39: =OFFSET(InputPriceData!D$15,CalculationsAndCharts!$A39+$A$11,IF($C$7,8,0),1,1) -> 131.31 | F39: =OFFSET(InputPriceData!E$15,CalculationsAndCharts!$A39+$A$11,IF($C$7,8,0),1,1) -> 129.06 | G39: =OFFSET(InputPriceData!F$15,CalculationsAndCharts!$A39+$A$11,IF($C$7,8,0),1,1) -> 130.54 | H39: -0.44 | I39: 0 | J39: 0.44 | K39: 0.7798752364 | L39: 0.454595548 | M39: 63.17486378 | N39: 71.9623345 | O39: 61.44260265 | P39: 1.732261123 | Q39: 10.51973185 | R39: 11.21603066 | S39: 13.19642368 | T39: 84.35374005 | W39: 7 | X39: 2018-09-21 | Y39: 2747600 | Z39: 125.76 | AA39: 128.06 | AB39: 124.99 | AC39: 128.06 | AD39: 6 | AF39: 2.3 | AG39: 2.3 | AH39: 0 | AI39: 2.016530315 | AJ39: 0.6356542759 | AK39: 76.03280413 | AL39: 76.03280413 | AM39: 66.94664137 | AN39: 9.08616276 | AO39: 9.08616276 | AP39: 11.7811831 | AQ39: 11.7811831 | AR39: 99.15833298 | BA39: 20 | BB39: 80
A40: 8 | B40: =OFFSET(InputPriceData!B$15,CalculationsAndCharts!$A40+$A$11,0,1,1) -> 2018-11-08 | C40: =OFFSET(InputPriceData!G$15,CalculationsAndCharts!$A40+$A$11,IF($C$7,8,0),1,1) -> 146800 | D40: =OFFSET(InputPriceData!C$15,CalculationsAndCharts!$A40+$A$11,IF($C$7,8,0),1,1) -> 132.21 | E40: =OFFSET(InputPriceData!D$15,CalculationsAndCharts!$A40+$A$11,IF($C$7,8,0),1,1) -> 133.07 | F40: =OFFSET(InputPriceData!E$15,CalculationsAndCharts!$A40+$A$11,IF($C$7,8,0),1,1) -> 130.1 | G40: =OFFSET(InputPriceData!F$15,CalculationsAndCharts!$A40+$A$11,IF($C$7,8,0),1,1) -> 130.98 | H40: -1.34 | I40: 0 | J40: 1.34 | K40: 0.85786276 | L40: 0.4560551028 | M40: 65.29044047 | N40: 71.9623345 | O40: 60.0904432 | P40: 5.199997269 | Q40: 11.8718913 | R40: 13.16360043 | S40: 14.04555961 | T40: 93.0581808 | W40: 8 | X40: 2018-09-13 | Y40: 0 | Z40: 123.46 | AA40: 125.76 | AB40: 123.46 | AC40: 125.76 | AD40: 1 | AF40: 2.3 | AG40: 2.3 | AH40: 0 | AI40: 1.988183347 | AJ40: 0.6992197034 | AK40: 73.98158407 | AL40: 73.98158407 | AM40: 64.29517619 | AN40: 9.686407875 | AO40: 9.686407875 | AP40: 11.97781972 | AQ40: 11.97781972 | AR40: 99.17203599 | BA40: 20 | BB40: 80
A41: 9 | B41: =OFFSET(InputPriceData!B$15,CalculationsAndCharts!$A41+$A$11,0,1,1) -> 2018-11-07 | C41: =OFFSET(InputPriceData!G$15,CalculationsAndCharts!$A41+$A$11,IF($C$7,8,0),1,1) -> 255300 | D41: =OFFSET(InputPriceData!C$15,CalculationsAndCharts!$A41+$A$11,IF($C$7,8,0),1,1) -> 129.02 | E41: =OFFSET(InputPriceData!D$15,CalculationsAndCharts!$A41+$A$11,IF($C$7,8,0),1,1) -> 132.65 | F41: =OFFSET(InputPriceData!E$15,CalculationsAndCharts!$A41+$A$11,IF($C$7,8,0),1,1) -> 129.02 | G41: =OFFSET(InputPriceData!F$15,CalculationsAndCharts!$A41+$A$11,IF($C$7,8,0),1,1) -> 132.32 | H41: 3.19 | I41: 3.19 | J41: 0 | K41: 0.943649036 | L41: 0.3676606131 | M41: 71.9623345 | N41: 71.9623345 | O41: 55.8335267 | P41: 16.1288078 | Q41: 16.1288078 | R41: 13.58509285 | S41: 14.36489212 | T41: 93.91769212 | W41: 9 | X41: 2018-09-12 | Y41: 0 | Z41: 121.16 | AA41: 123.46 | AB41: 121.16 | AC41: 123.46 | AD41: 1 | AF41: 2.3 | AG41: 2.3 | AH41: 0 | AI41: 1.957001682 | AJ41: 0.7691416738 | AK41: 71.78645531 | AL41: 71.78645531 | AM41: 61.486577 | AN41: 10.29987831 | AO41: 10.29987831 | AP41: 11.76613115 | AQ41: 11.76613115 | AR41: 99.15726534 | BA41: 20 | BB41: 80
A42: 10 | B42: =OFFSET(InputPriceData!B$15,CalculationsAndCharts!$A42+$A$11,0,1,1) -> 2018-11-06 | C42: =OFFSET(InputPriceData!G$15,CalculationsAndCharts!$A42+$A$11,IF($C$7,8,0),1,1) -> 214200 | D42: =OFFSET(InputPriceData!C$15,CalculationsAndCharts!$A42+$A$11,IF($C$7,8,0),1,1) -> 128.38 | E42: =OFFSET(InputPriceData!D$15,CalculationsAndCharts!$A42+$A$11,IF($C$7,8,0),1,1) -> 129.77 | F42: =OFFSET(InputPriceData!E$15,CalculationsAndCharts!$A42+$A$11,IF($C$7,8,0),1,1) -> 127 | G42: =OFFSET(InputPriceData!F$15,CalculationsAndCharts!$A42+$A$11,IF($C$7,8,0),1,1) -> 129.13 | H42: 0.82 | I42: 0.82 | J42: 0 | K42: 0.7190139396 | L42: 0.4044266744 | M42: 64.0010634 | N42: 64.0010634 | O42: 54.22891002 | P42: 9.772153381 | Q42: 9.772153381 | R42: 11.56899187 | S42: 14.15211007 | T42: 81.17388804 | W42: 10 | X42: 2018-09-11 | Y42: 0 | Z42: 118.86 | AA42: 121.16 | AB42: 118.86 | AC42: 121.16 | AD42: 0 | AF42: 2.3 | AG42: 2.3 | AH42: 0 | AI42: 1.92270185 | AJ42: 0.8460558412 | AK42: 69.4427633 | AL42: 69.4427633 | AM42: 58.52034348 | AN42: 10.92241982 | AO42: 10.92241982 | AP42: 11.09140333 | AQ42: 12.00302824 | AR42: 91.6415554 | BA42: 20 | BB42: 80
A43: 11 | B43: =OFFSET(InputPriceData!B$15,CalculationsAndCharts!$A43+$A$11,0,1,1) -> 2018-11-05 | C43: =OFFSET(InputPriceData!G$15,CalculationsAndCharts!$A43+$A$11,IF($C$7,8,0),1,1) -> 230000 | D43: =OFFSET(InputPriceData!C$15,CalculationsAndCharts!$A43+$A$11,IF($C$7,8,0),1,1) -> 127.87 | E43: =OFFSET(InputPriceData!D$15,CalculationsAndCharts!$A43+$A$11,IF($C$7,8,0),1,1) -> 128.64 | F43: =OFFSET(InputPriceData!E$15,CalculationsAndCharts!$A43+$A$11,IF($C$7,8,0),1,1) -> 127.03 | G43: =OFFSET(InputPriceData!F$15,CalculationsAndCharts!$A43+$A$11,IF($C$7,8,0),1,1) -> 128.31 | H43: 0.43 | I43: 0.43 | J43: 0 | K43: 0.7089153336 | L43: 0.4448693418 | M43: 61.44260265 | N43: 61.44260265 | O43: 54.22891002 | P43: 7.213692635 | Q43: 7.213692635 | R43: 10.3474727 | S43: 14.03708499 | T43: 73.1938211 | W43: 11 | X43: 2018-09-11 | Y43: 4632000 | Z43: 116.56 | AA43: 118.86 | AB43: 112.73 | AC43: 118.86 | AD43: 14 | AF43: 2.3 | AG43: 2.3 | AH43: 0 | AI43: 1.884972035 | AJ43: 0.9306614253 | AK43: 66.94664137 | AL43: 66.94664137 | AM43: 55.39742641 | AN43: 11.54921496 | AO43: 11.54921496 | AP43: 12.47116755 | AQ43: 13.38279246 | AR43: 92.49691847 | BA43: 20 | BB43: 80
A44: 12 | B44: =OFFSET(InputPriceData!B$15,CalculationsAndCharts!$A44+$A$11,0,1,1) -> 2018-11-02 | C44: =OFFSET(InputPriceData!G$15,CalculationsAndCharts!$A44+$A$11,IF($C$7,8,0),1,1) -> 189500 | D44: =OFFSET(InputPriceData!C$15,CalculationsAndCharts!$A44+$A$11,IF($C$7,8,0),1,1) -> 126.88 | E44: =OFFSET(InputPriceData!D$15,CalculationsAndCharts!$A44+$A$11,IF($C$7,8,0),1,1) -> 128.48 | F44: =OFFSET(InputPriceData!E$15,CalculationsAndCharts!$A44+$A$11,IF($C$7,8,0),1,1) -> 126.56 | G44: =OFFSET(InputPriceData!F$15,CalculationsAndCharts!$A44+$A$11,IF($C$7,8,0),1,1) -> 127.88 | H44: 1.3 | I44: 1.3 | J44: 0 | K44: 0.736806867 | L44: 0.489356276 | M44: 60.0904432 | N44: 60.0904432 | O44: 45.87180665 | P44: 14.21863655 | Q44: 14.21863655 | R44: 9.44576112 | S44: 14.6027772 | T44: 64.24474093 | W44: 12 | X44: 2018-08-21 | Y44: 437300 | Z44: 114.26 | AA44: 116.56 | AB44: 114.26 | AC44: 116.56 | AD44: 2 | AF44: 2.3 | AG44: 2.3 | AH44: 0 | AI44: 1.843469238 | AJ44: 1.023727568 | AK44: 64.29517619 | AL44: 64.29517619 | AM44: 52.12037418 | AN44: 12.17480201 | AO44: 12.17480201 | AP44: 13.29272819 | AQ44: 14.2043531 | AR44: 92.92785278 | BA44: 20 | BB44: 80
A45: 13 | B45: =OFFSET(InputPriceData!B$15,CalculationsAndCharts!$A45+$A$11,0,1,1) -> 2018-11-01 | C45: =OFFSET(InputPriceData!G$15,CalculationsAndCharts!$A45+$A$11,IF($C$7,8,0),1,1) -> 213700 | D45: =OFFSET(InputPriceData!C$15,CalculationsAndCharts!$A45+$A$11,IF($C$7,8,0),1,1) -> 126.2 | E45: =OFFSET(InputPriceData!D$15,CalculationsAndCharts!$A45+$A$11,IF($C$7,8,0),1,1) -> 127.48 | F45: =OFFSET(InputPriceData!E$15,CalculationsAndCharts!$A45+$A$11,IF($C$7,8,0),1,1) -> 124.77 | G45: =OFFSET(InputPriceData!F$15,CalculationsAndCharts!$A45+$A$11,IF($C$7,8,0),1,1) -> 126.58 | H45: 0.47 | I45: 0.47 | J45: 0 | K45: 0.6804875537 | L45: 0.5382919036 | M45: 55.8335267 | N45: 55.8335267 | O45: 37.29987008 | P45: 18.53365662 | Q45: 18.53365662 | R45: 7.863902628 | S45: 14.6330165 | T45: 53.37605254 | W45: 13 | X45: 2018-08-17 | Y45: 1534500 | Z45: 111.96 | AA45: 114.26 | AB45: 110.59 | AC45: 114.26 | AD45: 7 | AF45: 2.3 | AG45: 2.3 | AH45: 0 | AI45: 1.797816162 | AJ45: 1.126100325 | AK45: 61.486577 | AL45: 61.486577 | AM45: 44.73817069 | AN45: 16.74840631 | AO45: 16.74840631 | AP45: 14.38825396 | AQ45: 15.29987887 | AR45: 93.43095541 | BA45: 20 | BB45: 80
A46: 14 | B46: =OFFSET(InputPriceData!B$15,CalculationsAndCharts!$A46+$A$11,0,1,1) -> 2018-10-31 | C46: =OFFSET(InputPriceData!G$15,CalculationsAndCharts!$A46+$A$11,IF($C$7,8,0),1,1) -> 231200 | D46: =OFFSET(InputPriceData!C$15,CalculationsAndCharts!$A46+$A$11,IF($C$7,8,0),1,1) -> 126.66 | E46: =OFFSET(InputPriceData!D$15,CalculationsAndCharts!$A46+$A$11,IF($C$7,8,0),1,1) -> 127.31 | F46: =OFFSET(InputPriceData!E$15,CalculationsAndCharts!$A46+$A$11,IF($C$7,8,0),1,1) -> 124.73 | G46: =OFFSET(InputPriceData!F$15,CalculationsAndCharts!$A46+$A$11,IF($C$7,8,0),1,1) -> 126.11 | H46: -0.1 | I46: 0 | J46: 0.1 | K46: 0.701536309 | L46: 0.592121094 | M46: 54.22891002 | N46: 54.61268937 | O46: 37.29987008 | P46: 16.92903994 | Q46: 17.31281929 | R46: 5.547195551 | S46: 14.1238783 | T46: 38.99917755 | W46: 14 | X46: 2018-08-08 | Y46: 4245200 | Z46: 109.66 | AA46: 111.96 | AB46: 107.39 | AC46: 111.96 | AD46: 16 | AF46: 2.3 | AG46: 2.3 | AH46: 0 | AI46: 1.747597778 | AJ46: 1.238710357 | AK46: 58.52034348 | AL46: 58.52034348 | AM46: 44.73817069 | AN46: 13.78217279 | AO46: 13.78217279 | AP46: 14.3756592 | AQ46: 15.28728411 | AR46: 93.42557853 | BA46: 20 | BB46: 80
A47: 15 | B47: =OFFSET(InputPriceData!B$15,CalculationsAndCharts!$A47+$A$11,0,1,1) -> 2018-10-30 | C47: =OFFSET(InputPriceData!G$15,CalculationsAndCharts!$A47+$A$11,IF($C$7,8,0),1,1) -> 273800 | D47: =OFFSET(InputPriceData!C$15,CalculationsAndCharts!$A47+$A$11,IF($C$7,8,0),1,1) -> 123.88 | E47: =OFFSET(InputPriceData!D$15,CalculationsAndCharts!$A47+$A$11,IF($C$7,8,0),1,1) -> 127.59 | F47: =OFFSET(InputPriceData!E$15,CalculationsAndCharts!$A47+$A$11,IF($C$7,8,0),1,1) -> 122.53 | G47: =OFFSET(InputPriceData!F$15,CalculationsAndCharts!$A47+$A$11,IF($C$7,8,0),1,1) -> 126.21 | H47: 2.51 | I47: 2.51 | J47: 0 | K47: 0.7716899399 | L47: 0.6413332034 | M47: 54.61268937 | N47: 54.61268937 | O47: 37.29987008 | P47: 17.31281929 | Q47: 17.31281929 | R47: 3.579876229 | S47: 13.39941199 | T47: 26.51875676 | W47: 15 | X47: 2018-07-17 | Y47: 1577900 | Z47: 107.36 | AA47: 109.66 | AB47: 107.2 | AC47: 109.66 | AD47: 6 | AF47: 2.3 | AG47: 2.3 | AH47: 0 | AI47: 1.692357556 | AJ47: 1.362581393 | AK47: 55.39742641 | AL47: 55.39742641 | AM47: 44.73817069 | AN47: 10.65925572 | AO47: 10.65925572 | AP47: 13.51315882 | AQ47: 15.07544229 | AR47: 89.04622718 | BA47: 20 | BB47: 80
A48: 16 | B48: =OFFSET(InputPriceData!B$15,CalculationsAndCharts!$A48+$A$11,0,1,1) -> 2018-10-29 | C48: =OFFSET(InputPriceData!G$15,CalculationsAndCharts!$A48+$A$11,IF($C$7,8,0),1,1) -> 246400 | D48: =OFFSET(InputPriceData!C$15,CalculationsAndCharts!$A48+$A$11,IF($C$7,8,0),1,1) -> 122.38 | E48: =OFFSET(InputPriceData!D$15,CalculationsAndCharts!$A48+$A$11,IF($C$7,8,0),1,1) -> 125.17 | F48: =OFFSET(InputPriceData!E$15,CalculationsAndCharts!$A48+$A$11,IF($C$7,8,0),1,1) -> 119.72 | G48: =OFFSET(InputPriceData!F$15,CalculationsAndCharts!$A48+$A$11,IF($C$7,8,0),1,1) -> 123.7 | H48: 1.96 | I48: 1.96 | J48: 0 | K48: 0.5978589339 | L48: 0.7054665237 | M48: 45.87180665 | N48: 51.72642148 | O48: 37.29987008 | P48: 8.571936567 | Q48: 14.4265514 | R48: 3.013075093 | S48: 13.51159328 | T48: 22.13609407 | W48: 16 | X48: 2018-07-09 | Y48: 835100 | Z48: 102.76 | AA48: 107.36 | AB48: 102.34 | AC48: 107.36 | AD48: 3 | AF48: 4.6 | AG48: 4.6 | AH48: 0 | AI48: 1.631593312 | AJ48: 1.498839532 | AK48: 52.12037418 | AL48: 52.12037418 | AM48: 44.1274749 | AN48: 7.992899279 | AO48: 7.992899279 | AP48: 13.69168162 | AQ48: 15.2539651 | AR48: 89.17358831 | BA48: 20 | BB48: 80
A49: 17 | B49: =OFFSET(InputPriceData!B$15,CalculationsAndCharts!$A49+$A$11,0,1,1) -> 2018-10-26 | C49: =OFFSET(InputPriceData!G$15,CalculationsAndCharts!$A49+$A$11,IF($C$7,8,0),1,1) -> 392800 | D49: =OFFSET(InputPriceData!C$15,CalculationsAndCharts!$A49+$A$11,IF($C$7,8,0),1,1) -> 123.23 | E49: =OFFSET(InputPriceData!D$15,CalculationsAndCharts!$A49+$A$11,IF($C$7,8,0),1,1) -> 123.76 | F49: =OFFSET(InputPriceData!E$15,CalculationsAndCharts!$A49+$A$11,IF($C$7,8,0),1,1) -> 120.36 | G49: =OFFSET(InputPriceData!F$15,CalculationsAndCharts!$A49+$A$11,IF($C$7,8,0),1,1) -> 121.74 | H49: -2.44 | I49: 0 | J49: 2.44 | K49: 0.4616448273 | L49: 0.7760131761 | M49: 37.29987008 | N49: 51.72642148 | O49: 37.29987008 | P49: 0 | Q49: 14.4265514 | R49: 4.217866731 | S49: 13.98455807 | T49: 29.9467453 | W49: 17 | X49: 2018-07-03 | Y49: 3606100 | Z49: 107.36 | AA49: 107.81 | AB49: 102.76 | AC49: 102.76 | AD49: 6 | AF49: -4.6 | AG49: 0 | AH49: 4.6 | AI49: 1.334752643 | AJ49: 1.648723485 | AK49: 44.73817069 | AL49: 52.03116998 | AM49: 39.83611495 | AN49: 4.90205574 | AO49: 12.19505502 | AP49: 12.69256921 | AQ49: 15.47351449 | AR49: 81.50099467 | BA49: 20 | BB49: 80
A50: 18 | B50: =OFFSET(InputPriceData!B$15,CalculationsAndCharts!$A50+$A$11,0,1,1) -> 2018-10-25 | C50: =OFFSET(InputPriceData!G$15,CalculationsAndCharts!$A50+$A$11,IF($C$7,8,0),1,1) -> 206600 | D50: =OFFSET(InputPriceData!C$15,CalculationsAndCharts!$A50+$A$11,IF($C$7,8,0),1,1) -> 124.89 | E50: =OFFSET(InputPriceData!D$15,CalculationsAndCharts!$A50+$A$11,IF($C$7,8,0),1,1) -> 125.8 | F50: =OFFSET(InputPriceData!E$15,CalculationsAndCharts!$A50+$A$11,IF($C$7,8,0),1,1) -> 123.87 | G50: =OFFSET(InputPriceData!F$15,CalculationsAndCharts!$A50+$A$11,IF($C$7,8,0),1,1) -> 124.18 | H50: -0.52 | I50: 0 | J50: 0.52 | K50: 0.50780931 | L50: 0.6096144937 | M50: 45.44464762 | N50: 54.2966004 | O50: 45.44464762 | P50: 0 | Q50: 8.851952782 | R50: 6.603346081 | S50: 14.56671849 | T50: 45.0226551 | W50: 18 | X50: 2018-06-25 | Y50: 1017900 | Z50: 105.06 | AA50: 107.36 | AB50: 105.06 | AC50: 107.36 | AD50: 1 | AF50: 2.3 | AG50: 2.3 | AH50: 0 | AI50: 1.468227907 | AJ50: 1.353595834 | AK50: 52.03116998 | AL50: 52.03116998 | AM50: 30.07063639 | AN50: 21.96053358 | AO50: 21.96053358 | AP50: 12.07981225 | AQ50: 15.26842822 | AR50: 78.60148137 | BA50: 20 | BB50: 80
A51: 19 | B51: =OFFSET(InputPriceData!B$15,CalculationsAndCharts!$A51+$A$11,0,1,1) -> 2018-10-24 | C51: =OFFSET(InputPriceData!G$15,CalculationsAndCharts!$A51+$A$11,IF($C$7,8,0),1,1) -> 394200 | D51: =OFFSET(InputPriceData!C$15,CalculationsAndCharts!$A51+$A$11,IF($C$7,8,0),1,1) -> 125.55 | E51: =OFFSET(InputPriceData!D$15,CalculationsAndCharts!$A51+$A$11,IF($C$7,8,0),1,1) -> 127.54 | F51: =OFFSET(InputPriceData!E$15,CalculationsAndCharts!$A51+$A$11,IF($C$7,8,0),1,1) -> 124.58 | G51: =OFFSET(InputPriceData!F$15,CalculationsAndCharts!$A51+$A$11,IF($C$7,8,0),1,1) -> 124.7 | H51: -1.07 | I51: 0 | J51: 1.07 | K51: 0.558590241 | L51: 0.6185759431 | M51: 47.45211412 | N51: 59.19134437 | O51: 47.45211412 | P51: 0 | Q51: 11.73923025 | R51: 8.126099894 | S51: 14.98297821 | T51: 53.8759639 | W51: 19 | X51: 2018-06-22 | Y51: 0 | Z51: 102.76 | AA51: 105.06 | AB51: 102.76 | AC51: 105.06 | AD51: 1 | AF51: 2.3 | AG51: 2.3 | AH51: 0 | AI51: 1.385050698 | AJ51: 1.488955417 | AK51: 48.19233649 | AL51: 48.19233649 | AM51: 30.07063639 | AN51: 18.1217001 | AO51: 18.1217001 | AP51: 9.334745549 | AQ51: 13.94953684 | AR51: 66.44166034 | BA51: 20 | BB51: 80
A52: 20 | B52: =OFFSET(InputPriceData!B$15,CalculationsAndCharts!$A52+$A$11,0,1,1) -> 2018-10-23 | C52: =OFFSET(InputPriceData!G$15,CalculationsAndCharts!$A52+$A$11,IF($C$7,8,0),1,1) -> 258500 | D52: =OFFSET(InputPriceData!C$15,CalculationsAndCharts!$A52+$A$11,IF($C$7,8,0),1,1) -> 124.44 | E52: =OFFSET(InputPriceData!D$15,CalculationsAndCharts!$A52+$A$11,IF($C$7,8,0),1,1) -> 126.52 | F52: =OFFSET(InputPriceData!E$15,CalculationsAndCharts!$A52+$A$11,IF($C$7,8,0),1,1) -> 122.06 | G52: =OFFSET(InputPriceData!F$15,CalculationsAndCharts!$A52+$A$11,IF($C$7,8,0),1,1) -> 125.77 | H52: 0.41 | I52: 0.41 | J52: 0 | K52: 0.6144492651 | L52: 0.5734335374 | M52: 51.72642148 | N52: 64.62320384 | O52: 50.16265286 | P52: 1.563768617 | Q52: 14.46055098 | R52: 8.812206099 | S52: 14.8725229 | T52: 58.85585319 | W52: 20 | X52: 2018-06-21 | Y52: 0 | Z52: 100.46 | AA52: 102.76 | AB52: 100.46 | AC52: 102.76 | AD52: 1 | AF52: 2.3 | AG52: 2.3 | AH52: 0 | AI52: 1.293555767 | AJ52: 1.637850959 | AK52: 44.1274749 | AL52: 44.1274749 | AM52: 23.18846671 | AN52: 20.93900819 | AO52: 20.93900819 | AP52: 7.069533037 | AQ52: 13.22363062 | AR52: 53.0601098 | BA52: 20 | BB52: 80
A53: 21 | B53: =OFFSET(InputPriceData!B$15,CalculationsAndCharts!$A53+$A$11,0,1,1) -> 2018-10-22 | C53: =OFFSET(InputPriceData!G$15,CalculationsAndCharts!$A53+$A$11,IF($C$7,8,0),1,1) -> 267400 | D53: =OFFSET(InputPriceData!C$15,CalculationsAndCharts!$A53+$A$11,IF($C$7,8,0),1,1) -> 126.13 | E53: =OFFSET(InputPriceData!D$15,CalculationsAndCharts!$A53+$A$11,IF($C$7,8,0),1,1) -> 126.84 | F53: =OFFSET(InputPriceData!E$15,CalculationsAndCharts!$A53+$A$11,IF($C$7,8,0),1,1) -> 124.64 | G53: =OFFSET(InputPriceData!F$15,CalculationsAndCharts!$A53+$A$11,IF($C$7,8,0),1,1) -> 125.36 | H53: -1.06 | I53: 0 | J53: 1.06 | K53: 0.6348941917 | L53: 0.6307768911 | M53: 50.16265286 | N53: 64.62320384 | O53: 50.16265286 | P53: 0 | Q53: 14.46055098 | R53: 9.973683498 | S53: 14.42190251 | T53: 68.68028134 | W53: 21 | X53: 2018-06-20 | Y53: 11294300 | Z53: 95.86 | AA53: 100.46 | AB53: 95.7 | AC53: 100.46 | AD53: 17 | AF53: 4.6 | AG53: 4.6 | AH53: 0 | AI53: 1.192911344 | AJ53: 1.801636055 | AK53: 39.83611495 | AL53: 39.83611495 | AM53: 23.18846671 | AN53: 16.64764824 | AO53: 16.64764824 | AP53: 4.452157013 | AQ53: 12.26486752 | AR53: 36.00650799 | BA53: 20 | BB53: 80
A54: 22 | B54: =OFFSET(InputPriceData!B$15,CalculationsAndCharts!$A54+$A$11,0,1,1) -> 2018-10-19 | C54: =OFFSET(InputPriceData!G$15,CalculationsAndCharts!$A54+$A$11,IF($C$7,8,0),1,1) -> 235100 | D54: =OFFSET(InputPriceData!C$15,CalculationsAndCharts!$A54+$A$11,IF($C$7,8,0),1,1) -> 127.77 | E54: =OFFSET(InputPriceData!D$15,CalculationsAndCharts!$A54+$A$11,IF($C$7,8,0),1,1) -> 128.2 | F54: =OFFSET(InputPriceData!E$15,CalculationsAndCharts!$A54+$A$11,IF($C$7,8,0),1,1) -> 125.9 | G54: =OFFSET(InputPriceData!F$15,CalculationsAndCharts!$A54+$A$11,IF($C$7,8,0),1,1) -> 126.42 | H54: -1.17 | I54: 0 | J54: 1.17 | K54: 0.6983836108 | L54: 0.5878545803 | M54: 54.2966004 | N54: 64.62320384 | O54: 53.10611504 | P54: 1.190485363 | Q54: 11.51708881 | R54: 9.973683498 | S54: 13.39409265 | T54: 73.91147932 | W54: 22 | X54: 2018-05-25 | Y54: 9882300 | Z54: 100.46 | AA54: 101.01 | AB54: 95.86 | AC54: 95.86 | AD54: 14 | AF54: -4.6 | AG54: 0 | AH54: 4.6 | AI54: 0.8522024785 | AJ54: 1.98179966 | AK54: 30.07063639 | AL54: 35.27590489 | AM54: 23.18846671 | AN54: 6.882169683 | AO54: 12.08743818 | AP54: 2.371200983 | AQ54: 11.96783658 | AR54: 19.64893183 | BA54: 20 | BB54: 80
A55: 23 | B55: =OFFSET(InputPriceData!B$15,CalculationsAndCharts!$A55+$A$11,0,1,1) -> 2018-10-18 | C55: =OFFSET(InputPriceData!G$15,CalculationsAndCharts!$A55+$A$11,IF($C$7,8,0),1,1) -> 378500 | D55: =OFFSET(InputPriceData!C$15,CalculationsAndCharts!$A55+$A$11,IF($C$7,8,0),1,1) -> 129.48 | E55: =OFFSET(InputPriceData!D$15,CalculationsAndCharts!$A55+$A$11,IF($C$7,8,0),1,1) -> 129.99 | F55: =OFFSET(InputPriceData!E$15,CalculationsAndCharts!$A55+$A$11,IF($C$7,8,0),1,1) -> 127.32 | G55: =OFFSET(InputPriceData!F$15,CalculationsAndCharts!$A55+$A$11,IF($C$7,8,0),1,1) -> 127.59 | H55: -1.2 | I55: 0 | J55: 1.2 | K55: 0.7682219719 | L55: 0.5296400383 | M55: 59.19134437 | N55: 64.62320384 | O55: 46.41293417 | P55: 12.7784102 | Q55: 18.21026967 | R55: 10.35505779 | S55: 13.46499973 | T55: 76.33658677 | W55: 23 | X55: 2018-05-07 | Y55: 3396700 | Z55: 95.86 | AA55: 100.46 | AB55: 95.84 | AC55: 100.46 | AD55: 6 | AF55: 4.6 | AG55: 4.6 | AH55: 0 | AI55: 0.9374227264 | AJ55: 1.719979626 | AK55: 35.27590489 | AL55: 35.27590489 | AM55: 23.18846671 | AN55: 12.08743818 | AO55: 12.08743818 | AP55: 1.510929772 | AQ55: 12.37187102 | AR55: 12.11470011 | BA55: 20 | BB55: 80
A56: 24 | B56: =OFFSET(InputPriceData!B$15,CalculationsAndCharts!$A56+$A$11,0,1,1) -> 2018-10-17 | C56: =OFFSET(InputPriceData!G$15,CalculationsAndCharts!$A56+$A$11,IF($C$7,8,0),1,1) -> 413000 | D56: =OFFSET(InputPriceData!C$15,CalculationsAndCharts!$A56+$A$11,IF($C$7,8,0),1,1) -> 127.28 | E56: =OFFSET(InputPriceData!D$15,CalculationsAndCharts!$A56+$A$11,IF($C$7,8,0),1,1) -> 129.22 | F56: =OFFSET(InputPriceData!E$15,CalculationsAndCharts!$A56+$A$11,IF($C$7,8,0),1,1) -> 126.11 | G56: =OFFSET(InputPriceData!F$15,CalculationsAndCharts!$A56+$A$11,IF($C$7,8,0),1,1) -> 128.79 | H56: 1.66 | I56: 1.66 | J56: 0 | K56: 0.8450441691 | L56: 0.4626040421 | M56: 64.62320384 | N56: 64.62320384 | O56: 46.41293417 | P56: 18.21026967 | Q56: 18.21026967 | R56: 8.873925477 | S56: 13.31617829 | T56: 66.14346714 | W56: 24 | X56: 2018-04-27 | Y56: 1764700 | Z56: 98.16 | AA56: 98.16 | AB56: 95.86 | AC56: 95.86 | AD56: 4 | AF56: -2.3 | AG56: 0 | AH56: 2.3 | AI56: 0.571164999 | AJ56: 1.891977589 | AK56: 23.18846671 | AL56: 32.93776114 | AM56: 23.18846671 | AN56: 0 | AO56: 9.749294429 | AP56: 0 | AQ56: 12.91227107 | AR56: 0 | BA56: 20 | BB56: 80
A57: 25 | B57: =OFFSET(InputPriceData!B$15,CalculationsAndCharts!$A57+$A$11,0,1,1) -> 2018-10-16 | C57: =OFFSET(InputPriceData!G$15,CalculationsAndCharts!$A57+$A$11,IF($C$7,8,0),1,1) -> 248600 | D57: =OFFSET(InputPriceData!C$15,CalculationsAndCharts!$A57+$A$11,IF($C$7,8,0),1,1) -> 125.38 | E57: =OFFSET(InputPriceData!D$15,CalculationsAndCharts!$A57+$A$11,IF($C$7,8,0),1,1) -> 127.21 | F57: =OFFSET(InputPriceData!E$15,CalculationsAndCharts!$A57+$A$11,IF($C$7,8,0),1,1) -> 124.86 | G57: =OFFSET(InputPriceData!F$15,CalculationsAndCharts!$A57+$A$11,IF($C$7,8,0),1,1) -> 127.13 | H57: 2.06 | I57: 2.06 | J57: 0 | K57: 0.763548586 | L57: 0.5088644463 | M57: 60.00791933 | N57: 60.00791933 | O57: 40.92408453 | P57: 19.0838348 | Q57: 19.0838348 | R57: 6.597641768 | S57: 13.46100969 | T57: 48.65155264 | W57: 25 | X57: 2018-04-23 | Y57: 317400 | Z57: 100.46 | AA57: 100.46 | AB57: 98.16 | AC57: 98.16 | AD57: 1 | AF57: -2.3 | AG57: 0 | AH57: 2.3 | AI57: 0.6282814989 | AJ57: 1.851175348 | AK57: 25.33948109 | AL57: 35.89384598 | AM57: 25.33948109 | AN57: 0 | AO57: 10.55436489 | AP57: 0 | AQ57: 14.59589673 | AR57: 0 | BA57: 20 | BB57: 80
A58: 26 | B58: =OFFSET(InputPriceData!B$15,CalculationsAndCharts!$A58+$A$11,0,1,1) -> 2018-10-15 | C58: =OFFSET(InputPriceData!G$15,CalculationsAndCharts!$A58+$A$11,IF($C$7,8,0),1,1) -> 276300 | D58: =OFFSET(InputPriceData!C$15,CalculationsAndCharts!$A58+$A$11,IF($C$7,8,0),1,1) -> 123.47 | E58: =OFFSET(InputPriceData!D$15,CalculationsAndCharts!$A58+$A$11,IF($C$7,8,0),1,1) -> 125.86 | F58: =OFFSET(InputPriceData!E$15,CalculationsAndCharts!$A58+$A$11,IF($C$7,8,0),1,1) -> 123.18 | G58: =OFFSET(InputPriceData!F$15,CalculationsAndCharts!$A58+$A$11,IF($C$7,8,0),1,1) -> 125.07 | H58: 1.64 | I58: 1.64 | J58: 0 | K58: 0.6339034446 | L58: 0.559750891 | M58: 53.10611504 | N58: 53.10611504 | O58: 40.92408453 | P58: 12.1820305 | Q58: 12.1820305 | R58: 4.212162418 | S58: 14.18533527 | T58: 29.48591922 | W58: 26 | X58: 2018-04-20 | Y58: 1544800 | Z58: 102.76 | AA58: 102.76 | AB58: 100.46 | AC58: 100.46 | AD58: 4 | AF58: -2.3 | AG58: 0 | AH58: 2.3 | AI58: 0.6911096488 | AJ58: 1.806292883 | AK58: 27.673138 | AL58: 39.08254055 | AM58: 27.673138 | AN58: 0 | AO58: 11.40940255 | AP58: 0 | AQ58: 15.68406582 | AR58: 0 | BA58: 20 | BB58: 80
A59: 27 | B59: =OFFSET(InputPriceData!B$15,CalculationsAndCharts!$A59+$A$11,0,1,1) -> 2018-10-12 | C59: =OFFSET(InputPriceData!G$15,CalculationsAndCharts!$A59+$A$11,IF($C$7,8,0),1,1) -> 527800 | D59: =OFFSET(InputPriceData!C$15,CalculationsAndCharts!$A59+$A$11,IF($C$7,8,0),1,1) -> 125.25 | E59: =OFFSET(InputPriceData!D$15,CalculationsAndCharts!$A59+$A$11,IF($C$7,8,0),1,1) -> 126.24 | F59: =OFFSET(InputPriceData!E$15,CalculationsAndCharts!$A59+$A$11,IF($C$7,8,0),1,1) -> 121.38 | G59: =OFFSET(InputPriceData!F$15,CalculationsAndCharts!$A59+$A$11,IF($C$7,8,0),1,1) -> 123.43 | H59: -1.31 | I59: 0 | J59: 1.31 | K59: 0.5332937891 | L59: 0.6157259801 | M59: 46.41293417 | N59: 51.77967234 | O59: 40.92408453 | P59: 5.488849638 | Q59: 10.85558781 | R59: 2.689408605 | S59: 15.21598765 | T59: 17.55948533 | W59: 27 | X59: 2018-04-16 | Y59: 0 | Z59: 105.06 | AA59: 105.06 | AB59: 102.76 | AC59: 102.76 | AD59: 1 | AF59: -2.3 | AG59: 0 | AH59: 2.3 | AI59: 0.7602206137 | AJ59: 1.756922171 | AK59: 30.20172786 | AL59: 42.51617817 | AM59: 30.20172786 | AN59: 0 | AO59: 12.31445031 | AP59: 0 | AQ59: 16.13572924 | AR59: 0 | BA59: 20 | BB59: 80
A60: 28 | B60: =OFFSET(InputPriceData!B$15,CalculationsAndCharts!$A60+$A$11,0,1,1) -> 2018-10-11 | C60: =OFFSET(InputPriceData!G$15,CalculationsAndCharts!$A60+$A$11,IF($C$7,8,0),1,1) -> 802900 | D60: =OFFSET(InputPriceData!C$15,CalculationsAndCharts!$A60+$A$11,IF($C$7,8,0),1,1) -> 122.13 | E60: =OFFSET(InputPriceData!D$15,CalculationsAndCharts!$A60+$A$11,IF($C$7,8,0),1,1) -> 126.82 | F60: =OFFSET(InputPriceData!E$15,CalculationsAndCharts!$A60+$A$11,IF($C$7,8,0),1,1) -> 122.05 | G60: =OFFSET(InputPriceData!F$15,CalculationsAndCharts!$A60+$A$11,IF($C$7,8,0),1,1) -> 124.74 | H60: 2.29 | I60: 2.29 | J60: 0 | K60: 0.586623168 | L60: 0.5462985781 | M60: 51.77967234 | N60: 51.77967234 | O60: 40.92408453 | P60: 10.85558781 | Q60: 10.85558781 | R60: 2.003302401 | S60: 15.79552628 | T60: 12.6029322 | W60: 28 | X60: 2018-04-13 | Y60: 5400600 | Z60: 107.36 | AA60: 108.94 | AB60: 105.06 | AC60: 105.06 | AD60: 14 | AF60: -2.3 | AG60: 0 | AH60: 2.3 | AI60: 0.8362426751 | AJ60: 1.702614388 | AK60: 32.93776114 | AL60: 46.20666456 | AM60: 32.93776114 | AN60: 0 | AO60: 13.26890342 | AP60: 0 | AQ60: 15.90869139 | AR60: 0 | BA60: 20 | BB60: 80
A61: 29 | B61: =OFFSET(InputPriceData!B$15,CalculationsAndCharts!$A61+$A$11,0,1,1) -> 2018-10-10 | C61: =OFFSET(InputPriceData!G$15,CalculationsAndCharts!$A61+$A$11,IF($C$7,8,0),1,1) -> 272200 | D61: =OFFSET(InputPriceData!C$15,CalculationsAndCharts!$A61+$A$11,IF($C$7,8,0),1,1) -> 123.71 | E61: =OFFSET(InputPriceData!D$15,CalculationsAndCharts!$A61+$A$11,IF($C$7,8,0),1,1) -> 124.28 | F61: =OFFSET(InputPriceData!E$15,CalculationsAndCharts!$A61+$A$11,IF($C$7,8,0),1,1) -> 122.26 | G61: =OFFSET(InputPriceData!F$15,CalculationsAndCharts!$A61+$A$11,IF($C$7,8,0),1,1) -> 122.45 | H61: -1.48 | I61: 0 | J61: 1.48 | K61: 0.4162854848 | L61: 0.6009284359 | M61: 40.92408453 | N61: 47.16215666 | O61: 40.92408453 | P61: 0 | Q61: 6.238072127 | R61: 0.6463539247 | S61: 16.08141206 | T61: 3.994422255 | W61: 29 | X61: 2018-03-23 | Y61: 5161600 | Z61: 109.66 | AA61: 111.73 | AB61: 107.36 | AC61: 107.36 | AD61: 11 | AF61: -2.3 | AG61: 0 | AH61: 2.3 | AI61: 0.9198669426 | AJ61: 1.642875827 | AK61: 35.89384598 | AL61: 50.16524664 | AM61: 35.89384598 | AN61: 0 | AO61: 14.27140066 | AP61: 1.503778117 | AQ61: 15.75385658 | AR61: 9.48525117 | BA61: 20 | BB61: 80
A62: 30 | B62: =OFFSET(InputPriceData!B$15,CalculationsAndCharts!$A62+$A$11,0,1,1) -> 2018-10-09 | C62: =OFFSET(InputPriceData!G$15,CalculationsAndCharts!$A62+$A$11,IF($C$7,8,0),1,1) -> 280800 | D62: =OFFSET(InputPriceData!C$15,CalculationsAndCharts!$A62+$A$11,IF($C$7,8,0),1,1) -> 123.54 | E62: =OFFSET(InputPriceData!D$15,CalculationsAndCharts!$A62+$A$11,IF($C$7,8,0),1,1) -> 124.43 | F62: =OFFSET(InputPriceData!E$15,CalculationsAndCharts!$A62+$A$11,IF($C$7,8,0),1,1) -> 122.5 | G62: =OFFSET(InputPriceData!F$15,CalculationsAndCharts!$A62+$A$11,IF($C$7,8,0),1,1) -> 123.93 | H62: 0.63 | I62: 0.63 | J62: 0 | K62: 0.4579140332 | L62: 0.5130212795 | M62: 47.16215666 | N62: 55.00502242 | O62: 42.92067698 | P62: 4.241479677 | Q62: 12.08434543 | R62: 0.6463539247 | S62: 15.81408088 | T62: 4.06152218 | W62: 30 | X62: 2018-03-08 | Y62: 8683400 | Z62: 111.96 | AA62: 115.9 | AB62: 109.66 | AC62: 109.66 | AD62: 19 | AF62: -2.3 | AG62: 0 | AH62: 2.3 | AI62: 1.011853637 | AJ62: 1.577163409 | AK62: 39.08254055 | AL62: 54.40225428 | AM62: 39.08254055 | AN62: 0 | AO62: 15.31971373 | AP62: 3.115531964 | AQ62: 15.58168534 | AR62: 19.86732864 | BA62: 20 | BB62: 80
A63: 31 | B63: =OFFSET(InputPriceData!B$15,CalculationsAndCharts!$A63+$A$11,0,1,1) -> 2018-10-08 | C63: =OFFSET(InputPriceData!G$15,CalculationsAndCharts!$A63+$A$11,IF($C$7,8,0),1,1) -> 304300 | D63: =OFFSET(InputPriceData!C$15,CalculationsAndCharts!$A63+$A$11,IF($C$7,8,0),1,1) -> 123.04 | E63: =OFFSET(InputPriceData!D$15,CalculationsAndCharts!$A63+$A$11,IF($C$7,8,0),1,1) -> 123.91 | F63: =OFFSET(InputPriceData!E$15,CalculationsAndCharts!$A63+$A$11,IF($C$7,8,0),1,1) -> 121.77 | G63: =OFFSET(InputPriceData!F$15,CalculationsAndCharts!$A63+$A$11,IF($C$7,8,0),1,1) -> 123.3 | H63: 0.18 | I63: 0.18 | J63: 0 | K63: 0.4407054366 | L63: 0.5643234074 | M63: 43.8500287 | N63: 59.94037513 | O63: 42.92067698 | P63: 0.9293517209 | Q63: 17.01969815 | R63: 0.4524313254 | S63: 14.64257414 | T63: 3.068876041 | W63: 31 | X63: 2018-02-08 | Y63: 796800 | Z63: 114.26 | AA63: 114.26 | AB63: 111.96 | AC63: 111.96 | AD63: 2 | AF63: -2.3 | AG63: 0 | AH63: 2.3 | AI63: 1.113039001 | AJ63: 1.50487975 | AK63: 42.51617817 | AL63: 58.92681676 | AM63: 42.51617817 | AN63: 0 | AO63: 16.41063859 | AP63: 4.839213569 | AQ63: 15.39040273 | AR63: 31.24007589 | BA63: 20 | BB63: 80
A64: 32 | B64: =OFFSET(InputPriceData!B$15,CalculationsAndCharts!$A64+$A$11,0,1,1) -> 2018-10-05 | C64: =OFFSET(InputPriceData!G$15,CalculationsAndCharts!$A64+$A$11,IF($C$7,8,0),1,1) -> 300400 | D64: =OFFSET(InputPriceData!C$15,CalculationsAndCharts!$A64+$A$11,IF($C$7,8,0),1,1) -> 123.86 | E64: =OFFSET(InputPriceData!D$15,CalculationsAndCharts!$A64+$A$11,IF($C$7,8,0),1,1) -> 125.32 | F64: =OFFSET(InputPriceData!E$15,CalculationsAndCharts!$A64+$A$11,IF($C$7,8,0),1,1) -> 122.3 | G64: =OFFSET(InputPriceData!F$15,CalculationsAndCharts!$A64+$A$11,IF($C$7,8,0),1,1) -> 123.12 | H64: -0.91 | I64: 0 | J64: 0.91 | K64: 0.4667759802 | L64: 0.6207557481 | M64: 42.92067698 | N64: 62.28959789 | O64: 42.92067698 | P64: 0 | Q64: 19.36892091 | R64: 0.6468449332 | S64: 12.8541483 | T64: 4.993342042 | W64: 32 | X64: 2018-02-06 | Y64: 0 | Z64: 116.56 | AA64: 116.56 | AB64: 114.26 | AC64: 114.26 | AD64: 1 | AF64: -2.3 | AG64: 0 | AH64: 2.3 | AI64: 1.224342901 | AJ64: 1.425367725 | AK64: 46.20666456 | AL64: 69.42496424 | AM64: 46.20666456 | AN64: 0 | AO64: 23.21829969 | AP64: 6.678261227 | AQ64: 15.17812057 | AR64: 43.71127454 | BA64: 20 | BB64: 80
A65: 33 | B65: =OFFSET(InputPriceData!B$15,CalculationsAndCharts!$A65+$A$11,0,1,1) -> 2018-10-04 | C65: =OFFSET(InputPriceData!G$15,CalculationsAndCharts!$A65+$A$11,IF($C$7,8,0),1,1) -> 499600 | D65: =OFFSET(InputPriceData!C$15,CalculationsAndCharts!$A65+$A$11,IF($C$7,8,0),1,1) -> 125.85 | E65: =OFFSET(InputPriceData!D$15,CalculationsAndCharts!$A65+$A$11,IF($C$7,8,0),1,1) -> 126.25 | F65: =OFFSET(InputPriceData!E$15,CalculationsAndCharts!$A65+$A$11,IF($C$7,8,0),1,1) -> 123.68 | G65: =OFFSET(InputPriceData!F$15,CalculationsAndCharts!$A65+$A$11,IF($C$7,8,0),1,1) -> 124.03 | H65: -1.89 | I65: 0 | J65: 1.89 | K65: 0.5134535782 | L65: 0.591831323 | M65: 46.45440987 | N65: 71.33284929 | O65: 46.45440987 | P65: 0 | Q65: 24.87843942 | R65: 0.8810450843 | S65: 10.79030009 | T65: 8.090181875 | W65: 33 | X65: 2018-02-05 | Y65: 0 | Z65: 118.86 | AA65: 118.86 | AB65: 116.56 | AC65: 116.56 | AD65: 1 | AF65: -2.3 | AG65: 0 | AH65: 2.3 | AI65: 1.346777191 | AJ65: 1.337904498 | AK65: 50.16524664 | AL65: 69.42496424 | AM65: 50.16524664 | AN65: 0 | AO65: 19.2597176 | AP65: 9.26178179 | AQ65: 14.85935367 | AR65: 61.91298096 | BA65: 20 | BB65: 80
A66: 34 | B66: =OFFSET(InputPriceData!B$15,CalculationsAndCharts!$A66+$A$11,0,1,1) -> 2018-10-03 | C66: =OFFSET(InputPriceData!G$15,CalculationsAndCharts!$A66+$A$11,IF($C$7,8,0),1,1) -> 279900 | D66: =OFFSET(InputPriceData!C$15,CalculationsAndCharts!$A66+$A$11,IF($C$7,8,0),1,1) -> 126.91 | E66: =OFFSET(InputPriceData!D$15,CalculationsAndCharts!$A66+$A$11,IF($C$7,8,0),1,1) -> 127.65 | F66: =OFFSET(InputPriceData!E$15,CalculationsAndCharts!$A66+$A$11,IF($C$7,8,0),1,1) -> 125.83 | G66: =OFFSET(InputPriceData!F$15,CalculationsAndCharts!$A66+$A$11,IF($C$7,8,0),1,1) -> 125.92 | H66: -0.93 | I66: 0 | J66: 0.93 | K66: 0.5647989361 | L66: 0.4620144552 | M66: 55.00502242 | N66: 75.43227197 | O66: 55.00502242 | P66: 0 | Q66: 20.42724955 | R66: 0.8992755612 | S66: 8.037762075 | T66: 11.05064946 | W66: 34 | X66: 2018-02-02 | Y66: 650200 | Z66: 121.16 | AA66: 121.16 | AB66: 118.86 | AC66: 118.86 | AD66: 2 | AF66: -2.3 | AG66: 0 | AH66: 2.3 | AI66: 1.48145491 | AJ66: 1.241694948 | AK66: 54.40225428 | AL66: 69.42496424 | AM66: 54.40225428 | AN66: 0 | AO66: 15.02270997 | AP66: 11.40056006 | AQ66: 14.59066724 | AR66: 77.60409975 | BA66: 20 | BB66: 80
A67: 35 | B67: =OFFSET(InputPriceData!B$15,CalculationsAndCharts!$A67+$A$11,0,1,1) -> 2018-10-02 | C67: =OFFSET(InputPriceData!G$15,CalculationsAndCharts!$A67+$A$11,IF($C$7,8,0),1,1) -> 408000 | D67: =OFFSET(InputPriceData!C$15,CalculationsAndCharts!$A67+$A$11,IF($C$7,8,0),1,1) -> 126.78 | E67: =OFFSET(InputPriceData!D$15,CalculationsAndCharts!$A67+$A$11,IF($C$7,8,0),1,1) -> 127.86 | F67: =OFFSET(InputPriceData!E$15,CalculationsAndCharts!$A67+$A$11,IF($C$7,8,0),1,1) -> 126.28 | G67: =OFFSET(InputPriceData!F$15,CalculationsAndCharts!$A67+$A$11,IF($C$7,8,0),1,1) -> 126.85 | H67: -0.43 | I67: 0 | J67: 0.43 | K67: 0.6212788297 | L67: 0.4152159008 | M67: 59.94037513 | N67: 75.43227197 | O67: 59.94037513 | P67: 0 | Q67: 15.49189684 | R67: 1.428427468 | S67: 6.013507789 | T67: 23.36510425 | W67: 35 | X67: 2018-01-31 | Y67: 1680000 | Z67: 125.76 | AA67: 126.49 | AB67: 121.16 | AC67: 121.16 | AD67: 3 | AF67: -4.6 | AG67: 0 | AH67: 4.6 | AI67: 1.629600401 | AJ67: 1.135864442 | AK67: 58.92681676 | AL67: 69.42496424 | AM67: 58.92681676 | AN67: 0 | AO67: 10.49814748 | AP67: 13.06527352 | AQ67: 14.37754195 | AR67: 90.24510901 | BA67: 20 | BB67: 80
A68: 36 | B68: =OFFSET(InputPriceData!B$15,CalculationsAndCharts!$A68+$A$11,0,1,1) -> 2018-10-01 | C68: =OFFSET(InputPriceData!G$15,CalculationsAndCharts!$A68+$A$11,IF($C$7,8,0),1,1) -> 341200 | D68: =OFFSET(InputPriceData!C$15,CalculationsAndCharts!$A68+$A$11,IF($C$7,8,0),1,1) -> 128.82 | E68: =OFFSET(InputPriceData!D$15,CalculationsAndCharts!$A68+$A$11,IF($C$7,8,0),1,1) -> 129.41 | F68: =OFFSET(InputPriceData!E$15,CalculationsAndCharts!$A68+$A$11,IF($C$7,8,0),1,1) -> 127.07 | G68: =OFFSET(InputPriceData!F$15,CalculationsAndCharts!$A68+$A$11,IF($C$7,8,0),1,1) -> 127.28 | H68: -1.53 | I68: 0 | J68: 1.53 | K68: 0.6834067126 | L68: 0.4137374909 | M68: 62.28959789 | N68: 75.43227197 | O68: 62.28959789 | P68: 0 | Q68: 13.14267408 | R68: 1.832693056 | S68: 4.58277235 | T68: 39.136924 | W68: 36 | X68: 2018-01-26 | Y68: 567300 | Z68: 123.46 | AA68: 125.76 | AB68: 123.15 | AC68: 125.76 | AD68: 2 | AF68: 2.3 | AG68: 2.3 | AH68: 0 | AI68: 1.792560441 | AJ68: 0.7894508866 | AK68: 69.42496424 | AL68: 69.42496424 | AM68: 57.39473931 | AN68: 12.03022493 | AO68: 12.03022493 | AP68: 14.22596996 | AQ68: 14.31416261 | AR68: 98.6943907 | BA68: 20 | BB68: 80
A69: 37 | B69: =OFFSET(InputPriceData!B$15,CalculationsAndCharts!$A69+$A$11,0,1,1) -> 2018-09-28 | C69: =OFFSET(InputPriceData!G$15,CalculationsAndCharts!$A69+$A$11,IF($C$7,8,0),1,1) -> 277600 | D69: =OFFSET(InputPriceData!C$15,CalculationsAndCharts!$A69+$A$11,IF($C$7,8,0),1,1) -> 129.63 | E69: =OFFSET(InputPriceData!D$15,CalculationsAndCharts!$A69+$A$11,IF($C$7,8,0),1,1) -> 130.44 | F69: =OFFSET(InputPriceData!E$15,CalculationsAndCharts!$A69+$A$11,IF($C$7,8,0),1,1) -> 128.67 | G69: =OFFSET(InputPriceData!F$15,CalculationsAndCharts!$A69+$A$11,IF($C$7,8,0),1,1) -> 128.81 | H69: -0.63 | I69: 0 | J69: 0.63 | K69: 0.7517473839 | L69: 0.3021112399 | M69: 71.33284929 | N69: 75.43227197 | O69: 71.33284929 | P69: 0 | Q69: 4.099422676 | R69: 2.004578054 | S69: 4.399002069 | T69: 44.55605983 | W69: 37 | X69: 2018-01-24 | Y69: 4084400 | Z69: 121.16 | AA69: 123.46 | AB69: 118.92 | AC69: 123.46 | AD69: 11 | AF69: 2.3 | AG69: 2.3 | AH69: 0 | AI69: 1.741816485 | AJ69: 0.8683959752 | AK69: 66.73083174 | AL69: 66.73083174 | AM69: 53.83680097 | AN69: 12.89403077 | AO69: 12.89403077 | AP69: 12.72219185 | AQ69: 14.53082492 | AR69: 86.95471318 | BA69: 20 | BB69: 80
A70: 38 | B70: =OFFSET(InputPriceData!B$15,CalculationsAndCharts!$A70+$A$11,0,1,1) -> 2018-09-27 | C70: =OFFSET(InputPriceData!G$15,CalculationsAndCharts!$A70+$A$11,IF($C$7,8,0),1,1) -> 220100 | D70: =OFFSET(InputPriceData!C$15,CalculationsAndCharts!$A70+$A$11,IF($C$7,8,0),1,1) -> 129.33 | E70: =OFFSET(InputPriceData!D$15,CalculationsAndCharts!$A70+$A$11,IF($C$7,8,0),1,1) -> 130.04 | F70: =OFFSET(InputPriceData!E$15,CalculationsAndCharts!$A70+$A$11,IF($C$7,8,0),1,1) -> 128.9 | G70: =OFFSET(InputPriceData!F$15,CalculationsAndCharts!$A70+$A$11,IF($C$7,8,0),1,1) -> 129.44 | H70: 0.1 | I70: 0.1 | J70: 0 | K70: 0.8269221223 | L70: 0.2693223639 | M70: 75.43227197 | N70: 75.45446454 | O70: 72.74217309 | P70: 2.690098882 | Q70: 2.712291458 | R70: 2.51032972 | S70: 5.628065303 | T70: 43.82508905 | W70: 38 | X70: 2018-01-08 | Y70: 709100 | Z70: 118.86 | AA70: 121.16 | AB70: 118.86 | AC70: 121.16 | AD70: 2 | AF70: 2.3 | AG70: 2.3 | AH70: 0 | AI70: 1.685998133 | AJ70: 0.9552355728 | AK70: 63.83373533 | AL70: 63.83373533 | AM70: 50.04428248 | AN70: 13.78945285 | AO70: 13.78945285 | AP70: 11.110438 | AQ70: 14.75017045 | AR70: 74.81690554 | BA70: 20 | BB70: 80
A71: 39 | B71: =OFFSET(InputPriceData!B$15,CalculationsAndCharts!$A71+$A$11,0,1,1) -> 2018-09-26 | C71: =OFFSET(InputPriceData!G$15,CalculationsAndCharts!$A71+$A$11,IF($C$7,8,0),1,1) -> 274600 | D71: =OFFSET(InputPriceData!C$15,CalculationsAndCharts!$A71+$A$11,IF($C$7,8,0),1,1) -> 129.41 | E71: =OFFSET(InputPriceData!D$15,CalculationsAndCharts!$A71+$A$11,IF($C$7,8,0),1,1) -> 130.19 | F71: =OFFSET(InputPriceData!E$15,CalculationsAndCharts!$A71+$A$11,IF($C$7,8,0),1,1) -> 127.98 | G71: =OFFSET(InputPriceData!F$15,CalculationsAndCharts!$A71+$A$11,IF($C$7,8,0),1,1) -> 129.34 | H71: 0.39 | I71: 0.39 | J71: 0 | K71: 0.8996143345 | L71: 0.2962546003 | M71: 75.22683367 | N71: 75.45446454 | O71: 72.74217309 | P71: 2.484660583 | Q71: 2.712291458 | R71: 2.174067359 | S71: 7.030519938 | T71: 30.48960494 | W71: 39 | X71: 2018-01-04 | Y71: 0 | Z71: 116.56 | AA71: 118.86 | AB71: 116.56 | AC71: 118.86 | AD71: 1 | AF71: 2.3 | AG71: 2.3 | AH71: 0 | AI71: 1.624597947 | AJ71: 1.05075913 | AK71: 60.72452761 | AL71: 60.72452761 | AM71: 46.01214635 | AN71: 14.71238126 | AO71: 14.71238126 | AP71: 9.386756392 | AQ71: 14.97017653 | AR71: 62.28697037 | BA71: 20 | BB71: 80
A72: 40 | B72: =OFFSET(InputPriceData!B$15,CalculationsAndCharts!$A72+$A$11,0,1,1) -> 2018-09-25 | C72: =OFFSET(InputPriceData!G$15,CalculationsAndCharts!$A72+$A$11,IF($C$7,8,0),1,1) -> 637000 | D72: =OFFSET(InputPriceData!C$15,CalculationsAndCharts!$A72+$A$11,IF($C$7,8,0),1,1) -> 128.97 | E72: =OFFSET(InputPriceData!D$15,CalculationsAndCharts!$A72+$A$11,IF($C$7,8,0),1,1) -> 129.9 | F72: =OFFSET(InputPriceData!E$15,CalculationsAndCharts!$A72+$A$11,IF($C$7,8,0),1,1) -> 128.4 | G72: =OFFSET(InputPriceData!F$15,CalculationsAndCharts!$A72+$A$11,IF($C$7,8,0),1,1) -> 128.95 | H72: 0.89 | I72: 0.89 | J72: 0 | K72: 0.950575768 | L72: 0.3258800604 | M72: 74.46993048 | N72: 75.45446454 | O72: 72.59632927 | P72: 1.873601209 | Q72: 2.858135273 | R72: 3.116419941 | S72: 9.219593185 | T72: 33.43944182 | W72: 40 | X72: 2018-01-03 | Y72: 0 | Z72: 114.26 | AA72: 116.56 | AB72: 114.26 | AC72: 116.56 | AD72: 0 | AF72: 2.3 | AG72: 2.3 | AH72: 0 | AI72: 1.557057741 | AJ72: 1.155835043 | AK72: 57.39473931 | AL72: 57.39473931 | AM72: 36.72657481 | AN72: 20.6681645 | AO72: 20.6681645 | AP72: 7.547708735 | AQ72: 15.83723103 | AR72: 47.35897171 | BA72: 20 | BB72: 80
A73: 41 | B73: =OFFSET(InputPriceData!B$15,CalculationsAndCharts!$A73+$A$11,0,1,1) -> 2018-09-24 | C73: =OFFSET(InputPriceData!G$15,CalculationsAndCharts!$A73+$A$11,IF($C$7,8,0),1,1) -> 399600 | D73: =OFFSET(InputPriceData!C$15,CalculationsAndCharts!$A73+$A$11,IF($C$7,8,0),1,1) -> 128.21 | E73: =OFFSET(InputPriceData!D$15,CalculationsAndCharts!$A73+$A$11,IF($C$7,8,0),1,1) -> 128.78 | F73: =OFFSET(InputPriceData!E$15,CalculationsAndCharts!$A73+$A$11,IF($C$7,8,0),1,1) -> 127.31 | G73: =OFFSET(InputPriceData!F$15,CalculationsAndCharts!$A73+$A$11,IF($C$7,8,0),1,1) -> 128.06 | H73: -0.52 | I73: 0 | J73: 0.52 | K73: 0.9566333448 | L73: 0.3584680664 | M73: 72.74217309 | N73: 75.45446454 | O73: 72.59632927 | P73: 0.1458438148 | Q73: 2.858135273 | R73: 6.144513417 | S73: 12.40704699 | T73: 49.12841074 | W73: 41 | X73: 2018-01-03 | Y73: 0 | Z73: 111.96 | AA73: 114.26 | AB73: 111.96 | AC73: 114.26 | AD73: 0 | AF73: 2.3 | AG73: 2.3 | AH73: 0 | AI73: 1.482763515 | AJ73: 1.271418547 | AK73: 53.83680097 | AL73: 53.83680097 | AM73: 36.72657481 | AN73: 17.11022616 | AO73: 17.11022616 | AP73: 4.964188172 | AQ73: 15.48826128 | AR73: 31.84568235 | BA73: 20 | BB73: 80
A74: 42 | B74: =OFFSET(InputPriceData!B$15,CalculationsAndCharts!$A74+$A$11,0,1,1) -> 2018-09-21 | C74: =OFFSET(InputPriceData!G$15,CalculationsAndCharts!$A74+$A$11,IF($C$7,8,0),1,1) -> 700100 | D74: =OFFSET(InputPriceData!C$15,CalculationsAndCharts!$A74+$A$11,IF($C$7,8,0),1,1) -> 128.06 | E74: =OFFSET(InputPriceData!D$15,CalculationsAndCharts!$A74+$A$11,IF($C$7,8,0),1,1) -> 128.9 | F74: =OFFSET(InputPriceData!E$15,CalculationsAndCharts!$A74+$A$11,IF($C$7,8,0),1,1) -> 127.31 | G74: =OFFSET(InputPriceData!F$15,CalculationsAndCharts!$A74+$A$11,IF($C$7,8,0),1,1) -> 128.58 | H74: 0.6 | I74: 0.6 | J74: 0 | K74: 1.052296679 | L74: 0.342314873 | M74: 75.45446454 | N74: 75.45446454 | O74: 71.22124929 | P74: 4.233215258 | Q74: 4.233215258 | R74: 9.671003657 | S74: 15.5945008 | T74: 61.62033301 | W74: 42 | X74: 2018-01-03 | Y74: 2436400 | Z74: 109.66 | AA74: 111.96 | AB74: 109.56 | AC74: 111.96 | AD74: 6 | AF74: 2.3 | AG74: 2.3 | AH74: 0 | AI74: 1.401039867 | AJ74: 1.398560402 | AK74: 50.04428248 | AL74: 50.04428248 | AM74: 36.72657481 | AN74: 13.31770767 | AO74: 13.31770767 | AP74: 2.825409902 | AQ74: 15.08403067 | AR74: 18.60777262 | BA74: 20 | BB74: 80
A75: 43 | B75: =OFFSET(InputPriceData!B$15,CalculationsAndCharts!$A75+$A$11,0,1,1) -> 2018-09-20 | C75: =OFFSET(InputPriceData!G$15,CalculationsAndCharts!$A75+$A$11,IF($C$7,8,0),1,1) -> 413100 | D75: =OFFSET(InputPriceData!C$15,CalculationsAndCharts!$A75+$A$11,IF($C$7,8,0),1,1) -> 127.35 | E75: =OFFSET(InputPriceData!D$15,CalculationsAndCharts!$A75+$A$11,IF($C$7,8,0),1,1) -> 129.06 | F75: =OFFSET(InputPriceData!E$15,CalculationsAndCharts!$A75+$A$11,IF($C$7,8,0),1,1) -> 127.16 | G75: =OFFSET(InputPriceData!F$15,CalculationsAndCharts!$A75+$A$11,IF($C$7,8,0),1,1) -> 127.98 | H75: 1.1 | I75: 1.1 | J75: 0 | K75: 1.097526347 | L75: 0.3765463603 | M75: 74.45537398 | N75: 75.26726261 | O75: 71.22124929 | P75: 3.234124698 | Q75: 4.046013326 | R75: 12.26144207 | S75: 18.18493922 | T75: 67.05760369 | W75: 43 | X75: 2017-12-22 | Y75: 3858200 | Z75: 105.06 | AA75: 109.66 | AB75: 103.77 | AC75: 109.66 | AD75: 6 | AF75: 4.6 | AG75: 4.6 | AH75: 0 | AI75: 1.311143854 | AJ75: 1.538416442 | AK75: 46.01214635 | AL75: 46.71768752 | AM75: 36.72657481 | AN75: 9.285571542 | AO75: 9.991112718 | AP75: 1.160696443 | AQ75: 14.62523237 | AR75: 7.882364189 | BA75: 20 | BB75: 80
A76: 44 | B76: =OFFSET(InputPriceData!B$15,CalculationsAndCharts!$A76+$A$11,0,1,1) -> 2018-09-19 | C76: =OFFSET(InputPriceData!G$15,CalculationsAndCharts!$A76+$A$11,IF($C$7,8,0),1,1) -> 441700 | D76: =OFFSET(InputPriceData!C$15,CalculationsAndCharts!$A76+$A$11,IF($C$7,8,0),1,1) -> 127.38 | E76: =OFFSET(InputPriceData!D$15,CalculationsAndCharts!$A76+$A$11,IF($C$7,8,0),1,1) -> 127.95 | F76: =OFFSET(InputPriceData!E$15,CalculationsAndCharts!$A76+$A$11,IF($C$7,8,0),1,1) -> 126.67 | G76: =OFFSET(InputPriceData!F$15,CalculationsAndCharts!$A76+$A$11,IF($C$7,8,0),1,1) -> 126.88 | H76: -0.59 | I76: 0 | J76: 0.59 | K76: 1.097278982 | L76: 0.4142009964 | M76: 72.59632927 | N76: 82.89376112 | O76: 71.22124929 | P76: 1.375079985 | Q76: 11.67251183 | R76: 12.87378752 | S76: 18.69579859 | T76: 68.49289996 | W76: 44 | X76: 2017-12-14 | Y76: 1099900 | Z76: 107.36 | AA76: 107.36 | AB76: 105.06 | AC76: 105.06 | AD76: 1 | AF76: -2.3 | AG76: 0 | AH76: 2.3 | AI76: 0.982258239 | AJ76: 1.692258087 | AK76: 36.72657481 | AL76: 50.49009823 | AM76: 36.72657481 | AN76: 0 | AO76: 13.76352342 | AP76: 1.392184048 | AQ76: 14.76852732 | AR76: 9.363294814 | BA76: 20 | BB76: 80
A77: 45 | B77: =OFFSET(InputPriceData!B$15,CalculationsAndCharts!$A77+$A$11,0,1,1) -> 2018-09-18 | C77: =OFFSET(InputPriceData!G$15,CalculationsAndCharts!$A77+$A$11,IF($C$7,8,0),1,1) -> 587500 | D77: =OFFSET(InputPriceData!C$15,CalculationsAndCharts!$A77+$A$11,IF($C$7,8,0),1,1) -> 127.36 | E77: =OFFSET(InputPriceData!D$15,CalculationsAndCharts!$A77+$A$11,IF($C$7,8,0),1,1) -> 128.53 | F77: =OFFSET(InputPriceData!E$15,CalculationsAndCharts!$A77+$A$11,IF($C$7,8,0),1,1) -> 126.4 | G77: =OFFSET(InputPriceData!F$15,CalculationsAndCharts!$A77+$A$11,IF($C$7,8,0),1,1) -> 127.47 | H77: 2.48 | I77: 2.48 | J77: 0 | K77: 1.20700688 | L77: 0.396621096 | M77: 75.26726261 | N77: 85.15317783 | O77: 71.22124929 | P77: 4.046013326 | Q77: 13.93192854 | R77: 12.93008313 | S77: 18.14271039 | T77: 70.87808144 | W77: 45 | X77: 2017-12-13 | Y77: 0 | Z77: 109.66 | AA77: 109.66 | AB77: 107.36 | AC77: 107.36 | AD77: 1 | AF77: -2.3 | AG77: 0 | AH77: 2.3 | AI77: 1.080484063 | AJ77: 1.631483895 | AK77: 39.8413285 | AL77: 54.49012352 | AM77: 39.8413285 | AN77: 0 | AO77: 14.64879503 | AP77: 2.861267509 | AQ77: 14.51717036 | AR77: 19.5747018 | BA77: 20 | BB77: 80
A78: 46 | B78: =OFFSET(InputPriceData!B$15,CalculationsAndCharts!$A78+$A$11,0,1,1) -> 2018-09-17 | C78: =OFFSET(InputPriceData!G$15,CalculationsAndCharts!$A78+$A$11,IF($C$7,8,0),1,1) -> 440500 | D78: =OFFSET(InputPriceData!C$15,CalculationsAndCharts!$A78+$A$11,IF($C$7,8,0),1,1) -> 126.14 | E78: =OFFSET(InputPriceData!D$15,CalculationsAndCharts!$A78+$A$11,IF($C$7,8,0),1,1) -> 126.14 | F78: =OFFSET(InputPriceData!E$15,CalculationsAndCharts!$A78+$A$11,IF($C$7,8,0),1,1) -> 124.34 | G78: =OFFSET(InputPriceData!F$15,CalculationsAndCharts!$A78+$A$11,IF($C$7,8,0),1,1) -> 124.99 | H78: -0.83 | I78: 0 | J78: 0.83 | K78: 1.079707568 | L78: 0.4362832056 | M78: 71.22124929 | N78: 85.15317783 | O78: 71.22124929 | P78: 0 | Q78: 13.93192854 | R78: 14.12654351 | S78: 18.10343137 | T78: 77.60373976 | W78: 46 | X78: 2017-12-12 | Y78: 0 | Z78: 111.96 | AA78: 111.96 | AB78: 109.66 | AC78: 109.66 | AD78: 0 | AF78: -2.3 | AG78: 0 | AH78: 2.3 | AI78: 1.188532469 | AJ78: 1.564632285 | AK78: 43.169682 | AL78: 58.71918351 | AM78: 43.169682 | AN78: 0 | AO78: 15.54950151 | AP78: 4.406608861 | AQ78: 14.23141233 | AR78: 30.74790369 | BA78: 20 | BB78: 80
A79: 47 | B79: =OFFSET(InputPriceData!B$15,CalculationsAndCharts!$A79+$A$11,0,1,1) -> 2018-09-14 | C79: =OFFSET(InputPriceData!G$15,CalculationsAndCharts!$A79+$A$11,IF($C$7,8,0),1,1) -> 494500 | D79: =OFFSET(InputPriceData!C$15,CalculationsAndCharts!$A79+$A$11,IF($C$7,8,0),1,1) -> 127.7 | E79: =OFFSET(InputPriceData!D$15,CalculationsAndCharts!$A79+$A$11,IF($C$7,8,0),1,1) -> 128.7 | F79: =OFFSET(InputPriceData!E$15,CalculationsAndCharts!$A79+$A$11,IF($C$7,8,0),1,1) -> 125.2 | G79: =OFFSET(InputPriceData!F$15,CalculationsAndCharts!$A79+$A$11,IF($C$7,8,0),1,1) -> 125.82 | H79: -1.67 | I79: 0 | J79: 1.67 | K79: 1.187678325 | L79: 0.3969115262 | M79: 74.95178163 | N79: 85.15317783 | O79: 64.9283004 | P79: 10.02348123 | Q79: 20.22487743 | R79: 15.56560173 | S79: 17.80099853 | T79: 86.95381829 | W79: 47 | X79: 2017-12-12 | Y79: 0 | Z79: 114.26 | AA79: 114.26 | AB79: 111.96 | AC79: 111.96 | AD79: 0 | AF79: -2.3 | AG79: 0 | AH79: 2.3 | AI79: 1.307385716 | AJ79: 1.491095513 | AK79: 46.71768752 | AL79: 68.36650476 | AM79: 46.71768752 | AN79: 0 | AO79: 21.64881723 | AP79: 6.026777858 | AQ79: 13.90789364 | AR79: 43.0241549 | BA79: 20 | BB79: 80
A80: 48 | B80: =OFFSET(InputPriceData!B$15,CalculationsAndCharts!$A80+$A$11,0,1,1) -> 2018-09-13 | C80: =OFFSET(InputPriceData!G$15,CalculationsAndCharts!$A80+$A$11,IF($C$7,8,0),1,1) -> 370300 | D80: =OFFSET(InputPriceData!C$15,CalculationsAndCharts!$A80+$A$11,IF($C$7,8,0),1,1) -> 127.95 | E80: =OFFSET(InputPriceData!D$15,CalculationsAndCharts!$A80+$A$11,IF($C$7,8,0),1,1) -> 128.55 | F80: =OFFSET(InputPriceData!E$15,CalculationsAndCharts!$A80+$A$11,IF($C$7,8,0),1,1) -> 126.28 | G80: =OFFSET(InputPriceData!F$15,CalculationsAndCharts!$A80+$A$11,IF($C$7,8,0),1,1) -> 127.49 | H80: -0.46 | I80: 0 | J80: 0.46 | K80: 1.306446157 | L80: 0.2696026788 | M80: 82.89376112 | N80: 85.15317783 | O80: 56.7954121 | P80: 26.09834902 | Q80: 28.35776573 | R80: 15.71782106 | S80: 16.67804333 | T80: 93.68089443 | W80: 48 | X80: 2017-12-12 | Y80: 0 | Z80: 116.56 | AA80: 116.56 | AB80: 114.26 | AC80: 114.26 | AD80: 0 | AF80: -2.3 | AG80: 0 | AH80: 2.3 | AI80: 1.438124288 | AJ80: 1.410205064 | AK80: 50.49009823 | AL80: 68.36650476 | AM80: 50.49009823 | AN80: 0 | AO80: 17.87640653 | AP80: 8.234867572 | AQ80: 13.4098812 | AR80: 60.95440404 | BA80: 20 | BB80: 80
A81: 49 | B81: =OFFSET(InputPriceData!B$15,CalculationsAndCharts!$A81+$A$11,0,1,1) -> 2018-09-12 | C81: =OFFSET(InputPriceData!G$15,CalculationsAndCharts!$A81+$A$11,IF($C$7,8,0),1,1) -> 660200 | D81: =OFFSET(InputPriceData!C$15,CalculationsAndCharts!$A81+$A$11,IF($C$7,8,0),1,1) -> 125.97 | E81: =OFFSET(InputPriceData!D$15,CalculationsAndCharts!$A81+$A$11,IF($C$7,8,0),1,1) -> 128.53 | F81: =OFFSET(InputPriceData!E$15,CalculationsAndCharts!$A81+$A$11,IF($C$7,8,0),1,1) -> 125.11 | G81: =OFFSET(InputPriceData!F$15,CalculationsAndCharts!$A81+$A$11,IF($C$7,8,0),1,1) -> 127.95 | H81: 3.46 | I81: 3.46 | J81: 0 | K81: 1.437090773 | L81: 0.2505629467 | M81: 85.15317783 | N81: 85.15317783 | O81: 56.7954121 | P81: 28.35776573 | Q81: 28.35776573 | R81: 13.25176369 | S81: 14.16231662 | T81: 92.91452462 | W81: 49 | X81: 2017-12-12 | Y81: 0 | Z81: 118.86 | AA81: 118.86 | AB81: 116.56 | AC81: 116.56 | AD81: 0 | AF81: -2.3 | AG81: 0 | AH81: 2.3 | AI81: 1.581936716 | AJ81: 1.321225571 | AK81: 54.49012352 | AL81: 68.36650476 | AM81: 54.49012352 | AN81: 0 | AO81: 13.87638124 | AP81: 10.04692667 | AQ81: 12.98738948 | AR81: 76.76799627 | BA81: 20 | BB81: 80
A82: 50 | B82: =OFFSET(InputPriceData!B$15,CalculationsAndCharts!$A82+$A$11,0,1,1) -> 2018-09-11 | C82: =OFFSET(InputPriceData!G$15,CalculationsAndCharts!$A82+$A$11,IF($C$7,8,0),1,1) -> 2042100 | D82: =OFFSET(InputPriceData!C$15,CalculationsAndCharts!$A82+$A$11,IF($C$7,8,0),1,1) -> 119.72 | E82: =OFFSET(InputPriceData!D$15,CalculationsAndCharts!$A82+$A$11,IF($C$7,8,0),1,1) -> 130.2 | F82: =OFFSET(InputPriceData!E$15,CalculationsAndCharts!$A82+$A$11,IF($C$7,8,0),1,1) -> 119.24 | G82: =OFFSET(InputPriceData!F$15,CalculationsAndCharts!$A82+$A$11,IF($C$7,8,0),1,1) -> 124.49 | H82: 7.97 | I82: 7.97 | J82: 0 | K82: 1.23479985 | L82: 0.2756192413 | M82: 81.7521347 | N82: 81.7521347 | O82: 56.7954121 | P82: 24.9567226 | Q82: 24.9567226 | R82: 9.707042975 | S82: 12.52278109 | T82: 76.90098487 | W82: 50 | X82: 2017-12-12 | Y82: 1192700 | Z82: 123.46 | AA82: 123.6 | AB82: 118.86 | AC82: 118.86 | AD82: 2 | AF82: -4.6 | AG82: 0 | AH82: 4.6 | AI82: 1.740130388 | AJ82: 1.223348128 | AK82: 58.71918351 | AL82: 68.36650476 | AM82: 58.71918351 | AN82: 0 | AO82: 9.64732125 | AP82: 11.4443684 | AQ82: 12.65028356 | AR82: 89.75775597 | BA82: 20 | BB82: 80
A83: 51 | B83: =OFFSET(InputPriceData!B$15,CalculationsAndCharts!$A83+$A$11,0,1,1) -> 2018-09-10 | C83: =OFFSET(InputPriceData!G$15,CalculationsAndCharts!$A83+$A$11,IF($C$7,8,0),1,1) -> 492400 | D83: =OFFSET(InputPriceData!C$15,CalculationsAndCharts!$A83+$A$11,IF($C$7,8,0),1,1) -> 115.08 | E83: =OFFSET(InputPriceData!D$15,CalculationsAndCharts!$A83+$A$11,IF($C$7,8,0),1,1) -> 117.05 | F83: =OFFSET(InputPriceData!E$15,CalculationsAndCharts!$A83+$A$11,IF($C$7,8,0),1,1) -> 114.94 | G83: =OFFSET(InputPriceData!F$15,CalculationsAndCharts!$A83+$A$11,IF($C$7,8,0),1,1) -> 116.52 | H83: 1.79 | I83: 1.79 | J83: 0 | K83: 0.5612798355 | L83: 0.3031811655 | M83: 64.9283004 | N83: 64.9283004 | O83: 56.7954121 | P83: 8.132888298 | Q83: 8.132888298 | R83: 6.587452649 | S83: 11.51535949 | T83: 56.71329117 | W83: 51 | X83: 2017-12-08 | Y83: 1248100 | Z83: 121.16 | AA83: 123.46 | AB83: 121.16 | AC83: 123.46 | AD83: 3 | AF83: 2.3 | AG83: 2.3 | AH83: 0 | AI83: 1.914143427 | AJ83: 0.8856829408 | AK83: 68.36650476 | AL83: 68.36650476 | AM83: 57.22903237 | AN83: 11.13747238 | AO83: 11.13747238 | AP83: 13.31380387 | AQ83: 13.31380387 | AR83: 99.25449931 | BA83: 20 | BB83: 80
A84: 52 | B84: =OFFSET(InputPriceData!B$15,CalculationsAndCharts!$A84+$A$11,0,1,1) -> 2018-09-07 | C84: =OFFSET(InputPriceData!G$15,CalculationsAndCharts!$A84+$A$11,IF($C$7,8,0),1,1) -> 435200 | D84: =OFFSET(InputPriceData!C$15,CalculationsAndCharts!$A84+$A$11,IF($C$7,8,0),1,1) -> 115.19 | E84: =OFFSET(InputPriceData!D$15,CalculationsAndCharts!$A84+$A$11,IF($C$7,8,0),1,1) -> 116.51 | F84: =OFFSET(InputPriceData!E$15,CalculationsAndCharts!$A84+$A$11,IF($C$7,8,0),1,1) -> 114.42 | G84: =OFFSET(InputPriceData!F$15,CalculationsAndCharts!$A84+$A$11,IF($C$7,8,0),1,1) -> 114.73 | H84: -0.74 | I84: 0 | J84: 0.74 | K84: 0.4384078191 | L84: 0.333499282 | M84: 56.7954121 | N84: 62.21777355 | O84: 54.96996728 | P84: 1.825444818 | Q84: 7.247806273 | R84: 5.704801681 | S84: 13.17909195 | T84: 42.96078154 | W84: 52 | X84: 2017-12-05 | Y84: 1454300 | Z84: 118.86 | AA84: 121.16 | AB84: 118.86 | AC84: 121.16 | AD84: 4 | AF84: 2.3 | AG84: 2.3 | AH84: 0 | AI84: 1.87555777 | AJ84: 0.9742512349 | AK84: 65.8134551 | AL84: 65.8134551 | AM84: 54.06078741 | AN84: 11.75266769 | AO84: 11.75266769 | AP84: 12.82614429 | AQ84: 13.58558317 | AR84: 93.72011504 | BA84: 20 | BB84: 80
A85: 53 | B85: =OFFSET(InputPriceData!B$15,CalculationsAndCharts!$A85+$A$11,0,1,1) -> 2018-09-06 | C85: =OFFSET(InputPriceData!G$15,CalculationsAndCharts!$A85+$A$11,IF($C$7,8,0),1,1) -> 341300 | D85: =OFFSET(InputPriceData!C$15,CalculationsAndCharts!$A85+$A$11,IF($C$7,8,0),1,1) -> 115.02 | E85: =OFFSET(InputPriceData!D$15,CalculationsAndCharts!$A85+$A$11,IF($C$7,8,0),1,1) -> 116.73 | F85: =OFFSET(InputPriceData!E$15,CalculationsAndCharts!$A85+$A$11,IF($C$7,8,0),1,1) -> 114.33 | G85: =OFFSET(InputPriceData!F$15,CalculationsAndCharts!$A85+$A$11,IF($C$7,8,0),1,1) -> 115.47 | H85: 0.45 | I85: 0.45 | J85: 0 | K85: 0.482248601 | L85: 0.2928492102 | M85: 62.21777355 | N85: 62.21777355 | O85: 48.60007719 | P85: 13.61769636 | Q85: 13.61769636 | R85: 5.476621079 | S85: 14.95345965 | T85: 36.38114563 | W85: 53 | X85: 2017-11-29 | Y85: 2249400 | Z85: 116.56 | AA85: 118.86 | AB85: 116.56 | AC85: 118.86 | AD85: 7 | AF85: 2.3 | AG85: 2.3 | AH85: 0 | AI85: 1.833113547 | AJ85: 1.071676358 | AK85: 63.10657936 | AL85: 63.10657936 | AM85: 50.74384854 | AN85: 12.36273082 | AO85: 12.36273082 | AP85: 13.02102418 | AQ85: 13.78046306 | AR85: 93.80828381 | BA85: 20 | BB85: 80
A86: 54 | B86: =OFFSET(InputPriceData!B$15,CalculationsAndCharts!$A86+$A$11,0,1,1) -> 2018-09-05 | C86: =OFFSET(InputPriceData!G$15,CalculationsAndCharts!$A86+$A$11,IF($C$7,8,0),1,1) -> 291100 | D86: =OFFSET(InputPriceData!C$15,CalculationsAndCharts!$A86+$A$11,IF($C$7,8,0),1,1) -> 115.11 | E86: =OFFSET(InputPriceData!D$15,CalculationsAndCharts!$A86+$A$11,IF($C$7,8,0),1,1) -> 115.34 | F86: =OFFSET(InputPriceData!E$15,CalculationsAndCharts!$A86+$A$11,IF($C$7,8,0),1,1) -> 113.98 | G86: =OFFSET(InputPriceData!F$15,CalculationsAndCharts!$A86+$A$11,IF($C$7,8,0),1,1) -> 115.02 | H86: 0.06 | I86: 0.06 | J86: 0 | K86: 0.4854734611 | L86: 0.3221341312 | M86: 60.11254299 | N86: 60.11254299 | O86: 48.60007719 | P86: 11.5124658 | Q86: 11.5124658 | R86: 3.774409033 | S86: 14.92143986 | T86: 25.12681253 | W86: 54 | X86: 2017-11-17 | Y86: 3983000 | Z86: 114.26 | AA86: 116.56 | AB86: 112.49 | AC86: 116.56 | AD86: 11 | AF86: 2.3 | AG86: 2.3 | AH86: 0 | AI86: 1.786424901 | AJ86: 1.178843994 | AK86: 60.24495465 | AL86: 60.24495465 | AM86: 47.28360267 | AN86: 12.96135198 | AO86: 12.96135198 | AP86: 12.62976253 | AQ86: 13.38920141 | AR86: 93.6286897 | BA86: 20 | BB86: 80
A87: 55 | B87: =OFFSET(InputPriceData!B$15,CalculationsAndCharts!$A87+$A$11,0,1,1) -> 2018-09-04 | C87: =OFFSET(InputPriceData!G$15,CalculationsAndCharts!$A87+$A$11,IF($C$7,8,0),1,1) -> 261300 | D87: =OFFSET(InputPriceData!C$15,CalculationsAndCharts!$A87+$A$11,IF($C$7,8,0),1,1) -> 113.92 | E87: =OFFSET(InputPriceData!D$15,CalculationsAndCharts!$A87+$A$11,IF($C$7,8,0),1,1) -> 115.68 | F87: =OFFSET(InputPriceData!E$15,CalculationsAndCharts!$A87+$A$11,IF($C$7,8,0),1,1) -> 113.11 | G87: =OFFSET(InputPriceData!F$15,CalculationsAndCharts!$A87+$A$11,IF($C$7,8,0),1,1) -> 114.96 | H87: 1.05 | I87: 1.05 | J87: 0 | K87: 0.5280208072 | L87: 0.3543475443 | M87: 59.84131301 | N87: 59.84131301 | O87: 48.60007719 | P87: 11.24123583 | Q87: 11.24123583 | R87: 2.588293151 | S87: 14.35392488 | T87: 17.90719941 | W87: 55 | X87: 2017-11-02 | Y87: 4609200 | Z87: 111.96 | AA87: 114.26 | AB87: 109.96 | AC87: 114.26 | AD87: 14 | AF87: 2.3 | AG87: 2.3 | AH87: 0 | AI87: 1.735067391 | AJ87: 1.296728394 | AK87: 57.22903237 | AL87: 57.22903237 | AM87: 39.56431466 | AN87: 17.66471771 | AO87: 17.66471771 | AP87: 11.00959354 | AQ87: 13.11890303 | AR87: 83.28674107 | BA87: 20 | BB87: 80
A88: 56 | B88: =OFFSET(InputPriceData!B$15,CalculationsAndCharts!$A88+$A$11,0,1,1) -> 2018-08-31 | C88: =OFFSET(InputPriceData!G$15,CalculationsAndCharts!$A88+$A$11,IF($C$7,8,0),1,1) -> 297100 | D88: =OFFSET(InputPriceData!C$15,CalculationsAndCharts!$A88+$A$11,IF($C$7,8,0),1,1) -> 112.27 | E88: =OFFSET(InputPriceData!D$15,CalculationsAndCharts!$A88+$A$11,IF($C$7,8,0),1,1) -> 114.17 | F88: =OFFSET(InputPriceData!E$15,CalculationsAndCharts!$A88+$A$11,IF($C$7,8,0),1,1) -> 112.15 | G88: =OFFSET(InputPriceData!F$15,CalculationsAndCharts!$A88+$A$11,IF($C$7,8,0),1,1) -> 113.91 | H88: 1.18 | I88: 1.18 | J88: 0 | K88: 0.4758228879 | L88: 0.3897822988 | M88: 54.96996728 | N88: 56.83202929 | O88: 48.60007719 | P88: 6.369890091 | Q88: 8.231952106 | R88: 2.515348429 | S88: 14.28098016 | T88: 17.49079966 | W88: 56 | X88: 2017-10-13 | Y88: 1747100 | Z88: 109.66 | AA88: 111.96 | AB88: 108.55 | AC88: 111.96 | AD88: 5 | AF88: 2.3 | AG88: 2.3 | AH88: 0 | AI88: 1.67857413 | AJ88: 1.426401233 | AK88: 54.06078741 | AL88: 54.06078741 | AM88: 39.56431466 | AN88: 14.49647275 | AO88: 14.49647275 | AP88: 8.801503823 | AQ88: 12.75974773 | AR88: 68.44227433 | BA88: 20 | BB88: 80
A89: 57 | B89: =OFFSET(InputPriceData!B$15,CalculationsAndCharts!$A89+$A$11,0,1,1) -> 2018-08-30 | C89: =OFFSET(InputPriceData!G$15,CalculationsAndCharts!$A89+$A$11,IF($C$7,8,0),1,1) -> 256200 | D89: =OFFSET(InputPriceData!C$15,CalculationsAndCharts!$A89+$A$11,IF($C$7,8,0),1,1) -> 113.5 | E89: =OFFSET(InputPriceData!D$15,CalculationsAndCharts!$A89+$A$11,IF($C$7,8,0),1,1) -> 114.47 | F89: =OFFSET(InputPriceData!E$15,CalculationsAndCharts!$A89+$A$11,IF($C$7,8,0),1,1) -> 111.9 | G89: =OFFSET(InputPriceData!F$15,CalculationsAndCharts!$A89+$A$11,IF($C$7,8,0),1,1) -> 112.73 | H89: -1.12 | I89: 0 | J89: 1.12 | K89: 0.4054051767 | L89: 0.4287605286 | M89: 48.60007719 | N89: 63.84155862 | O89: 48.60007719 | P89: 0 | Q89: 15.24148144 | R89: 3.393517847 | S89: 14.92639182 | T89: 22.58371728 | W89: 57 | X89: 2017-10-06 | Y89: 4741700 | Z89: 107.36 | AA89: 109.66 | AB89: 106.6 | AC89: 109.66 | AD89: 12 | AF89: 2.3 | AG89: 2.3 | AH89: 0 | AI89: 1.616431544 | AJ89: 1.569041356 | AK89: 50.74384854 | AL89: 50.74384854 | AM89: 39.56431466 | AN89: 11.17953387 | AO89: 11.17953387 | AP89: 6.989444729 | AQ89: 12.46724245 | AR89: 55.61637531 | BA89: 20 | BB89: 80
A90: 58 | B90: =OFFSET(InputPriceData!B$15,CalculationsAndCharts!$A90+$A$11,0,1,1) -> 2018-08-29 | C90: =OFFSET(InputPriceData!G$15,CalculationsAndCharts!$A90+$A$11,IF($C$7,8,0),1,1) -> 347800 | D90: =OFFSET(InputPriceData!C$15,CalculationsAndCharts!$A90+$A$11,IF($C$7,8,0),1,1) -> 114.21 | E90: =OFFSET(InputPriceData!D$15,CalculationsAndCharts!$A90+$A$11,IF($C$7,8,0),1,1) -> 114.35 | F90: =OFFSET(InputPriceData!E$15,CalculationsAndCharts!$A90+$A$11,IF($C$7,8,0),1,1) -> 113.39 | G90: =OFFSET(InputPriceData!F$15,CalculationsAndCharts!$A90+$A$11,IF($C$7,8,0),1,1) -> 113.85 | H90: -0.23 | I90: 0 | J90: 0.23 | K90: 0.4459456943 | L90: 0.3596365815 | M90: 55.35693966 | N90: 72.25428949 | O90: 55.35693966 | P90: 0 | Q90: 16.89734983 | R90: 4.312493736 | S90: 13.94018253 | T90: 30.71536802 | W90: 58 | X90: 2017-09-20 | Y90: 11319000 | Z90: 102.76 | AA90: 107.36 | AB90: 101.46 | AC90: 107.36 | AD90: 23 | AF90: 4.6 | AG90: 4.6 | AH90: 0 | AI90: 1.548074698 | AJ90: 1.725945492 | AK90: 47.28360267 | AL90: 47.28360267 | AM90: 32.3281189 | AN90: 14.95548377 | AO90: 14.95548377 | AP90: 5.92323949 | AQ90: 12.5747109 | AR90: 46.73273842 | BA90: 20 | BB90: 80
A91: 59 | B91: =OFFSET(InputPriceData!B$15,CalculationsAndCharts!$A91+$A$11,0,1,1) -> 2018-08-28 | C91: =OFFSET(InputPriceData!G$15,CalculationsAndCharts!$A91+$A$11,IF($C$7,8,0),1,1) -> 356800 | D91: =OFFSET(InputPriceData!C$15,CalculationsAndCharts!$A91+$A$11,IF($C$7,8,0),1,1) -> 113.77 | E91: =OFFSET(InputPriceData!D$15,CalculationsAndCharts!$A91+$A$11,IF($C$7,8,0),1,1) -> 114.85 | F91: =OFFSET(InputPriceData!E$15,CalculationsAndCharts!$A91+$A$11,IF($C$7,8,0),1,1) -> 113.39 | G91: =OFFSET(InputPriceData!F$15,CalculationsAndCharts!$A91+$A$11,IF($C$7,8,0),1,1) -> 114.08 | H91: 0.23 | I91: 0.23 | J91: 0 | K91: 0.4905402638 | L91: 0.3726002397 | M91: 56.83202929 | N91: 77.20309667 | O91: 55.76034874 | P91: 1.071680551 | Q91: 21.44274793 | R91: 5.953529671 | S91: 13.46904974 | T91: 43.87580402 | W91: 59 | X91: 2017-08-17 | Y91: 3509800 | Z91: 107.36 | AA91: 107.88 | AB91: 102.76 | AC91: 102.76 | AD91: 10 | AF91: -4.6 | AG91: 0 | AH91: 4.6 | AI91: 1.242882168 | AJ91: 1.898540041 | AK91: 39.56431466 | AL91: 45.6398257 | AM91: 32.3281189 | AN91: 7.236195768 | AO91: 13.3117068 | AP91: 4.747004205 | AQ91: 12.21018561 | AR91: 38.56159732 | BA91: 20 | BB91: 80
A92: 60 | B92: =OFFSET(InputPriceData!B$15,CalculationsAndCharts!$A92+$A$11,0,1,1) -> 2018-08-27 | C92: =OFFSET(InputPriceData!G$15,CalculationsAndCharts!$A92+$A$11,IF($C$7,8,0),1,1) -> 361500 | D92: =OFFSET(InputPriceData!C$15,CalculationsAndCharts!$A92+$A$11,IF($C$7,8,0),1,1) -> 115.32 | E92: =OFFSET(InputPriceData!D$15,CalculationsAndCharts!$A92+$A$11,IF($C$7,8,0),1,1) -> 115.56 | F92: =OFFSET(InputPriceData!E$15,CalculationsAndCharts!$A92+$A$11,IF($C$7,8,0),1,1) -> 113.38 | G92: =OFFSET(InputPriceData!F$15,CalculationsAndCharts!$A92+$A$11,IF($C$7,8,0),1,1) -> 113.85 | H92: -1.29 | I92: 0 | J92: 1.29 | K92: 0.5165942901 | L92: 0.4098602636 | M92: 55.76034874 | N92: 77.20309667 | O92: 55.76034874 | P92: 0 | Q92: 21.44274793 | R92: 7.092106139 | S92: 12.06124279 | T92: 58.31728109 | W92: 60 | X92: 2017-08-03 | Y92: 3427200 | Z92: 105.06 | AA92: 107.36 | AB92: 104.37 | AC92: 107.36 | AD92: 8 | AF92: 2.3 | AG92: 2.3 | AH92: 0 | AI92: 1.367170384 | AJ92: 1.628394045 | AK92: 45.6398257 | AL92: 45.6398257 | AM92: 32.3281189 | AN92: 13.3117068 | AO92: 13.3117068 | AP92: 5.347389916 | AQ92: 12.05113244 | AR92: 44.00733792 | BA92: 20 | BB92: 80
A93: 61 | B93: =OFFSET(InputPriceData!B$15,CalculationsAndCharts!$A93+$A$11,0,1,1) -> 2018-08-24 | C93: =OFFSET(InputPriceData!G$15,CalculationsAndCharts!$A93+$A$11,IF($C$7,8,0),1,1) -> 290000 | D93: =OFFSET(InputPriceData!C$15,CalculationsAndCharts!$A93+$A$11,IF($C$7,8,0),1,1) -> 116.26 | E93: =OFFSET(InputPriceData!D$15,CalculationsAndCharts!$A93+$A$11,IF($C$7,8,0),1,1) -> 116.26 | F93: =OFFSET(InputPriceData!E$15,CalculationsAndCharts!$A93+$A$11,IF($C$7,8,0),1,1) -> 114.67 | G93: =OFFSET(InputPriceData!F$15,CalculationsAndCharts!$A93+$A$11,IF($C$7,8,0),1,1) -> 115.14 | H93: -1.14 | I93: 0 | J93: 1.14 | K93: 0.5682537192 | L93: 0.32184629 | M93: 63.84155862 | N93: 77.20309667 | O93: 63.84155862 | P93: 0 | Q93: 13.36153805 | R93: 7.950884632 | S93: 10.8132924 | T93: 72.85505 | W93: 61 | X93: 2017-07-24 | Y93: 4847600 | Z93: 100.46 | AA93: 105.06 | AB93: 100.45 | AC93: 105.06 | AD93: 10 | AF93: 4.6 | AG93: 4.6 | AH93: 0 | AI93: 1.273887423 | AJ93: 1.79123345 | AK93: 41.56075652 | AL93: 41.56075652 | AM93: 32.3281189 | AN93: 9.23263762 | AO93: 9.23263762 | AP93: 4.725668747 | AQ93: 11.94992644 | AR93: 39.21740742 | BA93: 20 | BB93: 80
A94: 62 | B94: =OFFSET(InputPriceData!B$15,CalculationsAndCharts!$A94+$A$11,0,1,1) -> 2018-08-23 | C94: =OFFSET(InputPriceData!G$15,CalculationsAndCharts!$A94+$A$11,IF($C$7,8,0),1,1) -> 324500 | D94: =OFFSET(InputPriceData!C$15,CalculationsAndCharts!$A94+$A$11,IF($C$7,8,0),1,1) -> 117.06 | E94: =OFFSET(InputPriceData!D$15,CalculationsAndCharts!$A94+$A$11,IF($C$7,8,0),1,1) -> 117.32 | F94: =OFFSET(InputPriceData!E$15,CalculationsAndCharts!$A94+$A$11,IF($C$7,8,0),1,1) -> 115.33 | G94: =OFFSET(InputPriceData!F$15,CalculationsAndCharts!$A94+$A$11,IF($C$7,8,0),1,1) -> 116.28 | H94: -0.61 | I94: 0 | J94: 0.61 | K94: 0.6250790911 | L94: 0.240030919 | M94: 72.25428949 | N94: 77.20309667 | O94: 70.23075075 | P94: 2.02353874 | Q94: 6.972345926 | R94: 9.008443386 | S94: 10.94408462 | T94: 81.56804021 | W94: 62 | X94: 2017-07-10 | Y94: 1541500 | Z94: 102.76 | AA94: 102.76 | AB94: 100.46 | AC94: 100.46 | AD94: 2 | AF94: -2.3 | AG94: 0 | AH94: 2.3 | AI94: 0.9412761651 | AJ94: 1.970356795 | AK94: 32.3281189 | AL94: 43.12708379 | AM94: 32.3281189 | AN94: 0 | AO94: 10.7989649 | AP94: 3.571589044 | AQ94: 12.35860409 | AR94: 28.66765023 | BA94: 20 | BB94: 80
A95: 63 | B95: =OFFSET(InputPriceData!B$15,CalculationsAndCharts!$A95+$A$11,0,1,1) -> 2018-08-22 | C95: =OFFSET(InputPriceData!G$15,CalculationsAndCharts!$A95+$A$11,IF($C$7,8,0),1,1) -> 259900 | D95: =OFFSET(InputPriceData!C$15,CalculationsAndCharts!$A95+$A$11,IF($C$7,8,0),1,1) -> 116.4 | E95: =OFFSET(InputPriceData!D$15,CalculationsAndCharts!$A95+$A$11,IF($C$7,8,0),1,1) -> 117.37 | F95: =OFFSET(InputPriceData!E$15,CalculationsAndCharts!$A95+$A$11,IF($C$7,8,0),1,1) -> 115.32 | G95: =OFFSET(InputPriceData!F$15,CalculationsAndCharts!$A95+$A$11,IF($C$7,8,0),1,1) -> 116.89 | H95: 0.24 | I95: 0.24 | J95: 0 | K95: 0.6875870002 | L95: 0.2030340109 | M95: 77.20309667 | N95: 77.20309667 | O95: 66.54541863 | P95: 10.65767805 | Q95: 10.65767805 | R95: 8.84766816 | S95: 11.87352586 | T95: 73.89359042 | W95: 63 | X95: 2017-07-06 | Y95: 6724800 | Z95: 105.06 | AA95: 105.31 | AB95: 102.76 | AC95: 102.76 | AD95: 11 | AF95: -2.3 | AG95: 0 | AH95: 2.3 | AI95: 1.035403782 | AJ95: 1.937392474 | AK95: 34.8292884 | AL95: 49.62076377 | AM95: 34.8292884 | AN95: 0 | AO95: 14.79147536 | AP95: 3.571589044 | AQ95: 12.2174666 | AR95: 28.99613337 | BA95: 20 | BB95: 80
A96: 64 | B96: =OFFSET(InputPriceData!B$15,CalculationsAndCharts!$A96+$A$11,0,1,1) -> 2018-08-21 | C96: =OFFSET(InputPriceData!G$15,CalculationsAndCharts!$A96+$A$11,IF($C$7,8,0),1,1) -> 316900 | D96: =OFFSET(InputPriceData!C$15,CalculationsAndCharts!$A96+$A$11,IF($C$7,8,0),1,1) -> 114.7 | E96: =OFFSET(InputPriceData!D$15,CalculationsAndCharts!$A96+$A$11,IF($C$7,8,0),1,1) -> 116.75 | F96: =OFFSET(InputPriceData!E$15,CalculationsAndCharts!$A96+$A$11,IF($C$7,8,0),1,1) -> 114.7 | G96: =OFFSET(InputPriceData!F$15,CalculationsAndCharts!$A96+$A$11,IF($C$7,8,0),1,1) -> 116.65 | H96: 2.16 | I96: 2.16 | J96: 0 | K96: 0.7323457002 | L96: 0.223337412 | M96: 76.63059971 | N96: 76.63059971 | O96: 63.23535427 | P96: 13.39524544 | Q96: 13.39524544 | R96: 7.515458405 | S96: 12.34230059 | T96: 60.40248224 | W96: 64 | X96: 2017-06-20 | Y96: 5890500 | Z96: 107.36 | AA96: 108.81 | AB96: 105.06 | AC96: 105.06 | AD96: 10 | AF96: -2.3 | AG96: 0 | AH96: 2.3 | AI96: 1.13894416 | AJ96: 1.901131722 | AK96: 37.46433327 | AL96: 49.62076377 | AM96: 37.46433327 | AN96: 0 | AO96: 12.1564305 | AP96: 3.752979208 | AQ96: 11.38710594 | AR96: 32.67123355 | BA96: 20 | BB96: 80
A97: 65 | B97: =OFFSET(InputPriceData!B$15,CalculationsAndCharts!$A97+$A$11,0,1,1) -> 2018-08-20 | C97: =OFFSET(InputPriceData!G$15,CalculationsAndCharts!$A97+$A$11,IF($C$7,8,0),1,1) -> 238200 | D97: =OFFSET(InputPriceData!C$15,CalculationsAndCharts!$A97+$A$11,IF($C$7,8,0),1,1) -> 114.7 | E97: =OFFSET(InputPriceData!D$15,CalculationsAndCharts!$A97+$A$11,IF($C$7,8,0),1,1) -> 115.86 | F97: =OFFSET(InputPriceData!E$15,CalculationsAndCharts!$A97+$A$11,IF($C$7,8,0),1,1) -> 114.37 | G97: =OFFSET(InputPriceData!F$15,CalculationsAndCharts!$A97+$A$11,IF($C$7,8,0),1,1) -> 114.49 | H97: 0.11 | I97: 0.11 | J97: 0 | K97: 0.5895802702 | L97: 0.2456711532 | M97: 70.58716139 | N97: 70.58716139 | O97: 63.23535427 | P97: 7.351807114 | Q97: 7.351807114 | R97: 6.461758044 | S97: 11.65719161 | T97: 54.96004708 | W97: 65 | X97: 2017-06-06 | Y97: 0 | Z97: 109.66 | AA97: 109.66 | AB97: 107.36 | AC97: 107.36 | AD97: 0 | AF97: =IF($A97<$A$8,AC97-$AC98,IF($A97=$A$8,0,NA())) -> -2.3 | AG97: =IF($A97<$A$8,IF(AF97>0,AF97,0),IF($A97=$A$8,0,NA())) -> 0 | AH97: =IF($A97 <$A$8,IF(AF97<0,-AF97,0),IF($A97=$A$8,0,NA())) -> 2.3 | AI97: =IF($A97<$A$8-$A$19,$AG97*$D$19+$AI98*$E$19,IF($A97<=$A$8,AVERAGE(OFFSET($AG97,0,0,$A$8-$A97+1,1)),NA())) -> 1.252838576 | AJ97: =IF($A97<$A$8-$A$19,$AH97*$D$19+$AJ98*$E$19,IF($A97<=$A$8,AVERAGE(OFFSET($AH97,0,0,$A$8-$A97+1,1)),NA())) -> 1.861244894 | AK97: =IF($A97<$A$8,IFERROR(100-100/(1+($AI97/$AJ97)),0),IF($A97=$A$8,0,NA())) -> 40.23137427 | AL97: 49.62076377 | AM97: 37.58148231 | AN97: 2.649891962 | AO97: 12.03928146 | AP97: 4.771552961 | AQ97: 11.75075531 | AR97: 40.26370335 | BA97: 20 | BB97: 80
A98: 66 | B98: =OFFSET(InputPriceData!B$15,CalculationsAndCharts!$A98+$A$11,0,1,1) -> 2018-08-17 | C98: =OFFSET(InputPriceData!G$15,CalculationsAndCharts!$A98+$A$11,IF($C$7,8,0),1,1) -> 199100 | D98: =OFFSET(InputPriceData!C$15,CalculationsAndCharts!$A98+$A$11,IF($C$7,8,0),1,1) -> 113.27 | E98: =OFFSET(InputPriceData!D$15,CalculationsAndCharts!$A98+$A$11,IF($C$7,8,0),1,1) -> 114.61 | F98: =OFFSET(InputPriceData!E$15,CalculationsAndCharts!$A98+$A$11,IF($C$7,8,0),1,1) -> 112.95 | G98: =OFFSET(InputPriceData!F$15,CalculationsAndCharts!$A98+$A$11,IF($C$7,8,0),1,1) -> 114.38 | H98: =IF($A98<$A$8,G98-$G99,IF($A98=$A$8,0,NA())) -> 1.1 | I98: =IF($A98<$A$8,IF(H98>0,H98,0),IF($A98=$A$8,0,NA())) -> 1.1 | J98: =IF($A98 <$A$8,IF(H98<0,-H98,0),IF($A98=$A$8,0,NA())) -> 0 | K98: =IF($A98<$A$8-$A$19,$I98*$D$19+$K99*$E$19,IF($A98<=$A$8,AVERAGE(OFFSET($I98,0,0,$A$8-$A98+1,1)),NA())) -> 0.6375382972 | L98: =IF($A98<$A$8-$A$19,$J98*$D$19+$L99*$E$19,IF($A98<=$A$8,AVERAGE(OFFSET($J98,0,0,$A$8-$A98+1,1)),NA())) -> 0.2702382685 | M98: =IF($A98<$A$8,IFERROR(100-100/(1+($K98/$L98)),0),IF($A98=$A$8,0,NA())) -> 70.23075075 | N98: =MAX(OFFSET(M98,0,0,$A$21,1)) -> 70.23075075 | O98: =MIN(OFFSET(M98,0,0,$A$21,1)) -> 57.10246327 | P98: =M98-O98 -> 13.12828748 | Q98: =N98-O98 -> 13.12828748 | R98: =AVERAGE(OFFSET(P98,0,0,$A$22,1)) -> 6.661362251 | S98: =AVERAGE(OFFSET(Q98,0,0,$A$22,1)) -> 11.85679582 | T98: =R98/(0.1+S98)*100 -> 55.71193448 | W98: 66 | X98: 2017-06-06 | Y98: 2354700 | Z98: 114.26 | AA98: 114.54 | AB98: 109.66 | AC98: 109.66 | AD98: 4 | AF98: -4.6 | AG98: 0 | AH98: 4.6 | AI98: 1.378122433 | AJ98: 1.817369383 | AK98: 43.12708379 | AL98: =MAX(OFFSET(AK98,0,0,$A$21,1)) -> 49.62076377 | AM98: =MIN(OFFSET(AK98,0,0,$A$21,1)) -> 37.58148231 | AN98: =AK98-AM98 -> 5.545601485 | AO98: =AL98-AM98 -> 12.03928146 | AP98: =AVERAGE(OFFSET(AN98,0,0,$A$22,1)) -> 4.440316466 | AQ98: =AVERAGE(OFFSET(AO98,0,0,$A$22,1)) -> 12.12904831 | AR98: =AP98/(0.1+AQ98)*100 -> 36.30958317 | BA98: 20 | BB98: 80
A99: 67 | B99: =OFFSET(InputPriceData!B$15,CalculationsAndCharts!$A99+$A$11,0,1,1) -> 2018-08-16 | C99: =OFFSET(InputPriceData!G$15,CalculationsAndCharts!$A99+$A$11,IF($C$7,8,0),1,1) -> 238900 | D99: =OFFSET(InputPriceData!C$15,CalculationsAndCharts!$A99+$A$11,IF($C$7,8,0),1,1) -> 113.31 | E99: =OFFSET(InputPriceData!D$15,CalculationsAndCharts!$A99+$A$11,IF($C$7,8,0),1,1) -> 114.21 | F99: =OFFSET(InputPriceData!E$15,CalculationsAndCharts!$A99+$A$11,IF($C$7,8,0),1,1) -> 112.84 | G99: =OFFSET(InputPriceData!F$15,CalculationsAndCharts!$A99+$A$11,IF($C$7,8,0),1,1) -> 113.28 | H99: 0.88 | I99: 0.88 | J99: 0 | K99: 0.591292127 | L99: 0.2972620954 | M99: 66.54541863 | N99: 66.54541863 | O99: 56.36512633 | P99: 10.1802923 | Q99: 10.1802923 | R99: 6.888201016 | S99: 12.08363458 | T99: 56.5365037 | W99: 67 | X99: 2017-05-31 | Y99: 8597400 | Z99: 111.96 | AA99: 114.26 | AB99: 108.64 | AC99: 114.26 | AD99: 24 | AF99: 2.3 | AG99: 2.3 | AH99: 0 | AI99: 1.515934677 | AJ99: 1.539106322 | AK99: 49.62076377 | AL99: 49.62076377 | AM99: 37.58148231 | AN99: 12.03928146 | AO99: 12.03928146 | AP99: 3.74711628 | AQ99: 12.08720911 | AR99: 30.74630333 | BA99: =$E$24 -> 20 | BB99: =$F$24 -> 80
A100: 68 | B100: =OFFSET(InputPriceData!B$15,CalculationsAndCharts!$A100+$A$11,0,1,1) -> 2018-08-15 | C100: =OFFSET(InputPriceData!G$15,CalculationsAndCharts!$A100+$A$11,IF($C$7,8,0),1,1) -> 204200 | D100: =OFFSET(InputPriceData!C$15,CalculationsAndCharts!$A100+$A$11,IF($C$7,8,0),1,1) -> 112.28 | E100: =OFFSET(InputPriceData!D$15,CalculationsAndCharts!$A100+$A$11,IF($C$7,8,0),1,1) -> 113.37 | F100: =OFFSET(InputPriceData!E$15,CalculationsAndCharts!$A100+$A$11,IF($C$7,8,0),1,1) -> 111.97 | G100: =OFFSET(InputPriceData!F$15,CalculationsAndCharts!$A100+$A$11,IF($C$7,8,0),1,1) -> 112.4 | H100: -0.24 | I100: 0 | J100: 0.24 | K100: 0.5624213397 | L100: 0.3269883049 | M100: 63.23535427 | N100: 67.82427115 | O100: 56.36512633 | P100: 6.870227942 | Q100: 11.45914482 | R100: 7.122222054 | S100: 12.31765562 | T100: 57.35560941 | W100: 68 | X100: 2017-04-26 | Y100: 16805300 | Z100: 107.36 | AA100: 111.96 | AB100: 105.98 | AC100: 111.96 | AD100: 34 | AF100: 4.6 | AG100: 4.6 | AH100: 0 | AI100: 1.437528144 | AJ100: 1.693016954 | AK100: 45.91941976 | AL100: 50.0835411 | AM100: 37.58148231 | AN100: 8.337937451 | AO100: 12.50205879 | AP100: 2.629648225 | AQ100: 11.98783954 | AR100: 21.75449315 | BA100: 20 | BB100: 80
A101: 69 | B101: =OFFSET(InputPriceData!B$15,CalculationsAndCharts!$A101+$A$11,0,1,1) -> 2018-08-14 | C101: =OFFSET(InputPriceData!G$15,CalculationsAndCharts!$A101+$A$11,IF($C$7,8,0),1,1) -> 270700 | D101: =OFFSET(InputPriceData!C$15,CalculationsAndCharts!$A101+$A$11,IF($C$7,8,0),1,1) -> 110.99 | E101: =OFFSET(InputPriceData!D$15,CalculationsAndCharts!$A101+$A$11,IF($C$7,8,0),1,1) -> 112.82 | F101: =OFFSET(InputPriceData!E$15,CalculationsAndCharts!$A101+$A$11,IF($C$7,8,0),1,1) -> 110.94 | G101: =OFFSET(InputPriceData!F$15,CalculationsAndCharts!$A101+$A$11,IF($C$7,8,0),1,1) -> 112.64 | H101: 1.89 | I101: 1.89 | J101: 0 | K101: 0.6186634736 | L101: 0.3356871354 | M101: 64.82559636 | N101: 70.77300219 | O101: 56.36512633 | P101: 8.460470027 | Q101: 14.40787586 | R101: 7.517668797 | S101: 12.13948775 | T101: 61.42143323 | W101: 69 | X101: 2017-03-08 | Y101: 2972400 | Z101: 109.66 | AA101: 109.66 | AB101: 107.36 | AC101: 107.36 | AD101: 1 | AF101: -2.3 | AG101: 0 | AH101: 2.3 | AI101: 1.121280959 | AJ101: 1.862318649 | AK101: 37.58148231 | AL101: 50.0835411 | AM101: 37.58148231 | AN101: 0 | AO101: 12.50205879 | AP101: 4.130270615 | AQ101: 12.96794676 | AR101: 31.60611754 | BA101: 20 | BB101: 80
A102: 70 | B102: =OFFSET(InputPriceData!B$15,CalculationsAndCharts!$A102+$A$11,0,1,1) -> 2018-08-13 | C102: =OFFSET(InputPriceData!G$15,CalculationsAndCharts!$A102+$A$11,IF($C$7,8,0),1,1) -> 212700 | D102: =OFFSET(InputPriceData!C$15,CalculationsAndCharts!$A102+$A$11,IF($C$7,8,0),1,1) -> 110.94 | E102: =OFFSET(InputPriceData!D$15,CalculationsAndCharts!$A102+$A$11,IF($C$7,8,0),1,1) -> 111.16 | F102: =OFFSET(InputPriceData!E$15,CalculationsAndCharts!$A102+$A$11,IF($C$7,8,0),1,1) -> 110.18 | G102: =OFFSET(InputPriceData!F$15,CalculationsAndCharts!$A102+$A$11,IF($C$7,8,0),1,1) -> 110.75 | H102: 0.16 | I102: 0.16 | J102: 0 | K102: 0.491529821 | L102: 0.3692558489 | M102: 57.10246327 | N102: 70.77300219 | O102: 56.36512633 | P102: 0.7373369397 | Q102: 14.40787586 | R102: 7.58505188 | S102: 11.46344511 | T102: 65.59508702 | W102: 70 | X102: 2017-03-07 | Y102: 1426600 | Z102: 111.96 | AA102: 112.05 | AB102: 109.66 | AC102: 109.66 | AD102: 2 | AF102: -2.3 | AG102: 0 | AH102: 2.3 | AI102: 1.233409055 | AJ102: 1.818550514 | AK102: 40.4136761 | AL102: 50.0835411 | AM102: 40.4136761 | AN102: 0 | AO102: 9.669865005 | AP102: 6.232441079 | AQ102: 13.50735988 | AR102: 45.80198609 | BA102: 20 | BB102: 80
A103: 71 | B103: =OFFSET(InputPriceData!B$15,CalculationsAndCharts!$A103+$A$11,0,1,1) -> 2018-08-10 | C103: =OFFSET(InputPriceData!G$15,CalculationsAndCharts!$A103+$A$11,IF($C$7,8,0),1,1) -> 188700 | D103: =OFFSET(InputPriceData!C$15,CalculationsAndCharts!$A103+$A$11,IF($C$7,8,0),1,1) -> 111.85 | E103: =OFFSET(InputPriceData!D$15,CalculationsAndCharts!$A103+$A$11,IF($C$7,8,0),1,1) -> 112.59 | F103: =OFFSET(InputPriceData!E$15,CalculationsAndCharts!$A103+$A$11,IF($C$7,8,0),1,1) -> 110.34 | G103: =OFFSET(InputPriceData!F$15,CalculationsAndCharts!$A103+$A$11,IF($C$7,8,0),1,1) -> 110.59 | H103: -1.73 | I103: 0 | J103: 1.73 | K103: 0.5246828031 | L103: 0.4061814338 | M103: 56.36512633 | N103: 70.77300219 | O103: 56.36512633 | P103: 0 | Q103: 14.40787586 | R103: 7.492884762 | S103: 10.71419155 | T103: 69.2875166 | W103: 71 | X103: 2017-03-03 | Y103: 8242400 | Z103: 116.56 | AA103: 118.07 | AB103: 111.96 | AC103: 111.96 | AD103: 16 | AF103: -4.6 | AG103: 0 | AH103: 4.6 | AI103: 1.35674996 | AJ103: 1.770405565 | AK103: 43.38607239 | AL103: 50.0835411 | AM103: 41.93495108 | AN103: 1.451121312 | AO103: 8.148590021 | AP103: 7.866220018 | AQ103: 13.93240569 | AR103: 56.05752991 | BA103: 20 | BB103: 80
A104: 72 | B104: =OFFSET(InputPriceData!B$15,CalculationsAndCharts!$A104+$A$11,0,1,1) -> 2018-08-09 | C104: =OFFSET(InputPriceData!G$15,CalculationsAndCharts!$A104+$A$11,IF($C$7,8,0),1,1) -> 243800 | D104: =OFFSET(InputPriceData!C$15,CalculationsAndCharts!$A104+$A$11,IF($C$7,8,0),1,1) -> 112.83 | E104: =OFFSET(InputPriceData!D$15,CalculationsAndCharts!$A104+$A$11,IF($C$7,8,0),1,1) -> 113.36 | F104: =OFFSET(InputPriceData!E$15,CalculationsAndCharts!$A104+$A$11,IF($C$7,8,0),1,1) -> 111.7 | G104: =OFFSET(InputPriceData!F$15,CalculationsAndCharts!$A104+$A$11,IF($C$7,8,0),1,1) -> 112.32 | H104: -0.39 | I104: 0 | J104: 0.39 | K104: 0.5771510834 | L104: 0.2737995772 | M104: 67.82427115 | N104: 70.77300219 | O104: 62.8586286 | P104: 4.96564255 | Q104: 7.914373587 | R104: 8.256803421 | S104: 9.915293827 | T104: 82.44194892 | W104: 72 | X104: 2017-02-08 | Y104: 6628600 | Z104: 111.96 | AA104: 116.56 | AB104: 109.69 | AC104: 116.56 | AD104: 10 | AF104: 4.6 | AG104: 4.6 | AH104: 0 | AI104: 1.492424956 | AJ104: 1.487446122 | AK104: 50.0835411 | AL104: 57.00057655 | AM104: 41.93495108 | AN104: 8.148590021 | AO104: 15.06562546 | AP104: 8.82215381 | AQ104: 14.1213808 | AR104: 62.03443909 | BA104: 20 | BB104: 80
A105: 73 | B105: =OFFSET(InputPriceData!B$15,CalculationsAndCharts!$A105+$A$11,0,1,1) -> 2018-08-08 | C105: =OFFSET(InputPriceData!G$15,CalculationsAndCharts!$A105+$A$11,IF($C$7,8,0),1,1) -> 175500 | D105: =OFFSET(InputPriceData!C$15,CalculationsAndCharts!$A105+$A$11,IF($C$7,8,0),1,1) -> 112.06 | E105: =OFFSET(InputPriceData!D$15,CalculationsAndCharts!$A105+$A$11,IF($C$7,8,0),1,1) -> 112.89 | F105: =OFFSET(InputPriceData!E$15,CalculationsAndCharts!$A105+$A$11,IF($C$7,8,0),1,1) -> 111.98 | G105: =OFFSET(InputPriceData!F$15,CalculationsAndCharts!$A105+$A$11,IF($C$7,8,0),1,1) -> 112.71 | H105: 0.92 | I105: 0.92 | J105: 0 | K105: 0.6348661917 | L105: 0.2621795349 | M105: 70.77300219 | N105: 70.77300219 | O105: 61.82436141 | P105: 8.948640777 | Q105: 8.948640777 | R105: 8.638184867 | S105: 9.928083894 | T105: 86.13993419 | W105: 73 | X105: 2017-01-25 | Y105: 1922000 | Z105: 114.26 | AA105: 114.26 | AB105: 111.96 | AC105: 111.96 | AD105: 4 | AF105: -2.3 | AG105: 0 | AH105: 2.3 | AI105: 1.181667452 | AJ105: 1.636190734 | AK105: 41.93495108 | AL105: 57.00057655 | AM105: 41.93495108 | AN105: 0 | AO105: 15.06562546 | AP105: 7.803580058 | AQ105: 13.89747708 | AR105: 55.74990416 | BA105: 20 | BB105: 80
A106: 74 | B106: =OFFSET(InputPriceData!B$15,CalculationsAndCharts!$A106+$A$11,0,1,1) -> 2018-08-07 | C106: =OFFSET(InputPriceData!G$15,CalculationsAndCharts!$A106+$A$11,IF($C$7,8,0),1,1) -> 219700 | D106: =OFFSET(InputPriceData!C$15,CalculationsAndCharts!$A106+$A$11,IF($C$7,8,0),1,1) -> 110.99 | E106: =OFFSET(InputPriceData!D$15,CalculationsAndCharts!$A106+$A$11,IF($C$7,8,0),1,1) -> 113.13 | F106: =OFFSET(InputPriceData!E$15,CalculationsAndCharts!$A106+$A$11,IF($C$7,8,0),1,1) -> 110.99 | G106: =OFFSET(InputPriceData!F$15,CalculationsAndCharts!$A106+$A$11,IF($C$7,8,0),1,1) -> 111.79 | H106: 0.81 | I106: 0.81 | J106: 0 | K106: 0.6063528109 | L106: 0.2883974884 | M106: 67.76782432 | N106: 67.76782432 | O106: 52.82482672 | P106: 14.9429976 | Q106: 14.9429976 | R106: 7.952685726 | S106: 9.833474253 | T106: 80.05945879 | W106: 74 | X106: 2017-01-19 | Y106: 5815600 | Z106: 116.56 | AA106: 116.56 | AB106: 114.26 | AC106: 114.26 | AD106: 13 | AF106: -2.3 | AG106: 0 | AH106: 2.3 | AI106: 1.299834197 | AJ106: 1.569809808 | AK106: 45.29600867 | AL106: 57.00057655 | AM106: 45.29600867 | AN106: 0 | AO106: 11.70456788 | AP106: 7.803580058 | AQ106: 13.77190313 | AR106: 56.25457435 | BA106: 20 | BB106: 80
A107: 75 | B107: =OFFSET(InputPriceData!B$15,CalculationsAndCharts!$A107+$A$11,0,1,1) -> 2018-08-06 | C107: =OFFSET(InputPriceData!G$15,CalculationsAndCharts!$A107+$A$11,IF($C$7,8,0),1,1) -> 204800 | D107: =OFFSET(InputPriceData!C$15,CalculationsAndCharts!$A107+$A$11,IF($C$7,8,0),1,1) -> 110.63 | E107: =OFFSET(InputPriceData!D$15,CalculationsAndCharts!$A107+$A$11,IF($C$7,8,0),1,1) -> 111.18 | F107: =OFFSET(InputPriceData!E$15,CalculationsAndCharts!$A107+$A$11,IF($C$7,8,0),1,1) -> 109.8 | G107: =OFFSET(InputPriceData!F$15,CalculationsAndCharts!$A107+$A$11,IF($C$7,8,0),1,1) -> 110.98 | H107: 0.54 | I107: 0.54 | J107: 0 | K107: 0.585988092 | L107: 0.3172372372 | M107: 64.87728732 | N107: 64.87728732 | O107: 52.82482672 | P107: 12.0524606 | Q107: 12.0524606 | R107: 6.917469205 | S107: 9.248509325 | T107: 73.99542498 | W107: 75 | X107: 2016-12-29 | Y107: 8508700 | Z107: 121.16 | AA107: 123.33 | AB107: 116.56 | AC107: 116.56 | AD107: 15 | AF107: -4.6 | AG107: 0 | AH107: 4.6 | AI107: 1.429817617 | AJ107: 1.496790788 | AK107: 48.85578864 | AL107: 57.00057655 | AM107: 45.75625162 | AN107: 3.099537016 | AO107: 11.24432492 | AP107: 7.803580058 | AQ107: 14.16513438 | AR107: 54.70386643 | BA107: 20 | BB107: 80
A108: 76 | B108: =OFFSET(InputPriceData!B$15,CalculationsAndCharts!$A108+$A$11,0,1,1) -> 2018-08-03 | C108: =OFFSET(InputPriceData!G$15,CalculationsAndCharts!$A108+$A$11,IF($C$7,8,0),1,1) -> 238400 | D108: =OFFSET(InputPriceData!C$15,CalculationsAndCharts!$A108+$A$11,IF($C$7,8,0),1,1) -> 110.12 | E108: =OFFSET(InputPriceData!D$15,CalculationsAndCharts!$A108+$A$11,IF($C$7,8,0),1,1) -> 111.14 | F108: =OFFSET(InputPriceData!E$15,CalculationsAndCharts!$A108+$A$11,IF($C$7,8,0),1,1) -> 110.01 | G108: =OFFSET(InputPriceData!F$15,CalculationsAndCharts!$A108+$A$11,IF($C$7,8,0),1,1) -> 110.44 | H108: 0.28 | I108: 0.28 | J108: 0 | K108: 0.5905869012 | L108: 0.348960961 | M108: 62.8586286 | N108: 62.8586286 | O108: 52.82482672 | P108: 10.03380188 | Q108: 10.03380188 | R108: 5.410911629 | S108: 9.024861523 | T108: 59.29856158 | W108: 76 | X108: 2016-12-07 | Y108: 7083600 | Z108: 118.86 | AA108: 121.16 | AB108: 117.93 | AC108: 121.16 | AD108: 15 | AF108: 2.3 | AG108: 2.3 | AH108: 0 | AI108: 1.572799378 | AJ108: 1.186469867 | AK108: 57.00057655 | AL108: 57.00057655 | AM108: 36.65765997 | AN108: 20.34291657 | AO108: 20.34291657 | AP108: 7.416137931 | AQ108: 14.71401456 | AR108: 50.06163524 | BA108: 20 | BB108: 80
A109: 77 | B109: =OFFSET(InputPriceData!B$15,CalculationsAndCharts!$A109+$A$11,0,1,1) -> 2018-08-02 | C109: =OFFSET(InputPriceData!G$15,CalculationsAndCharts!$A109+$A$11,IF($C$7,8,0),1,1) -> 263400 | D109: =OFFSET(InputPriceData!C$15,CalculationsAndCharts!$A109+$A$11,IF($C$7,8,0),1,1) -> 108.25 | E109: =OFFSET(InputPriceData!D$15,CalculationsAndCharts!$A109+$A$11,IF($C$7,8,0),1,1) -> 110.44 | F109: =OFFSET(InputPriceData!E$15,CalculationsAndCharts!$A109+$A$11,IF($C$7,8,0),1,1) -> 108.25 | G109: =OFFSET(InputPriceData!F$15,CalculationsAndCharts!$A109+$A$11,IF($C$7,8,0),1,1) -> 110.16 | H109: 2.11 | I109: 2.11 | J109: 0 | K109: 0.6216455913 | L109: 0.3838570571 | M109: 61.82436141 | N109: 61.82436141 | O109: 52.82482672 | P109: 8.999534691 | Q109: 8.999534691 | R109: 4.156686394 | S109: 8.641168676 | T109: 47.55298231 | W109: 77 | X109: 2016-11-15 | Y109: 746600 | Z109: 116.56 | AA109: 118.86 | AB109: 116.56 | AC109: 118.86 | AD109: 1 | AF109: 2.3 | AG109: 2.3 | AH109: 0 | AI109: 1.500079316 | AJ109: 1.305116854 | AK109: 53.47502368 | AL109: 53.47502368 | AM109: 36.65765997 | AN109: 16.81736371 | AO109: 16.81736371 | AP109: 4.873273359 | AQ109: 14.85403844 | AR109: 32.58834314 | BA109: 20 | BB109: 80
A110: 78 | B110: =OFFSET(InputPriceData!B$15,CalculationsAndCharts!$A110+$A$11,0,1,1) -> 2018-08-01 | C110: =OFFSET(InputPriceData!G$15,CalculationsAndCharts!$A110+$A$11,IF($C$7,8,0),1,1) -> 159100 | D110: =OFFSET(InputPriceData!C$15,CalculationsAndCharts!$A110+$A$11,IF($C$7,8,0),1,1) -> 108.6 | E110: =OFFSET(InputPriceData!D$15,CalculationsAndCharts!$A110+$A$11,IF($C$7,8,0),1,1) -> 109.13 | F110: =OFFSET(InputPriceData!E$15,CalculationsAndCharts!$A110+$A$11,IF($C$7,8,0),1,1) -> 107.54 | G110: =OFFSET(InputPriceData!F$15,CalculationsAndCharts!$A110+$A$11,IF($C$7,8,0),1,1) -> 108.05 | H110: -1.08 | I110: 0 | J110: 1.08 | K110: 0.4728101504 | L110: 0.4222427628 | M110: 52.82482672 | N110: 61.23867409 | O110: 52.82482672 | P110: 0 | Q110: 8.413847369 | R110: 3.212185849 | S110: 9.363906335 | T110: 33.94143745 | W110: 78 | X110: 2016-11-14 | Y110: 337700 | Z110: 114.26 | AA110: 116.56 | AB110: 114.26 | AC110: 116.56 | AD110: 1 | AF110: 2.3 | AG110: 2.3 | AH110: 0 | AI110: 1.420087248 | AJ110: 1.435628539 | AK110: 49.72789149 | AL110: 49.72789149 | AM110: 36.65765997 | AN110: 13.07023152 | AO110: 13.07023152 | AP110: 2.771102896 | AQ110: 14.95822889 | AR110: 18.40258184 | BA110: 20 | BB110: 80
A111: 79 | B111: =OFFSET(InputPriceData!B$15,CalculationsAndCharts!$A111+$A$11,0,1,1) -> 2018-07-31 | C111: =OFFSET(InputPriceData!G$15,CalculationsAndCharts!$A111+$A$11,IF($C$7,8,0),1,1) -> 319200 | D111: =OFFSET(InputPriceData!C$15,CalculationsAndCharts!$A111+$A$11,IF($C$7,8,0),1,1) -> 109.7 | E111: =OFFSET(InputPriceData!D$15,CalculationsAndCharts!$A111+$A$11,IF($C$7,8,0),1,1) -> 109.73 | F111: =OFFSET(InputPriceData!E$15,CalculationsAndCharts!$A111+$A$11,IF($C$7,8,0),1,1) -> 108.83 | G111: =OFFSET(InputPriceData!F$15,CalculationsAndCharts!$A111+$A$11,IF($C$7,8,0),1,1) -> 109.13 | H111: -0.3 | I111: 0 | J111: 0.3 | K111: 0.5200911655 | L111: 0.356467039 | M111: 59.33332924 | N111: 61.23867409 | O111: 53.22197997 | P111: 6.111349271 | Q111: 8.016694116 | R111: 3.651566456 | S111: 10.15985491 | T111: 35.59081964 | W111: 79 | X111: 2016-11-11 | Y111: 3181700 | Z111: 109.66 | AA111: 114.26 | AB111: 108.94 | AC111: 114.26 | AD111: 6 | AF111: 4.6 | AG111: 4.6 | AH111: 0 | AI111: 1.332095973 | AJ111: 1.579191393 | AK111: 45.75625162 | AL111: 46.31805085 | AM111: 36.65765997 | AN111: 9.098591652 | AO111: 9.660390881 | AP111: 1.137323956 | AQ111: 15.02975231 | AR111: 7.517135333 | BA111: 20 | BB111: 80
A112: 80 | B112: =OFFSET(InputPriceData!B$15,CalculationsAndCharts!$A112+$A$11,0,1,1) -> 2018-07-30 | C112: =OFFSET(InputPriceData!G$15,CalculationsAndCharts!$A112+$A$11,IF($C$7,8,0),1,1) -> 273500 | D112: =OFFSET(InputPriceData!C$15,CalculationsAndCharts!$A112+$A$11,IF($C$7,8,0),1,1) -> 108.1 | E112: =OFFSET(InputPriceData!D$15,CalculationsAndCharts!$A112+$A$11,IF($C$7,8,0),1,1) -> 109.89 | F112: =OFFSET(InputPriceData!E$15,CalculationsAndCharts!$A112+$A$11,IF($C$7,8,0),1,1) -> 108.1 | G112: =OFFSET(InputPriceData!F$15,CalculationsAndCharts!$A112+$A$11,IF($C$7,8,0),1,1) -> 109.43 | H112: 1.08 | I112: 1.08 | J112: 0 | K112: 0.572100282 | L112: 0.3621137429 | M112: 61.23867409 | N112: 61.23867409 | O112: 53.22197997 | P112: 8.016694116 | Q112: 8.016694116 | R112: 3.106964364 | S112: 11.00544764 | T112: 27.97693947 | W112: 80 | X112: 2016-11-03 | Y112: 3942400 | Z112: 111.96 | AA112: 113.85 | AB112: 109.66 | AC112: 109.66 | AD112: 13 | AF112: -2.3 | AG112: 0 | AH112: 2.3 | AI112: 1.00530557 | AJ112: 1.737110532 | AK112: 36.65765997 | AL112: 49.93205568 | AM112: 36.65765997 | AN112: 0 | AO112: 13.27439571 | AP112: 0 | AQ112: 15.00242171 | AR112: 0 | BA112: 20 | BB112: 80
A113: 81 | B113: =OFFSET(InputPriceData!B$15,CalculationsAndCharts!$A113+$A$11,0,1,1) -> 2018-07-27 | C113: =OFFSET(InputPriceData!G$15,CalculationsAndCharts!$A113+$A$11,IF($C$7,8,0),1,1) -> 221300 | D113: =OFFSET(InputPriceData!C$15,CalculationsAndCharts!$A113+$A$11,IF($C$7,8,0),1,1) -> 108.86 | E113: =OFFSET(InputPriceData!D$15,CalculationsAndCharts!$A113+$A$11,IF($C$7,8,0),1,1) -> 109.15 | F113: =OFFSET(InputPriceData!E$15,CalculationsAndCharts!$A113+$A$11,IF($C$7,8,0),1,1) -> 107.99 | G113: =OFFSET(InputPriceData!F$15,CalculationsAndCharts!$A113+$A$11,IF($C$7,8,0),1,1) -> 108.35 | H113: -0.54 | I113: 0 | J113: 0.54 | K113: 0.5213103102 | L113: 0.3983251172 | M113: 56.68662762 | N113: 61.41374362 | O113: 53.22197997 | P113: 3.46464765 | Q113: 8.191763649 | R113: 2.1048776 | S113: 11.85104037 | T113: 17.61250514 | W113: 81 | X113: 2016-10-17 | Y113: 8092600 | Z113: 114.26 | AA113: 117.39 | AB113: 111.96 | AC113: 111.96 | AD113: 15 | AF113: -2.3 | AG113: 0 | AH113: 2.3 | AI113: 1.105836127 | AJ113: 1.680821586 | AK113: 39.68324211 | AL113: 53.74427593 | AM113: 39.68324211 | AN113: 0 | AO113: 14.06103382 | AP113: 1.138721444 | AQ113: 14.48184369 | AR113: 7.809173296 | BA113: 20 | BB113: 80
A114: 82 | B114: =OFFSET(InputPriceData!B$15,CalculationsAndCharts!$A114+$A$11,0,1,1) -> 2018-07-26 | C114: =OFFSET(InputPriceData!G$15,CalculationsAndCharts!$A114+$A$11,IF($C$7,8,0),1,1) -> 406600 | D114: =OFFSET(InputPriceData!C$15,CalculationsAndCharts!$A114+$A$11,IF($C$7,8,0),1,1) -> 107.57 | E114: =OFFSET(InputPriceData!D$15,CalculationsAndCharts!$A114+$A$11,IF($C$7,8,0),1,1) -> 109.74 | F114: =OFFSET(InputPriceData!E$15,CalculationsAndCharts!$A114+$A$11,IF($C$7,8,0),1,1) -> 107.27 | G114: =OFFSET(InputPriceData!F$15,CalculationsAndCharts!$A114+$A$11,IF($C$7,8,0),1,1) -> 108.89 | H114: 1.5 | I114: 1.5 | J114: 0 | K114: 0.5734413413 | L114: 0.384157629 | M114: 59.8832454 | N114: 63.48525815 | O114: 53.22197997 | P114: 6.661265427 | Q114: 10.26327818 | R114: 2.819077957 | S114: 11.97435123 | T114: 23.34765574 | W114: 82 | X114: 2016-09-26 | Y114: 4577500 | Z114: 116.56 | AA114: 116.97 | AB114: 114.26 | AC114: 114.26 | AD114: 8 | AF114: -2.3 | AG114: 0 | AH114: 2.3 | AI114: 1.216419739 | AJ114: 1.618903744 | AK114: 42.90232654 | AL114: 57.75274447 | AM114: 42.90232654 | AN114: 0 | AO114: 14.85041793 | AP114: 2.68334454 | AQ114: 14.26883756 | AR114: 18.67475033 | BA114: 20 | BB114: 80
A115: 83 | B115: =OFFSET(InputPriceData!B$15,CalculationsAndCharts!$A115+$A$11,0,1,1) -> 2018-07-25 | C115: =OFFSET(InputPriceData!G$15,CalculationsAndCharts!$A115+$A$11,IF($C$7,8,0),1,1) -> 258600 | D115: =OFFSET(InputPriceData!C$15,CalculationsAndCharts!$A115+$A$11,IF($C$7,8,0),1,1) -> 107.13 | E115: =OFFSET(InputPriceData!D$15,CalculationsAndCharts!$A115+$A$11,IF($C$7,8,0),1,1) -> 107.64 | F115: =OFFSET(InputPriceData!E$15,CalculationsAndCharts!$A115+$A$11,IF($C$7,8,0),1,1) -> 106.22 | G115: =OFFSET(InputPriceData!F$15,CalculationsAndCharts!$A115+$A$11,IF($C$7,8,0),1,1) -> 107.39 | H115: -0.58 | I115: 0 | J115: 0.58 | K115: 0.4807854754 | L115: 0.4225733918 | M115: 53.22197997 | N115: 63.48525815 | O115: 53.22197997 | P115: 0 | Q115: 10.26327818 | R115: 2.697314482 | S115: 11.40233616 | T115: 23.45014478 | W115: 83 | X115: 2016-09-14 | Y115: 3125100 | Z115: 118.86 | AA115: 118.86 | AB115: 116.56 | AC115: 116.56 | AD115: 4 | AF115: -2.3 | AG115: 0 | AH115: 2.3 | AI115: 1.338061713 | AJ115: 1.550794119 | AK115: 46.31805085 | AL115: 61.95341717 | AM115: 46.31805085 | AN115: 0 | AO115: 15.63536631 | AP115: 3.949160715 | AQ115: 13.6783515 | AR115: 28.66206974 | BA115: 20 | BB115: 80
A116: 84 | B116: =OFFSET(InputPriceData!B$15,CalculationsAndCharts!$A116+$A$11,0,1,1) -> 2018-07-24 | C116: =OFFSET(InputPriceData!G$15,CalculationsAndCharts!$A116+$A$11,IF($C$7,8,0),1,1) -> 229700 | D116: =OFFSET(InputPriceData!C$15,CalculationsAndCharts!$A116+$A$11,IF($C$7,8,0),1,1) -> 108.8 | E116: =OFFSET(InputPriceData!D$15,CalculationsAndCharts!$A116+$A$11,IF($C$7,8,0),1,1) -> 108.82 | F116: =OFFSET(InputPriceData!E$15,CalculationsAndCharts!$A116+$A$11,IF($C$7,8,0),1,1) -> 107 | G116: =OFFSET(InputPriceData!F$15,CalculationsAndCharts!$A116+$A$11,IF($C$7,8,0),1,1) -> 107.97 | H116: -0.82 | I116: 0 | J116: 0.82 | K116: 0.5288640229 | L116: 0.406830731 | M116: 56.52099904 | N116: 63.48525815 | O116: 56.52099904 | P116: 0 | Q116: 6.964259108 | R116: 3.223958373 | S116: 10.64607028 | T116: 30.00127758 | W116: 84 | X116: 2016-09-08 | Y116: 0 | Z116: 121.16 | AA116: 121.16 | AB116: 118.86 | AC116: 118.86 | AD116: 1 | AF116: -2.3 | AG116: 0 | AH116: 2.3 | AI116: 1.471867885 | AJ116: 1.475873531 | AK116: 49.93205568 | AL116: 71.39516329 | AM116: 49.93205568 | AN116: 0 | AO116: 21.46310762 | AP116: 4.923918843 | AQ116: 12.78305157 | AR116: 38.22012834 | BA116: 20 | BB116: 80
A117: 85 | B117: =OFFSET(InputPriceData!B$15,CalculationsAndCharts!$A117+$A$11,0,1,1) -> 2018-07-23 | C117: =OFFSET(InputPriceData!G$15,CalculationsAndCharts!$A117+$A$11,IF($C$7,8,0),1,1) -> 249300 | D117: =OFFSET(InputPriceData!C$15,CalculationsAndCharts!$A117+$A$11,IF($C$7,8,0),1,1) -> 109.11 | E117: =OFFSET(InputPriceData!D$15,CalculationsAndCharts!$A117+$A$11,IF($C$7,8,0),1,1) -> 110.11 | F117: =OFFSET(InputPriceData!E$15,CalculationsAndCharts!$A117+$A$11,IF($C$7,8,0),1,1) -> 108.52 | G117: =OFFSET(InputPriceData!F$15,CalculationsAndCharts!$A117+$A$11,IF($C$7,8,0),1,1) -> 108.79 | H117: -0.34 | I117: 0 | J117: 0.34 | K117: 0.5817504252 | L117: 0.3655138041 | M117: 61.41374362 | N117: 74.75164926 | O117: 59.97021329 | P117: 1.443530329 | Q117: 14.78143596 | R117: 3.844906953 | S117: 10.39648647 | T117: 36.6304188 | W117: 85 | X117: 2016-09-07 | Y117: 0 | Z117: 123.46 | AA117: 123.46 | AB117: 121.16 | AC117: 121.16 | AD117: 0 | AF117: -2.3 | AG117: 0 | AH117: 2.3 | AI117: 1.619054673 | AJ117: 1.393460884 | AK117: 53.74427593 | AL117: 71.39516329 | AM117: 53.74427593 | AN117: 0 | AO117: 17.65088737 | AP117: 5.59594911 | AQ117: 11.15928398 | AR117: 49.7007547 | BA117: 20 | BB117: 80
A118: 86 | B118: =OFFSET(InputPriceData!B$15,CalculationsAndCharts!$A118+$A$11,0,1,1) -> 2018-07-20 | C118: =OFFSET(InputPriceData!G$15,CalculationsAndCharts!$A118+$A$11,IF($C$7,8,0),1,1) -> 162900 | D118: =OFFSET(InputPriceData!C$15,CalculationsAndCharts!$A118+$A$11,IF($C$7,8,0),1,1) -> 108.35 | E118: =OFFSET(InputPriceData!D$15,CalculationsAndCharts!$A118+$A$11,IF($C$7,8,0),1,1) -> 109.33 | F118: =OFFSET(InputPriceData!E$15,CalculationsAndCharts!$A118+$A$11,IF($C$7,8,0),1,1) -> 108.26 | G118: =OFFSET(InputPriceData!F$15,CalculationsAndCharts!$A118+$A$11,IF($C$7,8,0),1,1) -> 109.13 | H118: 0.51 | I118: 0.51 | J118: 0 | K118: 0.6399254678 | L118: 0.3680651845 | M118: 63.48525815 | N118: 74.75164926 | O118: 59.97021329 | P118: 3.515044859 | Q118: 14.78143596 | R118: 4.501778886 | S118: 9.55063438 | T118: 46.64749185 | W118: 86 | X118: 2016-09-07 | Y118: 0 | Z118: 125.76 | AA118: 125.76 | AB118: 123.46 | AC118: 123.46 | AD118: 0 | AF118: -2.3 | AG118: 0 | AH118: 2.3 | AI118: 1.780960141 | AJ118: 1.302806972 | AK118: 57.75274447 | AL118: 71.39516329 | AM118: 57.75274447 | AN118: 0 | AO118: 13.64241882 | AP118: 5.59594911 | AQ118: 10.01204392 | AR118: 55.33944627 | BA118: 20 | BB118: 80
A119: 87 | B119: =OFFSET(InputPriceData!B$15,CalculationsAndCharts!$A119+$A$11,0,1,1) -> 2018-07-19 | C119: =OFFSET(InputPriceData!G$15,CalculationsAndCharts!$A119+$A$11,IF($C$7,8,0),1,1) -> 276400 | D119: =OFFSET(InputPriceData!C$15,CalculationsAndCharts!$A119+$A$11,IF($C$7,8,0),1,1) -> 107.62 | E119: =OFFSET(InputPriceData!D$15,CalculationsAndCharts!$A119+$A$11,IF($C$7,8,0),1,1) -> 109.08 | F119: =OFFSET(InputPriceData!E$15,CalculationsAndCharts!$A119+$A$11,IF($C$7,8,0),1,1) -> 107.53 | G119: =OFFSET(InputPriceData!F$15,CalculationsAndCharts!$A119+$A$11,IF($C$7,8,0),1,1) -> 108.62 | H119: 0.51 | I119: 0.51 | J119: 0 | K119: 0.6529180145 | L119: 0.404871703 | M119: 61.72474583 | N119: 74.75164926 | O119: 59.97021329 | P119: 1.754532535 | Q119: 14.78143596 | R119: 5.980877691 | S119: 9.819606895 | T119: 60.29349504 | W119: 87 | X119: 2016-09-07 | Y119: 13384900 | Z119: 130.36 | AA119: 132.55 | AB119: 125.76 | AC119: 125.76 | AD119: 42 | AF119: -4.6 | AG119: 0 | AH119: 4.6 | AI119: 1.959056155 | AJ119: 1.203087669 | AK119: 61.95341717 | AL119: 71.39516329 | AM119: 61.95341717 | AN119: 0 | AO119: 9.441746126 | AP119: 7.336232129 | AQ119: 10.04702458 | AR119: 72.29934322 | BA119: 20 | BB119: 80
A120: 88 | B120: =OFFSET(InputPriceData!B$15,CalculationsAndCharts!$A120+$A$11,0,1,1) -> 2018-07-18 | C120: =OFFSET(InputPriceData!G$15,CalculationsAndCharts!$A120+$A$11,IF($C$7,8,0),1,1) -> 375600 | D120: =OFFSET(InputPriceData!C$15,CalculationsAndCharts!$A120+$A$11,IF($C$7,8,0),1,1) -> 110.8 | E120: =OFFSET(InputPriceData!D$15,CalculationsAndCharts!$A120+$A$11,IF($C$7,8,0),1,1) -> 110.85 | F120: =OFFSET(InputPriceData!E$15,CalculationsAndCharts!$A120+$A$11,IF($C$7,8,0),1,1) -> 108.1 | G120: =OFFSET(InputPriceData!F$15,CalculationsAndCharts!$A120+$A$11,IF($C$7,8,0),1,1) -> 108.11 | H120: -2.42 | I120: 0 | J120: 2.42 | K120: 0.667209816 | L120: 0.4453588733 | M120: 59.97021329 | N120: 74.75164926 | O120: 59.97021329 | P120: 0 | Q120: 14.78143596 | R120: 7.878213134 | S120: 10.08857941 | T120: 77.32396066 | W120: 88 | X120: 2016-07-08 | Y120: 1988100 | Z120: 128.06 | AA120: 130.36 | AB120: 128.06 | AC120: 130.36 | AD120: 2 | AF120: 2.3 | AG120: 2.3 | AH120: 0 | AI120: 2.15496177 | AJ120: 0.863396436 | AK120: 71.39516329 | AL120: 71.39516329 | AM120: 62.28539175 | AN120: 9.109771549 | AO120: 9.109771549 | AP120: 8.762410686 | AQ120: 10.29298487 | AR120: 84.3108192 | BA120: 20 | BB120: 80
A121: 89 | B121: =OFFSET(InputPriceData!B$15,CalculationsAndCharts!$A121+$A$11,0,1,1) -> 2018-07-17 | C121: =OFFSET(InputPriceData!G$15,CalculationsAndCharts!$A121+$A$11,IF($C$7,8,0),1,1) -> 386700 | D121: =OFFSET(InputPriceData!C$15,CalculationsAndCharts!$A121+$A$11,IF($C$7,8,0),1,1) -> 109.2 | E121: =OFFSET(InputPriceData!D$15,CalculationsAndCharts!$A121+$A$11,IF($C$7,8,0),1,1) -> 111.66 | F121: =OFFSET(InputPriceData!E$15,CalculationsAndCharts!$A121+$A$11,IF($C$7,8,0),1,1) -> 108.94 | G121: =OFFSET(InputPriceData!F$15,CalculationsAndCharts!$A121+$A$11,IF($C$7,8,0),1,1) -> 110.53 | H121: 1.4 | I121: 1.4 | J121: 0 | K121: 0.7339307976 | L121: 0.2478947606 | M121: 74.75164926 | N121: 74.75164926 | O121: 65.57339875 | P121: 9.178250508 | Q121: 9.178250508 | R121: 9.615986399 | S121: 9.978673179 | T121: 95.4092491 | W121: 89 | X121: 2016-07-06 | Y121: 1374800 | Z121: 125.76 | AA121: 128.06 | AB121: 125.76 | AC121: 128.06 | AD121: 3 | AF121: 2.3 | AG121: 2.3 | AH121: 0 | AI121: 2.140457947 | AJ121: 0.9497360796 | AK121: 69.26613438 | AL121: 69.26613438 | AM121: 56.90914961 | AN121: 12.35698477 | AO121: 12.35698477 | AP121: 8.721952081 | AQ121: 10.25252627 | AR121: 84.24950447 | BA121: 20 | BB121: 80
A122: 90 | B122: =OFFSET(InputPriceData!B$15,CalculationsAndCharts!$A122+$A$11,0,1,1) -> 2018-07-16 | C122: =OFFSET(InputPriceData!G$15,CalculationsAndCharts!$A122+$A$11,IF($C$7,8,0),1,1) -> 238500 | D122: =OFFSET(InputPriceData!C$15,CalculationsAndCharts!$A122+$A$11,IF($C$7,8,0),1,1) -> 108.77 | E122: =OFFSET(InputPriceData!D$15,CalculationsAndCharts!$A122+$A$11,IF($C$7,8,0),1,1) -> 109.18 | F122: =OFFSET(InputPriceData!E$15,CalculationsAndCharts!$A122+$A$11,IF($C$7,8,0),1,1) -> 107.28 | G122: =OFFSET(InputPriceData!F$15,CalculationsAndCharts!$A122+$A$11,IF($C$7,8,0),1,1) -> 109.13 | H122: 0.5 | I122: 0.5 | J122: 0 | K122: 0.6673238773 | L122: 0.2726842367 | M122: 70.99128905 | N122: 70.99128905 | O122: 65.30413143 | P122: 5.687157624 | Q122: 5.687157624 | R122: 9.58352969 | S122: 10.90279913 | T122: 87.10083296 | W122: 90 | X122: 2016-06-30 | Y122: 0 | Z122: 123.46 | AA122: 125.76 | AB122: 123.46 | AC122: 125.76 | AD122: 0 | AF122: 2.3 | AG122: 2.3 | AH122: 0 | AI122: 2.124503742 | AJ122: 1.044709688 | AK122: 67.03567901 | AL122: 67.03567901 | AM122: 56.90914961 | AN122: 10.1265294 | AO122: 10.1265294 | AP122: 7.934518631 | AQ122: 9.665897587 | AR122: 81.24720294 | BA122: 20 | BB122: 80
A123: 91 | B123: =OFFSET(InputPriceData!B$15,CalculationsAndCharts!$A123+$A$11,0,1,1) -> 2018-07-13 | C123: =OFFSET(InputPriceData!G$15,CalculationsAndCharts!$A123+$A$11,IF($C$7,8,0),1,1) -> 300900 | D123: =OFFSET(InputPriceData!C$15,CalculationsAndCharts!$A123+$A$11,IF($C$7,8,0),1,1) -> 107.73 | E123: =OFFSET(InputPriceData!D$15,CalculationsAndCharts!$A123+$A$11,IF($C$7,8,0),1,1) -> 109.42 | F123: =OFFSET(InputPriceData!E$15,CalculationsAndCharts!$A123+$A$11,IF($C$7,8,0),1,1) -> 107.73 | G123: =OFFSET(InputPriceData!F$15,CalculationsAndCharts!$A123+$A$11,IF($C$7,8,0),1,1) -> 108.63 | H123: 0.24 | I123: 0.24 | J123: 0 | K123: 0.6840562651 | L123: 0.2999526604 | M123: 69.51728256 | N123: 69.51728256 | O123: 65.30413143 | P123: 4.213151129 | Q123: 4.213151129 | R123: 8.872634987 | S123: 12.50654844 | T123: 70.38115965 | W123: 91 | X123: 2016-06-30 | Y123: 0 | Z123: 121.16 | AA123: 123.46 | AB123: 121.16 | AC123: 123.46 | AD123: 1 | AF123: 2.3 | AG123: 2.3 | AH123: 0 | AI123: 2.106954116 | AJ123: 1.149180656 | AK123: 64.70721464 | AL123: 65.3821165 | AM123: 56.90914961 | AN123: 7.798065025 | AO123: 8.472966886 | AP123: 7.334264788 | AQ123: 10.02363816 | AR123: 72.44692742 | BA123: 20 | BB123: 80
A124: 92 | B124: =OFFSET(InputPriceData!B$15,CalculationsAndCharts!$A124+$A$11,0,1,1) -> 2018-07-12 | C124: =OFFSET(InputPriceData!G$15,CalculationsAndCharts!$A124+$A$11,IF($C$7,8,0),1,1) -> 241000 | D124: =OFFSET(InputPriceData!C$15,CalculationsAndCharts!$A124+$A$11,IF($C$7,8,0),1,1) -> 107.47 | E124: =OFFSET(InputPriceData!D$15,CalculationsAndCharts!$A124+$A$11,IF($C$7,8,0),1,1) -> 108.59 | F124: =OFFSET(InputPriceData!E$15,CalculationsAndCharts!$A124+$A$11,IF($C$7,8,0),1,1) -> 107.24 | G124: =OFFSET(InputPriceData!F$15,CalculationsAndCharts!$A124+$A$11,IF($C$7,8,0),1,1) -> 108.39 | H124: 1.1 | I124: 1.1 | J124: 0 | K124: 0.7284618916 | L124: 0.3299479264 | M124: 68.82607089 | N124: 68.82607089 | O124: 63.85848224 | P124: 4.967588641 | Q124: 4.967588641 | R124: 8.345991096 | S124: 14.40081259 | T124: 57.55533383 | W124: 92 | X124: 2016-06-29 | Y124: 11104100 | Z124: 116.56 | AA124: 121.16 | AB124: 114.34 | AC124: 121.16 | AD124: 14 | AF124: 4.6 | AG124: 4.6 | AH124: 0 | AI124: 2.087649528 | AJ124: 1.264098722 | AK124: 62.28539175 | AL124: 65.3821165 | AM124: 56.90914961 | AN124: 5.376242134 | AO124: 8.472966886 | AP124: 7.983063406 | AQ124: 10.58807404 | AR124: 74.69131832 | BA124: 20 | BB124: 80
A125: 93 | B125: =OFFSET(InputPriceData!B$15,CalculationsAndCharts!$A125+$A$11,0,1,1) -> 2018-07-11 | C125: =OFFSET(InputPriceData!G$15,CalculationsAndCharts!$A125+$A$11,IF($C$7,8,0),1,1) -> 309800 | D125: =OFFSET(InputPriceData!C$15,CalculationsAndCharts!$A125+$A$11,IF($C$7,8,0),1,1) -> 107.15 | E125: =OFFSET(InputPriceData!D$15,CalculationsAndCharts!$A125+$A$11,IF($C$7,8,0),1,1) -> 107.84 | F125: =OFFSET(InputPriceData!E$15,CalculationsAndCharts!$A125+$A$11,IF($C$7,8,0),1,1) -> 106.12 | G125: =OFFSET(InputPriceData!F$15,CalculationsAndCharts!$A125+$A$11,IF($C$7,8,0),1,1) -> 107.29 | H125: 0.09 | I125: 0.09 | J125: 0 | K125: 0.6913080807 | L125: 0.362942719 | M125: 65.57339875 | N125: 66.88951221 | O125: 58.87489296 | P125: 6.698505788 | Q125: 8.014619248 | R125: 7.725042515 | S125: 16.10843792 | T125: 47.66062315 | W125: 93 | X125: 2016-06-09 | Y125: 3029900 | Z125: 121.16 | AA125: 121.9 | AB125: 116.56 | AC125: 116.56 | AD125: 5 | AF125: -4.6 | AG125: 0 | AH125: 4.6 | AI125: 1.83641448 | AJ125: 1.390508594 | AK125: 56.90914961 | AL125: 65.3821165 | AM125: 56.90914961 | AN125: 0 | AO125: 8.472966886 | AP125: 8.563580791 | AQ125: 10.78150083 | AR125: 78.69852626 | BA125: 20 | BB125: 80
A126: 94 | B126: =OFFSET(InputPriceData!B$15,CalculationsAndCharts!$A126+$A$11,0,1,1) -> 2018-07-10 | C126: =OFFSET(InputPriceData!G$15,CalculationsAndCharts!$A126+$A$11,IF($C$7,8,0),1,1) -> 205000 | D126: =OFFSET(InputPriceData!C$15,CalculationsAndCharts!$A126+$A$11,IF($C$7,8,0),1,1) -> 107.85 | E126: =OFFSET(InputPriceData!D$15,CalculationsAndCharts!$A126+$A$11,IF($C$7,8,0),1,1) -> 108.02 | F126: =OFFSET(InputPriceData!E$15,CalculationsAndCharts!$A126+$A$11,IF($C$7,8,0),1,1) -> 106.53 | G126: =OFFSET(InputPriceData!F$15,CalculationsAndCharts!$A126+$A$11,IF($C$7,8,0),1,1) -> 107.2 | H126: -0.3 | I126: 0 | J126: 0.3 | K126: 0.7514388888 | L126: 0.3992369909 | M126: 65.30413143 | N126: 66.88951221 | O126: 49.95629613 | P126: 15.3478353 | Q126: 16.93321608 | R126: 6.887729292 | S126: 16.67770498 | T126: 41.05286928 | W126: 94 | X126: 2016-06-02 | Y126: 473200 | Z126: 118.86 | AA126: 121.16 | AB126: 118.86 | AC126: 121.16 | AD126: 1 | AF126: 2.3 | AG126: 2.3 | AH126: 0 | AI126: 2.020055928 | AJ126: 1.069559454 | AK126: 65.3821165 | AL126: 65.3821165 | AM126: 51.45985234 | AN126: 13.92226415 | AO126: 13.92226415 | AP126: 9.442349162 | AQ126: 10.62861896 | AR126: 88.01085394 | BA126: 20 | BB126: 80
A127: 95 | B127: =OFFSET(InputPriceData!B$15,CalculationsAndCharts!$A127+$A$11,0,1,1) -> 2018-07-09 | C127: =OFFSET(InputPriceData!G$15,CalculationsAndCharts!$A127+$A$11,IF($C$7,8,0),1,1) -> 282700 | D127: =OFFSET(InputPriceData!C$15,CalculationsAndCharts!$A127+$A$11,IF($C$7,8,0),1,1) -> 106.55 | E127: =OFFSET(InputPriceData!D$15,CalculationsAndCharts!$A127+$A$11,IF($C$7,8,0),1,1) -> 107.94 | F127: =OFFSET(InputPriceData!E$15,CalculationsAndCharts!$A127+$A$11,IF($C$7,8,0),1,1) -> 106.55 | G127: =OFFSET(InputPriceData!F$15,CalculationsAndCharts!$A127+$A$11,IF($C$7,8,0),1,1) -> 107.5 | H127: 1.14 | I127: 1.14 | J127: 0 | K127: 0.8265827777 | L127: 0.40916069 | M127: 66.88951221 | N127: 66.88951221 | O127: 49.95629613 | P127: 16.93321608 | Q127: 16.93321608 | R127: 4.969249879 | S127: 15.88891067 | T127: 31.07935231 | W127: 95 | X127: 2016-06-01 | Y127: 835900 | Z127: 116.56 | AA127: 118.86 | AB127: 116.56 | AC127: 118.86 | AD127: 3 | AF127: 2.3 | AG127: 2.3 | AH127: 0 | AI127: 1.992061521 | AJ127: 1.176515399 | AK127: 62.8692808 | AL127: 62.8692808 | AM127: 51.45985234 | AN127: 11.40942845 | AO127: 11.40942845 | AP127: 8.762659315 | AQ127: 10.84160758 | AR127: 80.08566613 | BA127: 20 | BB127: 80
A128: 96 | B128: =OFFSET(InputPriceData!B$15,CalculationsAndCharts!$A128+$A$11,0,1,1) -> 2018-07-06 | C128: =OFFSET(InputPriceData!G$15,CalculationsAndCharts!$A128+$A$11,IF($C$7,8,0),1,1) -> 357000 | D128: =OFFSET(InputPriceData!C$15,CalculationsAndCharts!$A128+$A$11,IF($C$7,8,0),1,1) -> 104.95 | E128: =OFFSET(InputPriceData!D$15,CalculationsAndCharts!$A128+$A$11,IF($C$7,8,0),1,1) -> 107.02 | F128: =OFFSET(InputPriceData!E$15,CalculationsAndCharts!$A128+$A$11,IF($C$7,8,0),1,1) -> 104.95 | G128: =OFFSET(InputPriceData!F$15,CalculationsAndCharts!$A128+$A$11,IF($C$7,8,0),1,1) -> 106.36 | H128: 1.66 | I128: 1.66 | J128: 0 | K128: 0.7952410555 | L128: 0.450076759 | M128: 63.85848224 | N128: 63.85848224 | O128: 49.95629613 | P128: 13.90218612 | Q128: 13.90218612 | R128: 3.152663209 | S128: 14.91195767 | T128: 21.00101317 | W128: 96 | X128: 2016-05-26 | Y128: 254100 | Z128: 114.26 | AA128: 116.56 | AB128: 114.26 | AC128: 116.56 | AD128: 2 | AF128: 2.3 | AG128: 2.3 | AH128: 0 | AI128: 1.961267673 | AJ128: 1.294166939 | AK128: 60.24595505 | AL128: 60.24595505 | AM128: 51.45985234 | AN128: 8.786102713 | AO128: 8.786102713 | AP128: 9.289752398 | AQ128: 11.36870066 | AR128: 81.00091433 | BA128: 20 | BB128: 80
A129: 97 | B129: =OFFSET(InputPriceData!B$15,CalculationsAndCharts!$A129+$A$11,0,1,1) -> 2018-07-05 | C129: =OFFSET(InputPriceData!G$15,CalculationsAndCharts!$A129+$A$11,IF($C$7,8,0),1,1) -> 286100 | D129: =OFFSET(InputPriceData!C$15,CalculationsAndCharts!$A129+$A$11,IF($C$7,8,0),1,1) -> 102.78 | E129: =OFFSET(InputPriceData!D$15,CalculationsAndCharts!$A129+$A$11,IF($C$7,8,0),1,1) -> 104.76 | F129: =OFFSET(InputPriceData!E$15,CalculationsAndCharts!$A129+$A$11,IF($C$7,8,0),1,1) -> 102.45 | G129: =OFFSET(InputPriceData!F$15,CalculationsAndCharts!$A129+$A$11,IF($C$7,8,0),1,1) -> 104.7 | H129: 2.36 | I129: 2.36 | J129: 0 | K129: 0.708765161 | L129: 0.4950844349 | M129: 58.87489296 | N129: 66.52755423 | O129: 49.95629613 | P129: 8.918596834 | Q129: 16.5712581 | R129: 3.836161858 | S129: 15.59545632 | T129: 24.4412254 | W129: 97 | X129: 2016-05-24 | Y129: 1480400 | Z129: 109.66 | AA129: 114.26 | AB129: 109.48 | AC129: 114.26 | AD129: 4 | AF129: 4.6 | AG129: 4.6 | AH129: 0 | AI129: 1.927394441 | AJ129: 1.423583633 | AK129: 57.51736951 | AL129: 59.12380765 | AM129: 51.45985234 | AN129: 6.057517166 | AO129: 7.663955312 | AP129: 9.702726179 | AQ129: 11.78167444 | AR129: 81.66126942 | BA129: 20 | BB129: 80
A130: 98 | B130: =OFFSET(InputPriceData!B$15,CalculationsAndCharts!$A130+$A$11,0,1,1) -> 2018-07-03 | C130: =OFFSET(InputPriceData!G$15,CalculationsAndCharts!$A130+$A$11,IF($C$7,8,0),1,1) -> 192000 | D130: =OFFSET(InputPriceData!C$15,CalculationsAndCharts!$A130+$A$11,IF($C$7,8,0),1,1) -> 103.12 | E130: =OFFSET(InputPriceData!D$15,CalculationsAndCharts!$A130+$A$11,IF($C$7,8,0),1,1) -> 104.38 | F130: =OFFSET(InputPriceData!E$15,CalculationsAndCharts!$A130+$A$11,IF($C$7,8,0),1,1) -> 102.17 | G130: =OFFSET(InputPriceData!F$15,CalculationsAndCharts!$A130+$A$11,IF($C$7,8,0),1,1) -> 102.34 | H130: -0.69 | I130: 0 | J130: 0.69 | K130: 0.5436416771 | L130: 0.5445928784 | M130: 49.95629613 | N130: 68.47344827 | O130: 49.95629613 | P130: 0 | Q130: 18.51715215 | R130: 4.8130739 | S130: 15.61578571 | T130: 30.62572874 | W130: 98 | X130: 2016-05-18 | Y130: 2255800 | Z130: 114.26 | AA130: 115.25 | AB130: 109.66 | AC130: 109.66 | AD130: 6 | AF130: -4.6 | AG130: 0 | AH130: 4.6 | AI130: 1.660133885 | AJ130: 1.565941996 | AK130: 51.45985234 | AL130: 59.12380765 | AM130: 46.13535368 | AN130: 5.324498658 | AO130: 12.98845397 | AP130: 9.992569187 | AQ130: 11.99145896 | AR130: 82.64155069 | BA130: 20 | BB130: 80
A131: 99 | B131: =OFFSET(InputPriceData!B$15,CalculationsAndCharts!$A131+$A$11,0,1,1) -> 2018-07-02 | C131: =OFFSET(InputPriceData!G$15,CalculationsAndCharts!$A131+$A$11,IF($C$7,8,0),1,1) -> 431100 | D131: =OFFSET(InputPriceData!C$15,CalculationsAndCharts!$A131+$A$11,IF($C$7,8,0),1,1) -> 104.07 | E131: =OFFSET(InputPriceData!D$15,CalculationsAndCharts!$A131+$A$11,IF($C$7,8,0),1,1) -> 104.18 | F131: =OFFSET(InputPriceData!E$15,CalculationsAndCharts!$A131+$A$11,IF($C$7,8,0),1,1) -> 101.97 | G131: =OFFSET(InputPriceData!F$15,CalculationsAndCharts!$A131+$A$11,IF($C$7,8,0),1,1) -> 103.03 | H131: -1.53 | I131: 0 | J131: 1.53 | K131: 0.5980058448 | L131: 0.5300521663 | M131: 53.01197624 | N131: 72.37924055 | O131: 53.01197624 | P131: 0 | Q131: 19.36726431 | R131: 6.866073191 | S131: 15.35414098 | T131: 44.4286952 | W131: 99 | X131: 2016-05-10 | Y131: 0 | Z131: 111.96 | AA131: 114.26 | AB131: 111.96 | AC131: 114.26 | AD131: 1 | AF131: 2.3 | AG131: 2.3 | AH131: 0 | AI131: 1.826147273 | AJ131: 1.262536196 | AK131: 59.12380765 | AL131: 59.12380765 | AM131: 46.13535368 | AN131: 12.98845397 | AO131: 12.98845397 | AP131: 9.327006855 | AQ131: 11.53568115 | AR131: 80.15866657 | BA131: 20 | BB131: 80
A132: 100 | B132: =OFFSET(InputPriceData!B$15,CalculationsAndCharts!$A132+$A$11,0,1,1) -> 2018-06-29 | C132: =OFFSET(InputPriceData!G$15,CalculationsAndCharts!$A132+$A$11,IF($C$7,8,0),1,1) -> 541100 | D132: =OFFSET(InputPriceData!C$15,CalculationsAndCharts!$A132+$A$11,IF($C$7,8,0),1,1) -> 105.44 | E132: =OFFSET(InputPriceData!D$15,CalculationsAndCharts!$A132+$A$11,IF($C$7,8,0),1,1) -> 105.62 | F132: =OFFSET(InputPriceData!E$15,CalculationsAndCharts!$A132+$A$11,IF($C$7,8,0),1,1) -> 103.98 | G132: =OFFSET(InputPriceData!F$15,CalculationsAndCharts!$A132+$A$11,IF($C$7,8,0),1,1) -> 104.56 | H132: -1.09 | I132: 0 | J132: 1.09 | K132: 0.6578064293 | L132: 0.4300573829 | M132: 60.46771865 | N132: 79.09630993 | O132: 60.46771865 | P132: 0 | Q132: 18.62859127 | R132: 8.763970132 | S132: 14.83112988 | T132: 58.69596073 | W132: 100 | X132: 2016-05-09 | Y132: 4954600 | Z132: 109.66 | AA132: 111.96 | AB132: 107.31 | AC132: 111.96 | AD132: 13 | AF132: 2.3 | AG132: 2.3 | AH132: 0 | AI132: 1.778762 | AJ132: 1.388789815 | AK132: 56.1557349 | AL132: 56.1557349 | AM132: 46.13535368 | AN132: 10.02038122 | AO132: 10.02038122 | AP132: 8.021365499 | AQ132: 11.04062623 | AR132: 72.00102881 | BA132: 20 | BB132: 80
A133: 101 | B133: =OFFSET(InputPriceData!B$15,CalculationsAndCharts!$A133+$A$11,0,1,1) -> 2018-06-28 | C133: =OFFSET(InputPriceData!G$15,CalculationsAndCharts!$A133+$A$11,IF($C$7,8,0),1,1) -> 911400 | D133: =OFFSET(InputPriceData!C$15,CalculationsAndCharts!$A133+$A$11,IF($C$7,8,0),1,1) -> 105.63 | E133: =OFFSET(InputPriceData!D$15,CalculationsAndCharts!$A133+$A$11,IF($C$7,8,0),1,1) -> 106.7 | F133: =OFFSET(InputPriceData!E$15,CalculationsAndCharts!$A133+$A$11,IF($C$7,8,0),1,1) -> 104.11 | G133: =OFFSET(InputPriceData!F$15,CalculationsAndCharts!$A133+$A$11,IF($C$7,8,0),1,1) -> 105.65 | H133: -0.34 | I133: 0 | J133: 0.34 | K133: 0.7235870722 | L133: 0.3640631212 | M133: 66.52755423 | N133: 79.09630993 | O133: 66.52755423 | P133: 0 | Q133: 12.5687557 | R133: 9.38029417 | S133: 13.30687188 | T133: 69.96631468 | W133: 101 | X133: 2016-04-20 | Y133: 2826200 | Z133: 105.06 | AA133: 109.66 | AB133: 103.15 | AC133: 109.66 | AD133: 7 | AF133: 4.6 | AG133: 4.6 | AH133: 0 | AI133: 1.7266382 | AJ133: 1.527668797 | AK133: 53.0570165 | AL133: 53.27678142 | AM133: 46.02686953 | AN133: 7.030146968 | AO133: 7.24991189 | AP133: 7.897319672 | AQ133: 11.06310641 | AR133: 70.74482121 | BA133: 20 | BB133: 80
A134: 102 | B134: =OFFSET(InputPriceData!B$15,CalculationsAndCharts!$A134+$A$11,0,1,1) -> 2018-06-27 | C134: =OFFSET(InputPriceData!G$15,CalculationsAndCharts!$A134+$A$11,IF($C$7,8,0),1,1) -> 622700 | D134: =OFFSET(InputPriceData!C$15,CalculationsAndCharts!$A134+$A$11,IF($C$7,8,0),1,1) -> 106.23 | E134: =OFFSET(InputPriceData!D$15,CalculationsAndCharts!$A134+$A$11,IF($C$7,8,0),1,1) -> 107.93 | F134: =OFFSET(InputPriceData!E$15,CalculationsAndCharts!$A134+$A$11,IF($C$7,8,0),1,1) -> 104.49 | G134: =OFFSET(InputPriceData!F$15,CalculationsAndCharts!$A134+$A$11,IF($C$7,8,0),1,1) -> 105.99 | H134: -0.69 | I134: 0 | J134: 0.69 | K134: 0.7959457795 | L134: 0.3664694333 | M134: 68.47344827 | N134: 79.09630993 | O134: 68.47344827 | P134: 0 | Q134: 10.62286165 | R134: 11.40850639 | S134: 13.91512558 | T134: 81.40138542 | W134: 102 | X134: 2016-04-11 | Y134: 3129500 | Z134: 109.66 | AA134: 111.16 | AB134: 105.06 | AC134: 105.06 | AD134: 8 | AF134: -4.6 | AG134: 0 | AH134: 4.6 | AI134: 1.43930202 | AJ134: 1.680435676 | AK134: 46.13535368 | AL134: 53.27678142 | AM134: 37.65060831 | AN134: 8.484745378 | AO134: 15.62617312 | AP134: 7.018551301 | AQ134: 11.91156345 | AR134: 58.4316216 | BA134: 20 | BB134: 80
A135: 103 | B135: =OFFSET(InputPriceData!B$15,CalculationsAndCharts!$A135+$A$11,0,1,1) -> 2018-06-26 | C135: =OFFSET(InputPriceData!G$15,CalculationsAndCharts!$A135+$A$11,IF($C$7,8,0),1,1) -> 490000 | D135: =OFFSET(InputPriceData!C$15,CalculationsAndCharts!$A135+$A$11,IF($C$7,8,0),1,1) -> 108.07 | E135: =OFFSET(InputPriceData!D$15,CalculationsAndCharts!$A135+$A$11,IF($C$7,8,0),1,1) -> 108.37 | F135: =OFFSET(InputPriceData!E$15,CalculationsAndCharts!$A135+$A$11,IF($C$7,8,0),1,1) -> 106.42 | G135: =OFFSET(InputPriceData!F$15,CalculationsAndCharts!$A135+$A$11,IF($C$7,8,0),1,1) -> 106.68 | H135: -1.13 | I135: 0 | J135: 1.13 | K135: 0.8755403574 | L135: 0.3341163767 | M135: 72.37924055 | N135: 79.09630993 | O135: 69.97871783 | P135: 2.400522719 | Q135: 9.117592093 | R135: 13.78026496 | S135: 14.95902644 | T135: 91.50833895 | W135: 103 | X135: 2016-03-30 | Y135: 1978700 | Z135: 107.36 | AA135: 109.66 | AB135: 105.35 | AC135: 109.66 | AD135: 5 | AF135: 2.3 | AG135: 2.3 | AH135: 0 | AI135: 1.583232222 | AJ135: 1.388479244 | AK135: 53.27678142 | AL135: 53.27678142 | AM135: 37.65060831 | AN135: 15.62617312 | AO135: 15.62617312 | AP135: 5.957958129 | AQ135: 11.82233511 | AR135: 49.97308055 | BA135: 20 | BB135: 80
A136: 104 | B136: =OFFSET(InputPriceData!B$15,CalculationsAndCharts!$A136+$A$11,0,1,1) -> 2018-06-25 | C136: =OFFSET(InputPriceData!G$15,CalculationsAndCharts!$A136+$A$11,IF($C$7,8,0),1,1) -> 609800 | D136: =OFFSET(InputPriceData!C$15,CalculationsAndCharts!$A136+$A$11,IF($C$7,8,0),1,1) -> 106.32 | E136: =OFFSET(InputPriceData!D$15,CalculationsAndCharts!$A136+$A$11,IF($C$7,8,0),1,1) -> 108.25 | F136: =OFFSET(InputPriceData!E$15,CalculationsAndCharts!$A136+$A$11,IF($C$7,8,0),1,1) -> 105.75 | G136: =OFFSET(InputPriceData!F$15,CalculationsAndCharts!$A136+$A$11,IF($C$7,8,0),1,1) -> 107.81 | H136: 1.5 | I136: 1.5 | J136: 0 | K136: 0.9630943932 | L136: 0.2545280143 | M136: 79.09630993 | N136: 79.09630993 | O136: 59.72613461 | P136: 19.37017531 | Q136: 19.37017531 | R136: 15.04764227 | S136: 15.42933745 | T136: 96.89816015 | W136: 104 | X136: 2016-03-22 | Y136: 1315300 | Z136: 105.06 | AA136: 107.36 | AB136: 105.06 | AC136: 107.36 | AD136: 3 | AF136: 2.3 | AG136: 2.3 | AH136: 0 | AI136: 1.511555445 | AJ136: 1.527327168 | AK136: 49.74050127 | AL136: 49.74050127 | AM136: 37.65060831 | AN136: 12.08989296 | AO136: 12.08989296 | AP136: 4.004686489 | AQ136: 12.4678288 | AR136: 31.86458499 | BA136: 20 | BB136: 80
A137: 105 | B137: =OFFSET(InputPriceData!B$15,CalculationsAndCharts!$A137+$A$11,0,1,1) -> 2018-06-22 | C137: =OFFSET(InputPriceData!G$15,CalculationsAndCharts!$A137+$A$11,IF($C$7,8,0),1,1) -> 1017900 | D137: =OFFSET(InputPriceData!C$15,CalculationsAndCharts!$A137+$A$11,IF($C$7,8,0),1,1) -> 106.97 | E137: =OFFSET(InputPriceData!D$15,CalculationsAndCharts!$A137+$A$11,IF($C$7,8,0),1,1) -> 107.59 | F137: =OFFSET(InputPriceData!E$15,CalculationsAndCharts!$A137+$A$11,IF($C$7,8,0),1,1) -> 105.18 | G137: =OFFSET(InputPriceData!F$15,CalculationsAndCharts!$A137+$A$11,IF($C$7,8,0),1,1) -> 106.31 | H137: 0.17 | I137: 0.17 | J137: 0 | K137: 0.9094038325 | L137: 0.2799808158 | M137: 76.46002778 | N137: 76.46002778 | O137: 59.72613461 | P137: 16.73389317 | Q137: 16.73389317 | R137: 14.23638038 | S137: 14.61807556 | T137: 96.7271864 | W137: 105 | X137: 2016-03-17 | Y137: 6569100 | Z137: 100.46 | AA137: 105.06 | AB137: 99.63 | AC137: 105.06 | AD137: 10 | AF137: 4.6 | AG137: 4.6 | AH137: 0 | AI137: 1.432710989 | AJ137: 1.680059885 | AK137: 46.02686953 | AL137: 46.99283976 | AM137: 37.65060831 | AN137: 8.376261226 | AO137: 9.342231456 | AP137: 2.493449869 | AQ137: 13.10334763 | AR137: 18.88498235 | BA137: 20 | BB137: 80
A138: 106 | B138: =OFFSET(InputPriceData!B$15,CalculationsAndCharts!$A138+$A$11,0,1,1) -> 2018-06-21 | C138: =OFFSET(InputPriceData!G$15,CalculationsAndCharts!$A138+$A$11,IF($C$7,8,0),1,1) -> 809200 | D138: =OFFSET(InputPriceData!C$15,CalculationsAndCharts!$A138+$A$11,IF($C$7,8,0),1,1) -> 103.21 | E138: =OFFSET(InputPriceData!D$15,CalculationsAndCharts!$A138+$A$11,IF($C$7,8,0),1,1) -> 106.51 | F138: =OFFSET(InputPriceData!E$15,CalculationsAndCharts!$A138+$A$11,IF($C$7,8,0),1,1) -> 103.21 | G138: =OFFSET(InputPriceData!F$15,CalculationsAndCharts!$A138+$A$11,IF($C$7,8,0),1,1) -> 106.14 | H138: 2.92 | I138: 2.92 | J138: 0 | K138: 0.9833442157 | L138: 0.3079788973 | M138: 76.15012895 | N138: 76.15012895 | O138: 59.72613461 | P138: 16.42399433 | Q138: 16.42399433 | R138: 12.33705413 | S138: 13.5986026 | T138: 90.06067621 | W138: 106 | X138: 2016-03-03 | Y138: 1759500 | Z138: 102.76 | AA138: 103.07 | AB138: 100.46 | AC138: 100.46 | AD138: 3 | AF138: -2.3 | AG138: 0 | AH138: 2.3 | AI138: 1.115982088 | AJ138: 1.848065874 | AK138: 37.65060831 | AL138: 46.99283976 | AM138: 37.65060831 | AN138: 0 | AO138: 9.342231456 | AP138: 1.446417215 | AQ138: 13.60265596 | AR138: 10.5557435 | BA138: 20 | BB138: 80
A139: 107 | B139: =OFFSET(InputPriceData!B$15,CalculationsAndCharts!$A139+$A$11,0,1,1) -> 2018-06-20 | C139: =OFFSET(InputPriceData!G$15,CalculationsAndCharts!$A139+$A$11,IF($C$7,8,0),1,1) -> 609700 | D139: =OFFSET(InputPriceData!C$15,CalculationsAndCharts!$A139+$A$11,IF($C$7,8,0),1,1) -> 100.54 | E139: =OFFSET(InputPriceData!D$15,CalculationsAndCharts!$A139+$A$11,IF($C$7,8,0),1,1) -> 103.31 | F139: =OFFSET(InputPriceData!E$15,CalculationsAndCharts!$A139+$A$11,IF($C$7,8,0),1,1) -> 99.36 | G139: =OFFSET(InputPriceData!F$15,CalculationsAndCharts!$A139+$A$11,IF($C$7,8,0),1,1) -> 103.22 | H139: 3.16 | I139: 3.16 | J139: 0 | K139: 0.7896786373 | L139: 0.3387767871 | M139: 69.97871783 | N139: 69.97871783 | O139: 54.79554231 | P139: 15.18317552 | Q139: 15.18317552 | R139: 10.28405484 | S139: 12.617867 | T139: 80.86304758 | W139: 107 | X139: 2016-02-29 | Y139: 795800 | Z139: 107.36 | AA139: 107.55 | AB139: 102.76 | AC139: 102.76 | AD139: 2 | AF139: -4.6 | AG139: 0 | AH139: 4.6 | AI139: 1.227580297 | AJ139: 1.802872461 | AK139: 40.50814829 | AL139: 46.99283976 | AM139: 37.96482516 | AN139: 2.543323123 | AO139: 9.028014601 | AP139: 1.452194492 | AQ139: 13.60017628 | AR139: 10.5998234 | BA139: 20 | BB139: 80
A140: 108 | B140: =OFFSET(InputPriceData!B$15,CalculationsAndCharts!$A140+$A$11,0,1,1) -> 2018-06-19 | C140: =OFFSET(InputPriceData!G$15,CalculationsAndCharts!$A140+$A$11,IF($C$7,8,0),1,1) -> 477500 | D140: =OFFSET(InputPriceData!C$15,CalculationsAndCharts!$A140+$A$11,IF($C$7,8,0),1,1) -> 99.66 | E140: =OFFSET(InputPriceData!D$15,CalculationsAndCharts!$A140+$A$11,IF($C$7,8,0),1,1) -> 100.52 | F140: =OFFSET(InputPriceData!E$15,CalculationsAndCharts!$A140+$A$11,IF($C$7,8,0),1,1) -> 98.85 | G140: =OFFSET(InputPriceData!F$15,CalculationsAndCharts!$A140+$A$11,IF($C$7,8,0),1,1) -> 100.06 | H140: -0.05 | I140: 0 | J140: 0.05 | K140: 0.552646501 | L140: 0.3726544658 | M140: 59.72613461 | N140: 61.23006959 | O140: 54.79554231 | P140: 4.930592304 | Q140: 6.434527284 | R140: 8.803263536 | S140: 12.1029391 | T140: 72.14051849 | W140: 108 | X140: 2016-02-25 | Y140: 2173800 | Z140: 102.76 | AA140: 107.36 | AB140: 102.15 | AC140: 107.36 | AD140: 5 | AF140: 4.6 | AG140: 4.6 | AH140: 0 | AI140: 1.350338327 | AJ140: 1.523159707 | AK140: 46.99283976 | AL140: 48.16504785 | AM140: 37.96482516 | AN140: 9.028014601 | AO140: 10.20022269 | AP140: 2.299578352 | AQ140: 13.71293638 | AR140: 16.64800509 | BA140: 20 | BB140: 80
A141: 109 | B141: =OFFSET(InputPriceData!B$15,CalculationsAndCharts!$A141+$A$11,0,1,1) -> 2018-06-18 | C141: =OFFSET(InputPriceData!G$15,CalculationsAndCharts!$A141+$A$11,IF($C$7,8,0),1,1) -> 641200 | D141: =OFFSET(InputPriceData!C$15,CalculationsAndCharts!$A141+$A$11,IF($C$7,8,0),1,1) -> 100 | E141: =OFFSET(InputPriceData!D$15,CalculationsAndCharts!$A141+$A$11,IF($C$7,8,0),1,1) -> 102.02 | F141: =OFFSET(InputPriceData!E$15,CalculationsAndCharts!$A141+$A$11,IF($C$7,8,0),1,1) -> 99.23 | G141: =OFFSET(InputPriceData!F$15,CalculationsAndCharts!$A141+$A$11,IF($C$7,8,0),1,1) -> 100.11 | H141: -0.22 | I141: 0 | J141: 0.22 | K141: 0.6079111511 | L141: 0.4049199124 | M141: 60.02098208 | N141: 61.23006959 | O141: 43.79528428 | P141: 16.2256978 | Q141: 17.43478531 | R141: 8.691238833 | S141: 12.68159223 | T141: 67.99809193 | W141: 109 | X141: 2016-02-18 | Y141: 0 | Z141: 105.06 | AA141: 105.06 | AB141: 102.76 | AC141: 102.76 | AD141: 1 | AF141: -2.3 | AG141: 0 | AH141: 2.3 | AI141: 1.025372159 | AJ141: 1.675475678 | AK141: 37.96482516 | AL141: 52.00239334 | AM141: 37.96482516 | AN141: 0 | AO141: 14.03756817 | AP141: 1.98402354 | AQ141: 14.36434908 | AR141: 13.71664586 | BA141: 20 | BB141: 80
A142: 110 | B142: =OFFSET(InputPriceData!B$15,CalculationsAndCharts!$A142+$A$11,0,1,1) -> 2018-06-15 | C142: =OFFSET(InputPriceData!G$15,CalculationsAndCharts!$A142+$A$11,IF($C$7,8,0),1,1) -> 601900 | D142: =OFFSET(InputPriceData!C$15,CalculationsAndCharts!$A142+$A$11,IF($C$7,8,0),1,1) -> 98.68 | E142: =OFFSET(InputPriceData!D$15,CalculationsAndCharts!$A142+$A$11,IF($C$7,8,0),1,1) -> 100.52 | F142: =OFFSET(InputPriceData!E$15,CalculationsAndCharts!$A142+$A$11,IF($C$7,8,0),1,1) -> 98.57 | G142: =OFFSET(InputPriceData!F$15,CalculationsAndCharts!$A142+$A$11,IF($C$7,8,0),1,1) -> 100.33 | H142: 1.71 | I142: 1.71 | J142: 0 | K142: 0.6687022662 | L142: 0.4234119036 | M142: 61.23006959 | N142: 61.23006959 | O142: 42.25600108 | P142: 18.97406851 | Q142: 18.97406851 | R142: 8.045995649 | S142: 11.8852131 | T142: 67.13268741 | W142: 110 | X142: 2016-02-17 | Y142: 0 | Z142: 107.36 | AA142: 107.36 | AB142: 105.06 | AC142: 105.06 | AD142: 0 | AF142: -2.3 | AG142: 0 | AH142: 2.3 | AI142: 1.127909375 | AJ142: 1.613023246 | AK142: 41.15056921 | AL142: 56.06291565 | AM142: 41.15056921 | AN142: 0 | AO142: 14.91234643 | AP142: 1.98402354 | AQ142: 16.12564183 | AR142: 12.22770452 | BA142: 20 | BB142: 80
A143: 111 | B143: =OFFSET(InputPriceData!B$15,CalculationsAndCharts!$A143+$A$11,0,1,1) -> 2018-06-14 | C143: =OFFSET(InputPriceData!G$15,CalculationsAndCharts!$A143+$A$11,IF($C$7,8,0),1,1) -> 439400 | D143: =OFFSET(InputPriceData!C$15,CalculationsAndCharts!$A143+$A$11,IF($C$7,8,0),1,1) -> 98.68 | E143: =OFFSET(InputPriceData!D$15,CalculationsAndCharts!$A143+$A$11,IF($C$7,8,0),1,1) -> 99.78 | F143: =OFFSET(InputPriceData!E$15,CalculationsAndCharts!$A143+$A$11,IF($C$7,8,0),1,1) -> 98.36 | G143: =OFFSET(InputPriceData!F$15,CalculationsAndCharts!$A143+$A$11,IF($C$7,8,0),1,1) -> 98.62 | H143: -0.07 | I143: 0 | J143: 0.07 | K143: 0.5645724929 | L143: 0.465753094 | M143: 54.79554231 | N143: 55.13608124 | O143: 42.25600108 | P143: 12.53954123 | Q143: 12.88008016 | R143: 6.573659604 | S143: 10.60318755 | T143: 61.41777457 | W143: 111 | X143: 2016-02-17 | Y143: 1661800 | Z143: 109.66 | AA143: 113.71 | AB143: 107.36 | AC143: 107.36 | AD143: 5 | AF143: -2.3 | AG143: 0 | AH143: 2.3 | AI143: 1.240700313 | AJ143: 1.54432557 | AK143: 44.54896884 | AL143: 65.33909145 | AM143: 44.54896884 | AN143: 0 | AO143: 20.79012261 | AP143: 1.98402354 | AQ143: 17.17801503 | AR143: 11.48293677 | BA143: 20 | BB143: 80
A144: 112 | B144: =OFFSET(InputPriceData!B$15,CalculationsAndCharts!$A144+$A$11,0,1,1) -> 2018-06-13 | C144: =OFFSET(InputPriceData!G$15,CalculationsAndCharts!$A144+$A$11,IF($C$7,8,0),1,1) -> 994400 | D144: =OFFSET(InputPriceData!C$15,CalculationsAndCharts!$A144+$A$11,IF($C$7,8,0),1,1) -> 96.05 | E144: =OFFSET(InputPriceData!D$15,CalculationsAndCharts!$A144+$A$11,IF($C$7,8,0),1,1) -> 100.09 | F144: =OFFSET(InputPriceData!E$15,CalculationsAndCharts!$A144+$A$11,IF($C$7,8,0),1,1) -> 94.8 | G144: =OFFSET(InputPriceData!F$15,CalculationsAndCharts!$A144+$A$11,IF($C$7,8,0),1,1) -> 98.69 | H144: 2.5 | I144: 2.5 | J144: 0 | K144: 0.6210297421 | L144: 0.5053284034 | M144: 55.13608124 | N144: 55.13608124 | O144: 42.25600108 | P144: 12.88008016 | Q144: 12.88008016 | R144: 5.049932009 | S144: 10.12662561 | T144: 49.38023745 | W144: 112 | X144: 2016-02-09 | Y144: 0 | Z144: 111.96 | AA144: 111.96 | AB144: 109.66 | AC144: 109.66 | AD144: 1 | AF144: -2.3 | AG144: 0 | AH144: 2.3 | AI144: 1.364770344 | AJ144: 1.468758127 | AK144: 48.16504785 | AL144: 65.33909145 | AM144: 48.16504785 | AN144: 0 | AO144: 17.1740436 | AP144: 1.98402354 | AQ144: 16.85397655 | AR144: 11.70240819 | BA144: 20 | BB144: 80
A145: 113 | B145: =OFFSET(InputPriceData!B$15,CalculationsAndCharts!$A145+$A$11,0,1,1) -> 2018-06-12 | C145: =OFFSET(InputPriceData!G$15,CalculationsAndCharts!$A145+$A$11,IF($C$7,8,0),1,1) -> 2283800 | D145: =OFFSET(InputPriceData!C$15,CalculationsAndCharts!$A145+$A$11,IF($C$7,8,0),1,1) -> 93.84 | E145: =OFFSET(InputPriceData!D$15,CalculationsAndCharts!$A145+$A$11,IF($C$7,8,0),1,1) -> 96.77 | F145: =OFFSET(InputPriceData!E$15,CalculationsAndCharts!$A145+$A$11,IF($C$7,8,0),1,1) -> 89.97 | G145: =OFFSET(InputPriceData!F$15,CalculationsAndCharts!$A145+$A$11,IF($C$7,8,0),1,1) -> 96.19 | H145: 0.29 | I145: 0.29 | J145: 0 | K145: 0.4331327164 | L145: 0.5558612437 | M145: 43.79528428 | N145: 50.8341106 | O145: 42.25600108 | P145: 1.539283202 | Q145: 8.578109515 | R145: 3.992024668 | S145: 9.946716651 | T145: 39.73461984 | W145: 113 | X145: 2016-02-08 | Y145: 0 | Z145: 114.26 | AA145: 114.26 | AB145: 111.96 | AC145: 111.96 | AD145: 1 | AF145: -2.3 | AG145: 0 | AH145: 2.3 | AI145: 1.501247378 | AJ145: 1.38563394 | AK145: 52.00239334 | AL145: 65.33909145 | AM145: 52.00239334 | AN145: 0 | AO145: 13.33669811 | AP145: 1.98402354 | AQ145: 16.29676934 | AR145: 12.10008813 | BA145: 20 | BB145: 80
A146: 114 | B146: =OFFSET(InputPriceData!B$15,CalculationsAndCharts!$A146+$A$11,0,1,1) -> 2018-06-11 | C146: =OFFSET(InputPriceData!G$15,CalculationsAndCharts!$A146+$A$11,IF($C$7,8,0),1,1) -> 639700 | D146: =OFFSET(InputPriceData!C$15,CalculationsAndCharts!$A146+$A$11,IF($C$7,8,0),1,1) -> 96.21 | E146: =OFFSET(InputPriceData!D$15,CalculationsAndCharts!$A146+$A$11,IF($C$7,8,0),1,1) -> 97.14 | F146: =OFFSET(InputPriceData!E$15,CalculationsAndCharts!$A146+$A$11,IF($C$7,8,0),1,1) -> 95.06 | G146: =OFFSET(InputPriceData!F$15,CalculationsAndCharts!$A146+$A$11,IF($C$7,8,0),1,1) -> 95.9 | H146: -0.23 | I146: 0 | J146: 0.23 | K146: 0.447445988 | L146: 0.6114473681 | M146: 42.25600108 | N146: 50.8341106 | O146: 42.25600108 | P146: 0 | Q146: 8.578109515 | R146: 4.390599601 | S146: 10.30455402 | T146: 42.19882554 | W146: 114 | X146: 2016-02-05 | Y146: 1260900 | Z146: 118.86 | AA146: 118.92 | AB146: 114.26 | AC146: 114.26 | AD146: 4 | AF146: -4.6 | AG146: 0 | AH146: 4.6 | AI146: 1.651372116 | AJ146: 1.294197334 | AK146: 56.06291565 | AL146: 65.33909145 | AM146: 56.01669744 | AN146: 0.0462182085 | AO146: 9.322394011 | AP146: 2.763077754 | AQ146: 15.40873629 | AR146: 17.81626628 | BA146: 20 | BB146: 80
A147: 115 | B147: =OFFSET(InputPriceData!B$15,CalculationsAndCharts!$A147+$A$11,0,1,1) -> 2018-06-08 | C147: =OFFSET(InputPriceData!G$15,CalculationsAndCharts!$A147+$A$11,IF($C$7,8,0),1,1) -> 502700 | D147: =OFFSET(InputPriceData!C$15,CalculationsAndCharts!$A147+$A$11,IF($C$7,8,0),1,1) -> 96.26 | E147: =OFFSET(InputPriceData!D$15,CalculationsAndCharts!$A147+$A$11,IF($C$7,8,0),1,1) -> 97.17 | F147: =OFFSET(InputPriceData!E$15,CalculationsAndCharts!$A147+$A$11,IF($C$7,8,0),1,1) -> 95.59 | G147: =OFFSET(InputPriceData!F$15,CalculationsAndCharts!$A147+$A$11,IF($C$7,8,0),1,1) -> 96.13 | H147: -0.2 | I147: 0 | J147: 0.2 | K147: 0.4921905868 | L147: 0.6495921049 | M147: 43.10720336 | N147: 50.8341106 | O147: 39.77035827 | P147: 3.336845085 | Q147: 11.06375233 | R147: 5.820700663 | S147: 10.69136607 | T147: 53.93849697 | W147: 115 | X147: 2016-02-01 | Y147: 445900 | Z147: 116.56 | AA147: 118.86 | AB147: 116.56 | AC147: 118.86 | AD147: 1 | AF147: 2.3 | AG147: 2.3 | AH147: 0 | AI147: 1.816509328 | AJ147: 0.9636170676 | AK147: 65.33909145 | AL147: 65.94679287 | AM147: 56.01669744 | AN147: 9.322394011 | AO147: 9.930095432 | AP147: 3.592172936 | AQ147: 15.0783095 | AR147: 23.66648893 | BA147: 20 | BB147: 80
A148: 116 | B148: =OFFSET(InputPriceData!B$15,CalculationsAndCharts!$A148+$A$11,0,1,1) -> 2018-06-07 | C148: =OFFSET(InputPriceData!G$15,CalculationsAndCharts!$A148+$A$11,IF($C$7,8,0),1,1) -> 350200 | D148: =OFFSET(InputPriceData!C$15,CalculationsAndCharts!$A148+$A$11,IF($C$7,8,0),1,1) -> 98.22 | E148: =OFFSET(InputPriceData!D$15,CalculationsAndCharts!$A148+$A$11,IF($C$7,8,0),1,1) -> 98.31 | F148: =OFFSET(InputPriceData!E$15,CalculationsAndCharts!$A148+$A$11,IF($C$7,8,0),1,1) -> 96.05 | G148: =OFFSET(InputPriceData!F$15,CalculationsAndCharts!$A148+$A$11,IF($C$7,8,0),1,1) -> 96.33 | H148: -1.88 | I148: 0 | J148: 1.88 | K148: 0.5414096455 | L148: 0.6945513153 | M148: 43.80475295 | N148: 50.8341106 | O148: 39.77035827 | P148: 4.03439468 | Q148: 11.06375233 | R148: 6.2845026 | S148: 11.35172736 | T148: 54.87820661 | W148: 116 | X148: 2016-01-29 | Y148: 1978300 | Z148: 111.96 | AA148: 116.56 | AB148: 111.93 | AC148: 116.56 | AD148: 6 | AF148: 4.6 | AG148: 4.6 | AH148: 0 | AI148: 1.768160261 | AJ148: 1.059978774 | AK148: 62.52027354 | AL148: 71.4282217 | AM148: 56.01669744 | AN148: 6.5035761 | AO148: 15.41152426 | AP148: 3.31958614 | AQ148: 14.72976002 | AR148: 22.3846248 | BA148: 20 | BB148: 80
A149: 117 | B149: =OFFSET(InputPriceData!B$15,CalculationsAndCharts!$A149+$A$11,0,1,1) -> 2018-06-06 | C149: =OFFSET(InputPriceData!G$15,CalculationsAndCharts!$A149+$A$11,IF($C$7,8,0),1,1) -> 391000 | D149: =OFFSET(InputPriceData!C$15,CalculationsAndCharts!$A149+$A$11,IF($C$7,8,0),1,1) -> 97.71 | E149: =OFFSET(InputPriceData!D$15,CalculationsAndCharts!$A149+$A$11,IF($C$7,8,0),1,1) -> 98.37 | F149: =OFFSET(InputPriceData!E$15,CalculationsAndCharts!$A149+$A$11,IF($C$7,8,0),1,1) -> 97.11 | G149: =OFFSET(InputPriceData!F$15,CalculationsAndCharts!$A149+$A$11,IF($C$7,8,0),1,1) -> 98.21 | H149: 0.94 | I149: 0.94 | J149: 0 | K149: 0.59555061 | L149: 0.5760064469 | M149: 50.8341106 | N149: 50.8341106 | O149: 39.77035827 | P149: 11.06375233 | Q149: 11.06375233 | R149: 6.364457849 | S149: 12.01208864 | T149: 52.54632821 | W149: 117 | X149: 2016-01-21 | Y149: 4507500 | Z149: 114.26 | AA149: 115.78 | AB149: 111.96 | AC149: 111.96 | AD149: 12 | AF149: -2.3 | AG149: 0 | AH149: 2.3 | AI149: 1.484976287 | AJ149: 1.165976652 | AK149: 56.01669744 | AL149: 84.14460764 | AM149: 56.01669744 | AN149: 0 | AO149: 28.1279102 | AP149: 3.458944315 | AQ149: 13.75562468 | AR149: 24.96418888 | BA149: 20 | BB149: 80
A150: 118 | B150: =OFFSET(InputPriceData!B$15,CalculationsAndCharts!$A150+$A$11,0,1,1) -> 2018-06-05 | C150: =OFFSET(InputPriceData!G$15,CalculationsAndCharts!$A150+$A$11,IF($C$7,8,0),1,1) -> 728300 | D150: =OFFSET(InputPriceData!C$15,CalculationsAndCharts!$A150+$A$11,IF($C$7,8,0),1,1) -> 95.58 | E150: =OFFSET(InputPriceData!D$15,CalculationsAndCharts!$A150+$A$11,IF($C$7,8,0),1,1) -> 97.67 | F150: =OFFSET(InputPriceData!E$15,CalculationsAndCharts!$A150+$A$11,IF($C$7,8,0),1,1) -> 95.2 | G150: =OFFSET(InputPriceData!F$15,CalculationsAndCharts!$A150+$A$11,IF($C$7,8,0),1,1) -> 97.27 | H150: 1.57 | I150: 1.57 | J150: 0 | K150: 0.561105671 | L150: 0.6336070916 | M150: 46.96573843 | N150: 48.48822239 | O150: 39.77035827 | P150: 7.195380154 | Q150: 8.717864119 | R150: 5.725927454 | S150: 12.87113964 | T150: 44.1435958 | W150: 118 | X150: 2016-01-04 | Y150: 1924900 | Z150: 116.56 | AA150: 119.58 | AB150: 114.26 | AC150: 114.26 | AD150: 8 | AF150: -2.3 | AG150: 0 | AH150: 2.3 | AI150: 1.633473915 | AJ150: 1.052574317 | AK150: 60.81327564 | AL150: 84.14460764 | AM150: 60.81327564 | AN150: 0 | AO150: 23.33133199 | AP150: 4.472262836 | AQ150: 11.25295442 | AR150: 39.39294275 | BA150: 20 | BB150: 80
A151: 119 | B151: =OFFSET(InputPriceData!B$15,CalculationsAndCharts!$A151+$A$11,0,1,1) -> 2018-06-04 | C151: =OFFSET(InputPriceData!G$15,CalculationsAndCharts!$A151+$A$11,IF($C$7,8,0),1,1) -> 528700 | D151: =OFFSET(InputPriceData!C$15,CalculationsAndCharts!$A151+$A$11,IF($C$7,8,0),1,1) -> 96.72 | E151: =OFFSET(InputPriceData!D$15,CalculationsAndCharts!$A151+$A$11,IF($C$7,8,0),1,1) -> 98.48 | F151: =OFFSET(InputPriceData!E$15,CalculationsAndCharts!$A151+$A$11,IF($C$7,8,0),1,1) -> 95.41 | G151: =OFFSET(InputPriceData!F$15,CalculationsAndCharts!$A151+$A$11,IF($C$7,8,0),1,1) -> 95.7 | H151: -0.52 | I151: 0 | J151: 0.52 | K151: 0.4602162381 | L151: 0.6969678007 | M151: 39.77035827 | N151: 48.48822239 | O151: 39.4206378 | P151: 0.3497204708 | Q151: 9.06758459 | R151: 6.869835258 | S151: 14.55428585 | T151: 46.87935891 | W151: 119 | X151: 2015-12-21 | Y151: 0 | Z151: 118.86 | AA151: 118.86 | AB151: 116.56 | AC151: 116.56 | AD151: 1 | AF151: -2.3 | AG151: 0 | AH151: 2.3 | AI151: 1.796821307 | AJ151: 0.9278317486 | AK151: 65.94679287 | AL151: 84.14460764 | AM151: 65.94679287 | AN151: 0 | AO151: 18.19781477 | AP151: 5.88907177 | AQ151: 9.753346857 | AR151: 59.7672228 | BA151: 20 | BB151: 80
A152: 120 | B152: =OFFSET(InputPriceData!B$15,CalculationsAndCharts!$A152+$A$11,0,1,1) -> 2018-06-01 | C152: =OFFSET(InputPriceData!G$15,CalculationsAndCharts!$A152+$A$11,IF($C$7,8,0),1,1) -> 514400 | D152: =OFFSET(InputPriceData!C$15,CalculationsAndCharts!$A152+$A$11,IF($C$7,8,0),1,1) -> 96.92 | E152: =OFFSET(InputPriceData!D$15,CalculationsAndCharts!$A152+$A$11,IF($C$7,8,0),1,1) -> 97.18 | F152: =OFFSET(InputPriceData!E$15,CalculationsAndCharts!$A152+$A$11,IF($C$7,8,0),1,1) -> 96.04 | G152: =OFFSET(InputPriceData!F$15,CalculationsAndCharts!$A152+$A$11,IF($C$7,8,0),1,1) -> 96.22 | H152: -0.1 | I152: 0 | J152: 0.1 | K152: 0.5062378619 | L152: 0.7146645808 | M152: 41.46423532 | N152: 48.48822239 | O152: 37.0474139 | P152: 4.416821427 | Q152: 11.4408085 | R152: 6.826120199 | S152: 16.43063148 | T152: 41.2937655 | W152: 120 | X152: 2015-12-18 | Y152: 2325300 | Z152: 123.46 | AA152: 125.05 | AB152: 118.86 | AC152: 118.86 | AD152: 4 | AF152: -4.6 | AG152: 0 | AH152: 4.6 | AI152: 1.976503438 | AJ152: 0.7906149235 | AK152: 71.4282217 | AL152: 84.14460764 | AM152: 71.4282217 | AN152: 0 | AO152: 12.71638594 | AP152: 7.060414146 | AQ152: 8.649962388 | AR152: 80.69079423 | BA152: 20 | BB152: 80
A153: 121 | B153: =OFFSET(InputPriceData!B$15,CalculationsAndCharts!$A153+$A$11,0,1,1) -> 2018-05-31 | C153: =OFFSET(InputPriceData!G$15,CalculationsAndCharts!$A153+$A$11,IF($C$7,8,0),1,1) -> 578300 | D153: =OFFSET(InputPriceData!C$15,CalculationsAndCharts!$A153+$A$11,IF($C$7,8,0),1,1) -> 98.12 | E153: =OFFSET(InputPriceData!D$15,CalculationsAndCharts!$A153+$A$11,IF($C$7,8,0),1,1) -> 98.51 | F153: =OFFSET(InputPriceData!E$15,CalculationsAndCharts!$A153+$A$11,IF($C$7,8,0),1,1) -> 95.86 | G153: =OFFSET(InputPriceData!F$15,CalculationsAndCharts!$A153+$A$11,IF($C$7,8,0),1,1) -> 96.32 | H153: -2.03 | I153: 0 | J153: 2.03 | K153: 0.5568616481 | L153: 0.7761310389 | M153: 41.77529656 | N153: 48.48822239 | O153: 37.0474139 | P153: 4.727882664 | Q153: 11.4408085 | R153: 6.274017521 | S153: 15.99538586 | T153: 38.98022436 | W153: 121 | X153: 2015-12-14 | Y153: 1545200 | Z153: 121.16 | AA153: 123.46 | AB153: 121.16 | AC153: 123.46 | AD153: 3 | AF153: 2.3 | AG153: 2.3 | AH153: 0 | AI153: 2.174153782 | AJ153: 0.4096764158 | AK153: 84.14460764 | AL153: 84.14460764 | AM153: 77.91217392 | AN153: 6.232433715 | AO153: 6.232433715 | AP153: 7.970827967 | AQ153: 9.278179369 | AR153: 84.99334096 | BA153: 20 | BB153: 80
A154: 122 | B154: =OFFSET(InputPriceData!B$15,CalculationsAndCharts!$A154+$A$11,0,1,1) -> 2018-05-30 | C154: =OFFSET(InputPriceData!G$15,CalculationsAndCharts!$A154+$A$11,IF($C$7,8,0),1,1) -> 540000 | D154: =OFFSET(InputPriceData!C$15,CalculationsAndCharts!$A154+$A$11,IF($C$7,8,0),1,1) -> 96.65 | E154: =OFFSET(InputPriceData!D$15,CalculationsAndCharts!$A154+$A$11,IF($C$7,8,0),1,1) -> 98.7 | F154: =OFFSET(InputPriceData!E$15,CalculationsAndCharts!$A154+$A$11,IF($C$7,8,0),1,1) -> 96.21 | G154: =OFFSET(InputPriceData!F$15,CalculationsAndCharts!$A154+$A$11,IF($C$7,8,0),1,1) -> 98.35 | H154: 2.08 | I154: 2.08 | J154: 0 | K154: 0.6125478129 | L154: 0.6507441428 | M154: 48.48822239 | N154: 48.72001981 | O154: 37.0474139 | P154: 11.4408085 | Q154: 11.67260591 | R154: 5.830739612 | S154: 15.48076589 | T154: 37.42267647 | W154: 122 | X154: 2015-12-09 | Y154: 0 | Z154: 118.86 | AA154: 121.16 | AB154: 118.86 | AC154: 121.16 | AD154: 1 | AF154: 2.3 | AG154: 2.3 | AH154: 0 | AI154: 2.16156916 | AJ154: 0.4506440574 | AK154: 82.74857295 | AL154: 82.74857295 | AM154: 76.06959329 | AN154: 6.678979661 | AO154: 6.678979661 | AP154: 7.825586743 | AQ154: 10.71689038 | AR154: 72.34599288 | BA154: 20 | BB154: 80
A155: 123 | B155: =OFFSET(InputPriceData!B$15,CalculationsAndCharts!$A155+$A$11,0,1,1) -> 2018-05-29 | C155: =OFFSET(InputPriceData!G$15,CalculationsAndCharts!$A155+$A$11,IF($C$7,8,0),1,1) -> 609200 | D155: =OFFSET(InputPriceData!C$15,CalculationsAndCharts!$A155+$A$11,IF($C$7,8,0),1,1) -> 95.3 | E155: =OFFSET(InputPriceData!D$15,CalculationsAndCharts!$A155+$A$11,IF($C$7,8,0),1,1) -> 96.94 | F155: =OFFSET(InputPriceData!E$15,CalculationsAndCharts!$A155+$A$11,IF($C$7,8,0),1,1) -> 94.99 | G155: =OFFSET(InputPriceData!F$15,CalculationsAndCharts!$A155+$A$11,IF($C$7,8,0),1,1) -> 96.27 | H155: 0.49 | I155: 0.49 | J155: 0 | K155: 0.4658025942 | L155: 0.715818557 | M155: 39.4206378 | N155: 48.72001981 | O155: 32.37337722 | P155: 7.047260581 | Q155: 16.34664259 | R155: 5.422219958 | S155: 15.28018604 | T155: 35.25457977 | W155: 123 | X155: 2015-12-08 | Y155: 667300 | Z155: 116.56 | AA155: 118.86 | AB155: 116.56 | AC155: 118.86 | AD155: 1 | AF155: 2.3 | AG155: 2.3 | AH155: 0 | AI155: 2.147726076 | AJ155: 0.4957084632 | AK155: 81.24756048 | AL155: 81.24756048 | AM155: 74.10586083 | AN155: 7.141699647 | AO155: 7.141699647 | AP155: 6.990714286 | AQ155: 12.09978314 | AR155: 57.30195531 | BA155: 20 | BB155: 80
A156: 124 | B156: =OFFSET(InputPriceData!B$15,CalculationsAndCharts!$A156+$A$11,0,1,1) -> 2018-05-25 | C156: =OFFSET(InputPriceData!G$15,CalculationsAndCharts!$A156+$A$11,IF($C$7,8,0),1,1) -> 473600 | D156: =OFFSET(InputPriceData!C$15,CalculationsAndCharts!$A156+$A$11,IF($C$7,8,0),1,1) -> 96.21 | E156: =OFFSET(InputPriceData!D$15,CalculationsAndCharts!$A156+$A$11,IF($C$7,8,0),1,1) -> 96.97 | F156: =OFFSET(InputPriceData!E$15,CalculationsAndCharts!$A156+$A$11,IF($C$7,8,0),1,1) -> 95.43 | G156: =OFFSET(InputPriceData!F$15,CalculationsAndCharts!$A156+$A$11,IF($C$7,8,0),1,1) -> 95.78 | H156: -0.46 | I156: 0 | J156: 0.46 | K156: 0.4633828537 | L156: 0.7874004127 | M156: 37.0474139 | N156: 48.72001981 | O156: 32.37337722 | P156: 4.674036676 | Q156: 16.34664259 | R156: 6.099317238 | S156: 14.79486057 | T156: 40.94913952 | W156: 124 | X156: 2015-12-07 | Y156: 1870900 | Z156: 114.26 | AA156: 116.56 | AB156: 112.95 | AC156: 116.56 | AD156: 7 | AF156: 2.3 | AG156: 2.3 | AH156: 0 | AI156: 2.132498683 | AJ156: 0.5452793095 | AK156: 79.63687389 | AL156: 79.63687389 | AM156: 72.0184324 | AN156: 7.618441499 | AO156: 7.618441499 | AP156: 6.09800183 | AQ156: 12.75612849 | AR156: 47.43264533 | BA156: 20 | BB156: 80
A157: 125 | B157: =OFFSET(InputPriceData!B$15,CalculationsAndCharts!$A157+$A$11,0,1,1) -> 2018-05-24 | C157: =OFFSET(InputPriceData!G$15,CalculationsAndCharts!$A157+$A$11,IF($C$7,8,0),1,1) -> 1095100 | D157: =OFFSET(InputPriceData!C$15,CalculationsAndCharts!$A157+$A$11,IF($C$7,8,0),1,1) -> 99.36 | E157: =OFFSET(InputPriceData!D$15,CalculationsAndCharts!$A157+$A$11,IF($C$7,8,0),1,1) -> 99.53 | F157: =OFFSET(InputPriceData!E$15,CalculationsAndCharts!$A157+$A$11,IF($C$7,8,0),1,1) -> 95.33 | G157: =OFFSET(InputPriceData!F$15,CalculationsAndCharts!$A157+$A$11,IF($C$7,8,0),1,1) -> 96.24 | H157: -3.12 | I157: 0 | J157: 3.12 | K157: 0.509721139 | L157: 0.820140454 | M157: 38.32888638 | N157: 50.30953755 | O157: 32.37337722 | P157: 5.955509161 | Q157: 17.93616033 | R157: 6.26982662 | S157: 13.50629422 | T157: 46.08033988 | W157: 125 | X157: 2015-11-25 | Y157: 3348500 | Z157: 111.96 | AA157: 114.26 | AB157: 107.65 | AC157: 114.26 | AD157: 11 | AF157: 2.3 | AG157: 2.3 | AH157: 0 | AI157: 2.115748552 | AJ157: 0.5998072404 | AK157: 77.91217392 | AL157: 77.91217392 | AM157: 69.80562575 | AN157: 8.106548167 | AO157: 8.106548167 | AP157: 5.99855151 | AQ157: 12.65667817 | AR157: 47.02283329 | BA157: 20 | BB157: 80
A158: 126 | B158: =OFFSET(InputPriceData!B$15,CalculationsAndCharts!$A158+$A$11,0,1,1) -> 2018-05-23 | C158: =OFFSET(InputPriceData!G$15,CalculationsAndCharts!$A158+$A$11,IF($C$7,8,0),1,1) -> 3661400 | D158: =OFFSET(InputPriceData!C$15,CalculationsAndCharts!$A158+$A$11,IF($C$7,8,0),1,1) -> 95.84 | E158: =OFFSET(InputPriceData!D$15,CalculationsAndCharts!$A158+$A$11,IF($C$7,8,0),1,1) -> 103.72 | F158: =OFFSET(InputPriceData!E$15,CalculationsAndCharts!$A158+$A$11,IF($C$7,8,0),1,1) -> 94.71 | G158: =OFFSET(InputPriceData!F$15,CalculationsAndCharts!$A158+$A$11,IF($C$7,8,0),1,1) -> 99.36 | H158: 3.06 | I158: 3.06 | J158: 0 | K158: 0.5606932529 | L158: 0.5901544994 | M158: 48.72001981 | N158: 54.556411 | O158: 32.37337722 | P158: 16.34664259 | Q158: 22.18303378 | R158: 6.616181376 | S158: 12.35506758 | T158: 53.12039726 | W158: 126 | X158: 2015-11-10 | Y158: 593400 | Z158: 109.66 | AA158: 111.96 | AB158: 109.6 | AC158: 111.96 | AD158: 2 | AF158: 2.3 | AG158: 2.3 | AH158: 0 | AI158: 2.097323407 | AJ158: 0.6597879645 | AK158: 76.06959329 | AL158: 76.06959329 | AM158: 64.73512183 | AN158: 11.33447147 | AO158: 11.33447147 | AP158: 5.897929021 | AQ158: 12.55605568 | AR158: 46.60163616 | BA158: 20 | BB158: 80
A159: 127 | B159: =OFFSET(InputPriceData!B$15,CalculationsAndCharts!$A159+$A$11,0,1,1) -> 2018-05-22 | C159: =OFFSET(InputPriceData!G$15,CalculationsAndCharts!$A159+$A$11,IF($C$7,8,0),1,1) -> 710700 | D159: =OFFSET(InputPriceData!C$15,CalculationsAndCharts!$A159+$A$11,IF($C$7,8,0),1,1) -> 99.6 | E159: =OFFSET(InputPriceData!D$15,CalculationsAndCharts!$A159+$A$11,IF($C$7,8,0),1,1) -> 99.6 | F159: =OFFSET(InputPriceData!E$15,CalculationsAndCharts!$A159+$A$11,IF($C$7,8,0),1,1) -> 95.8 | G159: =OFFSET(InputPriceData!F$15,CalculationsAndCharts!$A159+$A$11,IF($C$7,8,0),1,1) -> 96.3 | H159: -3.51 | I159: 0 | J159: 3.51 | K159: 0.3107625782 | L159: 0.6491699494 | M159: 32.37337722 | N159: 56.45172687 | O159: 32.37337722 | P159: 0 | Q159: 24.07834965 | R159: 5.32062965 | S159: 10.85132006 | T159: 48.5843681 | W159: 127 | X159: 2015-11-06 | Y159: 926200 | Z159: 107.36 | AA159: 109.66 | AB159: 107.36 | AC159: 109.66 | AD159: 3 | AF159: 2.3 | AG159: 2.3 | AH159: 0 | AI159: 2.077055747 | AJ159: 0.7257667609 | AK159: 74.10586083 | AL159: 74.10586083 | AM159: 64.73512183 | AN159: 9.370739007 | AO159: 9.370739007 | AP159: 5.455603998 | AQ159: 12.11373066 | AR159: 44.66779357 | BA159: 20 | BB159: 80
A160: 128 | B160: =OFFSET(InputPriceData!B$15,CalculationsAndCharts!$A160+$A$11,0,1,1) -> 2018-05-21 | C160: =OFFSET(InputPriceData!G$15,CalculationsAndCharts!$A160+$A$11,IF($C$7,8,0),1,1) -> 398900 | D160: =OFFSET(InputPriceData!C$15,CalculationsAndCharts!$A160+$A$11,IF($C$7,8,0),1,1) -> 100.26 | E160: =OFFSET(InputPriceData!D$15,CalculationsAndCharts!$A160+$A$11,IF($C$7,8,0),1,1) -> 100.72 | F160: =OFFSET(InputPriceData!E$15,CalculationsAndCharts!$A160+$A$11,IF($C$7,8,0),1,1) -> 99.57 | G160: =OFFSET(InputPriceData!F$15,CalculationsAndCharts!$A160+$A$11,IF($C$7,8,0),1,1) -> 99.81 | H160: -0.28 | I160: 0 | J160: 0.28 | K160: 0.341838836 | L160: 0.3630869443 | M160: 48.4928833 | N160: 56.45172687 | O160: 48.4928833 | P160: 0 | Q160: 7.958843568 | R160: 5.768899287 | S160: 9.110658062 | T160: 62.6328678 | W160: 128 | X160: 2015-11-03 | Y160: 3139900 | Z160: 105.06 | AA160: 107.36 | AB160: 103.19 | AC160: 107.36 | AD160: 11 | AF160: 2.3 | AG160: 2.3 | AH160: 0 | AI160: 2.054761322 | AJ160: 0.798343437 | AK160: 72.0184324 | AL160: 82.47724362 | AM160: 64.73512183 | AN160: 7.28331057 | AO160: 17.74212179 | AP160: 5.322156816 | AQ160: 11.98028348 | AR160: 44.05655568 | BA160: 20 | BB160: 80
A161: 129 | B161: =OFFSET(InputPriceData!B$15,CalculationsAndCharts!$A161+$A$11,0,1,1) -> 2018-05-18 | C161: =OFFSET(InputPriceData!G$15,CalculationsAndCharts!$A161+$A$11,IF($C$7,8,0),1,1) -> 494700 | D161: =OFFSET(InputPriceData!C$15,CalculationsAndCharts!$A161+$A$11,IF($C$7,8,0),1,1) -> 100.88 | E161: =OFFSET(InputPriceData!D$15,CalculationsAndCharts!$A161+$A$11,IF($C$7,8,0),1,1) -> 101.34 | F161: =OFFSET(InputPriceData!E$15,CalculationsAndCharts!$A161+$A$11,IF($C$7,8,0),1,1) -> 99.79 | G161: =OFFSET(InputPriceData!F$15,CalculationsAndCharts!$A161+$A$11,IF($C$7,8,0),1,1) -> 100.09 | H161: -0.64 | I161: 0 | J161: 0.64 | K161: 0.3760227196 | L161: 0.3713956387 | M161: 50.30953755 | N161: 56.45172687 | O161: 49.12787816 | P161: 1.181659392 | Q161: 7.323848716 | R161: 6.656924619 | S161: 9.764097296 | T161: 67.48640467 | W161: 129 | X161: 2015-10-19 | Y161: 4963900 | Z161: 100.46 | AA161: 105.06 | AB161: 99.78 | AC161: 105.06 | AD161: 14 | AF161: =IF($A161<$A$8,AC161-$AC162,IF($A161=$A$8,0,NA())) -> 4.6 | AG161: =IF($A161<$A$8,IF(AF161>0,AF161,0),IF($A161=$A$8,0,NA())) -> 4.6 | AH161: =IF($A161 <$A$8,IF(AF161<0,-AF161,0),IF($A161=$A$8,0,NA())) -> 0 | AI161: =IF($A161<$A$8-$A$19,$AG161*$D$19+$AI162*$E$19,IF($A161<=$A$8,AVERAGE(OFFSET($AG161,0,0,$A$8-$A161+1,1)),NA())) -> 2.030237454 | AJ161: =IF($A161<$A$8-$A$19,$AH161*$D$19+$AJ162*$E$19,IF($A161<=$A$8,AVERAGE(OFFSET($AH161,0,0,$A$8-$A161+1,1)),NA())) -> 0.8781777807 | AK161: =IF($A161<$A$8,IFERROR(100-100/(1+($AI161/$AJ161)),0),IF($A161=$A$8,0,NA())) -> 69.80562575 | AL161: 82.47724362 | AM161: 64.73512183 | AN161: 5.070503928 | AO161: 17.74212179 | AP161: 5.514281616 | AQ161: 10.86505687 | AR161: 50.28958518 | BA161: 20 | BB161: 80
A162: 130 | B162: =OFFSET(InputPriceData!B$15,CalculationsAndCharts!$A162+$A$11,0,1,1) -> 2018-05-17 | C162: =OFFSET(InputPriceData!G$15,CalculationsAndCharts!$A162+$A$11,IF($C$7,8,0),1,1) -> 417100 | D162: =OFFSET(InputPriceData!C$15,CalculationsAndCharts!$A162+$A$11,IF($C$7,8,0),1,1) -> 101.25 | E162: =OFFSET(InputPriceData!D$15,CalculationsAndCharts!$A162+$A$11,IF($C$7,8,0),1,1) -> 101.92 | F162: =OFFSET(InputPriceData!E$15,CalculationsAndCharts!$A162+$A$11,IF($C$7,8,0),1,1) -> 100.58 | G162: =OFFSET(InputPriceData!F$15,CalculationsAndCharts!$A162+$A$11,IF($C$7,8,0),1,1) -> 100.73 | H162: =IF($A162<$A$8,G162-$G163,IF($A162=$A$8,0,NA())) -> -0.28 | I162: =IF($A162<$A$8,IF(H162>0,H162,0),IF($A162=$A$8,0,NA())) -> 0 | J162: =IF($A162 <$A$8,IF(H162<0,-H162,0),IF($A162=$A$8,0,NA())) -> 0.28 | K162: =IF($A162<$A$8-$A$19,$I162*$D$19+$K163*$E$19,IF($A162<=$A$8,AVERAGE(OFFSET($I162,0,0,$A$8-$A162+1,1)),NA())) -> 0.4136249916 | L162: =IF($A162<$A$8-$A$19,$J162*$D$19+$L163*$E$19,IF($A162<=$A$8,AVERAGE(OFFSET($J162,0,0,$A$8-$A162+1,1)),NA())) -> 0.3445352026 | M162: =IF($A162<$A$8,IFERROR(100-100/(1+($K162/$L162)),0),IF($A162=$A$8,0,NA())) -> 54.556411 | N162: =MAX(OFFSET(M162,0,0,$A$21,1)) -> 56.45172687 | O162: =MIN(OFFSET(M162,0,0,$A$21,1)) -> 46.38375974 | P162: =M162-O162 -> 8.172651262 | Q162: =N162-O162 -> 10.06796713 | R162: =AVERAGE(OFFSET(P162,0,0,$A$22,1)) -> 6.888380166 | S162: =AVERAGE(OFFSET(Q162,0,0,$A$22,1)) -> 10.49691089 | T162: =R162/(0.1+S162)*100 -> 65.0036623 | W162: 130 | X162: 2015-09-29 | Y162: 389000 | Z162: 102.76 | AA162: 102.76 | AB162: 100.46 | AC162: 100.46 | AD162: 1 | AF162: -2.3 | AG162: 0 | AH162: 2.3 | AI162: 1.7732612 | AJ162: 0.9659955588 | AK162: 64.73512183 | AL162: =MAX(OFFSET(AK162,0,0,$A$21,1)) -> 82.47724362 | AM162: =MIN(OFFSET(AK162,0,0,$A$21,1)) -> 64.73512183 | AN162: =AK162-AM162 -> 0 | AO162: =AL162-AM162 -> 17.74212179 | AP162: =AVERAGE(OFFSET(AN162,0,0,$A$22,1)) -> 6.048422068 | AQ162: =AVERAGE(OFFSET(AO162,0,0,$A$22,1)) -> 9.815245093 | AR162: =AP162/(0.1+AQ162)*100 -> 61.00123609 | BA162: 20 | BB162: 80
A163: 131 | B163: =OFFSET(InputPriceData!B$15,CalculationsAndCharts!$A163+$A$11,0,1,1) -> 2018-05-16 | C163: =OFFSET(InputPriceData!G$15,CalculationsAndCharts!$A163+$A$11,IF($C$7,8,0),1,1) -> 375300 | D163: =OFFSET(InputPriceData!C$15,CalculationsAndCharts!$A163+$A$11,IF($C$7,8,0),1,1) -> 100.12 | E163: =OFFSET(InputPriceData!D$15,CalculationsAndCharts!$A163+$A$11,IF($C$7,8,0),1,1) -> 101.52 | F163: =OFFSET(InputPriceData!E$15,CalculationsAndCharts!$A163+$A$11,IF($C$7,8,0),1,1) -> 100 | G163: =OFFSET(InputPriceData!F$15,CalculationsAndCharts!$A163+$A$11,IF($C$7,8,0),1,1) -> 101.01 | H163: 1.14 | I163: 1.14 | J163: 0 | K163: 0.4549874908 | L163: 0.3509887229 | M163: 56.45172687 | N163: 56.45172687 | O163: 43.98768805 | P163: 12.46403882 | Q163: 12.46403882 | R163: 7.950156896 | S163: 11.32177313 | T163: 69.60527761 | W163: 131 | X163: 2015-09-28 | Y163: 2431700 | Z163: 107.36 | AA163: 108.78 | AB163: 102.76 | AC163: 102.76 | AD163: 8 | AF163: -4.6 | AG163: 0 | AH163: 4.6 | AI163: 1.95058732 | AJ163: 0.8325951146 | AK163: 70.08478121 | AL163: 82.47724362 | AM163: 70.08478121 | AN163: 0 | AO163: 12.39246241 | AP163: 7.282031974 | AQ163: 8.831089775 | AR163: 81.53576056 | BA163: =$E$24 -> 20 | BB163: =$F$24 -> 80
A164: 132 | B164: =OFFSET(InputPriceData!B$15,CalculationsAndCharts!$A164+$A$11,0,1,1) -> 2018-05-15 | C164: =OFFSET(InputPriceData!G$15,CalculationsAndCharts!$A164+$A$11,IF($C$7,8,0),1,1) -> 273300 | D164: =OFFSET(InputPriceData!C$15,CalculationsAndCharts!$A164+$A$11,IF($C$7,8,0),1,1) -> 99.68 | E164: =OFFSET(InputPriceData!D$15,CalculationsAndCharts!$A164+$A$11,IF($C$7,8,0),1,1) -> 100.47 | F164: =OFFSET(InputPriceData!E$15,CalculationsAndCharts!$A164+$A$11,IF($C$7,8,0),1,1) -> 99.24 | G164: =OFFSET(InputPriceData!F$15,CalculationsAndCharts!$A164+$A$11,IF($C$7,8,0),1,1) -> 99.87 | H164: 0.15 | I164: 0.15 | J164: 0 | K164: 0.3864862398 | L164: 0.3860875952 | M164: 50.02579978 | N164: 50.02579978 | O164: 43.98768805 | P164: 6.038111733 | Q164: 6.038111733 | R164: 9.084625239 | S164: 12.45624147 | T164: 72.35146964 | W164: 132 | X164: 2015-09-16 | Y164: 2627900 | Z164: 105.06 | AA164: 107.36 | AB164: 104.87 | AC164: 107.36 | AD164: 6 | AF164: 2.3 | AG164: 2.3 | AH164: 0 | AI164: 2.145646052 | AJ164: 0.4558546261 | AK164: 82.47724362 | AL164: 82.47724362 | AM164: 75.65440468 | AN164: 6.822838936 | AO164: 6.822838936 | AP164: 8.984744951 | AQ164: 8.984744951 | AR164: 98.89925363 | BA164: 20 | BB164: 80
A165: 133 | B165: =OFFSET(InputPriceData!B$15,CalculationsAndCharts!$A165+$A$11,0,1,1) -> 2018-05-14 | C165: =OFFSET(InputPriceData!G$15,CalculationsAndCharts!$A165+$A$11,IF($C$7,8,0),1,1) -> 505100 | D165: =OFFSET(InputPriceData!C$15,CalculationsAndCharts!$A165+$A$11,IF($C$7,8,0),1,1) -> 99.01 | E165: =OFFSET(InputPriceData!D$15,CalculationsAndCharts!$A165+$A$11,IF($C$7,8,0),1,1) -> 100.15 | F165: =OFFSET(InputPriceData!E$15,CalculationsAndCharts!$A165+$A$11,IF($C$7,8,0),1,1) -> 98.64 | G165: =OFFSET(InputPriceData!F$15,CalculationsAndCharts!$A165+$A$11,IF($C$7,8,0),1,1) -> 99.72 | H165: 0.47 | I165: 0.47 | J165: 0 | K165: 0.4101348638 | L165: 0.4246963547 | M165: 49.12787816 | N165: 49.12787816 | O165: 40.40153095 | P165: 8.726347204 | Q165: 8.726347204 | R165: 10.6985601 | S165: 14.1711746 | T165: 74.96621968 | W165: 133 | X165: 2015-09-08 | Y165: 5822200 | Z165: 102.76 | AA165: 105.06 | AB165: 99 | AC165: 105.06 | AD165: 16 | AF165: 2.3 | AG165: 2.3 | AH165: 0 | AI165: 2.130210657 | AJ165: 0.5014400887 | AK165: 80.94579649 | AL165: 80.94579649 | AM165: 73.64422823 | AN165: 7.301568261 | AO165: 7.301568261 | AP165: 9.534404181 | AQ165: 9.534404181 | AR165: 98.9620531 | BA165: 20 | BB165: 80
A166: 134 | B166: =OFFSET(InputPriceData!B$15,CalculationsAndCharts!$A166+$A$11,0,1,1) -> 2018-05-11 | C166: =OFFSET(InputPriceData!G$15,CalculationsAndCharts!$A166+$A$11,IF($C$7,8,0),1,1) -> 288700 | D166: =OFFSET(InputPriceData!C$15,CalculationsAndCharts!$A166+$A$11,IF($C$7,8,0),1,1) -> 98.59 | E166: =OFFSET(InputPriceData!D$15,CalculationsAndCharts!$A166+$A$11,IF($C$7,8,0),1,1) -> 99.81 | F166: =OFFSET(InputPriceData!E$15,CalculationsAndCharts!$A166+$A$11,IF($C$7,8,0),1,1) -> 98.55 | G166: =OFFSET(InputPriceData!F$15,CalculationsAndCharts!$A166+$A$11,IF($C$7,8,0),1,1) -> 99.25 | H166: 0.41 | I166: 0.41 | J166: 0 | K166: 0.4041483502 | L166: 0.4671659901 | M166: 46.38375974 | N166: 50.55458461 | O166: 40.40153095 | P166: 5.982228789 | Q166: 10.15305366 | R166: 12.07746379 | S166: 15.55007829 | T166: 77.17190654 | W166: 134 | X166: 2015-08-14 | Y166: 2747400 | Z166: 100.46 | AA166: 102.76 | AB166: 99.73 | AC166: 102.76 | AD166: 9 | AF166: 2.3 | AG166: 2.3 | AH166: 0 | AI166: 2.113231722 | AJ166: 0.5515840976 | AK166: 79.30123 | AL166: 79.30123 | AM166: 71.50535871 | AN166: 7.795871284 | AO166: 7.795871284 | AP166: 9.707535367 | AQ166: 9.718075862 | AR166: 98.87411244 | BA166: 20 | BB166: 80
A167: 135 | B167: =OFFSET(InputPriceData!B$15,CalculationsAndCharts!$A167+$A$11,0,1,1) -> 2018-05-10 | C167: =OFFSET(InputPriceData!G$15,CalculationsAndCharts!$A167+$A$11,IF($C$7,8,0),1,1) -> 208200 | D167: =OFFSET(InputPriceData!C$15,CalculationsAndCharts!$A167+$A$11,IF($C$7,8,0),1,1) -> 99.38 | E167: =OFFSET(InputPriceData!D$15,CalculationsAndCharts!$A167+$A$11,IF($C$7,8,0),1,1) -> 99.38 | F167: =OFFSET(InputPriceData!E$15,CalculationsAndCharts!$A167+$A$11,IF($C$7,8,0),1,1) -> 98.53 | G167: =OFFSET(InputPriceData!F$15,CalculationsAndCharts!$A167+$A$11,IF($C$7,8,0),1,1) -> 98.84 | H167: -0.11 | I167: 0 | J167: 0.11 | K167: 0.4035631852 | L167: 0.5138825891 | M167: 43.98768805 | N167: 50.55458461 | O167: 40.40153095 | P167: 3.586157095 | Q167: 10.15305366 | R167: 13.26332056 | S167: 16.21458195 | T167: 81.29733635 | W167: 135 | X167: 2015-08-03 | Y167: 407600 | Z167: 98.16 | AA167: 100.46 | AB167: 98.16 | AC167: 100.46 | AD167: 1 | AF167: 2.3 | AG167: 2.3 | AH167: 0 | AI167: 2.094554895 | AJ167: 0.6067425074 | AK167: 77.5388483 | AL167: 77.5388483 | AM167: 69.23568675 | AN167: 8.303161546 | AO167: 8.303161546 | AP167: 9.485863524 | AQ167: 11.1126872 | AR167: 84.59937708 | BA167: 20 | BB167: 80
A168: 136 | B168: =OFFSET(InputPriceData!B$15,CalculationsAndCharts!$A168+$A$11,0,1,1) -> 2018-05-09 | C168: =OFFSET(InputPriceData!G$15,CalculationsAndCharts!$A168+$A$11,IF($C$7,8,0),1,1) -> 346400 | D168: =OFFSET(InputPriceData!C$15,CalculationsAndCharts!$A168+$A$11,IF($C$7,8,0),1,1) -> 98.33 | E168: =OFFSET(InputPriceData!D$15,CalculationsAndCharts!$A168+$A$11,IF($C$7,8,0),1,1) -> 99.81 | F168: =OFFSET(InputPriceData!E$15,CalculationsAndCharts!$A168+$A$11,IF($C$7,8,0),1,1) -> 97.93 | G168: =OFFSET(InputPriceData!F$15,CalculationsAndCharts!$A168+$A$11,IF($C$7,8,0),1,1) -> 98.95 | H168: 0.75 | I168: 0.75 | J168: 0 | K168: 0.4439195037 | L168: 0.5542708481 | M168: 44.47242983 | N168: 50.55458461 | O168: 37.36822718 | P168: 7.104202649 | Q168: 13.18635744 | R168: 13.61681184 | S168: 15.74721116 | T168: 85.9256036 | W168: 136 | X168: 2015-07-31 | Y168: 2451900 | Z168: 95.86 | AA168: 98.16 | AB168: 94.17 | AC168: 98.16 | AD168: 11 | AF168: 2.3 | AG168: 2.3 | AH168: 0 | AI168: 2.074010384 | AJ168: 0.6674167581 | AK168: 75.65440468 | AL168: 75.65440468 | AM168: 66.8340957 | AN168: 8.820308974 | AO168: 8.820308974 | AP168: 8.44796833 | AQ168: 12.44388725 | AR168: 67.34729164 | BA168: 20 | BB168: 80
A169: 137 | B169: =OFFSET(InputPriceData!B$15,CalculationsAndCharts!$A169+$A$11,0,1,1) -> 2018-05-08 | C169: =OFFSET(InputPriceData!G$15,CalculationsAndCharts!$A169+$A$11,IF($C$7,8,0),1,1) -> 631600 | D169: =OFFSET(InputPriceData!C$15,CalculationsAndCharts!$A169+$A$11,IF($C$7,8,0),1,1) -> 100.5 | E169: =OFFSET(InputPriceData!D$15,CalculationsAndCharts!$A169+$A$11,IF($C$7,8,0),1,1) -> 101.24 | F169: =OFFSET(InputPriceData!E$15,CalculationsAndCharts!$A169+$A$11,IF($C$7,8,0),1,1) -> 98.17 | G169: =OFFSET(InputPriceData!F$15,CalculationsAndCharts!$A169+$A$11,IF($C$7,8,0),1,1) -> 98.2 | H169: -2.26 | I169: 0 | J169: 2.26 | K169: 0.4133114541 | L169: 0.6096979329 | M169: 40.40153095 | N169: 50.55458461 | O169: 37.36822718 | P169: 3.033303774 | Q169: 13.18635744 | R169: 13.23341801 | S169: 14.89512953 | T169: 88.25144182 | W169: 137 | X169: 2015-07-16 | Y169: 10315300 | Z169: 93.56 | AA169: 95.86 | AB169: 91.35 | AC169: 95.86 | AD169: 15 | AF169: 2.3 | AG169: 2.3 | AH169: 0 | AI169: 2.051411423 | AJ169: 0.7341584339 | AK169: 73.64422823 | AL169: 73.64422823 | AM169: 64.30060068 | AN169: 9.343627545 | AO169: 9.343627545 | AP169: 7.345429708 | AQ169: 13.17627257 | AR169: 55.32750002 | BA169: 20 | BB169: 80
A170: 138 | B170: =OFFSET(InputPriceData!B$15,CalculationsAndCharts!$A170+$A$11,0,1,1) -> 2018-05-07 | C170: =OFFSET(InputPriceData!G$15,CalculationsAndCharts!$A170+$A$11,IF($C$7,8,0),1,1) -> 475800 | D170: =OFFSET(InputPriceData!C$15,CalculationsAndCharts!$A170+$A$11,IF($C$7,8,0),1,1) -> 99.32 | E170: =OFFSET(InputPriceData!D$15,CalculationsAndCharts!$A170+$A$11,IF($C$7,8,0),1,1) -> 101.02 | F170: =OFFSET(InputPriceData!E$15,CalculationsAndCharts!$A170+$A$11,IF($C$7,8,0),1,1) -> 99.07 | G170: =OFFSET(InputPriceData!F$15,CalculationsAndCharts!$A170+$A$11,IF($C$7,8,0),1,1) -> 100.46 | H170: 1.41 | I170: 1.41 | J170: 0 | K170: 0.4546425995 | L170: 0.4446677262 | M170: 50.55458461 | N170: 50.55458461 | O170: 33.88771951 | P170: 16.6668651 | Q170: 16.6668651 | R170: 13.49931957 | S170: 14.07397746 | T170: 95.24016535 | W170: 138 | X170: 2015-06-24 | Y170: 1385300 | Z170: 91.26 | AA170: 93.56 | AB170: 91.26 | AC170: 93.56 | AD170: 4 | AF170: 2.3 | AG170: 2.3 | AH170: 0 | AI170: 2.026552565 | AJ170: 0.8075742773 | AK170: 71.50535871 | AL170: 71.50535871 | AM170: 61.63647947 | AN170: 9.868879245 | AO170: 9.868879245 | AP170: 6.177476265 | AQ170: 13.28104666 | AR170: 46.16586746 | BA170: 20 | BB170: 80
A171: 139 | B171: =OFFSET(InputPriceData!B$15,CalculationsAndCharts!$A171+$A$11,0,1,1) -> 2018-05-04 | C171: =OFFSET(InputPriceData!G$15,CalculationsAndCharts!$A171+$A$11,IF($C$7,8,0),1,1) -> 406300 | D171: =OFFSET(InputPriceData!C$15,CalculationsAndCharts!$A171+$A$11,IF($C$7,8,0),1,1) -> 98.47 | E171: =OFFSET(InputPriceData!D$15,CalculationsAndCharts!$A171+$A$11,IF($C$7,8,0),1,1) -> 100.01 | F171: =OFFSET(InputPriceData!E$15,CalculationsAndCharts!$A171+$A$11,IF($C$7,8,0),1,1) -> 98.28 | G171: =OFFSET(InputPriceData!F$15,CalculationsAndCharts!$A171+$A$11,IF($C$7,8,0),1,1) -> 99.05 | H171: 0.74 | I171: 0.74 | J171: 0 | K171: 0.3591068595 | L171: 0.4891344988 | M171: 42.33545747 | N171: 42.33545747 | O171: 20.7956719 | P171: 21.53978557 | Q171: 21.53978557 | R171: 12.21217448 | S171: 13.02811728 | T171: 93.02304527 | W171: 139 | X171: 2015-06-18 | Y171: 2857300 | Z171: 88.96 | AA171: 91.26 | AB171: 88.96 | AC171: 91.26 | AD171: 7 | AF171: 2.3 | AG171: 2.3 | AH171: 0 | AI171: 1.999207821 | AJ171: 0.888331705 | AK171: 69.23568675 | AL171: 69.23568675 | AM171: 55.61398293 | AN171: 13.62170382 | AO171: 13.62170382 | AP171: 6.038008475 | AQ171: 13.44469089 | AR171: 44.57841469 | BA171: 20 | BB171: 80
A172: 140 | B172: =OFFSET(InputPriceData!B$15,CalculationsAndCharts!$A172+$A$11,0,1,1) -> 2018-05-03 | C172: =OFFSET(InputPriceData!G$15,CalculationsAndCharts!$A172+$A$11,IF($C$7,8,0),1,1) -> 482600 | D172: =OFFSET(InputPriceData!C$15,CalculationsAndCharts!$A172+$A$11,IF($C$7,8,0),1,1) -> 98.29 | E172: =OFFSET(InputPriceData!D$15,CalculationsAndCharts!$A172+$A$11,IF($C$7,8,0),1,1) -> 99.1 | F172: =OFFSET(InputPriceData!E$15,CalculationsAndCharts!$A172+$A$11,IF($C$7,8,0),1,1) -> 97.59 | G172: =OFFSET(InputPriceData!F$15,CalculationsAndCharts!$A172+$A$11,IF($C$7,8,0),1,1) -> 98.31 | H172: -0.2 | I172: 0 | J172: 0.2 | K172: 0.3210175454 | L172: 0.5380479486 | M172: 37.36822718 | N172: 38.17621327 | O172: 18.41863656 | P172: 18.94959062 | Q172: 19.75757671 | R172: 9.519701286 | S172: 11.49490603 | T172: 82.10244446 | W172: 140 | X172: 2015-06-09 | Y172: 4349800 | Z172: 86.66 | AA172: 88.96 | AB172: 84.34 | AC172: 88.96 | AD172: 15 | AF172: 2.3 | AG172: 2.3 | AH172: 0 | AI172: 1.969128604 | AJ172: 0.9771648755 | AK172: 66.8340957 | AL172: 66.8340957 | AM172: 55.61398293 | AN172: 11.22011277 | AO172: 11.22011277 | AP172: 5.18321542 | AQ172: 13.13923205 | AR172: 39.15042352 | BA172: 20 | BB172: 80
A173: 141 | B173: =OFFSET(InputPriceData!B$15,CalculationsAndCharts!$A173+$A$11,0,1,1) -> 2018-05-02 | C173: =OFFSET(InputPriceData!G$15,CalculationsAndCharts!$A173+$A$11,IF($C$7,8,0),1,1) -> 790700 | D173: =OFFSET(InputPriceData!C$15,CalculationsAndCharts!$A173+$A$11,IF($C$7,8,0),1,1) -> 97.41 | E173: =OFFSET(InputPriceData!D$15,CalculationsAndCharts!$A173+$A$11,IF($C$7,8,0),1,1) -> 99.35 | F173: =OFFSET(InputPriceData!E$15,CalculationsAndCharts!$A173+$A$11,IF($C$7,8,0),1,1) -> 95.96 | G173: =OFFSET(InputPriceData!F$15,CalculationsAndCharts!$A173+$A$11,IF($C$7,8,0),1,1) -> 98.51 | H173: 0.66 | I173: 0.66 | J173: 0 | K173: 0.3531193 | L173: 0.5718527435 | M173: 38.17621327 | N173: 38.17621327 | O173: 18.41863656 | P173: 19.75757671 | Q173: 19.75757671 | R173: 7.151002458 | S173: 9.972188968 | T173: 70.99750095 | W173: 141 | X173: 2015-05-18 | Y173: 0 | Z173: 84.36 | AA173: 86.66 | AB173: 84.36 | AC173: 86.66 | AD173: 1 | AF173: 2.3 | AG173: 2.3 | AH173: 0 | AI173: 1.936041464 | AJ173: 1.074881363 | AK173: 64.30060068 | AL173: 64.38492464 | AM173: 55.61398293 | AN173: 8.686617751 | AO173: 8.770941709 | AP173: 4.3691801 | AQ173: 13.1339721 | AR173: 33.0148807 | BA173: 20 | BB173: 80
A174: 142 | B174: =OFFSET(InputPriceData!B$15,CalculationsAndCharts!$A174+$A$11,0,1,1) -> 2018-05-01 | C174: =OFFSET(InputPriceData!G$15,CalculationsAndCharts!$A174+$A$11,IF($C$7,8,0),1,1) -> 556200 | D174: =OFFSET(InputPriceData!C$15,CalculationsAndCharts!$A174+$A$11,IF($C$7,8,0),1,1) -> 96.06 | E174: =OFFSET(InputPriceData!D$15,CalculationsAndCharts!$A174+$A$11,IF($C$7,8,0),1,1) -> 98.25 | F174: =OFFSET(InputPriceData!E$15,CalculationsAndCharts!$A174+$A$11,IF($C$7,8,0),1,1) -> 95.15 | G174: =OFFSET(InputPriceData!F$15,CalculationsAndCharts!$A174+$A$11,IF($C$7,8,0),1,1) -> 97.85 | H174: 1.73 | I174: 1.73 | J174: 0 | K174: 0.32243123 | L174: 0.6290380179 | M174: 33.88771951 | N174: 33.88771951 | O174: 18.41863656 | P174: 15.46908296 | Q174: 15.46908296 | R174: 4.68130537 | S174: 7.837574397 | T174: 58.97652275 | W174: 142 | X174: 2015-05-15 | Y174: 2760300 | Z174: 79.76 | AA174: 84.36 | AB174: 79.08 | AC174: 84.36 | AD174: 11 | AF174: 4.6 | AG174: 4.6 | AH174: 0 | AI174: 1.89964561 | AJ174: 1.182369499 | AK174: 61.63647947 | AL174: 74.56674491 | AM174: 55.61398293 | AN174: 6.022496535 | AO174: 18.95276197 | AP174: 3.283352881 | AQ174: 13.43485852 | AR174: 24.25849428 | BA174: 20 | BB174: 80
A175: 143 | B175: =OFFSET(InputPriceData!B$15,CalculationsAndCharts!$A175+$A$11,0,1,1) -> 2018-04-30 | C175: =OFFSET(InputPriceData!G$15,CalculationsAndCharts!$A175+$A$11,IF($C$7,8,0),1,1) -> 648400 | D175: =OFFSET(InputPriceData!C$15,CalculationsAndCharts!$A175+$A$11,IF($C$7,8,0),1,1) -> 96.12 | E175: =OFFSET(InputPriceData!D$15,CalculationsAndCharts!$A175+$A$11,IF($C$7,8,0),1,1) -> 97.22 | F175: =OFFSET(InputPriceData!E$15,CalculationsAndCharts!$A175+$A$11,IF($C$7,8,0),1,1) -> 96.1 | G175: =OFFSET(InputPriceData!F$15,CalculationsAndCharts!$A175+$A$11,IF($C$7,8,0),1,1) -> 96.12 | H175: 0.28 | I175: 0.28 | J175: 0 | K175: 0.181674353 | L175: 0.6919418196 | M175: 20.7956719 | N175: 20.7956719 | O175: 14.38158456 | P175: 6.414087344 | Q175: 6.414087344 | R175: 2.857709205 | S175: 6.13870541 | T175: 45.80612511 | W175: 143 | X175: 2015-04-30 | Y175: 0 | Z175: 82.06 | AA175: 82.06 | AB175: 79.76 | AC175: 79.76 | AD175: 1 | AF175: -2.3 | AG175: 0 | AH175: 2.3 | AI175: 1.629610171 | AJ175: 1.300606449 | AK175: 55.61398293 | AL175: 74.56674491 | AM175: 55.61398293 | AN175: 0 | AO175: 18.95276197 | AP175: 3.58992208 | AQ175: 12.12514454 | AR175: 29.36506859 | BA175: 20 | BB175: 80
A176: 144 | B176: =OFFSET(InputPriceData!B$15,CalculationsAndCharts!$A176+$A$11,0,1,1) -> 2018-04-27 | C176: =OFFSET(InputPriceData!G$15,CalculationsAndCharts!$A176+$A$11,IF($C$7,8,0),1,1) -> 512500 | D176: =OFFSET(InputPriceData!C$15,CalculationsAndCharts!$A176+$A$11,IF($C$7,8,0),1,1) -> 96.43 | E176: =OFFSET(InputPriceData!D$15,CalculationsAndCharts!$A176+$A$11,IF($C$7,8,0),1,1) -> 97.06 | F176: =OFFSET(InputPriceData!E$15,CalculationsAndCharts!$A176+$A$11,IF($C$7,8,0),1,1) -> 95.2 | G176: =OFFSET(InputPriceData!F$15,CalculationsAndCharts!$A176+$A$11,IF($C$7,8,0),1,1) -> 95.84 | H176: -0.59 | I176: 0 | J176: 0.59 | K176: 0.1718417883 | L176: 0.7611360016 | M176: 18.41863656 | N176: 20.75128894 | O176: 14.38158456 | P176: 4.037051995 | Q176: 6.369704378 | R176: 2.287751484 | S176: 7.301306051 | T176: 30.91010516 | W176: 144 | X176: 2015-04-29 | Y176: 10677100 | Z176: 84.36 | AA176: 87.56 | AB176: 82.06 | AC176: 82.06 | AD176: 40 | AF176: -2.3 | AG176: 0 | AH176: 2.3 | AI176: 1.792571188 | AJ176: 1.200667094 | AK176: 59.8873534 | AL176: 74.56674491 | AM176: 59.8873534 | AN176: 0 | AO176: 14.67939151 | AP176: 4.714724665 | AQ176: 10.88085188 | AR176: 42.93587343 | BA176: 20 | BB176: 80
A177: 145 | B177: =OFFSET(InputPriceData!B$15,CalculationsAndCharts!$A177+$A$11,0,1,1) -> 2018-04-26 | C177: =OFFSET(InputPriceData!G$15,CalculationsAndCharts!$A177+$A$11,IF($C$7,8,0),1,1) -> 392500 | D177: =OFFSET(InputPriceData!C$15,CalculationsAndCharts!$A177+$A$11,IF($C$7,8,0),1,1) -> 97.04 | E177: =OFFSET(InputPriceData!D$15,CalculationsAndCharts!$A177+$A$11,IF($C$7,8,0),1,1) -> 97.46 | F177: =OFFSET(InputPriceData!E$15,CalculationsAndCharts!$A177+$A$11,IF($C$7,8,0),1,1) -> 96.34 | G177: =OFFSET(InputPriceData!F$15,CalculationsAndCharts!$A177+$A$11,IF($C$7,8,0),1,1) -> 96.43 | H177: -0.62 | I177: 0 | J177: 0.62 | K177: 0.1890259671 | L177: 0.7782496018 | M177: 19.54210084 | N177: 20.99872549 | O177: 14.38158456 | P177: 5.160516281 | Q177: 6.617140933 | R177: 2.017886367 | S177: 8.688636973 | T177: 22.9601743 | W177: 145 | X177: 2015-03-03 | Y177: 8167700 | Z177: 88.96 | AA177: 91.11 | AB177: 84.36 | AC177: 84.36 | AD177: 33 | AF177: -4.6 | AG177: 0 | AH177: 4.6 | AI177: 1.971828307 | AJ177: 1.090733804 | AK177: 64.38492464 | AL177: 74.56674491 | AM177: 64.38492464 | AN177: 0 | AO177: 10.18182026 | AP177: 5.905634244 | AQ177: 10.23683752 | AR177: 57.13192484 | BA177: 20 | BB177: 80
A178: 146 | B178: =OFFSET(InputPriceData!B$15,CalculationsAndCharts!$A178+$A$11,0,1,1) -> 2018-04-25 | C178: =OFFSET(InputPriceData!G$15,CalculationsAndCharts!$A178+$A$11,IF($C$7,8,0),1,1) -> 366100 | D178: =OFFSET(InputPriceData!C$15,CalculationsAndCharts!$A178+$A$11,IF($C$7,8,0),1,1) -> 95.86 | E178: =OFFSET(InputPriceData!D$15,CalculationsAndCharts!$A178+$A$11,IF($C$7,8,0),1,1) -> 97.64 | F178: =OFFSET(InputPriceData!E$15,CalculationsAndCharts!$A178+$A$11,IF($C$7,8,0),1,1) -> 95.45 | G178: =OFFSET(InputPriceData!F$15,CalculationsAndCharts!$A178+$A$11,IF($C$7,8,0),1,1) -> 97.05 | H178: 0.82 | I178: 0.82 | J178: 0 | K178: 0.2079285638 | L178: 0.7940745619 | M178: 20.75128894 | N178: 22.68156821 | O178: 14.38158456 | P178: 6.369704378 | Q178: 8.299983651 | R178: 1.607588215 | S178: 10.10206339 | T178: 15.75748114 | W178: 146 | X178: 2015-01-13 | Y178: 2854700 | Z178: 86.66 | AA178: 88.96 | AB178: 83.21 | AC178: 88.96 | AD178: 9 | AF178: 2.3 | AG178: 2.3 | AH178: 0 | AI178: 2.169011138 | AJ178: 0.739807184 | AK178: 74.56674491 | AL178: 76.9916411 | AM178: 65.81360799 | AN178: 8.753136921 | AO178: 11.17803312 | AP178: 7.162789314 | AQ178: 10.22126506 | AR178: 69.39836612 | BA178: 20 | BB178: 80
A179: 147 | B179: =OFFSET(InputPriceData!B$15,CalculationsAndCharts!$A179+$A$11,0,1,1) -> 2018-04-24 | C179: =OFFSET(InputPriceData!G$15,CalculationsAndCharts!$A179+$A$11,IF($C$7,8,0),1,1) -> 489600 | D179: =OFFSET(InputPriceData!C$15,CalculationsAndCharts!$A179+$A$11,IF($C$7,8,0),1,1) -> 98.04 | E179: =OFFSET(InputPriceData!D$15,CalculationsAndCharts!$A179+$A$11,IF($C$7,8,0),1,1) -> 98.47 | F179: =OFFSET(InputPriceData!E$15,CalculationsAndCharts!$A179+$A$11,IF($C$7,8,0),1,1) -> 96.07 | G179: =OFFSET(InputPriceData!F$15,CalculationsAndCharts!$A179+$A$11,IF($C$7,8,0),1,1) -> 96.23 | H179: -1.2 | I179: 0 | J179: 1.2 | K179: 0.1467214202 | L179: 0.8734820181 | M179: 14.38158456 | N179: 23.65568014 | O179: 14.38158456 | P179: 0 | Q179: 9.274095581 | R179: 0.8113751679 | S179: 11.30513447 | T179: 7.114121891 | W179: 147 | X179: 2014-12-30 | Y179: 2487400 | Z179: 84.36 | AA179: 86.66 | AB179: 84.36 | AC179: 86.66 | AD179: 8 | AF179: 2.3 | AG179: 2.3 | AH179: 0 | AI179: 2.155912252 | AJ179: 0.8137879024 | AK179: 72.59696736 | AL179: 76.9916411 | AM179: 65.81360799 | AN179: 6.783359379 | AO179: 11.17803312 | AP179: 7.802189604 | AQ179: 10.55755332 | AR179: 73.20807475 | BA179: 20 | BB179: 80
A180: 148 | B180: =OFFSET(InputPriceData!B$15,CalculationsAndCharts!$A180+$A$11,0,1,1) -> 2018-04-23 | C180: =OFFSET(InputPriceData!G$15,CalculationsAndCharts!$A180+$A$11,IF($C$7,8,0),1,1) -> 516500 | D180: =OFFSET(InputPriceData!C$15,CalculationsAndCharts!$A180+$A$11,IF($C$7,8,0),1,1) -> 99.38 | E180: =OFFSET(InputPriceData!D$15,CalculationsAndCharts!$A180+$A$11,IF($C$7,8,0),1,1) -> 100.66 | F180: =OFFSET(InputPriceData!E$15,CalculationsAndCharts!$A180+$A$11,IF($C$7,8,0),1,1) -> 97.27 | G180: =OFFSET(InputPriceData!F$15,CalculationsAndCharts!$A180+$A$11,IF($C$7,8,0),1,1) -> 97.43 | H180: -2.57 | I180: 0 | J180: 2.57 | K180: 0.1613935622 | L180: 0.84083022 | M180: 16.10354544 | N180: 23.67938563 | O180: 16.10354544 | P180: 0 | Q180: 7.575840189 | R180: 0.8113751679 | S180: 10.42208 | T180: 7.711167072 | W180: 148 | X180: 2014-12-17 | Y180: 4851600 | Z180: 79.76 | AA180: 84.36 | AB180: 77.84 | AC180: 84.36 | AD180: 15 | AF180: 4.6 | AG180: 4.6 | AH180: 0 | AI180: 2.141503477 | AJ180: 0.8951666927 | AK180: 70.5214382 | AL180: 76.9916411 | AM180: 65.81360799 | AN180: 4.707830212 | AO180: 11.17803312 | AP180: 8.381779538 | AQ180: 10.58780904 | AR180: 78.42373967 | BA180: 20 | BB180: 80
A181: 149 | B181: =OFFSET(InputPriceData!B$15,CalculationsAndCharts!$A181+$A$11,0,1,1) -> 2018-04-20 | C181: =OFFSET(InputPriceData!G$15,CalculationsAndCharts!$A181+$A$11,IF($C$7,8,0),1,1) -> 317400 | D181: =OFFSET(InputPriceData!C$15,CalculationsAndCharts!$A181+$A$11,IF($C$7,8,0),1,1) -> 101.11 | E181: =OFFSET(InputPriceData!D$15,CalculationsAndCharts!$A181+$A$11,IF($C$7,8,0),1,1) -> 102.08 | F181: =OFFSET(InputPriceData!E$15,CalculationsAndCharts!$A181+$A$11,IF($C$7,8,0),1,1) -> 99.46 | G181: =OFFSET(InputPriceData!F$15,CalculationsAndCharts!$A181+$A$11,IF($C$7,8,0),1,1) -> 100 | H181: -0.69 | I181: 0 | J181: 0.69 | K181: 0.1775329184 | L181: 0.667913242 | M181: 20.99872549 | N181: 23.67938563 | O181: 20.99872549 | P181: 0 | Q181: 2.680660138 | R181: 1.008592224 | S181: 9.729342092 | T181: 10.26103492 | W181: 149 | X181: 2014-11-25 | Y181: 308600 | Z181: 84.36 | AA181: 84.62 | AB181: 79.76 | AC181: 79.76 | AD181: 1 | AF181: -4.6 | AG181: 0 | AH181: 4.6 | AI181: 1.895653825 | AJ181: 0.984683362 | AK181: 65.81360799 | AL181: 76.9916411 | AM181: 65.81360799 | AN181: 0 | AO181: 11.17803312 | AP181: 8.898154641 | AQ181: 10.89896633 | AR181: 80.8999171 | BA181: 20 | BB181: 80
A182: 150 | B182: =OFFSET(InputPriceData!B$15,CalculationsAndCharts!$A182+$A$11,0,1,1) -> 2018-04-19 | C182: =OFFSET(InputPriceData!G$15,CalculationsAndCharts!$A182+$A$11,IF($C$7,8,0),1,1) -> 356800 | D182: =OFFSET(InputPriceData!C$15,CalculationsAndCharts!$A182+$A$11,IF($C$7,8,0),1,1) -> 101.1 | E182: =OFFSET(InputPriceData!D$15,CalculationsAndCharts!$A182+$A$11,IF($C$7,8,0),1,1) -> 101.41 | F182: =OFFSET(InputPriceData!E$15,CalculationsAndCharts!$A182+$A$11,IF($C$7,8,0),1,1) -> 100.33 | G182: =OFFSET(InputPriceData!F$15,CalculationsAndCharts!$A182+$A$11,IF($C$7,8,0),1,1) -> 100.69 | H182: -0.39 | I182: 0 | J182: 0.39 | K182: 0.1952862102 | L182: 0.6657045661 | M182: 22.68156821 | N182: 23.67938563 | O182: 21.80125457 | P182: 0.8803136437 | Q182: 1.878131063 | R182: 1.262834345 | S182: 10.56410683 | T182: 11.84191386 | W182: 150 | X182: 2014-11-24 | Y182: 544600 | Z182: 82.06 | AA182: 84.36 | AB182: 82.06 | AC182: 84.36 | AD182: 2 | AF182: 2.3 | AG182: 2.3 | AH182: 0 | AI182: 2.085219207 | AJ182: 0.6231516982 | AK182: 76.9916411 | AL182: 76.9916411 | AM182: 68.51659097 | AN182: 8.47505013 | AO182: 8.47505013 | AP182: 9.663921181 | AQ182: 11.21012361 | AR182: 85.44487674 | BA182: 20 | BB182: 80
A183: 151 | B183: =OFFSET(InputPriceData!B$15,CalculationsAndCharts!$A183+$A$11,0,1,1) -> 2018-04-18 | C183: =OFFSET(InputPriceData!G$15,CalculationsAndCharts!$A183+$A$11,IF($C$7,8,0),1,1) -> 382900 | D183: =OFFSET(InputPriceData!C$15,CalculationsAndCharts!$A183+$A$11,IF($C$7,8,0),1,1) -> 100.98 | E183: =OFFSET(InputPriceData!D$15,CalculationsAndCharts!$A183+$A$11,IF($C$7,8,0),1,1) -> 102.71 | F183: =OFFSET(InputPriceData!E$15,CalculationsAndCharts!$A183+$A$11,IF($C$7,8,0),1,1) -> 100.7 | G183: =OFFSET(InputPriceData!F$15,CalculationsAndCharts!$A183+$A$11,IF($C$7,8,0),1,1) -> 101.08 | H183: -0.01 | I183: 0 | J183: 0.01 | K183: 0.2148148313 | L183: 0.6932750228 | M183: 23.65568014 | N183: 37.51614704 | O183: 21.80125457 | P183: 1.854425574 | Q183: 15.71489248 | R183: 1.326618209 | S183: 11.49918771 | T183: 11.43716476 | W183: 151 | X183: 2014-11-20 | Y183: 1551800 | Z183: 79.76 | AA183: 82.06 | AB183: 78.36 | AC183: 82.06 | AD183: 9 | AF183: 2.3 | AG183: 2.3 | AH183: 0 | AI183: 2.063741128 | AJ183: 0.685466868 | AK183: 75.06675126 | AL183: 75.06675126 | AM183: 66.06833058 | AN183: 8.998420678 | AO183: 8.998420678 | AP183: 8.604539915 | AQ183: 11.85915377 | AR183: 71.94940443 | BA183: 20 | BB183: 80
A184: 152 | B184: =OFFSET(InputPriceData!B$15,CalculationsAndCharts!$A184+$A$11,0,1,1) -> 2018-04-17 | C184: =OFFSET(InputPriceData!G$15,CalculationsAndCharts!$A184+$A$11,IF($C$7,8,0),1,1) -> 436100 | D184: =OFFSET(InputPriceData!C$15,CalculationsAndCharts!$A184+$A$11,IF($C$7,8,0),1,1) -> 101.66 | E184: =OFFSET(InputPriceData!D$15,CalculationsAndCharts!$A184+$A$11,IF($C$7,8,0),1,1) -> 102.64 | F184: =OFFSET(InputPriceData!E$15,CalculationsAndCharts!$A184+$A$11,IF($C$7,8,0),1,1) -> 100.83 | G184: =OFFSET(InputPriceData!F$15,CalculationsAndCharts!$A184+$A$11,IF($C$7,8,0),1,1) -> 101.09 | H184: 0 | I184: 0 | J184: 0 | K184: 0.2362963144 | L184: 0.761602525 | M184: 23.67938563 | N184: 39.26960632 | O184: 21.80125457 | P184: 1.878131063 | Q184: 17.46835176 | R184: 1.094815012 | S184: 10.70467341 | T184: 10.13279135 | W184: 152 | X184: 2014-11-07 | Y184: 1224400 | Z184: 77.46 | AA184: 79.76 | AB184: 77.46 | AC184: 79.76 | AD184: 6 | AF184: 2.3 | AG184: 2.3 | AH184: 0 | AI184: 2.040115241 | AJ184: 0.7540135548 | AK184: 73.0143594 | AL184: 73.0143594 | AM184: 63.48708276 | AN184: 9.527276632 | AO184: 9.527276632 | AP184: 7.47973733 | AQ184: 11.92077576 | AR184: 62.2234162 | BA184: 20 | BB184: 80
A185: 153 | B185: =OFFSET(InputPriceData!B$15,CalculationsAndCharts!$A185+$A$11,0,1,1) -> 2018-04-16 | C185: =OFFSET(InputPriceData!G$15,CalculationsAndCharts!$A185+$A$11,IF($C$7,8,0),1,1) -> 369000 | D185: =OFFSET(InputPriceData!C$15,CalculationsAndCharts!$A185+$A$11,IF($C$7,8,0),1,1) -> 101.11 | E185: =OFFSET(InputPriceData!D$15,CalculationsAndCharts!$A185+$A$11,IF($C$7,8,0),1,1) -> 102.22 | F185: =OFFSET(InputPriceData!E$15,CalculationsAndCharts!$A185+$A$11,IF($C$7,8,0),1,1) -> 99.38 | G185: =OFFSET(InputPriceData!F$15,CalculationsAndCharts!$A185+$A$11,IF($C$7,8,0),1,1) -> 101.09 | H185: 0.29 | I185: 0.29 | J185: 0 | K185: 0.2599259458 | L185: 0.8377627775 | M185: 23.67938563 | N185: 39.72580684 | O185: 21.80125457 | P185: 1.878131063 | Q185: 17.92455227 | R185: 0.8600486293 | S185: 9.509906054 | T185: 8.949604964 | W185: 153 | X185: 2014-10-30 | Y185: 3480100 | Z185: 75.16 | AA185: 77.46 | AB185: 72.99 | AC185: 77.46 | AD185: 12 | AF185: 2.3 | AG185: 2.3 | AH185: 0 | AI185: 2.014126765 | AJ185: 0.8294149102 | AK185: 70.83162461 | AL185: 70.83162461 | AM185: 60.77438405 | AN185: 10.05724056 | AO185: 10.05724056 | AP185: 7.320720386 | AQ185: 12.01196672 | AR185: 60.44204507 | BA185: 20 | BB185: 80
A186: 154 | B186: =OFFSET(InputPriceData!B$15,CalculationsAndCharts!$A186+$A$11,0,1,1) -> 2018-04-13 | C186: =OFFSET(InputPriceData!G$15,CalculationsAndCharts!$A186+$A$11,IF($C$7,8,0),1,1) -> 894700 | D186: =OFFSET(InputPriceData!C$15,CalculationsAndCharts!$A186+$A$11,IF($C$7,8,0),1,1) -> 105.76 | E186: =OFFSET(InputPriceData!D$15,CalculationsAndCharts!$A186+$A$11,IF($C$7,8,0),1,1) -> 105.99 | F186: =OFFSET(InputPriceData!E$15,CalculationsAndCharts!$A186+$A$11,IF($C$7,8,0),1,1) -> 99.66 | G186: =OFFSET(InputPriceData!F$15,CalculationsAndCharts!$A186+$A$11,IF($C$7,8,0),1,1) -> 100.8 | H186: -5.43 | I186: 0 | J186: 5.43 | K186: 0.2569185404 | L186: 0.9215390553 | M186: 21.80125457 | N186: 39.72580684 | O186: 21.80125457 | P186: 0 | Q186: 17.92455227 | R186: 2.031372797 | S186: 8.693748073 | T186: 23.10019323 | W186: 154 | X186: 2014-10-14 | Y186: 365300 | Z186: 72.86 | AA186: 75.16 | AB186: 72.86 | AC186: 75.16 | AD186: 1 | AF186: 2.3 | AG186: 2.3 | AH186: 0 | AI186: 1.985539441 | AJ186: 0.9123564013 | AK186: 68.51659097 | AL186: 68.51659097 | AM186: 54.64825173 | AN186: 13.86833924 | AO186: 13.86833924 | AP186: 6.781993333 | AQ186: 13.56202156 | AR186: 49.64121379 | BA186: 20 | BB186: 80
A187: 155 | B187: =OFFSET(InputPriceData!B$15,CalculationsAndCharts!$A187+$A$11,0,1,1) -> 2018-04-12 | C187: =OFFSET(InputPriceData!G$15,CalculationsAndCharts!$A187+$A$11,IF($C$7,8,0),1,1) -> 350000 | D187: =OFFSET(InputPriceData!C$15,CalculationsAndCharts!$A187+$A$11,IF($C$7,8,0),1,1) -> 107.23 | E187: =OFFSET(InputPriceData!D$15,CalculationsAndCharts!$A187+$A$11,IF($C$7,8,0),1,1) -> 107.69 | F187: =OFFSET(InputPriceData!E$15,CalculationsAndCharts!$A187+$A$11,IF($C$7,8,0),1,1) -> 106.11 | G187: =OFFSET(InputPriceData!F$15,CalculationsAndCharts!$A187+$A$11,IF($C$7,8,0),1,1) -> 106.23 | H187: -0.37 | I187: 0 | J187: 0.37 | K187: 0.2826103945 | L187: 0.4706929608 | M187: 37.51614704 | N187: 39.72580684 | O187: 37.51614704 | P187: 0 | Q187: 2.209659795 | R187: 3.336014983 | S187: 8.058793645 | T187: 40.88858143 | W187: 155 | X187: 2014-10-13 | Y187: 1503400 | Z187: 70.56 | AA187: 72.86 | AB187: 70.56 | AC187: 72.86 | AD187: 6 | AF187: 2.3 | AG187: 2.3 | AH187: 0 | AI187: 1.954093385 | AJ187: 1.003592041 | AK187: 66.06833058 | AL187: 66.06833058 | AM187: 54.64825173 | AN187: 11.42007885 | AO187: 11.42007885 | AP187: 5.048450928 | AQ187: 14.63568907 | AR187: 34.26002615 | BA187: 20 | BB187: 80
A188: 156 | B188: =OFFSET(InputPriceData!B$15,CalculationsAndCharts!$A188+$A$11,0,1,1) -> 2018-04-11 | C188: =OFFSET(InputPriceData!G$15,CalculationsAndCharts!$A188+$A$11,IF($C$7,8,0),1,1) -> 364900 | D188: =OFFSET(InputPriceData!C$15,CalculationsAndCharts!$A188+$A$11,IF($C$7,8,0),1,1) -> 106.22 | E188: =OFFSET(InputPriceData!D$15,CalculationsAndCharts!$A188+$A$11,IF($C$7,8,0),1,1) -> 107.56 | F188: =OFFSET(InputPriceData!E$15,CalculationsAndCharts!$A188+$A$11,IF($C$7,8,0),1,1) -> 105.53 | G188: =OFFSET(InputPriceData!F$15,CalculationsAndCharts!$A188+$A$11,IF($C$7,8,0),1,1) -> 106.6 | H188: -0.1 | I188: 0 | J188: 0.1 | K188: 0.3108714339 | L188: 0.4807622569 | M188: 39.26960632 | N188: 39.72580684 | O188: 37.69186987 | P188: 1.577736452 | Q188: 2.033936968 | R188: 4.670454545 | S188: 9.388200777 | T188: 49.22381655 | W188: 156 | X188: 2014-10-03 | Y188: 7672900 | Z188: 68.26 | AA188: 70.56 | AB188: 65.72 | AC188: 70.56 | AD188: 32 | AF188: 2.3 | AG188: 2.3 | AH188: 0 | AI188: 1.919502724 | AJ188: 1.103951246 | AK188: 63.48708276 | AL188: 68.31554314 | AM188: 54.64825173 | AN188: 8.838831034 | AO188: 13.66729141 | AP188: 3.620941071 | AQ188: 15.39431891 | AR188: 23.36947556 | BA188: 20 | BB188: 80
A189: 157 | B189: =OFFSET(InputPriceData!B$15,CalculationsAndCharts!$A189+$A$11,0,1,1) -> 2018-04-10 | C189: =OFFSET(InputPriceData!G$15,CalculationsAndCharts!$A189+$A$11,IF($C$7,8,0),1,1) -> 365300 | D189: =OFFSET(InputPriceData!C$15,CalculationsAndCharts!$A189+$A$11,IF($C$7,8,0),1,1) -> 107.18 | E189: =OFFSET(InputPriceData!D$15,CalculationsAndCharts!$A189+$A$11,IF($C$7,8,0),1,1) -> 107.28 | F189: =OFFSET(InputPriceData!E$15,CalculationsAndCharts!$A189+$A$11,IF($C$7,8,0),1,1) -> 105.99 | G189: =OFFSET(InputPriceData!F$15,CalculationsAndCharts!$A189+$A$11,IF($C$7,8,0),1,1) -> 106.7 | H189: 0.1 | I189: 0.1 | J189: 0 | K189: 0.3419585773 | L189: 0.5188384826 | M189: 39.72580684 | N189: 47.05064794 | O189: 37.69186987 | P189: 2.033936968 | Q189: 9.358778066 | R189: 6.223893607 | S189: 10.88461477 | T189: 56.66009901 | W189: 157 | X189: 2014-08-19 | Y189: 2085400 | Z189: 63.66 | AA189: 68.26 | AB189: 63.56 | AC189: 68.26 | AD189: 13 | AF189: 4.6 | AG189: 4.6 | AH189: 0 | AI189: 1.881452996 | AJ189: 1.21434637 | AK189: 60.77438405 | AL189: 68.31554314 | AM189: 54.64825173 | AN189: 6.126132319 | AO189: 13.66729141 | AP189: 2.516087192 | AQ189: 15.21101685 | AR189: 16.43318153 | BA189: 20 | BB189: 80
A190: 158 | B190: =OFFSET(InputPriceData!B$15,CalculationsAndCharts!$A190+$A$11,0,1,1) -> 2018-04-09 | C190: =OFFSET(InputPriceData!G$15,CalculationsAndCharts!$A190+$A$11,IF($C$7,8,0),1,1) -> 278200 | D190: =OFFSET(InputPriceData!C$15,CalculationsAndCharts!$A190+$A$11,IF($C$7,8,0),1,1) -> 106.53 | E190: =OFFSET(InputPriceData!D$15,CalculationsAndCharts!$A190+$A$11,IF($C$7,8,0),1,1) -> 107.91 | F190: =OFFSET(InputPriceData!E$15,CalculationsAndCharts!$A190+$A$11,IF($C$7,8,0),1,1) -> 105.65 | G190: =OFFSET(InputPriceData!F$15,CalculationsAndCharts!$A190+$A$11,IF($C$7,8,0),1,1) -> 106.6 | H190: 0.23 | I190: 0.23 | J190: 0 | K190: 0.366154435 | L190: 0.5707223309 | M190: 39.08245442 | N190: 47.05064794 | O190: 37.69186987 | P190: 1.390584551 | Q190: 9.358778066 | R190: 6.295896551 | S190: 10.5162819 | T190: 59.3041576 | W190: 158 | X190: 2014-07-31 | Y190: 2005300 | Z190: 65.96 | AA190: 65.96 | AB190: 63.66 | AC190: 63.66 | AD190: 12 | AF190: -2.3 | AG190: 0 | AH190: 2.3 | AI190: 1.609598296 | AJ190: 1.335781007 | AK190: 54.64825173 | AL190: 68.31554314 | AM190: 54.64825173 | AN190: 0 | AO190: 13.66729141 | AP190: 2.579224482 | AQ190: 14.33150925 | AR190: 17.87217426 | BA190: 20 | BB190: 80
A191: 159 | B191: =OFFSET(InputPriceData!B$15,CalculationsAndCharts!$A191+$A$11,0,1,1) -> 2018-04-06 | C191: =OFFSET(InputPriceData!G$15,CalculationsAndCharts!$A191+$A$11,IF($C$7,8,0),1,1) -> 333200 | D191: =OFFSET(InputPriceData!C$15,CalculationsAndCharts!$A191+$A$11,IF($C$7,8,0),1,1) -> 106.33 | E191: =OFFSET(InputPriceData!D$15,CalculationsAndCharts!$A191+$A$11,IF($C$7,8,0),1,1) -> 108.27 | F191: =OFFSET(InputPriceData!E$15,CalculationsAndCharts!$A191+$A$11,IF($C$7,8,0),1,1) -> 105.58 | G191: =OFFSET(InputPriceData!F$15,CalculationsAndCharts!$A191+$A$11,IF($C$7,8,0),1,1) -> 106.37 | H191: -0.45 | I191: 0 | J191: 0.45 | K191: 0.3797698785 | L191: 0.6277945639 | M191: 37.69186987 | N191: 47.05064794 | O191: 37.69186987 | P191: 0 | Q191: 9.358778066 | R191: 6.267114994 | S191: 10.84133382 | T191: 57.2792595 | W191: 159 | X191: 2014-07-15 | Y191: 4958400 | Z191: 70.56 | AA191: 71.94 | AB191: 65.96 | AC191: 65.96 | AD191: 25 | AF191: -4.6 | AG191: 0 | AH191: 4.6 | AI191: 1.770558125 | AJ191: 1.239359108 | AK191: 58.82414659 | AL191: 68.31554314 | AM191: 58.82414659 | AN191: 0 | AO191: 9.491396548 | AP191: 3.462956906 | AQ191: 13.50683025 | AR191: 25.45013675 | BA191: 20 | BB191: 80
A192: 160 | B192: =OFFSET(InputPriceData!B$15,CalculationsAndCharts!$A192+$A$11,0,1,1) -> 2018-04-05 | C192: =OFFSET(InputPriceData!G$15,CalculationsAndCharts!$A192+$A$11,IF($C$7,8,0),1,1) -> 384700 | D192: =OFFSET(InputPriceData!C$15,CalculationsAndCharts!$A192+$A$11,IF($C$7,8,0),1,1) -> 108.42 | E192: =OFFSET(InputPriceData!D$15,CalculationsAndCharts!$A192+$A$11,IF($C$7,8,0),1,1) -> 108.42 | F192: =OFFSET(InputPriceData!E$15,CalculationsAndCharts!$A192+$A$11,IF($C$7,8,0),1,1) -> 106.23 | G192: =OFFSET(InputPriceData!F$15,CalculationsAndCharts!$A192+$A$11,IF($C$7,8,0),1,1) -> 106.82 | H192: -1.93 | I192: 0 | J192: 1.93 | K192: 0.4177468664 | L192: 0.6455740203 | M192: 39.28699902 | N192: 47.19721195 | O192: 39.28699902 | P192: 0 | Q192: 7.91021293 | R192: 6.667160409 | S192: 11.16638575 | T192: 59.17745548 | W192: 160 | X192: 2014-06-09 | Y192: 376500 | Z192: 68.26 | AA192: 70.56 | AB192: 68.26 | AC192: 70.56 | AD192: 2 | AF192: 2.3 | AG192: 2.3 | AH192: 0 | AI192: 1.947613938 | AJ192: 0.9032950186 | AK192: 68.31554314 | AL192: 70.31720643 | AM192: 60.06040205 | AN192: 8.255141082 | AO192: 10.25680437 | AP192: 4.402738074 | AQ192: 13.26018685 | AR192: 32.95416542 | BA192: 20 | BB192: 80
A193: 161 | B193: =OFFSET(InputPriceData!B$15,CalculationsAndCharts!$A193+$A$11,0,1,1) -> 2018-04-04 | C193: =OFFSET(InputPriceData!G$15,CalculationsAndCharts!$A193+$A$11,IF($C$7,8,0),1,1) -> 441700 | D193: =OFFSET(InputPriceData!C$15,CalculationsAndCharts!$A193+$A$11,IF($C$7,8,0),1,1) -> 107.07 | E193: =OFFSET(InputPriceData!D$15,CalculationsAndCharts!$A193+$A$11,IF($C$7,8,0),1,1) -> 109.33 | F193: =OFFSET(InputPriceData!E$15,CalculationsAndCharts!$A193+$A$11,IF($C$7,8,0),1,1) -> 106.56 | G193: =OFFSET(InputPriceData!F$15,CalculationsAndCharts!$A193+$A$11,IF($C$7,8,0),1,1) -> 108.75 | H193: 0.44 | I193: 0.44 | J193: 0 | K193: 0.459521553 | L193: 0.5171314224 | M193: 47.05064794 | N193: 47.19721195 | O193: 35.80192353 | P193: 11.24872441 | Q193: 11.39528842 | R193: 6.667160409 | S193: 12.34898393 | T193: 53.55586004 | W193: 161 | X193: 2014-06-05 | Y193: 24901400 | Z193: 63.66 | AA193: 68.26 | AB193: 62.3 | AC193: 68.26 | AD193: 102 | AF193: 4.6 | AG193: 4.6 | AH193: 0 | AI193: 1.912375332 | AJ193: 0.9936245204 | AK193: 65.80782619 | AL193: 82.51808133 | AM193: 60.06040205 | AN193: 5.747424135 | AO193: 22.45767928 | AP193: 4.36751767 | AQ193: 12.97475853 | AR193: 33.40419373 | BA193: 20 | BB193: 80
A194: 162 | B194: =OFFSET(InputPriceData!B$15,CalculationsAndCharts!$A194+$A$11,0,1,1) -> 2018-04-03 | C194: =OFFSET(InputPriceData!G$15,CalculationsAndCharts!$A194+$A$11,IF($C$7,8,0),1,1) -> 462900 | D194: =OFFSET(InputPriceData!C$15,CalculationsAndCharts!$A194+$A$11,IF($C$7,8,0),1,1) -> 109 | E194: =OFFSET(InputPriceData!D$15,CalculationsAndCharts!$A194+$A$11,IF($C$7,8,0),1,1) -> 109.99 | F194: =OFFSET(InputPriceData!E$15,CalculationsAndCharts!$A194+$A$11,IF($C$7,8,0),1,1) -> 106.85 | G194: =OFFSET(InputPriceData!F$15,CalculationsAndCharts!$A194+$A$11,IF($C$7,8,0),1,1) -> 108.31 | H194: -0.06 | I194: 0 | J194: 0.06 | K194: 0.4614737083 | L194: 0.5688445646 | M194: 44.78943259 | N194: 47.19721195 | O194: 34.3522951 | P194: 10.43713749 | Q194: 12.84491685 | R194: 5.261069859 | S194: 12.29443329 | T194: 42.44703842 | W194: 162 | X194: 2014-01-08 | Y194: 5329500 | Z194: 65.96 | AA194: 68.45 | AB194: 63.66 | AC194: 63.66 | AD194: 18 | AF194: -2.3 | AG194: 0 | AH194: 2.3 | AI194: 1.643612865 | AJ194: 1.092986972 | AK194: 60.06040205 | AL194: 82.51808133 | AM194: 60.06040205 | AN194: 0 | AO194: 22.45767928 | AP194: 4.703056791 | AQ194: 11.22151576 | AR194: 41.54087571 | BA194: 20 | BB194: 80
A195: 163 | B195: =OFFSET(InputPriceData!B$15,CalculationsAndCharts!$A195+$A$11,0,1,1) -> 2018-04-02 | C195: =OFFSET(InputPriceData!G$15,CalculationsAndCharts!$A195+$A$11,IF($C$7,8,0),1,1) -> 418100 | D195: =OFFSET(InputPriceData!C$15,CalculationsAndCharts!$A195+$A$11,IF($C$7,8,0),1,1) -> 108.94 | E195: =OFFSET(InputPriceData!D$15,CalculationsAndCharts!$A195+$A$11,IF($C$7,8,0),1,1) -> 109.55 | F195: =OFFSET(InputPriceData!E$15,CalculationsAndCharts!$A195+$A$11,IF($C$7,8,0),1,1) -> 107.42 | G195: =OFFSET(InputPriceData!F$15,CalculationsAndCharts!$A195+$A$11,IF($C$7,8,0),1,1) -> 108.37 | H195: -0.57 | I195: 0 | J195: 0.57 | K195: 0.5076210792 | L195: 0.6197290211 | M195: 45.0278116 | N195: 47.19721195 | O195: 34.3522951 | P195: 10.67551649 | Q195: 12.84491685 | R195: 4.422231245 | S195: 11.83109787 | T195: 37.06474704 | W195: 163 | X195: 2013-12-11 | Y195: 728300 | Z195: 68.26 | AA195: 68.26 | AB195: 65.96 | AC195: 65.96 | AD195: 1 | AF195: -2.3 | AG195: 0 | AH195: 2.3 | AI195: 1.807974151 | AJ195: 0.9722856697 | AK195: 65.02896376 | AL195: 82.51808133 | AM195: 65.02896376 | AN195: 0 | AO195: 17.48911757 | AP195: 5.814225215 | AQ195: 9.525474275 | AR195: 60.40455825 | BA195: 20 | BB195: 80
A196: 164 | B196: =OFFSET(InputPriceData!B$15,CalculationsAndCharts!$A196+$A$11,0,1,1) -> 2018-03-29 | C196: =OFFSET(InputPriceData!G$15,CalculationsAndCharts!$A196+$A$11,IF($C$7,8,0),1,1) -> 364200 | D196: =OFFSET(InputPriceData!C$15,CalculationsAndCharts!$A196+$A$11,IF($C$7,8,0),1,1) -> 107.18 | E196: =OFFSET(InputPriceData!D$15,CalculationsAndCharts!$A196+$A$11,IF($C$7,8,0),1,1) -> 109.36 | F196: =OFFSET(InputPriceData!E$15,CalculationsAndCharts!$A196+$A$11,IF($C$7,8,0),1,1) -> 107.11 | G196: =OFFSET(InputPriceData!F$15,CalculationsAndCharts!$A196+$A$11,IF($C$7,8,0),1,1) -> 108.94 | H196: 2.31 | I196: 2.31 | J196: 0 | K196: 0.5583831871 | L196: 0.6247019232 | M196: 47.19721195 | N196: 47.19721195 | O196: 33.19196301 | P196: 14.00524894 | Q196: 14.00524894 | R196: 3.181929947 | S196: 11.36776246 | T196: 27.74673751 | W196: 164 | X196: 2013-12-10 | Y196: 3978300 | Z196: 72.86 | AA196: 73.42 | AB196: 68.26 | AC196: 68.26 | AD196: 24 | AF196: -4.6 | AG196: 0 | AH196: 4.6 | AI196: 1.988771567 | AJ196: 0.8395142367 | AK196: 70.31720643 | AL196: 82.51808133 | AM196: 70.31720643 | AN196: 0 | AO196: 12.20087491 | AP196: 6.981948815 | AQ196: 8.507058178 | AR196: 81.11887558 | BA196: 20 | BB196: 80
A197: 165 | B197: =OFFSET(InputPriceData!B$15,CalculationsAndCharts!$A197+$A$11,0,1,1) -> 2018-03-28 | C197: =OFFSET(InputPriceData!G$15,CalculationsAndCharts!$A197+$A$11,IF($C$7,8,0),1,1) -> 316600 | D197: =OFFSET(InputPriceData!C$15,CalculationsAndCharts!$A197+$A$11,IF($C$7,8,0),1,1) -> 106.65 | E197: =OFFSET(InputPriceData!D$15,CalculationsAndCharts!$A197+$A$11,IF($C$7,8,0),1,1) -> 107.38 | F197: =OFFSET(InputPriceData!E$15,CalculationsAndCharts!$A197+$A$11,IF($C$7,8,0),1,1) -> 105.71 | G197: =OFFSET(InputPriceData!F$15,CalculationsAndCharts!$A197+$A$11,IF($C$7,8,0),1,1) -> 106.63 | H197: 0.26 | I197: 0.26 | J197: 0 | K197: 0.3832215058 | L197: 0.6871721155 | M197: 35.80192353 | N197: 39.6040781 | O197: 33.19196301 | P197: 2.609960524 | Q197: 6.412115093 | R197: 2.57355302 | S197: 10.75938553 | T197: 23.69888253 | W197: 165 | X197: 2013-11-05 | Y197: 295100 | Z197: 70.56 | AA197: 72.86 | AB197: 70.56 | AC197: 72.86 | AD197: 1 | AF197: 2.3 | AG197: 2.3 | AH197: 0 | AI197: 2.187648723 | AJ197: 0.4634656604 | AK197: 82.51808133 | AL197: 82.51808133 | AM197: 75.88685069 | AN197: 6.631230636 | AO197: 6.631230636 | AP197: 8.5798148 | AQ197: 8.5798148 | AR197: 98.84790169 | BA197: 20 | BB197: 80
A198: 166 | B198: =OFFSET(InputPriceData!B$15,CalculationsAndCharts!$A198+$A$11,0,1,1) -> 2018-03-27 | C198: =OFFSET(InputPriceData!G$15,CalculationsAndCharts!$A198+$A$11,IF($C$7,8,0),1,1) -> 315700 | D198: =OFFSET(InputPriceData!C$15,CalculationsAndCharts!$A198+$A$11,IF($C$7,8,0),1,1) -> 107.15 | E198: =OFFSET(InputPriceData!D$15,CalculationsAndCharts!$A198+$A$11,IF($C$7,8,0),1,1) -> 110.3 | F198: =OFFSET(InputPriceData!E$15,CalculationsAndCharts!$A198+$A$11,IF($C$7,8,0),1,1) -> 105.84 | G198: =OFFSET(InputPriceData!F$15,CalculationsAndCharts!$A198+$A$11,IF($C$7,8,0),1,1) -> 106.37 | H198: -0.71 | I198: 0 | J198: 0.71 | K198: 0.3955436564 | L198: 0.7558893271 | M198: 34.3522951 | N198: 45.15115644 | O198: 33.19196301 | P198: 1.160332094 | Q198: 11.95919344 | R198: 2.531650103 | S198: 10.43413241 | T198: 24.0328297 | W198: 166 | X198: 2013-11-04 | Y198: 6304100 | Z198: 68.26 | AA198: 70.56 | AB198: 67.6 | AC198: 70.56 | AD198: 33 | AF198: 2.3 | AG198: 2.3 | AH198: 0 | AI198: 2.176413596 | AJ198: 0.5098122264 | AK198: 81.02124467 | AL198: 81.02124467 | AM198: 73.95138527 | AN198: 7.069859394 | AO198: 7.069859394 | AP198: 9.063742929 | AQ198: 9.063742929 | AR198: 98.90874285 | BA198: 20 | BB198: 80
A199: 167 | B199: =OFFSET(InputPriceData!B$15,CalculationsAndCharts!$A199+$A$11,0,1,1) -> 2018-03-26 | C199: =OFFSET(InputPriceData!G$15,CalculationsAndCharts!$A199+$A$11,IF($C$7,8,0),1,1) -> 522600 | D199: =OFFSET(InputPriceData!C$15,CalculationsAndCharts!$A199+$A$11,IF($C$7,8,0),1,1) -> 107.27 | E199: =OFFSET(InputPriceData!D$15,CalculationsAndCharts!$A199+$A$11,IF($C$7,8,0),1,1) -> 107.29 | F199: =OFFSET(InputPriceData!E$15,CalculationsAndCharts!$A199+$A$11,IF($C$7,8,0),1,1) -> 105.76 | G199: =OFFSET(InputPriceData!F$15,CalculationsAndCharts!$A199+$A$11,IF($C$7,8,0),1,1) -> 107.08 | H199: 0.63 | I199: 0.63 | J199: 0 | K199: 0.435098022 | L199: 0.7604782598 | M199: 36.39232633 | N199: 45.15115644 | O199: 33.19196301 | P199: 3.200363323 | Q199: 11.95919344 | R199: 2.432126707 | S199: 9.461012619 | T199: 25.43796148 | W199: 167 | X199: 2013-09-18 | Y199: 1484700 | Z199: 65.96 | AA199: 68.26 | AB199: 65.96 | AC199: 68.26 | AD199: 6 | AF199: 2.3 | AG199: 2.3 | AH199: 0 | AI199: 2.164054955 | AJ199: 0.5607934491 | AK199: 79.41927895 | AL199: 79.41927895 | AM199: 71.90102961 | AN199: 7.518249343 | AO199: 7.518249343 | AP199: 9.193708 | AQ199: 9.243298248 | AR199: 98.39895673 | BA199: 20 | BB199: 80
A200: 168 | B200: =OFFSET(InputPriceData!B$15,CalculationsAndCharts!$A200+$A$11,0,1,1) -> 2018-03-23 | C200: =OFFSET(InputPriceData!G$15,CalculationsAndCharts!$A200+$A$11,IF($C$7,8,0),1,1) -> 482500 | D200: =OFFSET(InputPriceData!C$15,CalculationsAndCharts!$A200+$A$11,IF($C$7,8,0),1,1) -> 108.8 | E200: =OFFSET(InputPriceData!D$15,CalculationsAndCharts!$A200+$A$11,IF($C$7,8,0),1,1) -> 109.87 | F200: =OFFSET(InputPriceData!E$15,CalculationsAndCharts!$A200+$A$11,IF($C$7,8,0),1,1) -> 106.24 | G200: =OFFSET(InputPriceData!F$15,CalculationsAndCharts!$A200+$A$11,IF($C$7,8,0),1,1) -> 106.45 | H200: -2.23 | I200: 0 | J200: 2.23 | K200: 0.4156078242 | L200: 0.8365260857 | M200: 33.19196301 | N200: 50.56296139 | O200: 33.19196301 | P200: 0 | Q200: 17.37099839 | R200: 3.468386007 | S200: 9.478185588 | T200: 36.21130511 | W200: 168 | X200: 2013-09-10 | Y200: 7181200 | Z200: 63.66 | AA200: 65.96 | AB200: 61.3 | AC200: 65.96 | AD200: 39 | AF200: 2.3 | AG200: 2.3 | AH200: 0 | AI200: 2.150460451 | AJ200: 0.616872794 | AK200: 77.70876366 | AL200: 77.70876366 | AM200: 69.73538581 | AN200: 7.973377851 | AO200: 7.973377851 | AP200: 8.954774693 | AQ200: 9.932422904 | AR200: 89.25834545 | BA200: 20 | BB200: 80
A201: 169 | B201: =OFFSET(InputPriceData!B$15,CalculationsAndCharts!$A201+$A$11,0,1,1) -> 2018-03-22 | C201: =OFFSET(InputPriceData!G$15,CalculationsAndCharts!$A201+$A$11,IF($C$7,8,0),1,1) -> 263100 | D201: =OFFSET(InputPriceData!C$15,CalculationsAndCharts!$A201+$A$11,IF($C$7,8,0),1,1) -> 109.68 | E201: =OFFSET(InputPriceData!D$15,CalculationsAndCharts!$A201+$A$11,IF($C$7,8,0),1,1) -> 111.19 | F201: =OFFSET(InputPriceData!E$15,CalculationsAndCharts!$A201+$A$11,IF($C$7,8,0),1,1) -> 108.59 | G201: =OFFSET(InputPriceData!F$15,CalculationsAndCharts!$A201+$A$11,IF($C$7,8,0),1,1) -> 108.68 | H201: -1.56 | I201: 0 | J201: 1.56 | K201: 0.4571686066 | L201: 0.6971786943 | M201: 39.6040781 | N201: 50.56296139 | O201: 39.6040781 | P201: 0 | Q201: 10.95888329 | R201: 4.801309596 | S201: 8.818882939 | T201: 53.83308233 | W201: 169 | X201: 2013-07-16 | Y201: 735800 | Z201: 61.36 | AA201: 63.66 | AB201: 61.36 | AC201: 63.66 | AD201: 3 | AF201: 2.3 | AG201: 2.3 | AH201: 0 | AI201: 2.135506496 | AJ201: 0.6785600734 | AK201: 75.88685069 | AL201: 75.88685069 | AM201: 67.45511359 | AN201: 8.431737104 | AO201: 8.431737104 | AP201: 7.958102462 | AQ201: 11.82219626 | AR201: 66.75030579 | BA201: 20 | BB201: 80
A202: 170 | B202: =OFFSET(InputPriceData!B$15,CalculationsAndCharts!$A202+$A$11,0,1,1) -> 2018-03-21 | C202: =OFFSET(InputPriceData!G$15,CalculationsAndCharts!$A202+$A$11,IF($C$7,8,0),1,1) -> 513300 | D202: =OFFSET(InputPriceData!C$15,CalculationsAndCharts!$A202+$A$11,IF($C$7,8,0),1,1) -> 109.92 | E202: =OFFSET(InputPriceData!D$15,CalculationsAndCharts!$A202+$A$11,IF($C$7,8,0),1,1) -> 111.64 | F202: =OFFSET(InputPriceData!E$15,CalculationsAndCharts!$A202+$A$11,IF($C$7,8,0),1,1) -> 109.27 | G202: =OFFSET(InputPriceData!F$15,CalculationsAndCharts!$A202+$A$11,IF($C$7,8,0),1,1) -> 110.24 | H202: 0.63 | I202: 0.63 | J202: 0 | K202: 0.5028854673 | L202: 0.6108965637 | M202: 45.15115644 | N202: 50.56296139 | O202: 41.42472786 | P202: 3.726428583 | Q202: 9.138233531 | R202: 6.313381745 | S202: 8.961094677 | T202: 69.67570664 | W202: 170 | X202: 2013-07-11 | Y202: 9388200 | Z202: 59.06 | AA202: 61.36 | AB202: 54.99 | AC202: 61.36 | AD202: 36 | AF202: 2.3 | AG202: 2.3 | AH202: 0 | AI202: 2.119057145 | AJ202: 0.7464160807 | AK202: 73.95138527 | AL202: 73.95138527 | AM202: 65.06203789 | AN202: 8.889347389 | AO202: 8.889347389 | AP202: 6.904135324 | AQ202: 13.13469677 | AR202: 52.16693245 | BA202: 20 | BB202: 80
A203: 171 | B203: =OFFSET(InputPriceData!B$15,CalculationsAndCharts!$A203+$A$11,0,1,1) -> 2018-03-20 | C203: =OFFSET(InputPriceData!G$15,CalculationsAndCharts!$A203+$A$11,IF($C$7,8,0),1,1) -> 337900 | D203: =OFFSET(InputPriceData!C$15,CalculationsAndCharts!$A203+$A$11,IF($C$7,8,0),1,1) -> 111.52 | E203: =OFFSET(InputPriceData!D$15,CalculationsAndCharts!$A203+$A$11,IF($C$7,8,0),1,1) -> 112.12 | F203: =OFFSET(InputPriceData!E$15,CalculationsAndCharts!$A203+$A$11,IF($C$7,8,0),1,1) -> 109.25 | G203: =OFFSET(InputPriceData!F$15,CalculationsAndCharts!$A203+$A$11,IF($C$7,8,0),1,1) -> 109.61 | H203: -2.12 | I203: 0 | J203: 2.12 | K203: 0.490174014 | L203: 0.6719862201 | M203: 42.17783397 | N203: 50.56296139 | O203: 41.42472786 | P203: 0.7531061073 | Q203: 9.138233531 | R203: 6.837870936 | S203: 9.184622072 | T203: 73.6472727 | W203: 171 | X203: 2013-05-20 | Y203: 1391000 | Z203: 56.76 | AA203: 59.06 | AB203: 56.76 | AC203: 59.06 | AD203: 4 | AF203: 2.3 | AG203: 2.3 | AH203: 0 | AI203: 2.10096286 | AJ203: 0.8210576888 | AK203: 71.90102961 | AL203: 71.90102961 | AM203: 62.55924081 | AN203: 9.3417888 | AO203: 9.3417888 | AP203: 5.7929669 | AQ203: 13.84668619 | AR203: 41.5365114 | BA203: 20 | BB203: 80
... 922 more rows

Sheet Follow
A1: Stocks and Indexes I wish to follow
A3: To ease following a stock, enter a Yahoo Finance acceptable symbol in column "A" anywhere below cell "A9".
A4: Thereafter you may doubleclick the cell containing a symbol of interest to initiate data retrieval and charting for that symbol.
A7: Symbol
A8: To | B8: Description | C8: Last Trade as of most recent check
A9: Follow | C9: Date | D9: Time | E9: Open | F9: High | G9: Low | H9: Close | I9: Volume | J9: Change
A10: A | B10: Agilent Technolog (A) -NYSE (Daily) | C10: 2015-02-02 | D10: 16:03:00 | E10: 37.9 | F10: 38.76 | G10: 37.71 | H10: 38.69 | I10: 2508493 | J10: 0.92
A11: AA | B11: Alcoa Corporation (AA) -NYSE (Weekly) | C11: 2018-06-19 | D11: 16:04:00 | E11: 44.630001 | F11: 44.630001 | G11: 43.349998 | H11: 44.470001 | I11: 3190085 | J11: -1.309998
A12: AAL | B12: American Airlines Group Inc. (AAL) -NasdaqGS (Daily) | C12: 2017-12-07 | D12: 16:00:00 | E12: 49.529999 | F12: 50.920502 | G12: 49.299999 | H12: 50.880001 | I12: 3046954 | J12: 1.27
A13: AAPL | B13: Apple Inc. (AAPL) -NasdaqGS (Daily) | C13: 2018-11-19 | D13: 16:00:00 | E13: 190 | F13: 190.699997 | G13: 184.990005 | H13: 185.860001 | I13: 41356195 | J13: -7.669998
A14: ADM | B14: Archer-Daniels-Midland Company (ADM) -NYSE (Weekly) | C14: 2018-07-13 | D14: 16:00:00 | E14: 47.5 | F14: 47.84 | G14: 47.169998 | H14: 47.57 | I14: 2402809 | J14: 0
A15: AMC | B15: AMC Entertainment Holdings, Inc. (AMC) -NYSE (Weekly) | C15: 2018-07-13 | D15: 16:02:00 | E15: 17.049999 | F15: 17.15 | G15: 16.525 | H15: 17.049999 | I15: 1442776 | J15: 0
A16: ALGN | B16: Align Technology, Inc. (ALGN) -NasdaqGS (Daily) | C16: 2018-09-13 | D16: 12:08:00 | E16: 383.869995 | F16: 388.768311 | G16: 379.540009 | H16: 383.839996 | I16: 251804 | J16: 2.010009
A17: AMZN | B17: Amazon.com, Inc. (AMZN) -NasdaqGS (Daily) | C17: 2018-09-13 | D17: 09:34:00 | E17: 2000 | F17: 2005.218994 | G17: 1996.150024 | H17: 2000.932251 | I17: 299023 | J17: 10.932251
A18: BSX | B18: Boston Scientific Corporation C (BSX) -NYQ (Daily) | C18: 2015-03-13 | D18: 16:01:00 | E18: 16.84 | F18: 16.91 | G18: 16.44 | H18: 16.61 | I18: 7262460 | J18: -0.28
A19: CASY | B19: Casey's General Stores, Inc. (CASY) -NasdaqGS (Daily) | C19: 2018-11-19 | D19: 16:00:00 | E19: 128.559998 | F19: 129.509995 | G19: 126.440002 | H19: 126.75 | I19: 209700 | J19: -1.690002
A20: CAT | B20: Caterpillar Inc. (CAT) -NYSE (Daily) | C20: 2018-11-19 | D20: 16:00:00 | E20: 129.149994 | F20: 129.490005 | G20: 125.599998 | H20: 125.980003 | I20: 5374300 | J20: -3.980004
A21: CSCO | B21: Cisco Systems, In (CSCO) -NasdaqNM (Daily) | C21: 2015-02-19 | D21: 16:00:00 | E21: 29.32 | F21: 29.39 | G21: 29.13 | H21: 29.31 | I21: 21469012 | J21: -0.18
A22: CVS | B22: CVS Health Corpor (CVS) -NYSE (Daily) | C22: 2015-02-02 | D22: 16:01:00 | E22: 98.34 | F22: 99.22 | G22: 97.06 | H22: 99.11 | I22: 4416094 | J22: 0.95
A23: DIS | B23: Walt Disney Compa (DIS) -NYSE (Daily) | C23: 2015-02-26 | D23: 16:00:00 | E23: 105.5 | F23: 105.71 | G23: 104.14 | H23: 104.56 | I23: 5044969 | J23: -1.01
A24: F | B24: Ford Motor Company (F) -NYSE (Daily) | C24: 2018-04-16 | D24: 13:20:00 | E24: 11.36 | F24: 11.4375 | G24: 11.27 | H24: 11.425 | I24: 13144677 | J24: 0.145
A25: FAS | B25: Direxion Daily Financial Bull 3X ETF (FAS) -NYSEArca (Daily) | C25: 2017-10-13 | D25: 16:00:00 | E25: 58.099998 | F25: 58.939999 | G25: 57.43 | H25: 58.450001 | I25: 1709300 | J25: 0.07
A26: FB | B26: Facebook, Inc. (FB) -NasdaqGS (Daily) | C26: 2018-07-13 | D26: 16:00:00 | E26: 207.809998 | F26: 208.429993 | G26: 206.449997 | H26: 207.320007 | I26: 11486800 | J26: 0.400009
A27: GSK | B27: GlaxoSmithKline P (GSK) -NYSE (Daily) | C27: 2015-02-02 | D27: 16:01:00 | E27: 44.11 | F27: 44.12 | G27: 43.71 | H27: 43.96 | I27: 3654466 | J27: -0.04
A28: GDX | B28: VanEck Vectors Gold Miners ETF (GDX) -PCX (Daily) | C28: 2017-02-10 | D28: 20:00:00 | E28: 24.67 | F28: 25.36 | G28: 24.6 | H28: 25.29 | I28: 65396107 | J28: 0.38
A29: HSY | B29: The Hershey Compa (HSY) -NYSE (Daily) | C29: 2015-02-19 | D29: 16:02:00 | E29: 106.97 | F29: 107.31 | G29: 105.42 | H29: 105.95 | I29: 1448321 | J29: -1
A30: HTLD | B30: Heartland Express, Inc. (HTLD) -NasdaqGS (Daily) | C30: 2018-04-16 | D30: 13:57:00 | E30: 18.17 | F30: 18.620001 | G30: 18.129999 | H30: 18.540001 | I30: 202134 | J30: 0.540001
